Workbook

Sheet Home
E3: Controls Navigator: Home
F4: EMERSON EUROPE Website
D5: =INDEX(Language!$B$2:$M$250,69,Language!$A$1) -> Select your application
D7: =INDEX(Language!$B$2:$M$250,87,Language!$A$1) -> Electrical control valves
D9: =INDEX(Language!$B$2:$M$250,55,Language!$A$1)&" + "&INDEX(Language!$B$2:$M$250,77,Language!$A$1) -> Expansion valve + Liquid Injection valve
D11: =INDEX(Language!$B$2:$M$299,256,Language!$A$1) -> Valves for R744 transcritical applications | F11: www-EXV1
D13: =INDEX(Language!$B$2:$M$250,56,Language!$A$1) -> Hot gas bypass duty | F13: www-EXV2
D15: =INDEX(Language!$B$2:$M$250,57,Language!$A$1) -> Suction duty
D17: =INDEX(Language!$B$2:$M$250,58,Language!$A$1) -> Liquid and head pressure duty
D19: =INDEX(Language!$B$2:$M$400,388,Language!$A$1) -> Heat reclaim / Heat Reclaim CO2
D21: =INDEX(Language!$B$2:$M$250,19,Language!$A$1) -> Controller for ECV | F21: www-Cont1 | G21: www-Cont2
D22: =INDEX(Language!$B$2:$M$400,269,Language!$A$1)&", "&INDEX(Language!$B$2:$M$400,276,Language!$A$1) -> Fan speed controllers, Soft starters for 1-ph compressors | F22: www-Cont3 | G22: www-Cont4
D25: =INDEX(Language!$B$2:$M$250,55,Language!$A$1)&" "&INDEX(Language!$B$2:$M$250,83,Language!$A$1) -> Expansion valve Modular design
D27: =INDEX(Language!$B$2:$M$250,55,Language!$A$1)&" "&INDEX(Language!$B$2:$M$250,82,Language!$A$1) -> Expansion valve Hermetic design | F27: www-TXV
D29: =INDEX(Language!$B$2:$M$250,77,Language!$A$1) -> Liquid Injection valve
D31: =INDEX(Language!$B$2:$M$250,89,Language!$A$1) -> Solenoid valves | F31: www-Sol
D33: =INDEX(Language!$B$2:$M$250,92,Language!$A$1) -> Oil management components | F33: www-Oil
D35: =INDEX(Language!$B$2:$M$250,90,Language!$A$1) -> Pressure controls and thermostats | F35: www-PS
D37: =INDEX(Language!$B$2:$M$250,91,Language!$A$1)&" & "&INDEX(Language!$B$2:$M$250,219,Language!$A$1) -> System protectors & Moisture liquid indicators | F37: www-SP
D39: =INDEX(Language!$B$2:$M$250,71,Language!$A$1)&" + "&INDEX(Language!$B$2:$M$250,72,Language!$A$1) -> Evaporator pressure regulator + Crankcase regulator | F39: www-Reg
D40: =INDEX(Language!$B$2:$M$250,56,Language!$A$1) -> Hot gas bypass duty
D42: =INDEX(Language!$B$2:$M$250,220,Language!$A$1)&" & "&INDEX(Language!$B$2:$M$250,93,Language!$A$1) -> Ball valves & Other products | F42: www-Oth
D43: ="Rev.: "&TEXT('Edit List'!B1,"TT.MM.JJJJ") -> Rev.: 01.11.2019

Sheet E-Expans
B1: =INDEX(Language!$B$2:$M$41,2,Language!$A$1) -> Instruction: Select refrigerant and fill yellow fields with operating conditions.
B2: =INDEX(Language!$B$2:$M$41,3,Language!$A$1) -> #N/A error message: operating conditions, refrigerant or product out of range/specification.
D4: =INDEX(Language!$B$2:$M$41,4,Language!$A$1) -> Project:
D5: =INDEX(Language!$B$2:$M$299,87,Language!$A$1) -> Electrical control valves
D6: =INDEX(Language!$B$2:$M$61,55,Language!$A$1) -> Expansion valve
B7: =CONCATENATE(INDEX(Language!$B$2:$M$41,5,Language!$A$1),": ",'E-EX-Fun'!$G$31) -> Refrigerant: R744
B8: =INDEX(Language!$B$2:$M$41,6,Language!$A$1) -> Evaporating temperature | D8: -10 | E8: =INDEX('E-EX-Fun'!$N$5:$P$15,2,'E-EX-Fun'!$D$19) -> °C | G8: Tc = | H8: =D10 -> 10 | I8: =E10 -> °C
G9: PC= | H9: =('E-EX-Fun'!E41)*INDEX('E-EX-Fun'!$N$5:$P$15,9,'E-EX-Fun'!$D$19) -> 45.02183907 | I9: =INDEX('E-EX-Fun'!$N$5:$P$15,10,'E-EX-Fun'!$D$19) -> bara
B10: =INDEX(Language!$B$2:$M$41,7,Language!$A$1) -> Condensing temperature | D10: 10 | E10: =INDEX('E-EX-Fun'!$N$5:$P$15,2,'E-EX-Fun'!$D$19) -> °C
G11: =" "&'E-EX-Fun'!$G$31 -> R744
B12: =INDEX(Language!$B$2:$M$41,8,Language!$A$1) -> Subcooling | D12: 1 | E12: =INDEX('E-EX-Fun'!$N$5:$P$15,3,'E-EX-Fun'!$D$19) -> K
B13: =INDEX(Language!$B$2:$M$41,11,Language!$A$1) -> System cooling capacity | D13: 10 | E13: =INDEX('E-EX-Fun'!$N$5:$P$15,4,'E-EX-Fun'!$D$19) -> kW | I13: Q0 = | J13: =D13&" "&E13 -> 10 kW
B15: =INDEX(Language!$B$2:$M$41,12,Language!$A$1) -> Pressure drop * | D15: 1.5 | E15: =INDEX('E-EX-Fun'!$N$5:$P$15,5,'E-EX-Fun'!$D$19) -> bar
B16: =INDEX(Language!$B$2:$M$41,13,Language!$A$1) -> *) Liquid line, filter drier, solenoid valve, sight glass, liquid distributor and evaporator
G19: Tliquid = | H19: =$D$10-$D$12&INDEX('E-EX-Fun'!$N$5:$P$15,2,'E-EX-Fun'!$D$19) -> 9°C | K19: To = | L19: =D8 -> -10 | M19: =E8 -> °C
G20: Dp = | H20: =H9-(L20+D15) -> 17.03506652 | I20: =INDEX('E-EX-Fun'!$N$5:$P$15,5,'E-EX-Fun'!$D$19) -> bar | K20: P0 = | L20: =('E-EX-Fun'!E37)*INDEX('E-EX-Fun'!$N$5:$P$15,9,'E-EX-Fun'!$D$19) -> 26.48677255 | M20: =INDEX('E-EX-Fun'!$N$5:$P$15,10,'E-EX-Fun'!$D$19) -> bara
B22: =INDEX(Language!$B$2:$M$41,17,Language!$A$1) -> High performance stepper motor ECV
L23: =CONCATENATE(INDEX(Language!$B$2:$M$41,23,Language!$A$1),$E$13,")") -> Maximum valve capacity at selected conditions (kW)
D25: =INDEX(Language!$B$2:$M$41,15,Language!$A$1) -> Type | F25: =INDEX(Language!$B$2:$M$41,18,Language!$A$1) -> Part No. | G25: MWP | I25: =INDEX(Language!$B$2:$M$41,16,Language!$A$1) -> Ratio | L25: =INDEX(Language!$B$2:$M$41,15,Language!$A$1) -> Type | O25: ='E-EX-Fun'!$G$31 -> R744
D26: =INDEX('E-EX-Dat'!D10:D14,'E-EX-Fun'!D56) -> EX4-M21 | F26: =INDEX('E-EX-Dat'!$E$10:$E$14,'E-EX-Fun'!$D$56,1) -> 800 616 | G26: =INDEX('E-EX-Dat'!AF10:AF14,'E-EX-Fun'!D56)*INDEX('E-EX-Fun'!$N$5:$P$15,9,'E-EX-Fun'!$D$19) -> 90 | H26: =INDEX('E-EX-Fun'!$N$5:$P$15,5,'E-EX-Fun'!$D$19) -> bar | I26: =TEXT('E-EX-Fun'!E56,"0%")&" "&IF('E-EX-Fun'!E56>10%,"OK",INDEX(Language!$B$2:$M$41,36,Language!$A$1)) -> 38% OK | L26: ='E-EX-Dat'!D10 -> EX8-M21 | O26: =IF('E-EX-Dat'!B10="-","-",'E-EX-Dat'!B10*INDEX('E-EX-Fun'!$N$5:$P$15,8,'E-EX-Fun'!$D$19)) -> 1411.469088
D27: =INDEX('E-EX-Dat'!AD10:AD14,'E-EX-Fun'!D56) -> EX4-U31 | F27: =INDEX('E-EX-Dat'!$AE$10:$AE$14,'E-EX-Fun'!$D$56,1) -> 800 617 | G27: =INDEX('E-EX-Dat'!$AF$10:$AF$14,'E-EX-Fun'!$D$56)*INDEX('E-EX-Fun'!$N$5:$P$15,9,'E-EX-Fun'!$D$19) -> 90 | H27: =INDEX('E-EX-Fun'!$N$5:$P$15,5,'E-EX-Fun'!$D$19) -> bar | L27: ='E-EX-Dat'!D11 -> EX7-M21 | O27: =IF('E-EX-Dat'!B11="-","-",'E-EX-Dat'!B11*INDEX('E-EX-Fun'!$N$5:$P$15,8,'E-EX-Fun'!$D$19)) -> 529.5456148
L28: ='E-EX-Dat'!D12 -> EX6-M21 | O28: =IF('E-EX-Dat'!B12="-","-",'E-EX-Dat'!B12*INDEX('E-EX-Fun'!$N$5:$P$15,8,'E-EX-Fun'!$D$19)) -> 192.8289947
L29: ='E-EX-Dat'!D13 -> EX5-U21 | O29: =IF('E-EX-Dat'!B13="-","-",'E-EX-Dat'!B13*INDEX('E-EX-Fun'!$N$5:$P$15,8,'E-EX-Fun'!$D$19)) -> 80.26384549
L30: ='E-EX-Dat'!D14 -> EX4-M21 | O30: =IF('E-EX-Dat'!B14="-","-",'E-EX-Dat'!B14*INDEX('E-EX-Fun'!$N$5:$P$15,8,'E-EX-Fun'!$D$19)) -> 26.42833937
B40: =INDEX(Language!$B$2:$M$400,20,Language!$A$1) -> Standard stepper motor EXV (To ≥ -30°C)
L41: =INDEX(Language!$B$2:$M$41,15,Language!$A$1) -> Type | O41: ='E-EX-Fun'!$G$31 -> R744
L42: ='E-EX-Dat'!D22 -> EXN-B2L | O42: =IF('E-EX-Dat'!B22="-","-",'E-EX-Dat'!B22*INDEX('E-EX-Fun'!$N$5:$P$15,8,'E-EX-Fun'!$D$19)) -> -
D43: =INDEX(Language!$B$2:$M$41,15,Language!$A$1) -> Type | F43: =INDEX(Language!$B$2:$M$41,18,Language!$A$1) -> Part No. | G43: MWP | I43: =INDEX(Language!$B$2:$M$41,16,Language!$A$1) -> Ratio | L43: ='E-EX-Dat'!D23 -> EXN-B2K | O43: =IF('E-EX-Dat'!B23="-","-",'E-EX-Dat'!B23*INDEX('E-EX-Fun'!$N$5:$P$15,8,'E-EX-Fun'!$D$19)) -> -
I44: =TEXT('E-EX-Fun'!E58,"0%")&" "&IF('E-EX-Fun'!E58>10%,"OK",INDEX(Language!$B$2:$M$41,36,Language!$A$1)) ->  | L44: ='E-EX-Dat'!D24 -> EXL-B1G | O44: =IF('E-EX-Dat'!B24="-","-",'E-EX-Dat'!B24*INDEX('E-EX-Fun'!$N$5:$P$15,8,'E-EX-Fun'!$D$19)) -> -
D45: =INDEX('E-EX-Dat'!D22:D29,'E-EX-Fun'!D58) ->  | F45: =INDEX('E-EX-Dat'!E22:E29,'E-EX-Fun'!D58) ->  | G45: =INDEX('E-EX-Dat'!$AF$22:$AF$29,'E-EX-Fun'!$D$58)*INDEX('E-EX-Fun'!$N$5:$P$15,9,'E-EX-Fun'!$D$19) ->  | H45: =INDEX('E-EX-Fun'!$N$5:$P$15,5,'E-EX-Fun'!$D$19) -> bar | L45: ='E-EX-Dat'!D25 -> EXL-B1F | O45: =IF('E-EX-Dat'!B25="-","-",'E-EX-Dat'!B25*INDEX('E-EX-Fun'!$N$5:$P$15,8,'E-EX-Fun'!$D$19)) -> -
L46: ='E-EX-Dat'!D26 -> EXM-B0E | O46: =IF('E-EX-Dat'!B26="-","-",'E-EX-Dat'!B26*INDEX('E-EX-Fun'!$N$5:$P$15,8,'E-EX-Fun'!$D$19)) -> -
L47: ='E-EX-Dat'!D27 -> EXM-B0D | O47: =IF('E-EX-Dat'!B27="-","-",'E-EX-Dat'!B27*INDEX('E-EX-Fun'!$N$5:$P$15,8,'E-EX-Fun'!$D$19)) -> -
L48: ='E-EX-Dat'!D28 -> EXM-B0B | O48: =IF('E-EX-Dat'!B28="-","-",'E-EX-Dat'!B28*INDEX('E-EX-Fun'!$N$5:$P$15,8,'E-EX-Fun'!$D$19)) -> -
L49: ='E-EX-Dat'!D29 -> EXM-B0A | O49: =IF('E-EX-Dat'!B29="-","-",'E-EX-Dat'!B29*INDEX('E-EX-Fun'!$N$5:$P$15,8,'E-EX-Fun'!$D$19)) -> -
B50: =INDEX(Language!$B$2:$M$41,21,Language!$A$1) -> PWM driven EXV
D51: =INDEX(Language!$B$2:$M$41,15,Language!$A$1) -> Type | F51: =INDEX(Language!$B$2:$M$41,18,Language!$A$1) -> Part No. | G51: MWP | I51: =INDEX(Language!$B$2:$M$41,16,Language!$A$1)&"*" -> Ratio * | L51: =INDEX(Language!$B$2:$M$41,15,Language!$A$1) -> Type | O51: ='E-EX-Fun'!$G$31 -> R744
D52: ='E-EX-Dat'!$D$30 -> EX2-M00 | F52: ='E-EX-Dat'!E30 -> 801091 | G52: ='E-EX-Dat'!$AF$30 -> 40 | H52: =INDEX('E-EX-Fun'!$N$5:$P$15,5,'E-EX-Fun'!$D$19) -> bar | N52: 1 | O52: 80% *
D53: ='E-EX-Dat'!$AD$30 -> EX2-I00 | F53: ='E-EX-Dat'!AE30 -> 801 090 | G53: ='E-EX-Dat'!$AF$30 -> 40 | H53: =INDEX('E-EX-Fun'!$N$5:$P$15,5,'E-EX-Fun'!$D$19) -> bar | L53: ='E-EX-Dat'!$D$39 -> EX2/CX2-I00/M00 | N53: =IF('E-EX-Dat'!B30="-","-",'E-EX-Dat'!B30*INDEX('E-EX-Fun'!$N$5:$P$15,8,'E-EX-Fun'!$D$19)) -> 27.60293223 | O53: =IF(N53="-","-",N53*0.8) -> 22.08234578
D54: ='E-EX-Dat'!$D$42 -> CX2-I00 | F54: ='E-EX-Dat'!E42 -> 801 095 | G54: ='E-EX-Dat'!$AF$42 -> 90 | H54: =INDEX('E-EX-Fun'!$N$5:$P$15,5,'E-EX-Fun'!$D$19) -> bar | M54: ='E-EX-Dat'!$D31 -> EXO-004 | N54: =IF('E-EX-Dat'!B31="-","-",'E-EX-Dat'!B31*INDEX('E-EX-Fun'!$N$5:$P$15,8,'E-EX-Fun'!$D$19)) -> 17.52101017 | O54: =IF(N54="-","-",N54*0.8) -> 14.01680814
C55: =INDEX(Language!$B$2:$M$41,37,Language!$A$1) -> Orifice | M55: ='E-EX-Dat'!$D32 -> EXO-003 | N55: =IF('E-EX-Dat'!B32="-","-",'E-EX-Dat'!B32*INDEX('E-EX-Fun'!$N$5:$P$15,8,'E-EX-Fun'!$D$19)) -> 11.55016313 | O55: 9.240130505
I56: =TEXT('E-EX-Fun'!E59,"0%")&" "&IF('E-EX-Fun'!E59>10%,"OK",INDEX(Language!$B$2:$M$41,36,Language!$A$1)) -> 57% OK | M56: ='E-EX-Dat'!$D33 -> EXO-002 | N56: =IF('E-EX-Dat'!B33="-","-",'E-EX-Dat'!B33*INDEX('E-EX-Fun'!$N$5:$P$15,8,'E-EX-Fun'!$D$19)) -> 6.851791688 | O56: 5.481433351
D57: =IF(INDEX('E-EX-Dat'!D30:D36,'E-EX-Fun'!D59)=D52,INDEX(Language!$B$2:$M$250,54,Language!$A$1),INDEX('E-EX-Dat'!D30:D36,'E-EX-Fun'!D59)) -> EXO-004 | F57: =IF(INDEX('E-EX-Dat'!D30:D36,'E-EX-Fun'!D59)=D52,"-",INDEX('E-EX-Dat'!E30:E36,'E-EX-Fun'!D59)) -> 801089 | M57: ='E-EX-Dat'!$D34 -> EXO-001 | N57: =IF('E-EX-Dat'!B34="-","-",'E-EX-Dat'!B34*INDEX('E-EX-Fun'!$N$5:$P$15,8,'E-EX-Fun'!$D$19)) -> 5.089902397 | O57: 4.071921918
M58: ='E-EX-Dat'!$D35 -> EXO-000 | N58: =IF('E-EX-Dat'!B35="-","-",'E-EX-Dat'!B35*INDEX('E-EX-Fun'!$N$5:$P$15,8,'E-EX-Fun'!$D$19)) -> 2.544951199 | O58: 2.035960959
B59: =INDEX(Language!$B$2:$M$250,28,Language!$A$1) -> ESC Coil | M59: ='E-EX-Dat'!$D36 -> EXO-00X | N59: =IF('E-EX-Dat'!B36="-","-",'E-EX-Dat'!B36*INDEX('E-EX-Fun'!$N$5:$P$15,8,'E-EX-Fun'!$D$19)) -> 1.468241076 | O59: 1.174592861
E60: =INDEX(Language!$B$2:$M$41,15,Language!$A$1) -> Type | G60: =INDEX(Language!$B$2:$M$41,18,Language!$A$1) -> Part No. | L60: =INDEX(Language!$B$2:$M$400,324,Language!$A$1) -> * 20% overrsized valve for PWM function at highest load
D61: ='E-EX-Dat'!B40 -> ESC-24V 50Hz | G61: ='E-EX-Dat'!B37 -> 801033
D62: ='E-EX-Dat'!B41 -> ESC-230V 50Hz | G62: ='E-EX-Dat'!B38 -> 801036
B63: =Home!$D$43 -> Rev.: 01.11.2019
B64: =INDEX(Language!$B$2:$M$251,250,Language!$A$1) -> The Controls Navigator is provided by Emerson Climate Technologies Europe to assist with the selection of mechanical and electronic controls. Emerson Climate Technologies cannot be held liable for issues arising from application of controls using information provided by this software.

Sheet E-EX-Fun (hidden)
A1: Functions, Formulas, Codes
B3: Languages | E3: Refrigerant Selection | M3: Convert to °C-bar-kW
B4: 1 | C4: =Language!B$2 -> English | E4: =INDEX(E5:E27,$G4) -> 12 | F4: =INDEX(F5:F27,$G4) -> 12 | G4: 9 | O4: tons | P4: tBTU/h
B5: 2 | C5: =Language!C$2 -> Deutsch | E5: 2 | F5: 2 | G5: R410A | N5: Metric | O5: Imperial | P5: Imperial
B6: 3 | C6: =Language!D$2 -> Français | E6: 3 | F6: 3 | G6: R134a | N6: °C | O6: °F | P6: °F
B7: 4 | C7: =Language!E$2 -> Italiano | E7: 4 | F7: 4 | G7: R22 | N7: K | O7: °F | P7: °F
B8: 5 | C8: =Language!F$2 -> Españiol | E8: 5 | F8: 6 | G8: R404A | N8: kW | O8: tons | P8: MBH
B9: 6 | C9: =Language!G$2 -> Nederlands | E9: 7 | F9: 7 | G9: R507 | N9: bar | O9: Psid | P9: Psid
B10: 7 | C10: =Language!H$2 -> Polish | E10: 8 | F10: 9 | G10: R407C | M10: °C | N10: 0 | O10: 32 | P10: 32
B11: 8 | C11: =Language!I$2 -> Czech | E11: 10 | F11: 10 | G11: R23 | M11: K | N11: 1 | O11: 0.5555555556 | P11: 0.5555555556
B12: 9 | C12: =Language!J$2 -> Russian | E12: 11 | F12: 11 | G12: R124 | M12: kW | N12: 1 | O12: 0.2843453659 | P12: 3.412144391
B13: 10 | C13: =Language!K$2 -> Chinese | E13: 12 | F13: 12 | G13: R744 | M13: bar | N13: 1 | O13: 14.5038 | P13: 14.5038
B14: 11 | C14: =Language!L$2 -> Japanese | E14: 13 | F14: 14 | G14: R454A | N14: bara | O14: Psia | P14: Psia
B15: 12 | C15: =Language!M$2 -> Română | E15: 15 | F15: 16 | G15: R454C | O15: 14.7 | P15: 14.7
E16: 17 | F16: 17 | G16: R1234yf
E17: 18 | F17: 18 | G17: R1234ze
B18: Units Conversion | E18: 19 | F18: 20 | G18: R452B
C19: °C-bar-kW | D19: 1 | E19: 21 | F19: 21 | G19: R32
C20: °F-Psi-tons | E20: 22 | F20: 23 | G20: R452A
C21: °F-Psi-MBH | E21: 24 | F21: 25 | G21: R448A
E22: 26 | F22: 27 | G22: R449A
E23: 28 | F23: 29 | G23: R450A
E24: 30 | F24: 31 | G24: R513A
E25: 32 | F25: 33 | G25: R454B
E26: 34 | F26: 35 | G26: R455A
E27: 36 | F27: 37 | G27: R447A
A31: Expansion Valve Function | F31: Selected Refrigerant | G31: =INDEX($G$5:$G$26,$G$4) -> R744
J32: Kt
D33: max | E33: =INDEX(SatPress!A2:AG2,'E-EX-Fun'!E4) -> 31 | F33: °C | G33: bara | I33: TCmin | K33: TCmax | M33: Indirect range reference for Kt selection
B34: =INDEX(Language!$B$2:$M$41,6,Language!$A$1) -> Evaporating temperature | D34: Roundup | E34: =IF(E35<0,ROUNDDOWN(E35,0),ROUNDUP(E35,0)) -> -10 | G34: =(VLOOKUP(E34,SatPress!$A$7:$AI$213,$F$4,))/100000 -> 26.48677255 | H34: TEmax | I34: =HLOOKUP($E34,INDIRECT(M34),$I40) -> 0.983 | K34: =HLOOKUP($E34,INDIRECT(M34),$I38) -> 0.983 | M34: =CONCATENATE("'",$G$31,"'","!$A$52:$EB$180") -> 'R744'!$A$52:$EB$180
D35: Value | E35: =IF($D$19=1,'E-Expans'!D8,('E-Expans'!D8-32)/1.8) -> -10 | F35: °C | G35: =IF($E34=$E36,G36,G36+((G34-G36)*($E35-$E36)/($E34-$E36))) -> 26.48677255 | I35: =IF($E34=$E36,I36,I36+((I34-I36)*($E35-$E36)/($E34-$E36))) -> 0.983 | J35: =IF(E43=E45,I35,I35+((K35-I35)*(E44-E45)/(E43-E45))) -> 0.983 | K35: =IF($E34=$E36,K36,K36+((K34-K36)*($E35-$E36)/($E34-$E36))) -> 0.983 | M35: =CONCATENATE("'",$G$31,"'","!$A$52:$A$180") -> 'R744'!$A$52:$A$180
D36: Rounddown | E36: =IF(E35<0,ROUNDUP(E35,0),ROUNDDOWN(E35,0)) -> -10 | G36: =(VLOOKUP(E36,SatPress!$A$7:$AI$213,$F$4,))/100000 -> 26.48677255 | H36: TEmin | I36: =HLOOKUP($E36,INDIRECT(M34),$I40) -> 0.983 | K36: =HLOOKUP($E36,INDIRECT(M34),$I38) -> 0.983
B37: Po= | E37: =IF(E34=E36,G35,G36+((G34-G36)*(E35-E36)/(E34-E36))) -> 26.48677255 | F37: bara | I37: index from Temp to line nr.
B38: =INDEX(Language!$B$2:$M$41,7,Language!$A$1) -> Condensing temperature | D38: Roundup | E38: =IF(E39<0,ROUNDDOWN(E39,0),ROUNDUP(E39,0)) -> 10 | G38: =(VLOOKUP(E38,SatPress!$A$7:$AI$213,E$4,))/100000 -> 45.02183907 | I38: =MATCH(E43,INDIRECT($M$35)) -> 31
D39: Value | E39: =IF($D$19=1,'E-Expans'!D10,('E-Expans'!D10-32)/1.8) -> 10 | F39: °C | G39: =IF(E38=E40,G40,G40+((G38-G40)*(E39-E40)/(E38-E40))) -> 45.02183907 | M39: =1442/(J35*J44) -> 1411.469088
D40: Rounddown | E40: =IF(E39<0,ROUNDUP(E39,0),ROUNDDOWN(E39,0)) -> 10 | G40: =(VLOOKUP(E40,SatPress!$A$7:$AI$213,E$4,))/100000 -> 45.02183907 | I40: =MATCH(E45,INDIRECT($M$35)) -> 31
B41: Pc= | E41: =IF(E38=E40,G39,G40+((G38-G40)*(E39-E40)/(E38-E40))) -> 45.02183907 | F41: bara | J41: KDp
B42: =INDEX(Language!$B$2:$M$41,8,Language!$A$1) -> Subcooling | D42: DTsub: | E42: =IF($D$19=1,'E-Expans'!D12,('E-Expans'!D12)/1.8) -> 1 | F42: K | I42: Dp
B43: =INDEX(Language!$B$2:$M$41,9,Language!$A$1) -> Liquid temperature | D43: Roundup | E43: =ROUNDUP(E44,0) -> 9 | I43: =ROUNDUP(I44*2,0)/2 -> 17.5 | J43: =HLOOKUP(I43,'E-Delta_P'!$E$3:$EE$26,$G$4+2) -> 1.03
D44: Value | E44: =E39-E42 -> 9 | F44: °C | I44: =G39-(G35+E53) -> 17.03506652 | J44: =IF($I43=$I45,J45,J45+((J43-J45)*($I44-$I45)/($I43-$I45))) -> 1.03929867
D45: Rounddown | E45: =ROUNDDOWN(E44,0) -> 9 | I45: =ROUNDDOWN(I44*2,0)/2 -> 17 | J45: =HLOOKUP(I45,'E-Delta_P'!$E$3:$EE$26,$G$4+2) -> 1.04
D46: min | E46: =INDEX(SatPress!A1:AG1,E4) -> -50 | F46: °C
B48: =INDEX(Language!$B$2:$M$41,10,Language!$A$1) -> Diff. pressure across valve | E48: ='E-Expans'!H20/INDEX('E-EX-Fun'!$N$5:$P$15,9,'E-EX-Fun'!$D$19) -> 17.03506652 | F48: bar | J48: =J35*J44 -> 1.021630592 | K48: =1-J48 -> -0.02163059218
B51: =INDEX(Language!$B$2:$M$41,11,Language!$A$1) -> System cooling capacity | D51: Q0: | E51: ='E-Expans'!D13/INDEX('E-EX-Fun'!$N$5:$P$15,8,'E-EX-Fun'!$D$19) -> 10 | F51: kW
B53: =INDEX(Language!$B$2:$M$41,12,Language!$A$1) -> Pressure drop * | E53: ='E-Expans'!D15/INDEX('E-EX-Fun'!$N$5:$P$15,9,'E-EX-Fun'!$D$19) -> 1.5 | F53: bar
B55: Find valves which fit best for selected capacity
B56: High performance EX | D56: =MATCH($E$51,'E-EX-Dat'!$B$10:$B$14,-1) -> 5 | E56: =$E$51/INDEX('E-EX-Dat'!$B$10:$B$14,D56) -> 0.3783817008
B57: High performance FX | D57: =MATCH($E$51,'E-EX-Dat'!$B$15:$B$21,-1) ->  | E57: =$E$51/INDEX('E-EX-Dat'!$B$15:$B$21,D57) -> 
B58: Standard EXM/L/N | D58: =MATCH($E$51,'E-EX-Dat'!$B$22:$B$29,-1) ->  | E58: =$E$51/INDEX('E-EX-Dat'!$B$22:$B$29,D58) -> 
B59: Stepper PWM | D59: =MATCH($E$51/0.8,'E-EX-Dat'!$B$30:$B$36,-1) -> 2 | E59: =$E$51/INDEX('E-EX-Dat'!$B$30:$B$36,D59) -> 0.5707433476
A61: Hot Gas Function | E61: =INDEX(E5:E27,$G$61) -> 24 | F61: =INDEX(F5:F27,$G$61) -> 25 | G61: 17 | H61: Refrigerant | J61: =INDEX(G5:G27,$G$61) -> R448A
J62: Kt
D63: max | E63: =INDEX(SatPress!A2:U2,E4) -> 31 | F63: °C | G63: bara | I63: TCmin | K63: TCmax
B64: =INDEX(Language!$B$2:$M$41,6,Language!$A$1) -> Evaporating temperature | D64: Roundup
D65: Value
D66: Rounddown
B67: Po= | E67: =IF(E64=E66,G65,G66+((G64-G66)*(E65-E66)/(E64-E66))) -> 0 | F67: bara | I67: index from Temp to line nr.
B68: =INDEX(Language!$B$2:$M$41,7,Language!$A$1) -> Condensing temperature | D68: Roundup | E68: =IF(E69<0,ROUNDDOWN(E69,0),ROUNDUP(E69,0)) -> 30 | K68: =HLOOKUP($E73,'E-Delta_P'!$A$46:$CJ$68,$G$61+1) -> 19.3
D69: Value | E69: =IF($D$19=1,'E-HotGas'!E8,('E-HotGas'!E8-32)/1.8) -> 30 | F69: °C | G69: =(VLOOKUP(E69,SatPress!$A$7:$AI$213,E$61,))/100000 -> 14.52861614 | K69: =IF($E73=$E75,K70,K70+((K68-K70)*($E74-$E75)/($E73-$E75))) -> 19.3
D70: Rounddown | E70: =IF(E69<0,ROUNDUP(E69,0),ROUNDDOWN(E69,0)) -> 30 | K70: =HLOOKUP($E75,'E-Delta_P'!$A$46:$CJ$68,$G$61+1) -> 19.3
B71: Pc= | E71: =G69 -> 14.52861614 | F71: bara | J71: KDp
B72: =INDEX(Language!$B$2:$M$41,8,Language!$A$1) -> Subcooling | D72: DTsub: | E72: =IF($D$19=1,'E-HotGas'!D15,('E-HotGas'!D15)/1.8) -> 0 | F72: K | I72: Dp
B73: =INDEX(Language!$B$2:$M$41,9,Language!$A$1) -> Liquid temperature | D73: Roundup | E73: =ROUNDUP(E74,0) -> 30
D74: Value | E74: =E69-E72 -> 30 | F74: °C
D75: Rounddown | E75: =ROUNDDOWN(E74,0) -> 30
D76: min | E76: =INDEX(SatPress!A1:U1,E4) -> -50 | F76: °C
B78: =INDEX(Language!$B$2:$M$41,10,Language!$A$1) -> Diff. pressure across valve | E78: ='E-HotGas'!H24/INDEX('E-EX-Fun'!$N$5:$P$15,9,'E-EX-Fun'!$D$19) -> 0 | F78: bar
B81: =INDEX(Language!$B$2:$M$41,30,Language!$A$1) -> Bypass cooling capacity | D81: Q0: | E81: ='E-HotGas'!$E$10/INDEX('E-EX-Fun'!$N$5:$P$15,8,'E-EX-Fun'!$D$19) -> 35 | F81: kW
B83: =INDEX(Language!$B$2:$M$41,12,Language!$A$1) -> Pressure drop * | E83: ='E-HotGas'!D18/INDEX('E-EX-Fun'!$N$5:$P$15,9,'E-EX-Fun'!$D$19) -> 0 | F83: bar
B85: Find valves which fit best for selected capacity
B86: High performance | D86: =MATCH($E$81,'E-EX-Dat'!$B$60:$B$64,-1) -> 2 | E86: =$E$81/INDEX('E-EX-Dat'!$B$60:$B$64,D86) -> 0.3249948929
B87: High performance
B88: Standard
B89: PWM
A91: Suction Function
J92: Kt
D93: max | E93: =INDEX(SatPress!A2:U2,E4) -> 31 | F93: °C | G93: bara | I93: TCmin | K93: TCmax | M93: Indirect range reference for Kt selection
B94: =INDEX(Language!$B$2:$M$41,6,Language!$A$1) -> Evaporating temperature | D94: Roundup | E94: =IF(E95<0,ROUNDDOWN(E95,0),ROUNDUP(E95,0)) -> -10 | G94: =(VLOOKUP(E94,SatPress!$A$7:$AI$213,$F$61,))/100000 -> 3.586492606 | H94: TEmax | I94: =HLOOKUP($E94,INDIRECT(M94),$I100) -> 4.4 | K94: =HLOOKUP($E94,INDIRECT(M94),$I98) -> 4.4 | M94: =CONCATENATE("'",$J$61,"'","!$A$252:$EB$320") -> 'R448A'!$A$252:$EB$320
D95: Value | E95: =IF($D$19=1,'E-Suction'!E8,('E-Suction'!E8-32)/1.8) -> -10 | F95: °C | G95: =IF($E94=$E96,G96,G96+((G94-G96)*($E95-$E96)/($E94-$E96))) -> 3.586492606 | I95: =IF($E94=$E96,I96,I96+((I94-I96)*($E95-$E96)/($E94-$E96))) -> 4.4 | J95: =IF(E103=E105,I95,I95+((K95-I95)*(E104-E105)/(E103-E105))) -> 4.4 | K95: =IF($E94=$E96,K96,K96+((K94-K96)*($E95-$E96)/($E94-$E96))) -> 4.4 | M95: =CONCATENATE("'",$J$61,"'","!$A$252:$A$320") -> 'R448A'!$A$252:$A$320
D96: Rounddown | E96: =IF(E95<0,ROUNDUP(E95,0),ROUNDDOWN(E95,0)) -> -10 | G96: =(VLOOKUP(E96,SatPress!$A$7:$AI$213,$F$61,))/100000 -> 3.586492606 | H96: TEmin | I96: =HLOOKUP($E96,INDIRECT(M94),$I100) -> 4.4 | K96: =HLOOKUP($E96,INDIRECT(M94),$I98) -> 4.4
B97: Po= | E97: =IF(E94=E96,G95,G96+((G94-G96)*(E95-E96)/(E94-E96))) -> 3.586492606 | F97: bara | I97: index from Temp to line nr.
B98: =INDEX(Language!$B$2:$M$41,7,Language!$A$1) -> Condensing temperature | D98: Roundup | E98: =IF(E99<0,ROUNDDOWN(E99,0),ROUNDUP(E99,0)) -> 45 | G98: =(VLOOKUP(E98,SatPress!$A$7:$AI$213,E$61,))/100000 -> 20.9494477 | I98: =MATCH(E103,INDIRECT($M$95)) -> 36
D99: Value | E99: =IF($D$19=1,'E-Suction'!E10,('E-Suction'!E10-32)/1.8) -> 45 | F99: °C | G99: =IF(E98=E100,G100,G100+((G98-G100)*(E99-E100)/(E98-E100))) -> 20.9494477
D100: Rounddown | E100: =IF(E99<0,ROUNDUP(E99,0),ROUNDDOWN(E99,0)) -> 45 | G100: =(VLOOKUP(E100,SatPress!$A$7:$AI$213,E$61,))/100000 -> 20.9494477 | I100: =MATCH(E105,INDIRECT($M$95)) -> 36
B101: Pc= | E101: =IF(E98=E100,G99,G100+((G98-G100)*(E99-E100)/(E98-E100))) -> 20.9494477 | F101: bara | J101: KDp
B102: =INDEX(Language!$B$2:$M$41,8,Language!$A$1) -> Subcooling | D102: DTsub: | E102: =IF($D$19=1,'E-Suction'!E12,('E-Suction'!E12)/1.8) -> 1 | F102: K | I102: Dp
B103: =INDEX(Language!$B$2:$M$41,9,Language!$A$1) -> Liquid temperature | D103: Roundup | E103: =ROUNDUP(E104,0) -> 44 | I103: =ROUNDUP(I104,1) -> 0.2 | J103: =HLOOKUP(I103,'E-Delta_P'!$F$70:$J$71,2) -> 1.15
D104: Value | E104: =E99-E102 -> 44 | F104: °C | H104: =G99-(G95+E113) -> 17.2129551 | I104: =E113 -> 0.15 | J104: =IF($I103=$I105,J105,J105+((J103-J105)*($I104-$I105)/($I103-$I105))) -> 0.985
D105: Rounddown | E105: =ROUNDDOWN(E104,0) -> 44 | I105: =ROUNDDOWN(I104,1) -> 0.1 | J105: =HLOOKUP(I105,'E-Delta_P'!$F$70:$J$71,2) -> 0.82
D106: min | E106: =INDEX(SatPress!A1:U1,E4) -> -50 | F106: °C
B108: =INDEX(Language!$B$2:$M$41,10,Language!$A$1) -> Diff. pressure across valve | E108: ='E-Suction'!I22/INDEX('E-EX-Fun'!$N$5:$P$15,9,'E-EX-Fun'!$D$19) -> 0 | F108: bar
B111: =INDEX(Language!$B$2:$M$41,11,Language!$A$1) -> System cooling capacity | D111: Q0: | E111: ='E-Suction'!E13/INDEX('E-EX-Fun'!$N$5:$P$15,8,'E-EX-Fun'!$D$19) -> 5 | F111: kW
B113: =INDEX(Language!$B$2:$M$41,12,Language!$A$1) -> Pressure drop * | E113: ='E-Suction'!E15/INDEX('E-EX-Fun'!$N$5:$P$15,9,'E-EX-Fun'!$D$19) -> 0.15 | F113: bar
B115: Find valves which fit best for selected capacity
B116: High performance | D116: =MATCH($E$111,'E-EX-Dat'!$B$72:$B$76,-1) -> 2 | E116: =$E$111/INDEX('E-EX-Dat'!$B$72:$B$76,D116) -> 0.5258204825
B117: High performance
B118: Standard
B119: PWM
A121: Condensing Function
J122: Kt
D123: max | E123: =INDEX(SatPress!A2:U2,E4) -> 31 | F123: °C | G123: bara | I123: TCmin | K123: TCmax | M123: Indirect range reference for Kt selection
B124: =INDEX(Language!$B$2:$M$41,6,Language!$A$1) -> Evaporating temperature | D124: Roundup | E124: =IF(E125<0,ROUNDDOWN(E125,0),ROUNDUP(E125,0)) -> -35 | G124: =(VLOOKUP(E124,SatPress!$A$7:$AI$213,$F$61,))/100000 -> 1.274535011 | H124: TEmax | I124: =HLOOKUP($E124,INDIRECT($M$124),$I130) -> 41.68 | K124: =HLOOKUP($E124,INDIRECT($M$124),$I128) -> 41.68 | M124: =CONCATENATE("'",$J$61,"'","!$A$182:$EB$250") -> 'R448A'!$A$182:$EB$250
D125: Value | E125: =IF($D$19=1,'E-Condens'!D8,('E-Condens'!D8-32)/1.8) -> -35 | F125: °C | G125: =IF($E124=$E126,G126,G126+((G124-G126)*($E125-$E126)/($E124-$E126))) -> 1.274535011 | I125: =IF($E124=$E126,I126,I126+((I124-I126)*($E125-$E126)/($E124-$E126))) -> 41.68 | J125: =IF(E133=E135,I125,I125+((K125-I125)*(E134-E135)/(E133-E135))) -> 41.68 | K125: =IF($E124=$E126,K126,K126+((K124-K126)*($E125-$E126)/($E124-$E126))) -> 41.68 | M125: =CONCATENATE("'",$J$61,"'","!$A$182:$A$250") -> 'R448A'!$A$182:$A$250
D126: Rounddown | E126: =IF(E125<0,ROUNDUP(E125,0),ROUNDDOWN(E125,0)) -> -35 | G126: =(VLOOKUP(E126,SatPress!$A$7:$AI$213,$F$61,))/100000 -> 1.274535011 | H126: TEmin | I126: =HLOOKUP($E126,INDIRECT($M$124),$I130) -> 41.68 | K126: =HLOOKUP($E126,INDIRECT($M$124),$I128) -> 41.68
B127: Po= | E127: =IF(E124=E126,G125,G126+((G124-G126)*(E125-E126)/(E124-E126))) -> 1.274535011 | F127: bara | I127: index from Temp to line nr.
B128: =INDEX(Language!$B$2:$M$41,7,Language!$A$1) -> Condensing temperature | D128: Roundup | E128: =IF(E129<0,ROUNDDOWN(E129,0),ROUNDUP(E129,0)) -> 30 | G128: =(VLOOKUP(E128,SatPress!$A$7:$AI$213,E$61,))/100000 -> 14.52861614 | I128: =MATCH(E133,INDIRECT($M$125)) -> 21
D129: Value | E129: =IF($D$19=1,'E-Condens'!D10,('E-Condens'!D10-32)/1.8) -> 30 | F129: °C | G129: =IF(E128=E130,G130,G130+((G128-G130)*(E129-E130)/(E128-E130))) -> 14.52861614
D130: Rounddown | E130: =IF(E129<0,ROUNDUP(E129,0),ROUNDDOWN(E129,0)) -> 30 | G130: =(VLOOKUP(E130,SatPress!$A$7:$AI$213,E$61,))/100000 -> 14.52861614 | I130: =MATCH(E135,INDIRECT($M$125)) -> 21
B131: Pc= | E131: =IF(E128=E130,G129,G130+((G128-G130)*(E129-E130)/(E128-E130))) -> 14.52861614 | F131: bara | J131: KDp
B132: =INDEX(Language!$B$2:$M$41,8,Language!$A$1) -> Subcooling | D132: DTsub: | E132: =IF($D$19=1,'E-Condens'!D12,('E-Condens'!D12)/1.8) -> 1 | F132: K | I132: Dp
B133: =INDEX(Language!$B$2:$M$41,9,Language!$A$1) -> Liquid temperature | D133: Roundup | E133: =ROUNDUP(E134,0) -> 29
D134: Value | E134: =E129-E132 -> 29 | F134: °C
D135: Rounddown | E135: =ROUNDDOWN(E134,0) -> 29
D136: min | E136: =INDEX(SatPress!A1:U1,E4) -> -50 | F136: °C
B138: =INDEX(Language!$B$2:$M$41,10,Language!$A$1) -> Diff. pressure across valve | E138: ='E-Condens'!H25/INDEX('E-EX-Fun'!$N$5:$P$15,9,'E-EX-Fun'!$D$19) -> 12.90408113 | F138: bar
B141: =INDEX(Language!$B$2:$M$41,11,Language!$A$1) -> System cooling capacity | D141: Q0: | E141: ='E-Condens'!D13/INDEX('E-EX-Fun'!$N$5:$P$15,8,'E-EX-Fun'!$D$19) -> 35.5 | F141: kW
B143: =INDEX(Language!$B$2:$M$41,12,Language!$A$1) -> Pressure drop * | E143: ='E-Condens'!D15/INDEX('E-EX-Fun'!$N$5:$P$15,9,'E-EX-Fun'!$D$19) -> 0.35 | F143: bar
B145: Find valves which fit best for selected capacity
B146: High performance | D146: =MATCH($E$141,'E-EX-Dat'!$B$48:$B$52,-1) -> 3 | E146: =$E$141/INDEX('E-EX-Dat'!$B$48:$B$52,D146) -> 0.9169950011
B147: High performance
B148: Standard
B149: PWM

Sheet E-EX-Dat (hidden)
A1: Valve Data Expansion Valve Function
B2: Capacity at selected conditions | E2: Nom Conditions | F2: Nominal Valve Capacities: Expansion Function | AD2: Alternative Types
E3: Tcond | F3: 38 | G3: 38 | H3: 38 | I3: 38 | J3: 38 | K3: 38 | L3: ? | M3: 80 | N3: 10 | O3: 38 | P3: 38
E4: Tevap | F4: 4 | G4: 4 | H4: 4 | I4: 4 | J4: 4 | K4: 4 | L4: ? | M4: 20 | N4: -10 | O4: 4 | P4: 4
F6: R410A | G6: R134a | H6: R22 | I6: R404A | J6: R507 | K6: R407C | L6: R23 | M6: R124 | N6: R744 | O6: R454A | P6: R454C | Q6: R1234yf | R6: R1234ze | S6: R452B | T6: R32 | U6: R452A | V6: R448A | W6: R449A | X6: R450A | Y6: R513A | Z6: R454B | AA6: R455A | AB6: R447A
B7: ='E-EX-Fun'!E4 -> 12 | F7: 2 | G7: 3 | H7: 4 | I7: 5 | J7: 7 | K7: 8 | L7: 10 | M7: 11 | N7: 12 | O7: 13 | P7: 15 | Q7: 17 | R7: 18 | S7: 19 | T7: 21 | U7: 22 | V7: 24 | W7: 26 | X7: 28 | Y7: 30 | Z7: 32 | AA7: 34 | AB7: 36
B8: ='E-EX-Fun'!G31 -> R744 | F8: R410A | G8: R134a | H8: R22 | I8: R404A | J8: R507 | K8: R407C | L8: R23 | M8: R124 | N8: R744 | O8: R454A | P8: R454C | Q8: R1234yf | R8: R1234ze | S8: R452B | T8: R32 | U8: R452A | V8: R448A | W8: R449A | X8: R450A | Y8: R513A | Z8: R454B | AF8: MWP
A9: Row Nr. | D9: Type | E9: PCN | F9: Nominal Capacity per Datasheet | AD9: Type | AE9: PCN | AF9: bar
A10: 4 | B10: =IF(HLOOKUP($B$7,$F$7:$AB$36,$A10)="-","-",HLOOKUP($B$7,$F$7:$AB$36,$A10)/'E-EX-Fun'!$J$35/'E-EX-Fun'!$J$44) -> 1411.469088 | C10: Qmax oder Qn | D10: EX8-M21 | E10: 800 629 | F10: 1027 | G10: 680 | H10: 880 | I10: 613 | J10: 613 | K10: 925 | L10: - | M10: 495 | N10: 1442 | O10: - | P10: - | Q10: - | R10: 531.9 | S10: - | T10: - | U10: 666.2429998 | V10: 877.5 | W10: 857.3 | X10: 600.1 | Y10: 614.4 | Z10: - | AA10: - | AB10: - | AD10: EX8-U21 | AE10: 800 630 | AF10: 45
A11: 5 | B11: =IF(HLOOKUP($B$7,$F$7:$AB$36,$A11)="-","-",HLOOKUP($B$7,$F$7:$AB$36,$A11)/'E-EX-Fun'!$J$35/'E-EX-Fun'!$J$44) -> 529.5456148 | D11: EX7-M21 | E11: 800 625 | F11: 385 | G11: 255 | H11: 330 | I11: 230 | J11: 230 | K11: 347 | L11: 357 | M11: 186 | N11: 541 | O11: - | P11: - | Q11: - | R11: 199.5 | S11: - | T11: - | U11: 249.8411249 | V11: 329.1 | W11: 321.5 | X11: 225 | Y11: 230.4 | Z11: - | AA11: - | AB11: - | AD11: EX7-U31 | AE11: 800 626 | AF11: 60
A12: 6 | B12: =IF(HLOOKUP($B$7,$F$7:$AB$36,$A12)="-","-",HLOOKUP($B$7,$F$7:$AB$36,$A12)/'E-EX-Fun'!$J$35/'E-EX-Fun'!$J$44) -> 192.8289947 | D12: EX6-M21 | E12: 800 621 | F12: 140 | G12: 93 | H12: 120 | I12: 84 | J12: 84 | K12: 126 | L12: 130 | M12: 67 | N12: 197 | O12: 117.9988457 | P12: 98.16528493 | Q12: 66.91294523 | R12: 72.5 | S12: 160.1835762 | T12: 208.3 | U12: 90.85131815 | V12: 119.7 | W12: 116.9 | X12: 81.8 | Y12: 83.8 | Z12: 160.949451 | AA12: 113.6553408 | AB12: 174.4334067 | AD12: EX6-M31 | AE12: 800 623 | AF12: 60
A13: 7 | B13: =IF(HLOOKUP($B$7,$F$7:$AB$36,$A13)="-","-",HLOOKUP($B$7,$F$7:$AB$36,$A13)/'E-EX-Fun'!$J$35/'E-EX-Fun'!$J$44) -> 80.26384549 | D13: EX5-U21 | E13: 800 618 | F13: 58 | G13: 39 | H13: 50 | I13: 35 | J13: 35 | K13: 53 | L13: 54 | M13: 28 | N13: 82 | O13: 49.16618572 | P13: 40.90220205 | Q13: 27.88039385 | R13: 30.2 | S13: 66.74315676 | T13: 86.8 | U13: 37.8547159 | V13: 49.9 | W13: 48.7 | X13: 34.1 | Y13: 34.9 | Z13: 67.06227127 | AA13: 47.35639201 | AB13: 72.68058612 | AD13: EX5-U31 | AE13: 800 619 | AF13: 60
A14: 8 | B14: =IF(HLOOKUP($B$7,$F$7:$AB$36,$A14)="-","-",HLOOKUP($B$7,$F$7:$AB$36,$A14)/'E-EX-Fun'!$J$35/'E-EX-Fun'!$J$44) -> 26.42833937 | D14: EX4-M21 | E14: 800 616 | F14: 19.3 | G14: 12.8 | H14: 16.5 | I14: 11.5 | J14: =I14 -> 11.5 | K14: 17.4 | L14: 17.8 | M14: 9.2 | N14: 27 | O14: 16.22484129 | P14: 13.49772668 | Q14: 9.200529969 | R14: 10 | S14: 22.02524173 | T14: 28.645 | U14: 12.49205625 | V14: 16.5 | W14: 16.1 | X14: 11.3 | Y14: 11.5 | Z14: 22.13054952 | AA14: 15.62760936 | AB14: 23.98459342 | AD14: EX4-U31 | AE14: 800 617 | AF14: 90
A15: 9 | B15: =IF(HLOOKUP($B$7,$F$7:$AB$36,$A15)="-","-",HLOOKUP($B$7,$F$7:$AB$36,$A15)/'E-EX-Fun'!$J$35/'E-EX-Fun'!$J$44) -> 0 | AA15: - | AB15: - | AD15: - | AE15: - | AF15: 35
A16: 10 | B16: =IF(HLOOKUP($B$7,$F$7:$AB$36,$A16)="-","-",HLOOKUP($B$7,$F$7:$AB$36,$A16)/$J$41/'E-EX-Fun'!$J$44) -> 0 | AA16: - | AB16: - | AD16: FX8-I13 | AF16: 46
A17: 11 | B17: =IF(HLOOKUP($B$7,$F$7:$AB$36,$A17)="-","-",HLOOKUP($B$7,$F$7:$AB$36,$A17)/$J$41/'E-EX-Fun'!$J$44) -> 0 | AA17: - | AB17: - | AD17: FX8-I13 | AF17: 46
A18: 12 | B18: =IF(HLOOKUP($B$7,$F$7:$AB$36,$A18)="-","-",HLOOKUP($B$7,$F$7:$AB$36,$A18)/$J$41/'E-EX-Fun'!$J$44) -> 0 | AA18: - | AB18: - | AD18: - | AE18: - | AF18: 46
A19: 13 | B19: =IF(HLOOKUP($B$7,$F$7:$AB$36,$A19)="-","-",HLOOKUP($B$7,$F$7:$AB$36,$A19)/$J$41/'E-EX-Fun'!$J$44) -> 0 | AA19: - | AB19: - | AD19: FX6.5-I09 | AF19: 46
A20: 14 | B20: =IF(HLOOKUP($B$7,$F$7:$AB$36,$A20)="-","-",HLOOKUP($B$7,$F$7:$AB$36,$A20)/$J$41/'E-EX-Fun'!$J$44) -> 0 | AA20: - | AB20: - | AD20: FX6-I09 | AF20: 46
A21: 15 | B21: =IF(HLOOKUP($B$7,$F$7:$AB$36,$A21)="-","-",HLOOKUP($B$7,$F$7:$AB$36,$A21)/$J$41/'E-EX-Fun'!$J$44) -> 0 | AA21: - | AB21: - | AD21: - | AE21: - | AF21: 46
A22: 16 | B22: =IF(HLOOKUP($B$7,$F$7:$AB$36,$A22)="-","-",HLOOKUP($B$7,$F$7:$AB$36,$A22)/$J$41/'E-EX-Fun'!$J$44) -> - | D22: EXN-B2L | E22: 800422 | F22: 42 | G22: 28.8 | H22: - | I22: - | J22: - | K22: 37.9 | L22: - | M22: - | N22: - | O22: - | P22: - | Q22: - | R22: - | S22: - | T22: 62.5 | U22: - | V22: - | W22: - | X22: - | Y22: - | Z22: - | AA22: - | AB22: - | AF22: 45
A23: 17 | B23: =IF(HLOOKUP($B$7,$F$7:$AB$36,$A23)="-","-",HLOOKUP($B$7,$F$7:$AB$36,$A23)/$J$41/'E-EX-Fun'!$J$44) -> - | D23: EXN-B2K | E23: 800421 | F23: 34 | G23: 22.2 | H23: - | I23: - | J23: - | K23: 30.7 | L23: - | M23: - | N23: - | O23: - | P23: - | Q23: - | R23: - | S23: - | T23: 50.6 | U23: - | V23: - | W23: - | X23: - | Y23: - | Z23: - | AA23: - | AB23: - | AF23: 45
A24: 18 | B24: =IF(HLOOKUP($B$7,$F$7:$AB$36,$A24)="-","-",HLOOKUP($B$7,$F$7:$AB$36,$A24)/$J$41/'E-EX-Fun'!$J$44) -> - | D24: EXL-B1G | E24: 800406M | F24: 23 | G24: 15.2 | H24: 19.7 | I24: - | J24: - | K24: 20.7 | L24: - | M24: - | N24: - | O24: - | P24: - | Q24: - | R24: - | S24: 26.30674881 | T24: 34.2 | U24: - | V24: - | W24: - | X24: - | Y24: - | Z24: 26.43252747 | AA24: - | AB24: - | AF24: 45
A25: 19 | B25: =IF(HLOOKUP($B$7,$F$7:$AB$36,$A25)="-","-",HLOOKUP($B$7,$F$7:$AB$36,$A25)/$J$41/'E-EX-Fun'!$J$44) -> - | D25: EXL-B1F | E25: 800405M | F25: 17 | G25: 11.3 | H25: 14.6 | I25: - | J25: - | K25: 15.4 | L25: - | M25: - | N25: - | O25: - | P25: - | Q25: - | R25: - | S25: 19.44411869 | T25: 25.28 | U25: - | V25: - | W25: - | X25: - | Y25: - | Z25: 19.53708552 | AA25: - | AB25: - | AF25: 45
A26: 20 | B26: =IF(HLOOKUP($B$7,$F$7:$AB$36,$A26)="-","-",HLOOKUP($B$7,$F$7:$AB$36,$A26)/$J$41/'E-EX-Fun'!$J$44) -> - | D26: EXM-B0E | E26: 800402M | F26: 13.7 | G26: 9.1 | H26: 11.8 | I26: - | J26: - | K26: 12.4 | L26: - | M26: - | N26: - | O26: - | P26: - | Q26: - | R26: - | S26: 15.66967212 | T26: 20.37 | U26: - | V26: - | W26: - | X26: - | Y26: - | Z26: 15.74459245 | AA26: - | AB26: - | AF26: 45
A27: 21 | B27: =IF(HLOOKUP($B$7,$F$7:$AB$36,$A27)="-","-",HLOOKUP($B$7,$F$7:$AB$36,$A27)/$J$41/'E-EX-Fun'!$J$44) -> - | D27: EXM-B0D | E27: 800401M | F27: 11.6 | G27: 7.7 | H27: 9.9 | I27: - | J27: - | K27: 10.5 | L27: - | M27: - | N27: - | O27: - | P27: - | Q27: - | R27: - | S27: 13.26775157 | T27: 17.25 | U27: - | V27: - | W27: - | X27: - | Y27: - | Z27: 13.33118777 | AA27: - | AB27: - | AF27: 45
A28: 22 | B28: =IF(HLOOKUP($B$7,$F$7:$AB$36,$A28)="-","-",HLOOKUP($B$7,$F$7:$AB$36,$A28)/$J$41/'E-EX-Fun'!$J$44) -> - | D28: EXM-B0B | E28: 800400M | F28: 5.5 | G28: 3.7 | H28: 4.8 | I28: - | J28: - | K28: 5 | L28: - | M28: - | N28: - | O28: - | P28: - | Q28: - | R28: - | S28: 6.290744281 | T28: 8.18 | U28: - | V28: - | W28: - | X28: - | Y28: - | Z28: 6.320821787 | AA28: - | AB28: - | AF28: 45
A29: 23 | B29: =IF(HLOOKUP($B$7,$F$7:$AB$36,$A29)="-","-",HLOOKUP($B$7,$F$7:$AB$36,$A29)/$J$41/'E-EX-Fun'!$J$44) -> - | D29: EXM-B0A | E29: 800399M | F29: 1.8 | G29: 1.2 | H29: 1.6 | I29: - | J29: - | K29: 1.6 | L29: - | M29: - | N29: - | O29: - | P29: - | Q29: - | R29: - | S29: 2.058789037 | T29: 2.67 | U29: - | V29: - | W29: - | X29: - | Y29: - | Z29: 2.068632585 | AA29: - | AB29: - | AF29: 45
A30: 24 | B30: =IF(HLOOKUP($B$7,$F$7:$AB$36,$A30)="-","-",HLOOKUP($B$7,$F$7:$AB$36,$A30)/'E-EX-Fun'!$J$35/'E-EX-Fun'!$J$44) -> 27.60293223 | D30: EX2-M00 | E30: 801091 | F30: - | G30: 13.3 | H30: 17.2 | I30: 12.1 | J30: 12.1 | K30: 18.7 | L30: - | M30: - | N30: 28.2 | O30: 13.53053431 | P30: 11.25628601 | Q30: 9.590855483 | R30: 10.39673387 | S30: - | T30: - | U30: 13.02202227 | V30: 17.15100226 | W30: 16.75538095 | X30: 11.72952509 | Y30: 12.00777912 | Z30: - | AA30: 13.03247908 | AB30: - | AD30: EX2-I00 | AE30: 801 090 | AF30: 40
A31: 25 | B31: =IF(HLOOKUP($B$7,$F$7:$AB$36,$A31)="-","-",HLOOKUP($B$7,$F$7:$AB$36,$A31)/'E-EX-Fun'!$J$35/'E-EX-Fun'!$J$44) -> 17.52101017 | D31: EXO-004 | E31: 801089 | F31: - | G31: 8.5 | H31: 10.9 | I31: 7.7 | J31: 7.7 | K31: 11.8 | L31: - | M31: - | N31: 17.9 | O31: 8.57458279 | P31: 7.133344038 | Q31: 6.077925859 | R31: 6.588627856 | S31: - | T31: - | U31: 8.252328065 | V31: 10.86894911 | W31: 10.6182356 | X31: 7.433245549 | Y31: 7.609580956 | Z31: - | AA31: 8.258954767 | AB31: -
A32: 26 | B32: =IF(HLOOKUP($B$7,$F$7:$AB$36,$A32)="-","-",HLOOKUP($B$7,$F$7:$AB$36,$A32)/'E-EX-Fun'!$J$35/'E-EX-Fun'!$J$44) -> 11.55016313 | D32: EXO-003 | E32: 801088 | F32: - | G32: 5.6 | H32: 7.2 | I32: 5.1 | J32: 5.1 | K32: 7.8 | L32: - | M32: - | N32: 11.8 | O32: 5.663944595 | P32: 4.711933677 | Q32: 4.014776714 | R32: 4.352121153 | S32: - | T32: - | U32: 5.451079089 | V32: 7.179489317 | W32: 7.013880397 | X32: 4.910033757 | Y32: 5.026512191 | Z32: - | AA32: 5.45545636 | AB32: -
A33: 27 | B33: =IF(HLOOKUP($B$7,$F$7:$AB$36,$A33)="-","-",HLOOKUP($B$7,$F$7:$AB$36,$A33)/'E-EX-Fun'!$J$35/'E-EX-Fun'!$J$44) -> 6.851791688 | D33: EXO-002 | E33: 801087 | F33: - | G33: 3.3 | H33: 4.3 | I33: 3 | J33: 3 | K33: 4.7 | L33: - | M33: - | N33: 7 | O33: 3.382633578 | P33: 2.814071501 | Q33: 2.397713871 | R33: 2.599183466 | S33: - | T33: - | U33: 3.255505567 | V33: 4.287750564 | W33: 4.188845237 | X33: 2.932381271 | Y33: 3.001944781 | Z33: - | AA33: 3.25811977 | AB33: -
A34: 28 | B34: =IF(HLOOKUP($B$7,$F$7:$AB$36,$A34)="-","-",HLOOKUP($B$7,$F$7:$AB$36,$A34)/'E-EX-Fun'!$J$35/'E-EX-Fun'!$J$44) -> 5.089902397 | D34: EXO-001 | E34: 801086 | F34: - | G34: 2.5 | H34: 3.2 | I34: 2.3 | J34: 2.3 | K34: 3.5 | L34: - | M34: - | N34: 5.2 | O34: 2.517308709 | P34: 2.094192745 | Q34: 1.784345206 | R34: 1.934276068 | S34: - | T34: - | U34: 2.422701817 | V34: 3.190884141 | W34: 3.117280177 | X34: 2.182237225 | Y34: 2.234005418 | Z34: - | AA34: 2.424647271 | AB34: -
A35: 29 | B35: =IF(HLOOKUP($B$7,$F$7:$AB$36,$A35)="-","-",HLOOKUP($B$7,$F$7:$AB$36,$A35)/'E-EX-Fun'!$J$35/'E-EX-Fun'!$J$44) -> 2.544951199 | D35: EXO-000 | E35: 801085 | F35: - | G35: 1.2 | H35: 1.6 | I35: 1.1 | J35: 1.1 | K35: 1.7 | L35: - | M35: - | N35: 2.6 | O35: 1.258654354 | P35: 1.047096373 | Q35: 0.8921726031 | R35: 0.967138034 | S35: - | T35: - | U35: 1.211350909 | V35: 1.59544207 | W35: 1.558640088 | X35: 1.091118613 | Y35: 1.117002709 | Z35: - | AA35: 1.212323635 | AB35: -
A36: 30 | B36: =IF(HLOOKUP($B$7,$F$7:$AB$36,$A36)="-","-",HLOOKUP($B$7,$F$7:$AB$36,$A36)/'E-EX-Fun'!$J$35/'E-EX-Fun'!$J$44) -> 1.468241076 | D36: EXO-00X | E36: 801084 | F36: - | G36: 0.7 | H36: 0.9 | I36: 0.6 | J36: 0.6 | K36: 1 | L36: - | M36: - | N36: 1.5 | O36: 0.7079930744 | P36: 0.5889917096 | Q36: 0.5018470892 | R36: 0.5440151441 | S36: - | T36: - | U36: 0.6813848861 | V36: 0.8974361646 | W36: 0.8767350497 | X36: 0.6137542196 | Y36: 0.6283140239 | Z36: - | AA36: 0.681932045 | AB36: -
B37: =IF($B$7=13,E40,IF($B$7=15,E40,IF($B$7=17,E40,IF($B$7=19,E40,IF($B$7=21,E40,IF($B$7=32,E40,IF($B$7=34,E40,IF($B$7=36,E40,E37)))))))) -> 801033 | D37: ESC-24V 50Hz | E37: 801033 | F37: - | G37: - | H37: - | I37: - | J37: - | K37: - | L37: - | M37: - | N37: - | O37: - | P37: - | Q37: - | R37: - | S37: - | T37: - | U37: - | V37: - | W37: - | X37: - | Y37: - | Z37: - | AA37: - | AB37: -
B38: =IF($B$7=10,E41,IF($B$7=11,E41,IF($B$7=12,E41,IF($B$7=14,E41,IF($B$7=15,E41,IF($B$7=21,E41,IF($B$7=22,E41,IF($B$7=23,E41,E38)))))))) -> 801036 | D38: ESC-230V 50Hz | E38: 801031 | F38: - | G38: - | H38: - | I38: - | J38: - | K38: - | L38: - | M38: - | N38: - | O38: - | P38: - | Q38: - | R38: - | S38: - | T38: - | U38: - | V38: - | W38: - | X38: - | Y38: - | Z38: - | AA38: - | AB38: -
D39: EX2/CX2-I00/M00 | AF39: 40
B40: =IF($B$7=13,D40,IF($B$7=15,D40,IF($B$7=17,D40,IF($B$7=19,D40,IF($B$7=21,D40,IF($B$7=32,D40,IF($B$7=34,D40,IF($B$7=36,D40,D37)))))))) -> ESC-24V 50Hz | D40: ESC-EX24V 50 Hz | E40: 801035 | H40: FX&EXM/L/N ab -30°C
B41: =IF($B$7=13,D41,IF($B$7=15,D41,IF($B$7=17,D41,IF($B$7=19,D41,IF($B$7=21,D41,IF($B$7=32,D41,IF($B$7=34,D41,IF($B$7=36,D41,D38)))))))) -> ESC-230V 50Hz | D41: ESC-EX230V 50 Hz | E41: 801036 | H41: ='E-EX-Fun'!$E$35 -> -10 | I41: ='E-EX-Fun'!$J$35 -> 0.983 | J41: =IF(H41>-31,I41,"N/A") -> 0.983
D42: CX2-I00 | E42: 801 095 | AF42: 90
A43: Valve Data Regulator
F44: Nominal Valve Capacities: Condensing Pressure, Head Pressure Regulation
B46: Condensing Pressure
B47: Capacity (kW) | E47: Valve Constants
B48: =IF(J48=10,"N/A",IF(J48=11,"N/A",IF(J48=12,"N/A",IF(J48=22,"N/A",(D48*'E-EX-Fun'!$J$125*SQRT('E-EX-Fun'!$E$143)))))) -> 417.9568381 | D48: =F48*(1+E48) -> 16.95 | E48: =E$66 -> 0 | F48: 16.95 | H48: EX8-M21 / -U21 | J48: ='E-EX-Fun'!$G$61 -> 17
B49: =IF(J49=10,"N/A",IF(J49=11,"N/A",IF(J49=12,"N/A",IF(J49=22,"N/A",(D49*'E-EX-Fun'!$J$125*SQRT('E-EX-Fun'!$E$143)))))) -> 137.5928706 | D49: =F49*(1+E49) -> 5.58 | E49: =E$66 -> 0 | F49: 5.58 | H49: EX7-M21 / -U31 | J49: ='E-EX-Fun'!$G$61 -> 17
B50: =D50*'E-EX-Fun'!$J$125*SQRT('E-EX-Fun'!$E$143) -> 38.71340624 | D50: =F50*(1+E50) -> 1.57 | E50: =E$66 -> 0 | F50: 1.57 | H50: EX6-M21 / -M31
B51: =D51*'E-EX-Fun'!$J$125*SQRT('E-EX-Fun'!$E$143) -> 16.64429886 | D51: =F51*(1+E51) -> 0.675 | E51: =E$66 -> 0 | F51: 0.675 | H51: EX5-U21 / -U31
B52: =D52*'E-EX-Fun'!$J$125*SQRT('E-EX-Fun'!$E$143) -> 5.128909871 | D52: =F52*(1+E52) -> 0.208 | E52: =E$66 -> 0 | F52: 0.208 | H52: EX4-M21 / -U31
E54: 0
F56: Nominal Valve Capacities: Hot Gas Bypass Function
B58: Hot Gas Bypass
B59: Capacity (kW) | E59: Valve Constants
B60: =IF(J60=10,"N/A",IF(J60=11,"N/A",IF(J60=12,"N/A",IF(J60=22,"N/A",(D60*'E-EX-Fun'!$K$69))))) -> 327.135 | D60: =F60*(1+E60) -> 16.95 | E60: =E$66 -> 0 | F60: 16.95 | H60: EX8-M21 / -U21 | J60: ='E-EX-Fun'!$G$61 -> 17
B61: =IF(J61=10,"N/A",IF(J61=11,"N/A",IF(J61=12,"N/A",IF(J61=22,"N/A",(D61*'E-EX-Fun'!$K$69))))) -> 107.694 | D61: =F61*(1+E61) -> 5.58 | E61: =E$66 -> 0 | F61: 5.58 | H61: EX7-M21 / -U31 | J61: ='E-EX-Fun'!$G$61 -> 17
B62: =D62*'E-EX-Fun'!$K$69 -> 30.301 | D62: =F62*(1+E62) -> 1.57 | E62: =E$66 -> 0 | F62: 1.57 | H62: EX6-M21 / -M31
B63: =D63*'E-EX-Fun'!$K$69 -> 13.0275 | D63: =F63*(1+E63) -> 0.675 | E63: =E$66 -> 0 | F63: 0.675 | H63: EX5-U21 / -U31
B64: =D64*'E-EX-Fun'!$K$69 -> 4.0144 | D64: =F64*(1+E64) -> 0.208 | E64: =E$66 -> 0 | F64: 0.208 | H64: EX4-M21 / -U31
E66: 0
F68: Nominal Valve Capacities: Suction Function
B70: Suction
B71: Capacity (kW) | E71: Valve Constants
B72: =IF(J72=10,"N/A",IF(J72=11,"N/A",IF(J72=12,"N/A",IF(J72=22,"N/A",(D72*'E-EX-Fun'!$J$95*SQRT('E-EX-Fun'!$E$113)))))) -> 28.8847098 | D72: =F72*(1+E72) -> 16.95 | E72: =I$73 -> 0 | F72: 16.95 | H72: EX8-M21 / -U21 | J72: ='E-EX-Fun'!$G$61 -> 17
B73: =IF(J73=10,"N/A",IF(J73=11,"N/A",IF(J73=12,"N/A",IF(J73=22,"N/A",(D73*'E-EX-Fun'!$J$95*SQRT('E-EX-Fun'!$E$113)))))) -> 9.508948712 | D73: =F73*(1+E73) -> 5.58 | E73: =I$73 -> 0 | F73: 5.58 | H73: EX7-M21 / -U31 | J73: ='E-EX-Fun'!$G$61 -> 17
B74: =D74*'E-EX-Fun'!$J$95*SQRT('E-EX-Fun'!$E$113) -> 2.675456896 | D74: =F74*(1+E74) -> 1.57 | E74: =I$73 -> 0 | F74: 1.57 | H74: EX6-M21 / -M31
B75: =D75*'E-EX-Fun'!$J$95*SQRT('E-EX-Fun'!$E$113) -> 1.150276054 | D75: =F75*(1+E75) -> 0.675 | E75: =I$73 -> 0 | F75: 0.675 | H75: EX5-U21 / -U31
D76: =F76*(1+E76) -> 0.208 | E76: =I$73 -> 0 | F76: 0.208 | H76: EX4-M21 / -U31
A80: Controller Selection
D81: EC3-X33 | E81: 808 036 | F81: EC3-X32 | G81: 808 037
D82: EC3-D73 | E82: 808 041 | F82: EC3-D72 | G82: 808 042
D83: EXD-SH1 | E83: 807 855 | F83: EXD-SH2 | G83: 807 856
D85: EXD-HP1 | E85: 807 836M | F85: EXD-HP2 | G85: 807 837M
D88: EC2-352 | E88: 808 009 | F88: EC2-372 | G88: 808 011
D89: EC2-312 | E89: 808 005 | F89: EC2-392 | G89: 808 007
C92: Universal Driver Module without Terminal Kit | D92: EXD-U01 | E92: 804 750
C93: Terminal Kit for EXD-U01 | D93: K09-U00 | E93: 804 559
C94: Universal Driver Module with Terminal Kit | D94: EXD-U01 Contr.Kit | E94: 808 052
C95: Uninterruptible power supply | D95: ECP-024 | E95: 804 558
C96: Electrical terminal kit for ECP-024 | D96: K09-P00 | E96: 804 560
B98: =INDEX(Language!$B$2:$M$250,242,Language!$A$1) -> Cable assemblies
B99: =INDEX(Language!$B$2:$M$41,15,Language!$A$1) -> Type | D99: =INDEX(Language!$B$2:$M$41,18,Language!$A$1) -> Part No.
A100: 1 | B100: =INDEX(B101:B103,$A100) -> EXV-M15 | D100: =INDEX(D101:D103,$A100) -> 804 663
A101: 1,5 m | B101: EXV-M15 | D101: 804 663
A102: 3,0 m | B102: EXV-M30 | D102: 805 664
A103: 6,0 m | B103: EXV-M60 | D103: 806 665
B105: Spule + Kabel für EX2 / CX2

Sheet CO2Trans
B1: =INDEX(Language!$B$2:$M$41,2,Language!$A$1) -> Instruction: Select refrigerant and fill yellow fields with operating conditions.
B2: =INDEX(Language!$B$2:$M$41,3,Language!$A$1) -> #N/A error message: operating conditions, refrigerant or product out of range/specification.
E4: =INDEX(Language!$B$2:$M$41,4,Language!$A$1) -> Project:
E5: =INDEX(Language!$B$2:$M$299,87,Language!$A$1) -> Electrical control valves
E6: =INDEX(Language!$B$2:$M$299,256,Language!$A$1) -> Valves for R744 transcritical applications
B7: =INDEX(Language!$B$2:$M$299,5,Language!$A$1) -> Refrigerant | D7: R744 | G7: Min. | H7: Max. | J7: =INDEX(Language!$B$2:$M$400,261,Language!$A$1) -> Gas cooler
B8: =INDEX(Language!$B$2:$M$400,259,Language!$A$1) -> Gas cooler outlet temperature | D8: 35 | E8: =INDEX('E-EX-Fun'!$N$5:$P$15,2,'E-EX-Fun'!$D$19) -> °C | F8: =INDEX('E-EX-Fun'!$N$5:$P$15,2,'E-EX-Fun'!$D$19) -> °C | G8: =CO2TransFun!AG130 -> 31 | H8: =CO2TransFun!AH130 -> 45
B9: =INDEX(Language!$B$2:$M$400,345,Language!$A$1) -> Saturated temperature (receiver) | D9: 5 | E9: =INDEX('E-EX-Fun'!$N$5:$P$15,2,'E-EX-Fun'!$D$19) -> °C | F9: =INDEX('E-EX-Fun'!$N$5:$P$15,2,'E-EX-Fun'!$D$19) -> °C | G9: =CO2TransFun!AG131 -> -5 | H9: =CO2TransFun!AH131 -> 10 | J9: =$D$8 -> 35 | K9: =$E$8 -> °C
B10: =INDEX(Language!$B$2:$M$400,381,Language!$A$1) -> MT: Evaporator Temperature | D10: -10 | E10: =INDEX('E-EX-Fun'!$N$5:$P$15,2,'E-EX-Fun'!$D$19) -> °C | F10: =INDEX('E-EX-Fun'!$N$5:$P$15,2,'E-EX-Fun'!$D$19) -> °C | G10: =CO2TransFun!AG132 -> -20 | H10: =CO2TransFun!AH132 -> 5 | J10: =CO2TransFun!$W$20 -> 89.37 | K10: =INDEX('E-EX-Fun'!$N$5:$P$15,10,'E-EX-Fun'!$D$19) -> bara
K11: HPV
B12: =INDEX(Language!$B$2:$M$400,383,Language!$A$1) -> MT: Evaporator cooling capacity | D12: 70 | E12: =INDEX('E-EX-Fun'!$N$5:$P$15,4,'E-EX-Fun'!$D$19) -> kW
B14: =INDEX(Language!$B$2:$M$400,382,Language!$A$1) -> LT: Evaporator Temperature | D14: -35 | E14: =INDEX('E-EX-Fun'!$N$5:$P$15,2,'E-EX-Fun'!$D$19) -> °C | F14: =INDEX('E-EX-Fun'!$N$5:$P$15,2,'E-EX-Fun'!$D$19) -> °C | G14: =CO2TransFun!AG133 -> -45 | H14: =CO2TransFun!AH133 -> -25
N15: BPV
B16: =INDEX(Language!$B$2:$M$400,384,Language!$A$1) -> LT: Evaporator cooling capacity | D16: 3.5 | E16: =INDEX('E-EX-Fun'!$N$5:$P$15,4,'E-EX-Fun'!$D$19) -> kW
I17: =TEXT($D$9,"0,0"&" "&E$9) -> 5,0 °C
I18: =CO2TransFun!$P$20 -> 39.69466129 | J18: =INDEX('E-EX-Fun'!$N$5:$P$15,10,'E-EX-Fun'!$D$19) -> bara
B19: =INDEX(Language!$B$2:$M$400,342,Language!$A$1) -> This transcritical selection is based on theoretical calculation and not on valve capacity measurement. The selected valve size(s) shall be checked with rack system. | I19: =INDEX(Language!$B$2:$M$299,266,Language!$A$1) -> Receiver | M19: qMT= | N19: =$D$12 -> 70 | O19: =$E$12 -> kW
L20: MT
N23: =TEXT($D$10,"0,0"&" "&E$10) -> -10,0 °C
M25: qLT= | N25: =$D$16 -> 3.5 | O25: =$E$16 -> kW
L27: LT
N29: =TEXT($D$14,"0,0"&" "&E$14) -> -35,0 °C
B32: =INDEX(Language!$B$2:$M$400,264,Language!$A$1) -> High pressure gas valve | D32: HPV | M32: HPV
D33: =INDEX(Language!$B$2:$M$41,15,Language!$A$1) -> Type | F33: =INDEX(Language!$B$2:$M$41,18,Language!$A$1) -> Part No. | H33: =INDEX(Language!$B$2:$M$41,16,Language!$A$1) -> Ratio | M33: =INDEX(Language!$B$2:$M$41,15,Language!$A$1) -> Type | O33: =INDEX(Language!$B$2:$M$400,385,Language!$A$1) -> Load
D34: =CO2TransFun!B26 -> CV7-HPV | F34: =CO2TransFun!H26 -> - | H34: =CO2TransFun!A26 -> Too large | M34: =CO2TransFun!B26 -> CV7-HPV | O34: =CO2TransFun!D26 -> 0.08764917539
D35: =CO2TransFun!B27 -> CV6-HPV | F35: =CO2TransFun!H27 -> 802058 | H35: =CO2TransFun!A27 -> 0.3114284763 | M35: =CO2TransFun!B27 -> CV6-HPV | O35: =CO2TransFun!D27 -> 0.3114284763
D36: =CO2TransFun!B28 -> CV5-HPV | F36: =CO2TransFun!H28 -> 802057 | H36: =CO2TransFun!A28 -> 0.7189971418 | M36: =CO2TransFun!B28 -> CV5-HPV | O36: =CO2TransFun!D28 -> 0.7189971418
D37: =CO2TransFun!B29 -> CV4-HPV | F37: =CO2TransFun!H29 -> 802056 | H37: =CO2TransFun!A29 -> Too small | M37: =CO2TransFun!B29 -> CV4-HPV | O37: =CO2TransFun!D29 -> 2.328181221
B43: =INDEX(Language!$B$2:$M$400,265,Language!$A$1) -> Bypass valve | C43: BPV | M43: BPV
D44: =INDEX(Language!$B$2:$M$41,15,Language!$A$1) -> Type | F44: =INDEX(Language!$B$2:$M$41,18,Language!$A$1) -> Part No. | H44: =INDEX(Language!$B$2:$M$41,16,Language!$A$1) -> Ratio | M44: =INDEX(Language!$B$2:$M$41,15,Language!$A$1) -> Type | O44: =INDEX(Language!$B$2:$M$400,385,Language!$A$1) -> Load
D45: =CO2TransFun!B26 -> CV7-HPV | F45: =CO2TransFun!H26 -> - | H45: =CO2TransFun!L26 -> 0.1530639041 | M45: =CO2TransFun!B26 -> CV7-HPV | O45: =CO2TransFun!O26 -> 0.1530639041
D46: =CO2TransFun!B27 -> CV6-HPV | F46: =CO2TransFun!H27 -> 802058 | H46: =CO2TransFun!L27 -> 0.5435023216 | M46: =CO2TransFun!B27 -> CV6-HPV | O46: =CO2TransFun!O27 -> 0.5435023216
D47: =CO2TransFun!B28 -> CV5-HPV | F47: =CO2TransFun!H28 -> 802057 | H47: =CO2TransFun!L28 -> Too small | M47: =CO2TransFun!B28 -> CV5-HPV | O47: =CO2TransFun!O28 -> 1.254622164
D48: =CO2TransFun!B29 -> CV4-HPV | F48: =CO2TransFun!H29 -> 802056 | H48: =CO2TransFun!L29 -> Too small | M48: =CO2TransFun!B29 -> CV4-HPV | O48: =CO2TransFun!O29 -> 4.062466568
B53: =INDEX(Language!$B$2:$M$41,19,Language!$A$1) -> Controller for ECV
D54: ='El Ctr-Dat'!B70 -> EXD-U02 | F54: ='El Ctr-Dat'!C70 -> 804 752 | G54: ='El Ctr-Dat'!$D$70 -> Universal driver
D55: ='El Ctr-Dat'!$B$71 -> K09-U00 | F55: ='El Ctr-Dat'!$C$71 -> 804 559 | G55: ='El Ctr-Dat'!$D$71 -> Terminal kit for EXD-U02
D56: ='El Ctr-Dat'!B72 -> ECP-024 | F56: ='El Ctr-Dat'!C72 -> 804 558 | G56: ='El Ctr-Dat'!$D$72 -> Uninterruptible power supply for up to two EXD-U02
D58: ='El Ctr-Dat'!B73 -> K09-P00 | F58: ='El Ctr-Dat'!C73 -> 804 560 | G58: ='El Ctr-Dat'!$D$73 -> Terminal kit for ECP-024
B60: =Home!$D$43 -> Rev.: 01.11.2019
B61: =INDEX(Language!$B$2:$M$251,250,Language!$A$1) -> The Controls Navigator is provided by Emerson Climate Technologies Europe to assist with the selection of mechanical and electronic controls. Emerson Climate Technologies cannot be held liable for issues arising from application of controls using information provided by this software.

Sheet CO2TransFun (hidden)
A1: Functions, Formulas, Codes
E2: nicht benötigt. Arbeitet nur mit R744
B3: Languages | E3: Refrigerant Selection | M3: Convert to °C-bar-kW
B4: 1 | C4: =Language!B$2 -> English | O4: tons | P4: tBTU/h
B5: 2 | C5: =Language!C$2 -> Deutsch | N5: Metric | O5: Imperial | P5: Imperial
B6: 3 | C6: =Language!D$2 -> Français | N6: °C | O6: °F | P6: °F
B7: 4 | C7: =Language!E$2 -> Italiano | N7: K | O7: °F | P7: °F
B8: 5 | C8: =Language!F$2 -> Españiol | N8: kW | O8: tons | P8: MBH
B9: 6 | C9: =Language!G$2 -> Nederlands | N9: bar | O9: Psid | P9: Psid
B10: 7 | C10: =Language!H$2 -> Polish | M10: °C | N10: 0 | O10: 32 | P10: 32
B11: 8 | C11: =Language!I$2 -> Czech | M11: K | N11: 1 | O11: 0.5555555556 | P11: 0.5555555556
B12: 9 | C12: =Language!J$2 -> Russian | M12: kW | N12: 1 | O12: 0.284 | P12: =0.94781*3600/1000 -> 3.412116
B13: 10 | C13: =Language!K$2 -> Chinese | M13: bar | N13: 1 | O13: 14.5038 | P13: 14.5038
B14: 11 | C14: =Language!L$2 -> Japanese | N14: bara | O14: Psia | P14: Psia
B15: 12 | C15: =Language!M$2 -> Română | O15: 14.7 | P15: 14.7
B18: Units Conversion
C19: °C-bar-kW | D19: ='E-EX-Fun'!$D$19 -> 1
C20: °F-Psi-tons | L20: TF | M20: =CO2Trans!$D$9 -> 5 | N20: =IF($D$19=1,M20,((M20-32)*5/9)) -> 5 | O20: =IF(N20>10.1,"N/A",IF(N20<(-10.1),"N/A",(VLOOKUP(N20,SatPress!$A$7:$AI$213,12))))/100000 -> 39.69466129 | P20: =IF($D$19=1,O20,(O20*14.5)) -> 39.69466129 | S20: TG | T20: =CO2Trans!$D$8 -> 35 | U20: =IF($D$19=1,T20,((T20-32)*5/9)) -> 35 | V20: =VLOOKUP(U20,S24:T39,2) -> 89.37 | W20: =IF($D$19=1,V20,(V20*14.5)) -> 89.37
C21: °F-Psi-MBH
A23: Valve Data | S23: tG | T23: pG
B24: Type | C24: PCN | M24: Type | N24: PCN | O24: Qn (kW) | S24: 31 | T24: 78.97
A25: High prssure valve | H25: PCN | M25: Bypass valve | S25: 32 | T25: 81.57
A26: =IF(D26=0.1,D26,IF(D26<0.099,$F$26,IF(D26>1,$F$27,D26))) -> Too large | B26: CV7-HPV | C26: A | D26: =AC137 -> 0.08764917539 | F26: =INDEX(Language!$B$2:$M$400,386,Language!$A$1) -> Too large | H26: - | L26: =IF(O26=0.1,O26,IF(O26<0.05,$F$26,IF(O26>1,$F$27,O26))) -> 0.1530639041 | M26: CV7 | N26: E | O26: =AC153 -> 0.1530639041 | S26: 33 | T26: 84.17
A27: =IF(D27=0.1,D27,IF(D27<0.099,$F$26,IF(D27>1,$F$27,D27))) -> 0.3114284763 | B27: CV6-HPV | C27: B | D27: 0.3114284763 | F27: =INDEX(Language!$B$2:$M$400,387,Language!$A$1) -> Too small | H27: 802058 | L27: =IF(O27=0.1,O27,IF(O27<0.05,$F$26,IF(O27>1,$F$27,O27))) -> 0.5435023216 | M27: CV6 | N27: F | O27: 0.5435023216 | S27: 34 | T27: 86.77
A28: =IF(D28=0.1,D28,IF(D28<0.099,$F$26,IF(D28>1,$F$27,D28))) -> 0.7189971418 | B28: CV5-HPV | C28: C | D28: 0.7189971418 | H28: 802057 | L28: Too small | M28: CV5 | N28: G | O28: 1.254622164 | S28: 35 | T28: 89.37
A29: =IF(D29=0.1,D29,IF(D29<0.099,$F$26,IF(D29>1,$F$27,D29))) -> Too small | B29: CV4-HPV | C29: D | D29: 2.328181221 | H29: 802056 | L29: Too small | M29: CV4 | N29: H | O29: 4.062466568 | S29: 36 | T29: 91.97
S30: 37 | T30: 94.57
S31: 38 | T31: 97.17
S32: 39 | T32: 99.77
S33: 40 | T33: 102.4
S34: 41 | T34: 105
S35: 42 | T35: 107.6
S36: 43 | T36: 110.2
S37: 44 | T37: 112.8
S38: 45 | T38: 115.4
S39: 46
F43: =$W$142 -> 3.5 | G43: 3.5 | H43: 3.5 | I43: 3.5 | J43: 3.5 | K43: 3.5 | L43: 3.5 | M43: 3.5 | N43: 3.5 | O43: 3.5 | P43: 3.5 | Q43: 3.5 | R43: 3.5 | S43: 3.5 | T43: 3.5 | U43: 3.5
E44: hF | F44: 188045.7028 | G44: 190399.0657 | H44: 192770.2868 | I44: 195160.2235 | J44: 197569.7984 | K44: 200000.0057 | L44: 202451.9198 | M44: 204926.7049 | N44: 207425.6264 | O44: 209950.0651 | P44: 212501.5348 | Q44: 215081.7026 | R44: 217692.4151 | S44: 220335.7285 | T44: 223013.9461 | U44: 225729.6615
C45: pLT | D45: houtLT | F45: -5 | G45: -4 | H45: -3 | I45: -2 | J45: -1 | K45: 0 | L45: 1 | M45: 2 | N45: 3 | O45: 4 | P45: 5 | Q45: 6 | R45: 7 | S45: 8 | T45: 9 | U45: 10
C46: 831836.7957 | D46: 441925.8854 | E46: -45 | F46: =F$43*3600/(($D46-F$44)/1000) -> 49.62971064 | G46: =G$43*3600/(($D46-G$44)/1000) -> 50.0940616 | H46: 50.57080824 | I46: 51.06058883 | J46: 51.56409301 | K46: 52.08206751 | L46: 52.6153228 | M46: 53.1647408 | N46: 53.73128393 | O46: 54.3160058 | P46: 54.92006391 | Q46: 55.54473491 | R46: 56.19143289 | S46: 56.86173148 | T46: 57.5573906 | U46: 58.28038886
C47: 864449.082 | D47: 442245.5481 | E47: =E46+1 -> -44 | F47: =F$43*3600/(($D47-F$44)/1000) -> 49.56730004 | G47: 50.03047842 | H47: 50.50600983 | I47: 50.99453001 | J47: 51.49672583 | K47: 52.01334099 | L47: 52.54518268 | M47: 53.0931292 | N47: 53.65813901 | O47: 54.24126134 | P47: 54.84364889 | Q47: 55.46657292 | R47: 56.11144156 | S47: 56.77982175 | T47: 57.47346589 | U47: 58.19434407 | V47: tF | W47: =$W$150 -> 5 | X47: =MATCH(W47,F45:U45) -> 11 | Y47: LT
C48: 898004.3846 | D48: 442556.1028 | E48: -43 | F48: 49.50681779 | G48: 49.96886125 | H48: 50.44321651 | I48: 50.93051685 | J48: 51.43144645 | K48: 51.94674613 | L48: 52.47721986 | M48: 53.02374248 | N48: 53.58726861 | O48: 54.16884327 | P48: 54.76961447 | Q48: 55.39084832 | R48: 56.03394717 | S48: 56.7004715 | T48: 57.39216643 | U48: 58.11099386 | V48: tLT | W48: =$W$143 -> -35 | X48: =MATCH(W48,E46:E71) -> 11
C49: 932519.4161 | D49: 442857.3918 | E49: -42 | F49: 49.448281 | G49: 49.90922738 | H49: 50.38244575 | I49: 50.868567 | J49: 51.36827274 | K49: 51.88230098 | L49: 52.41145261 | M49: 52.95659911 | N49: 53.51869141 | O49: 54.09877044 | P49: 54.69797974 | Q49: 55.3175804 | R49: 55.95896921 | S49: 56.62370043 | T49: 57.31351216 | U49: 58.03035837
C50: 968010.9756 | D50: 443149.2539 | E50: -41 | F50: 49.39170759 | G50: 49.85159493 | H50: 50.32371587 | I50: 50.808699 | J50: 51.30722345 | K50: 51.8200245 | L50: 52.34790012 | M50: 52.8917185 | N50: 53.45242704 | O50: 54.03106274 | P50: 54.6287648 | Q50: 55.24678951 | R50: 55.88652829 | S50: 56.54952938 | T50: 57.23752416 | U50: 57.95245894 | V50: mLT | X50: =INDEX(F46:U71,X48,X47) -> 54.26555632
C51: 1004495.95 | D51: 443431.5248 | E51: -40 | F51: 49.3371163 | G51: 49.79598288 | H51: 50.26704608 | I51: 50.75093229 | J51: 51.24831825 | K51: 51.75993662 | L51: 52.28658253 | M51: 52.82912106 | N51: 53.38849616 | O51: 53.96574109 | P51: 54.56199084 | Q51: 55.1784971 | R51: 55.81664611 | S51: 56.47798036 | T51: 57.16422472 | U51: 57.87731814
C52: 1041991.312 | D52: 443704.0367 | E52: -39 | F52: 49.28452676 | G52: 49.7424111 | H52: 50.21245649 | I52: 50.69528723 | J52: 51.19157775 | K52: 51.70205822 | L52: 52.227521 | M52: 52.76882821 | N52: 53.32692049 | O52: 53.90282747 | P52: 54.49768015 | Q52: 55.11272575 | R52: 55.74934558 | S52: 56.40907657 | T52: 57.09363734 | U52: 57.80495982
C53: 1080514.124 | D53: 443966.6185 | E53: -38 | F53: 49.2339595 | G53: 49.69090035 | H53: 50.15996815 | I53: 50.64178515 | J53: 51.13702357 | K53: 51.64641117 | L53: 52.17073772 | M53: 52.71086243 | N53: 53.2677228 | O53: 53.84234498 | P53: 54.43585613 | Q53: 55.04949922 | R53: 55.68465078 | S53: 56.34284244 | T53: 57.02578683 | U53: 57.73540913
C54: 1120081.537 | D54: 444219.0955 | E54: -37 | F54: 49.18543595 | G54: 49.64147238 | H54: 50.10960308 | I54: 50.59044835 | J54: 51.08467831 | K54: 51.59301842 | L54: 52.11625592 | M54: 52.65524729 | N54: 53.210927 | O54: 53.78431788 | P54: 54.3765434 | Q54: 54.98884246 | R54: 55.62258704 | S54: 56.27930368 | T54: 56.96069929 | U54: 57.66869257
C55: 1160710.791 | D55: 444461.2893 | E55: -36 | F55: 49.13897853 | G55: 49.59414989 | H55: 50.06138429 | I55: 50.54130017 | J55: 51.03456563 | K55: 51.54190395 | L55: 52.06409995 | M55: 52.60200748 | N55: 53.15655815 | O55: 53.72877159 | P55: 54.31976777 | Q55: 54.93078168 | R55: 55.56318098 | S55: 56.21848733 | T55: 56.89840219 | U55: 57.60483807
C56: 1202419.217 | D56: 444693.0178 | E56: -35 | F56: 49.09461063 | G56: 49.54895662 | H56: 50.01533585 | I56: 50.49436502 | J56: 50.98671031 | K56: 51.49309288 | L56: 52.01429529 | M56: 52.55116889 | N56: 53.10464251 | O56: 53.67573278 | P56: 54.26555632 | Q56: 54.8753444 | R56: 55.50646055 | S56: 56.1604218 | T56: 56.8389244 | U56: 57.54387498
C57: 1245224.237 | D57: 444914.0949 | E57: -34 | F57: 49.05235672 | G57: 49.50591735 | H57: 49.97148291 | I57: 50.44966842 | J57: 50.94113822 | K57: 51.4466115 | L57: 51.96686863 | M57: 52.50275859 | N57: 53.0552076 | O57: 53.62522941 | P57: 54.21393745 | Q57: 54.82255949 | R57: 55.4524551 | S57: 56.10513694 | T57: 56.7822963 | U57: 57.48583421
C58: 1289143.366 | D58: 445124.3305 | E58: -33 | F58: 49.01224233 | G58: 49.46505801 | H58: 49.92985178 | I58: 50.40723707 | J58: 50.89787648 | K58: 51.40248733 | L58: 51.92184792 | M58: 52.45680498 | N58: 53.00828226 | O58: 53.57729078 | P58: 54.16494097 | Q58: 54.77245724 | R58: 55.40119546 | S58: 56.0526641 | T58: 56.72854978 | U58: 57.43074824
C59: 1334194.217 | D59: 445323.53 | E59: -32 | F59: 48.97429419 | G59: 49.42640571 | H59: 49.89046997 | I59: 50.36709889 | J59: 50.85695345 | K59: 51.36074917 | L59: 51.87926242 | M59: 52.4133378 | N59: 52.96389672 | O59: 53.53194764 | P59: 54.11859813 | Q59: 54.72506946 | R59: 55.35271398 | S59: 56.00303623 | T59: 56.67771841 | U59: 57.37865125
C60: 1380394.496 | D60: 445511.4945 | E60: -31 | F60: 48.93854021 | G60: 49.3899888 | H60: 49.85336627 | I60: 50.32928314 | J60: 50.81839883 | K60: 51.3214272 | L60: 51.83914281 | M60: 52.37238823 | N60: 52.9220827 | O60: 53.48923223 | P60: 54.07494175 | Q60: 54.68042954 | R60: 55.30704466 | S60: 55.95628795 | T60: 56.62983745 | U60: 57.3295792
C61: 1427762.008 | D61: 445688.0198 | E61: -30 | F61: 48.90500966 | G61: 49.35583698 | H61: 49.81857085 | I61: 50.29382044 | J61: 50.78224375 | K61: 51.28455308 | L61: 51.80152125 | M61: 52.33398899 | N61: 52.88287346 | O61: 53.44917842 | P61: 54.0340063 | Q61: 54.63857258 | R61: 55.26422326 | S61: 55.91245569 | T61: 56.58494404 | U61: 57.28356994
C62: 1476314.66 | D62: 445852.8967 | E62: -29 | F62: 48.87373315 | G62: 49.32398136 | H62: 49.7861153 | I62: 50.26074292 | J62: 50.74852087 | K62: 51.25015999 | L62: 51.76643151 | M62: 52.29817442 | N62: 52.84630396 | O62: 53.41182178 | P62: 53.99582798 | Q62: 54.59953547 | R62: 55.22428735 | S62: 55.87157776 | T62: 56.54307724 | U62: 57.24066334
C63: 1526070.464 | D63: 446005.9105 | E63: -28 | F63: =F$43*3600/(($D63-F$44)/1000) -> 48.84474281 | G63: 49.29445458 | H63: 49.7560328 | I63: 50.23008428 | J63: 50.71726446 | K63: 51.21828279 | L63: 51.73390904 | M63: 52.26498059 | N63: 52.81241091 | O63: 53.3771997 | P63: 53.96044489 | Q63: 54.56335702 | R63: 55.1872765 | S63: 55.83369451 | T63: 56.50427822 | U63: 57.2009014
C64: 1577047.535 | D64: 446146.8403 | E64: -27 | F64: 48.81807233 | G64: 49.26729087 | H64: 49.72835815 | I64: 50.20187993 | J64: 50.68851049 | K64: 51.18895808 | L64: 51.7039911 | M64: 52.23444544 | N64: 52.78123294 | O64: 53.34535152 | P64: 53.92789712 | Q64: 54.53007807 | R64: 55.15323236 | S64: 55.79884843 | T64: 56.46859035 | U64: 57.16432843
C65: 1629264.099 | D65: 446275.459 | E65: -26 | F65: 48.7937571 | G65: 49.2425262 | H65: 49.7031279 | I65: 50.17616703 | J65: 50.66229682 | K65: 51.16222437 | L65: 51.67671687 | M65: 52.20660885 | N65: 52.75281067 | O65: 53.31631862 | P65: 53.89822684 | Q65: 54.49974167 | R65: 55.12219884 | S65: 55.76708431 | T65: 56.43605937 | U65: 57.13099113
C66: 1682738.498 | D66: 446391.5327 | E66: -25 | F66: 48.77183427 | G66: 49.22019835 | H66: 49.6803805 | I66: 50.15298468 | J66: 50.63866319 | K66: 51.13812213 | L66: 51.65212756 | M66: 52.1815128 | N66: 52.72718688 | O66: 53.29014462 | P66: 53.87147852 | Q66: 54.47239313 | R66: 55.09422219 | S66: 55.73844939 | T66: 56.40673351 | U66: 57.1009388
C67: 1737489.189 | D67: 446494.8202 | E67: -24 | F67: 48.75234292 | G67: 49.20034705 | H67: 49.66015635 | I67: 50.13237399 | J67: 50.61765147 | K67: 51.11669397 | L67: 51.63026657 | M67: 52.1592015 | N67: 52.70440661 | O67: 53.26687541 | P67: 53.84769898 | Q67: 54.44808025 | R67: 55.06935118 | S67: 55.71299347 | T67: 56.38066366 | U67: 57.07422346
C68: 1793534.753 | D68: 446585.073 | E68: -23 | F68: 48.73532411 | G68: 49.18301407 | H68: 49.64249794 | I68: 50.11437822 | J68: 50.59930568 | K68: 51.09798472 | L68: 51.61117955 | M68: 52.13972147 | N68: 52.68451729 | O68: 53.24655939 | P68: 53.82693758 | Q68: 54.42685339 | R68: 55.04763724 | S68: 55.69076909 | T68: 56.35790352 | U68: 57.05090003
C69: 1850893.898 | D69: 446662.0343 | E69: -22 | F69: 48.72082102 | G69: 49.16824335 | H69: 49.62744998 | I69: 50.09904287 | J69: 50.58367216 | K69: 51.08204157 | L69: 51.5949146 | M69: 52.12312174 | N69: 52.66756891 | O69: 53.22924753 | P69: 53.80924633 | Q69: 54.40876567 | R69: 55.02913462 | S69: 55.67183168 | T69: 56.33850975 | U69: 57.03102647
C70: 1909585.465 | D70: 446725.4391 | E70: -21 | F70: 48.70887909 | G70: 49.1560811 | H70: 49.61505952 | I70: 50.08641584 | J70: 50.57079969 | K70: 51.06891423 | L70: 51.58152237 | M70: 52.10945393 | N70: 52.65361412 | O70: 53.21499355 | P70: 53.79468007 | Q70: 54.39387306 | R70: 55.01390052 | S70: 55.6562397 | T70: 56.32254216 | U70: 57.01466397
C71: 1969628.436 | D71: 446775.0137 | E71: -20 | F71: 48.69954609 | G71: 49.14657596 | H71: 49.60537607 | I71: 50.07654754 | J71: 50.56073961 | K71: 51.05865502 | L71: 51.57105619 | M71: 52.09877243 | N71: 52.6427084 | O71: 53.20385406 | P71: 53.78329659 | Q71: 54.38223461 | R71: 55.00199525 | S71: 55.64405484 | T71: 56.31006383 | U71: 57.00187711
F73: =$W$145 -> 70 | G73: 70 | H73: 70 | I73: 70 | J73: 70 | K73: 70 | L73: 70 | M73: 70 | N73: 70 | O73: 70 | P73: 70 | Q73: 70 | R73: 70 | S73: 70 | T73: 70 | U73: 70
E74: hF | F74: 188045.7028 | G74: 190399.0657 | H74: 192770.2868 | I74: 195160.2235 | J74: 197569.7984 | K74: 200000.0057 | L74: 202451.9198 | M74: 204926.7049 | N74: 207425.6264 | O74: 209950.0651 | P74: 212501.5348 | Q74: 215081.7026 | R74: 217692.4151 | S74: 220335.7285 | T74: 223013.9461 | U74: 225729.6615
C75: PsatMT | D75: houtMTmt | F75: -5 | G75: =F75+1 -> -4 | H75: -3 | I75: -2 | J75: -1 | K75: 0 | L75: 1 | M75: 2 | N75: 3 | O75: 4 | P75: 5 | Q75: 6 | R75: 7 | S75: 8 | T75: 9 | U75: 10
C76: 1969628.436 | D76: 446775.0137 | E76: -20 | F76: =F$73*3600/(($D76-F$74)/1000) -> 973.9909218 | G76: =G$73*3600/(($D76-G$74)/1000) -> 982.9315192 | H76: 992.1075213 | I76: 1001.530951 | J76: 1011.214792 | K76: 1021.1731 | L76: 1031.421124 | M76: 1041.975449 | N76: 1052.854168 | O76: 1064.077081 | P76: 1075.665932 | Q76: 1087.644692 | R76: 1100.039905 | S76: 1112.881097 | T76: 1126.201277 | U76: 1140.037542 | V76: tF | W76: =$W$150 -> 5 | X76: =MATCH(W76,F75:U75) -> 11 | Y76: MT
C77: 2031041.94 | D77: 446810.4749 | E77: =E76+1 -> -19 | F77: =F$73*3600/(($D77-F$74)/1000) -> 973.8574457 | G77: 982.7955815 | H77: 991.969034 | I77: 1001.38982 | J77: 1011.070919 | K77: 1021.02638 | L77: 1031.271444 | M77: 1041.82269 | N77: 1052.698204 | O77: 1063.917774 | P77: 1075.503136 | Q77: 1087.478251 | R77: 1099.869649 | S77: 1112.706843 | T77: 1126.022827 | U77: 1139.854681 | V77: tMT | W77: =$W$146 -> -10 | X77: =MATCH(W77,E76:E101) -> 11
C78: 2093845.261 | D78: 446831.5302 | E78: -18 | F78: 973.7782108 | G78: 982.7148855 | H78: 991.8868246 | I78: 1001.306042 | J78: 1010.985514 | K78: 1020.939284 | L78: 1031.182592 | M78: 1041.732011 | N78: 1052.605621 | O78: 1063.823208 | P78: 1075.406499 | Q78: 1087.37945 | R78: 1099.768583 | S78: 1112.603404 | T78: 1125.916898 | U78: 1139.746134
C79: 2158057.842 | D79: 446837.877 | E79: -17 | F79: 973.7543294 | G79: 982.6905638 | H79: 991.8620467 | I79: 1001.280791 | J79: 1010.959772 | K79: 1020.913034 | L79: 1031.155812 | M79: 1041.70468 | N79: 1052.577716 | O79: 1063.794705 | P79: 1075.377373 | Q79: 1087.349671 | R79: 1099.738122 | S79: 1112.572228 | T79: 1125.884971 | U79: 1139.713418 | V79: mMT | X79: =INDEX(F76:U101,X77,X76) -> 1077.19383
C80: 2223699.302 | D80: 446829.202 | E80: -16 | F80: 973.7869716 | G80: 982.7238079 | H80: 991.8959142 | I80: 1001.315305 | J80: 1010.994957 | K80: 1020.948914 | L80: 1031.192416 | M80: 1041.742037 | N80: 1052.615857 | O80: 1063.833663 | P80: 1075.417184 | Q80: 1087.390374 | R80: 1099.779758 | S80: 1112.614841 | T80: 1125.92861 | U80: 1139.758135
C81: 2290789.44 | D81: 446805.1813 | E81: -15 | F81: 973.8773684 | G81: 982.8158716 | H81: 991.9897046 | I81: 1001.410885 | J81: 1011.092394 | K81: 1021.04828 | L81: 1031.293785 | M81: 1041.845491 | N81: 1052.721483 | O81: 1063.941552 | P81: 1075.527435 | Q81: 1087.503094 | R81: 1099.895061 | S81: 1112.732852 | T81: 1126.049462 | U81: 1139.881974
C82: 2359348.244 | D82: 446765.4794 | E82: -14 | F82: 974.0268152 | G82: 982.9680745 | H82: 992.1447624 | I82: 1001.568903 | J82: 1011.253481 | K82: 1021.212556 | L82: 1031.461375 | M82: 1042.016528 | N82: 1052.896109 | O82: 1064.119921 | P82: 1075.70971 | Q82: 1087.689451 | R82: 1100.08569 | S82: 1112.927957 | T82: 1126.249265 | U82: 1140.086717
C83: 2429395.907 | D83: 446709.7487 | E83: -13 | F83: 974.2366748 | G83: 983.1818051 | H83: 992.3625027 | I83: 1001.7908 | J83: 1011.479691 | K83: 1021.443243 | L83: 1031.696716 | M83: 1042.256711 | N83: 1053.141335 | O83: 1064.370404 | P83: 1075.965679 | Q83: 1087.951154 | R83: 1100.353392 | S83: 1113.201947 | T83: 1126.529854 | U83: 1140.374244
C84: 2500952.835 | D84: 446637.6294 | E84: -12 | F84: 974.508382 | G84: 983.4585254 | H84: 992.6444158 | I84: 1002.078096 | J84: 1011.772572 | K84: 1021.741923 | L84: 1032.001424 | M84: 1042.567689 | N84: 1053.458843 | O84: 1064.69472 | P84: 1076.297101 | Q84: 1088.290002 | R84: 1100.700011 | S84: 1113.556709 | T84: 1126.893164 | U84: 1140.74654
C85: 2574039.66 | D85: 446548.7483 | E85: -11 | F85: 974.8434471 | G85: 983.7997745 | H85: 992.9920706 | I85: 1002.432391 | J85: 1012.133757 | K85: 1022.110262 | L85: 1032.377199 | M85: 1042.9512 | N85: 1053.85041 | O85: 1065.094685 | P85: 1076.705833 | Q85: 1088.707894 | R85: 1101.127491 | S85: 1113.994235 | T85: 1127.341235 | U85: 1141.205698
C86: 2648677.255 | D86: 446442.7187 | E86: -10 | F86: 975.2434607 | G86: 984.2071736 | H86: 993.40712 | I86: 1002.855371 | J86: 1012.564966 | K86: 1022.550016 | L86: 1032.825833 | M86: 1043.409073 | N86: 1054.317905 | O86: 1065.572212 | P86: 1077.19383 | Q86: 1089.206835 | R86: 1101.637882 | S86: 1114.516627 | T86: 1127.876222 | U86: 1141.753928
C87: 2724886.746 | D87: 446319.1392 | E87: -9 | F87: 975.7100982 | G87: 984.6824305 | H87: 993.8913057 | I87: 1003.348813 | J87: 1013.068011 | K87: 1023.063034 | L87: 1033.349216 | M87: 1043.94324 | N87: 1054.863303 | O87: 1066.129319 | P87: 1077.763159 | Q87: 1089.788936 | R87: 1102.23335 | S87: 1115.126102 | T87: 1128.500401 | U87: 1142.393566
C88: 2802689.53 | D88: 446177.5936 | E88: -8 | F88: 976.245125 | G88: 985.2273452 | H88: 994.4464631 | I88: 1003.914589 | J88: 1013.644804 | K88: 1023.651268 | L88: 1033.949342 | M88: 1044.555738 | N88: 1055.488685 | O88: 1066.768135 | P88: 1078.415997 | Q88: 1090.456429 | R88: 1102.916179 | S88: 1115.825004 | T88: 1129.216173 | U88: 1143.127076
C89: 2882107.289 | D89: 446017.6496 | E89: -7 | F89: 976.8504021 | G89: 985.8438152 | H89: 995.0745278 | I89: 1004.554674 | J89: 1014.297361 | K89: 1024.316776 | L89: 1034.628313 | M89: 1045.248714 | N89: 1056.196249 | O89: 1067.490907 | P89: 1079.154645 | Q89: 1091.211668 | R89: 1103.688782 | S89: 1116.615805 | T89: 1130.026076 | U89: 1143.957064
C90: 2963162.011 | D90: 445838.8584 | E90: -6 | G90: 986.5338416 | H90: 995.7775411 | I90: 1005.271152 | J90: 1015.027809 | K90: 1025.061731 | L90: 1035.388347 | M90: 1046.024438 | N90: 1056.988313 | O90: 1068.300009 | P90: 1079.981531 | Q90: 1092.057142 | R90: 1104.553708 | S90: 1117.501119 | T90: 1130.932791 | U90: 1144.886282
C91: 3045876.007 | D91: 445640.7537 | E91: -5 | H91: 996.5576568 | I91: 1006.066219 | J91: 1015.83839 | K91: 1025.888425 | L91: 1036.231787 | M91: 1046.885304 | N91: 1057.867327 | O91: 1069.197945 | P91: 1080.89922 | Q91: 1092.995477 | R91: 1105.513651 | S91: 1118.483708 | T91: 1131.939153 | U91: 1145.917641
C92: 3130271.932 | D92: 445422.8508 | E92: -4 | I92: =I$73*3600/(($D92-I$74)/1000) -> 1006.942198 | J92: 1016.731476 | K92: 1026.799277 | L92: 1037.161108 | M92: 1047.83384 | N92: 1058.835878 | O92: 1070.187365 | P92: 1081.910425 | Q92: 1094.029451 | R92: 1106.571457 | S92: 1119.566492 | T92: 1133.048159 | U92: 1147.05422
C93: 3216372.814 | D93: 445184.646 | E93: -3 | J93: 1017.70957 | K93: 1027.796846 | L93: 1038.178922 | M93: 1048.87272 | N93: 1059.896699 | O93: 1071.271065 | P93: 1083.01801 | Q93: 1095.162001 | R93: 1107.730137 | S93: 1120.752561 | T93: 1134.262979 | U93: 1148.299277
C94: 3304202.069 | D94: 444925.6151 | E94: -2 | K94: 1028.883834 | L94: 1039.287993 | M94: 1050.004768 | N94: 1061.052682 | O94: 1072.452006 | P94: 1084.225006 | Q94: 1096.396234 | R94: 1108.992876 | S94: 1122.045181 | T94: 1135.586971 | U94: 1149.656259
C95: 3393783.541 | D95: 444645.2131 | E95: -1 | L95: 1040.49124 | M95: 1051.232973 | N95: 1062.306884 | O95: 1073.733318 | P95: 1085.534621 | Q95: 1097.735435 | R95: 1110.363045 | S95: 1123.447813 | T95: 1137.023685 | U95: 1151.128817
C96: 3485141.526 | D96: 444342.8728 | E96: 0 | M96: 1052.560495 | N96: 1063.66254 | O96: 1075.118313 | P96: 1086.950249 | Q96: 1099.183084 | R96: 1111.844214 | S96: 1124.96412 | T96: 1138.576885 | U96: 1152.720819
C97: 3578300.811 | D97: 444018.0034 | E97: 1 | N97: 1065.123074 | O97: 1076.6105 | P97: 1088.475483 | Q97: 1100.742866 | R97: 1113.440163 | S97: 1126.597984 | T97: 1140.250559 | U97: 1154.436365
C98: 3673286.71 | D98: 443669.9902 | E98: 2 | O98: 1078.213592 | P98: 1090.114131 | Q98: 1102.418688 | R98: 1115.154899 | S98: 1128.353519 | T98: 1142.048934 | U98: 1156.279802
C99: 3770125.112 | D99: 443298.1925 | E99: 3 | P99: =P$73*3600/(($D99-P$74)/1000) -> 1091.870231 | Q99: =Q$73*3600/(($D99-Q$74)/1000) -> 1104.214687 | R99: 1116.992671 | S99: 1130.235088 | T99: 1143.976494 | U99: 1158.255741
C100: 3868842.523 | D100: 442901.9429 | E100: 4 | Q100: =Q$73*3600/(($D100-Q$74)/1000) -> 1106.135257 | R100: 1118.957987 | S100: 1132.247321 | T100: 1146.037999 | U100: 1160.369078
C101: 3969466.129 | D101: 442480.5458 | E101: 5 | R101: 1121.055632 | S101: 1134.395135 | T101: 1148.238503 | U101: 1162.625015
E104: hB | F104: 433383.7472 | G104: 432949.5688 | H104: 432484.7995 | I104: 431988.1358 | J104: 431458.1737 | K104: 430893.3979 | L104: 430292.1686 | M104: 429652.7068 | N104: 428973.0768 | O104: 428251.1655 | P104: 427484.6588 | Q104: 426671.0131 | R104: 425807.4217 | S104: 424890.7744 | T104: 423917.6097 | U104: 422884.0556
E105: hF | F105: 3045876.007 | G105: 3130271.932 | H105: 3216372.814 | I105: 3304202.069 | J105: 3393783.541 | K105: 3485141.526 | L105: 3578300.811 | M105: 3673286.71 | N105: 3770125.112 | O105: 3868842.523 | P105: 3969466.129 | Q105: 4072023.849 | R105: 4176544.403 | S105: 4283057.388 | T105: 4391593.357 | U105: 4502183.907
E106: tF | F106: 188045.7028 | G106: 190399.0657 | H106: 192770.2868 | I106: 195160.2235 | J106: 197569.7984 | K106: 200000.0057 | L106: 202451.9198 | M106: 204926.7049 | N106: 207425.6264 | O106: 209950.0651 | P106: 212501.5348 | Q106: 215081.7026 | R106: 217692.4151 | S106: 220335.7285 | T106: 223013.9461 | U106: 225729.6615
A107: pG | B107: hG | C107: mMT | D107: mLT | F107: -5 | G107: =F107+1 -> -4 | H107: -3 | I107: -2 | J107: -1 | K107: 0 | L107: 1 | M107: 2 | N107: 3 | O107: 4 | P107: 5 | Q107: 6 | R107: 7 | S107: 8 | T107: 9 | U107: 10
A108: 7897000 | B108: 291263.5101 | E108: 31 | F108: =($X$50+$X$79)*($B108-F$106)/(F$104-$B108) -> 821.746145 | G108: =($X$50+$X$79)*($B108-G$106)/(G$104-$B108) -> 805.4710779 | H108: 789.1238108 | I108: 772.6932311 | J108: 756.1673669 | K108: 739.533279 | L108: 722.7769334 | M108: 705.8830526 | N108: 688.8349356 | O108: 671.614244 | P108: 654.2007403 | Q108: 636.5719719 | R108: 618.7028836 | S108: 600.5653461 | T108: 582.1275792 | U108: 563.353448 | V108: tF | W108: =$W$150 -> 5 | X108: =MATCH(W108,F107:U107) -> 11 | Y108: BYP
A109: 8157000 | B109: 293513.4527 | E109: 32 | F109: =($X$50+$X$79)*($B109-F$106)/(F$104-$B109) -> 853.1652557 | G109: 836.7254073 | H109: 820.2180039 | I109: 803.6319842 | J109: 786.9554373 | K109: 770.1754956 | L109: 753.2782084 | M109: 736.2483942 | N109: 719.0694627 | O109: 701.7232018 | P109: 684.1895181 | Q109: 666.4461225 | R109: 648.4681451 | S109: 630.2276662 | T109: 611.6931418 | U109: 592.8287033 | V109: tG | W109: =$W$149 -> 35 | X109: =MATCH(W109,E108:E122) -> 5
A110: 8417000 | B110: 295707.1295 | E110: 33 | F110: 884.787365 | G110: 868.1847821 | H110: 851.5195272 | I110: 834.7806026 | J110: 817.9561721 | K110: 801.0334547 | L110: 783.9986004 | M110: 766.836543 | N110: 749.5308244 | O110: 732.0633834 | P110: 714.4142986 | Q110: 696.5614757 | R110: 678.4802664 | S110: 660.1430013 | T110: 641.5184202 | U110: 622.5709758
A111: 8677000 | B111: 297849.225 | E111: 34 | F111: 916.6537338 | G111: 899.8903177 | H111: 883.0693625 | I111: 866.1799467 | J111: 849.2103232 | K111: 832.147814 | L111: 814.9786874 | M111: 797.6880129 | N111: 780.2594874 | O111: 762.6752264 | P111: 744.9155094 | Q111: 726.9584707 | R111: 708.779721 | S111: 690.3518851 | T111: 671.6440364 | U111: 652.6210068 | V111: mBYP | X111: =INDEX(F108:U122,X109,X108) -> 775.7318889
A112: 8937000 | B112: 299943.8731 | E112: 35 | F112: 948.8036174 | G112: 931.8811504 | H112: 914.9065397 | I112: 897.8689538 | J112: 880.7567496 | K112: 863.5573686 | L112: 846.2572166 | M112: 828.84152 | N112: 811.2941551 | O112: 793.5974409 | P112: 775.7318889 | Q112: 757.6758969 | R112: 739.405375 | S112: 720.893288 | T112: 702.1090962 | U112: 683.0180719
A113: 9197000 | B113: 301994.5921 | E113: 36 | F113: 981.2723147 | G113: 964.1924958 | H113: 947.0662045 | I113: 929.8827132 | J113: 912.6304986 | K113: 895.2971399 | L113: 877.8692 | M113: 860.3320851 | N113: 842.6698756 | O113: 824.8651235 | P113: 806.8986047 | Q113: 788.7490176 | R113: 770.3926142 | S113: 751.8027484 | T113: 732.9493236 | U113: 713.7981181
A114: 9457000 | B114: 304004.3497 | E114: 37 | F114: 1014.09113 | G114: 996.8556091 | H114: 979.5795761 | I114: 962.2524225 | J114: 944.8627616 | K114: 927.3983289 | L114: 909.8458659 | M114: 892.1909819 | N114: 874.4179888 | O114: 856.5097015 | P114: 838.4471951 | Q114: 820.2095084 | R114: 801.7732801 | S114: 783.1123052 | T114: 764.1969902 | U114: 744.9936889
A115: 9717000 | B115: 305975.6937 | E115: 38 | F115: 1047.288547 | G115: 1029.89895 | H115: 1012.475106 | I115: 995.0065395 | J115: 977.4820187 | K115: 959.8894549 | L115: 942.2157906 | M115: 924.4468633 | N115: 906.567245 | O115: 888.560046 | P115: 870.4066771 | Q115: 852.0865591 | R115: 833.5767661 | S115: 814.8515888 | T115: 795.882001 | U115: 776.6350062
A116: 9977000 | B116: 307910.8934 | E116: 39 | F116: 1080.891929 | G116: 1063.34988 | H116: 1045.780165 | I116: 1028.172462 | J116: 1010.51571 | K116: 992.7980189 | L116: 975.0065548 | M116: 957.1274108 | N116: 939.1454488 | O116: 921.0441088 | P116: 902.8051765 | Q116: 884.4084993 | R116: 865.8316373 | S116: 847.0494364 | T116: 828.0335053 | U116: 808.7515766
A117: 10240000 | B117: 309774.9704 | E117: 40 | F117: 1114.255201 | G117: 1096.56528 | H117: 1078.854469 | I117: 1061.112613 | J117: 1043.328838 | K117: 1025.49147 | L117: 1007.587919 | M117: 989.6045561 | N117: 971.526558 | O117: 953.3377236 | P117: 935.0202463 | Q117: 916.5544378 | R117: 897.9183877 | S117: 879.0875468 | T117: 860.0342168 | U117: 840.7269274
A118: 10500000 | B118: 311645.4368 | E118: 41 | F118: 1148.759817 | G118: 1130.920624 | H118: 1113.067805 | I118: 1095.191391 | J118: 1077.280723 | K118: 1059.324367 | L118: 1041.310011 | M118: 1023.224339 | N118: 1005.052882 | O118: 986.7798443 | P118: 968.3878792 | Q118: 949.857822 | R118: 931.1683601 | S118: 912.2956282 | T118: 893.2127123 | U118: 873.8890449
A119: 10760000 | B119: 313485.8747 | E119: 42 | F119: 1183.761287 | G119: 1165.774476 | H119: 1147.781673 | I119: 1129.773115 | J119: 1111.73838 | K119: 1093.666302 | L119: 1075.544872 | M119: 1057.361119 | N119: 1039.100968 | O119: 1020.749067 | P119: 1002.288579 | Q119: 983.7009143 | R119: 964.9654222 | S119: 946.0589924 | T119: 926.9555787 | U119: 907.6256138
A120: 11020000 | B120: 315298.2987 | E120: 43 | F120: 1219.296247 | G120: 1201.163486 | H120: 1183.032759 | I120: 1164.89453 | J120: 1146.738638 | K120: 1128.554212 | L120: 1110.329575 | M120: 1092.052138 | N120: 1073.708256 | O120: 1055.283069 | P120: 1036.760293 | Q120: 1018.121979 | R120: 999.3482017 | S120: 980.4166827 | T120: 961.3023336 | U120: 941.9766921
A121: 11280000 | B121: 317084.7141 | E121: 44 | F121: 1255.405111 | G121: 1237.128087 | H121: 1218.861539 | I121: 1200.596182 | J121: 1182.322138 | K121: 1164.02886 | L121: 1145.705039 | M121: 1127.338502 | N121: 1108.916076 | O121: 1090.423439 | P121: 1071.844921 | Q121: 1053.163268 | R121: 1034.359355 | S121: 1015.41182 | T121: 996.2966268 | U121: 976.9865324
A122: 11540000 | B122: 318847.0961 | E122: 45 | F122: 1292.131931 | G122: 1273.712359 | H122: 1255.312146 | I122: 1236.922281 | J122: 1218.533201 | K122: 1200.134711 | L122: 1181.715905 | M122: 1163.265064 | N122: 1144.769535 | O122: 1126.215583 | P122: 1107.588209 | Q122: 1088.870926 | R122: 1070.045483 | S122: 1051.091524 | T122: 1031.986172 | U122: 1012.703523
F125: -5 | G125: =F125+1 -> -4 | H125: =G125+1 -> -3 | I125: -2 | J125: -1 | K125: 0 | L125: 1 | M125: 2 | N125: 3 | O125: 4 | P125: 5 | Q125: 6 | R125: 7 | S125: 8 | T125: 9 | U125: 10
D126: 1 | E126: 31 | F126: 696.1 | G126: 690 | H126: 683.8 | I126: 677.3 | J126: 670.7 | K126: 663.9 | L126: 656.8 | M126: 649.6 | N126: 642.1 | O126: 634.4 | P126: 626.4 | Q126: 618.2 | R126: 609.7 | S126: 601 | T126: 591.9 | U126: 582.5
D127: =D126+1 -> 2 | E127: =E126+1 -> 32 | F127: 712.1 | G127: 706.2 | H127: 700.2 | I127: 693.9 | J127: 687.5 | K127: 680.9 | L127: 674.1 | M127: 667 | N127: 659.8 | O127: 652.4 | P127: 644.7 | Q127: 636.7 | R127: 628.6 | S127: 620.1 | T127: 611.4 | U127: 602.4
D128: =D127+1 -> 3 | E128: =E127+1 -> 33 | F128: 727.8 | G128: 722 | H128: 716.1 | I128: 710.1 | J128: 703.8 | K128: 697.4 | L128: 690.8 | M128: 684 | N128: 677 | O128: 669.8 | P128: 662.4 | Q128: 654.7 | R128: 646.8 | S128: 638.6 | T128: 630.2 | U128: 621.5
D129: 4 | E129: 34 | F129: 743.1 | G129: 737.5 | H129: 731.8 | I129: 725.9 | J129: 719.8 | K129: 713.6 | L129: 707.2 | M129: 700.6 | N129: 693.8 | O129: 686.8 | P129: 679.6 | Q129: 672.1 | R129: 664.5 | S129: 656.6 | T129: 648.4 | U129: 640 | AG129: Min | AH129: Max
D130: 5 | E130: 35 | F130: 758.2 | G130: 752.7 | H130: 747.2 | I130: 741.4 | J130: 735.5 | K130: 729.4 | L130: 723.2 | M130: 716.7 | N130: 710.1 | O130: 703.3 | P130: 696.3 | Q130: 689.1 | R130: 681.7 | S130: 674 | T130: 666.1 | U130: 658 | AF130: TG | AG130: =IF($D$19=1,31,IF($D$19=2,88,88)) -> 31 | AH130: =IF($D$19=1,45,IF($D$19=2,113,113)) -> 45
D131: 6 | E131: 36 | F131: 773 | G131: 767.7 | H131: 762.2 | I131: 756.6 | J131: 750.8 | K131: 744.9 | L131: 738.8 | M131: 732.6 | N131: 726.1 | O131: 719.5 | P131: 712.7 | Q131: 705.7 | R131: 698.4 | S131: 691 | T131: 683.4 | U131: 675.5 | AF131: TF | AG131: =IF($D$19=1,-5,IF($D$19=2,23,23)) -> -5 | AH131: =IF($D$19=1,10,IF($D$19=2,50,50)) -> 10
D132: 7 | E132: 37 | F132: 787.5 | G132: 782.3 | H132: 777 | I132: 771.5 | J132: 765.9 | K132: 760.1 | L132: 754.2 | M132: 748 | N132: 741.8 | O132: 735.3 | P132: 728.7 | Q132: 721.8 | R132: 714.8 | S132: 707.6 | T132: 700.1 | U132: 692.5 | AF132: tMT | AG132: =IF($D$19=1,-20,IF($D$19=2,-4,-4)) -> -20 | AH132: =IF($D$19=1,5,IF($D$19=2,41,41)) -> 5
D133: 8 | E133: 38 | F133: 801.8 | G133: 796.7 | H133: 791.5 | I133: 786.2 | J133: 780.7 | K133: 775 | L133: 769.2 | M133: 763.2 | N133: 757.1 | O133: 750.8 | P133: 744.3 | Q133: 737.7 | R133: 730.8 | S133: 723.8 | T133: 716.5 | U133: 709.1 | AF133: tLT | AG133: =IF($D$19=1,-45,IF($D$19=2,-49,-49)) -> -45 | AH133: =IF($D$19=1,-25,IF($D$19=2,-13,-13)) -> -25
D134: 9 | E134: 39 | F134: 815.9 | G134: 810.9 | H134: 805.8 | I134: 800.6 | J134: 795.2 | K134: 789.6 | L134: 784 | M134: 778.1 | N134: 772.1 | O134: 766 | P134: 759.7 | Q134: 753.2 | R134: 746.5 | S134: 739.6 | T134: 732.5 | U134: 725.3
D135: 10 | E135: 40 | F135: 829.7 | G135: 824.9 | H135: 819.8 | I135: 814.7 | J135: 809.4 | K135: 804 | L135: 798.5 | M135: 792.8 | N135: 786.9 | O135: 780.9 | P135: 774.7 | Q135: 768.3 | R135: 761.8 | S135: 755.1 | T135: 748.2 | U135: 741.1 | X135: mTotal | Y135: =X50+X79+X111 -> 1907.191276
D136: 11 | E136: 41 | F136: 843.4 | G136: 838.6 | H136: 833.7 | I136: 828.6 | J136: 823.5 | K136: 818.2 | L136: 812.7 | M136: 807.1 | N136: 801.4 | O136: 795.5 | P136: 789.4 | Q136: 783.2 | R136: 776.8 | S136: 770.3 | T136: 763.5 | U136: 756.6 | AB136: Factor | AC136: =Y135/Y140 -> 2.739036731 | AG136: bar | AH136: 1 | AI136: =AH136*14.5 -> 14.5 | AJ136: PSI
D137: 12 | E137: 42 | F137: 856.8 | G137: 852.1 | H137: 847.3 | I137: 842.3 | J137: 837.3 | K137: 832.1 | L137: 826.7 | M137: 821.2 | N137: 815.6 | O137: 809.8 | P137: 803.9 | Q137: 797.8 | R137: 791.6 | S137: 785.2 | T137: 778.6 | U137: 771.8 | AB137: CV7 | AC137: =(0.032)*$AC$136 -> 0.08764917539 | AG137: C | AH137: 31 | AI137: =(AH137/5)*9+32 -> 87.8 | AJ137: F | AK137: 88
D138: 13 | E138: 43 | F138: 870 | G138: 865.4 | H138: 860.7 | I138: 855.8 | J138: 850.8 | K138: 845.7 | L138: 840.5 | M138: 835.1 | N138: 829.6 | O138: 823.9 | P138: 818.1 | Q138: 812.2 | R138: 806 | S138: 799.8 | T138: 793.3 | U138: 786.7 | W138: =$W$150 -> 5 | X138: =MATCH(W138,F125:U125) -> 11 | Z138: HPV | AB138: CV6 | AC138: =0.1137*$AC$136 -> 0.3114284763 | AG138: C | AH138: 45 | AI138: =(AH138/5)*9+32 -> 113 | AJ138: F | AK138: 113
D139: 14 | E139: 44 | F139: 883.1 | G139: 878.5 | H139: 873.9 | I139: 869.1 | J139: 864.2 | K139: 859.2 | L139: 854.1 | M139: 848.8 | N139: 843.4 | O139: 837.8 | P139: 832.1 | Q139: 826.3 | R139: 820.3 | S139: 814.1 | T139: 807.8 | U139: 801.3 | W139: =$W$149 -> 35 | X139: =MATCH(W139,E126:E140) -> 5 | AB139: CV5 | AC139: =0.2625*$AC$136 -> 0.7189971418 | AG139: C | AH139: -5 | AI139: 23 | AJ139: F | AK139: 23
D140: 15 | E140: =E139+1 -> 45 | F140: 895.9 | G140: 891.5 | H140: 886.9 | I140: 882.2 | J140: 877.4 | K140: 872.5 | L140: 867.4 | M140: 862.2 | N140: 856.9 | O140: 851.4 | P140: 845.9 | Q140: 840.1 | R140: 834.2 | S140: 828.2 | T140: 822 | U140: 815.6 | X140: mHPV-valve | Y140: =INDEX(F126:U140,X139,X138) -> 696.3 | AB140: CV4 | AC140: =0.85*$AC$136 -> 2.328181221 | AG140: C | AH140: 10 | AI140: 50 | AJ140: F | AK140: 50
AA141: EU | AB141: Ton | AC141: MBH | AG141: C | AH141: -20 | AI141: -4 | AJ141: F | AK141: -4
D142: pB | F142: 3045876.007 | G142: 3130271.932 | H142: 3216372.814 | I142: 3304202.069 | J142: 3393783.541 | K142: 3485141.526 | L142: 3578300.811 | M142: 3673286.71 | N142: 3770125.112 | O142: 3868842.523 | P142: 3969466.129 | Q142: 4072023.849 | R142: 4176544.403 | S142: 4283057.388 | T142: 4391593.357 | U142: 4502183.907 | V142: qLT | W142: =IF($D$19=1,AA142,IF($D$19=2,AA142/$O$12,IF($D$19=3,AA142/$P$12,"N/A"))) -> 3.5 | Z142: LT | AA142: =CO2Trans!$D$16 -> 3.5 | AB142: =IF($D$19=1,AA142,AA142/$O$12) -> 3.5 | AC142: =IF($D$19=1,AA142,AA142*$P$12) -> 3.5 | AG142: C | AH142: 5 | AI142: 41 | AJ142: F | AK142: 41
D143: hF | F143: 188045.7028 | G143: 190399.0657 | H143: 192770.2868 | I143: 195160.2235 | J143: 197569.7984 | K143: 200000.0057 | L143: 202451.9198 | M143: 204926.7049 | N143: 207425.6264 | O143: 209950.0651 | P143: 212501.5348 | Q143: 215081.7026 | R143: 217692.4151 | S143: 220335.7285 | T143: 223013.9461 | U143: 225729.6615 | V143: tLT | W143: =IF($AD$143>-25,"N/A",$AD$143) -> -35 | X143: mLT | Y143: =$X$50 -> 54.26555632 | AD143: =IF($D$19=1,CO2Trans!$D$14,(5/9)*((CO2Trans!D14)-32)) -> -35 | AE143: EU | AG143: C | AH143: -45 | AI143: -49 | AJ143: F | AK143: -49
D144: tF | AA144: EU | AB144: Ton | AC144: MBH | AG144: C | AH144: -25 | AI144: -13 | AJ144: F | AK144: -13
D145: PsatMT | F145: -5 | G145: =F145+1 -> -4 | H145: -3 | I145: -2 | J145: -1 | K145: 0 | L145: 1 | M145: 2 | N145: 3 | O145: 4 | P145: 5 | Q145: 6 | R145: 7 | S145: 8 | T145: 9 | U145: 10 | V145: qMT | W145: =IF($D$19=1,AA145,IF($D$19=2,AA145/$O$12,IF($D$19=3,AA145/$P$12,"N/A"))) -> 70 | Z145: MT | AA145: =CO2Trans!$D$12 -> 70 | AB145: =IF($D$19=1,AA145,AA145/$O$12) -> 70 | AC145: =IF($D$19=1,AA145,AA145*$P$12) -> 70
D146: 1969628.436 | E146: -20 | F146: 119.9114215 | G146: 124.1167804 | H146: 128.2228694 | I146: 132.2397886 | J146: 136.1762465 | K146: 140.0398157 | L146: 143.8371315 | M146: 147.5740492 | N146: 151.2557688 | O146: 154.8869364 | P146: 158.471727 | Q146: 162.0139121 | R146: 165.5169166 | S146: 168.9838663 | T146: 172.4176276 | U146: 175.8208424 | V146: tMT | W146: =IF($AD$146>5,"N/A",$AD$146) -> -10 | X146: mMT | Y146: =$X$79 -> 1077.19383 | AA146: =CO2Trans!$D$10 -> -10 | AD146: =IF($D$19=1,CO2Trans!$D$10,(5/9)*((CO2Trans!D10)-32)) -> -10 | AE146: EU
D147: 2031041.94 | E147: =E146+1 -> -19 | F147: 118.6575327 | G147: 123.0792455 | H147: 127.3865179 | I147: 131.5915268 | J147: 135.7046744 | K147: 139.7349309 | L147: 143.690098 | M147: 147.5770134 | N147: 151.4017124 | O147: 155.1695567 | P147: 158.8853387 | Q147: 162.5533664 | R147: 166.1775337 | S147: 169.7613786 | T147: 173.308132 | U147: 176.8207594
D148: 2093845.261 | E148: -18 | F148: 117.1198647 | G148: 121.7813325 | H148: 126.3101136 | I148: 130.7210403 | J148: 135.0266502 | K148: 139.2376547 | L148: 143.3632927 | M148: 147.411601 | N148: 151.3896251 | O148: 155.3035857 | P148: 159.1590107 | Q148: 162.9608432 | R148: 166.7135286 | S148: 170.4210872 | T148: 174.0871739 | U148: 177.715129
D149: 2158057.842 | E149: -17 | F149: 115.2640357 | G149: 120.1932095 | H149: 124.9674975 | I149: 129.6051806 | J149: 134.1215261 | K149: 138.5294408 | L149: 142.8399539 | M149: 147.0625796 | N149: 151.2055964 | O149: 155.2762633 | P149: 159.2809914 | Q149: 163.2254801 | R149: 167.1148276 | S149: 170.9536214 | T149: 174.7460122 | U149: 178.4957763 | V149: tG | W149: =IF(AD149>45,"N/A",AD149) -> 35 | Z149: BYP | AA149: =CO2Trans!$D$8 -> 35 | AD149: =IF($D$19=1,CO2Trans!$D$8,(5/9)*((CO2Trans!D8)-32)) -> 35 | AE149: EU
D150: 2223699.302 | E150: -16 | F150: 113.0489701 | G150: 118.2796898 | H150: 123.3281529 | I150: 128.2172001 | J150: 132.9656434 | K150: 137.5891961 | L150: 142.1011439 | M150: 146.5128415 | N150: 150.834086 | O150: 155.073404 | P150: 159.2382742 | Q150: 163.3353034 | R150: 167.3703677 | S150: 171.3487256 | T150: 175.2751108 | U150: 179.1538095 | V150: TF | W150: =IF(AD150>10,"N/A",AD150) -> 5 | X150: mBYP | Y150: =$X$111 -> 775.7318889 | AA150: =CO2Trans!$D$9 -> 5 | AD150: =IF($D$19=1,CO2Trans!$D$9,(5/9)*((CO2Trans!D9)-32)) -> 5 | AE150: EU
D151: 2290789.44 | E151: -15 | F151: 110.4248321 | G151: 115.9987217 | H151: 121.3560733 | I151: 126.5258852 | J151: 131.5316565 | K151: 136.3927437 | L151: 141.1253173 | M151: 145.7430516 | N151: 150.2576353 | O151: 154.679156 | P151: 159.0163952 | Q151: 163.2770573 | R151: 167.4679511 | S151: 171.5951344 | T151: 175.6640309 | U151: 179.6795261
D152: 2359348.244 | E152: -14 | F152: 107.3300362 | G152: 113.2992664 | H152: 119.0082113 | I152: 124.4943941 | J152: 129.7876423 | K152: 134.9121296 | L152: 139.8877711 | M152: 144.7312057 | N152: 149.4565065 | O152: 154.075705 | P152: 158.5991873 | Q152: 163.0359967 | R152: 167.39407 | S152: 171.6804237 | T152: 175.9013032 | U152: 180.062303 | AB152: Factor | AC152: =Y150/Y154 -> 5.018488657
D153: 2429395.907 | E153: -13 | F153: 103.6867668 | G153: 110.1182296 | H153: 116.2323011 | I153: 122.0786646 | J153: 127.695908 | K153: 133.1147088 | L153: 138.3599323 | M153: 143.4520659 | N153: 148.4082295 | O153: 153.2429049 | P153: 157.968476 | Q153: 162.5956351 | R153: 167.133695 | S153: 171.5908314 | T153: 175.9742752 | U153: 180.290465 | W153: =$W$150 -> 5 | X153: =MATCH(W153,F145:U145) -> 11 | Z153: BPV | AB153: CV7 | AC153: =(0.0305)*$AC$152 -> 0.1530639041
D154: 2500952.835 | E154: -12 | F154: 99.39396436 | G154: 106.3758611 | H154: 112.963708 | I154: 119.225179 | J154: 125.2113571 | K154: 130.9619217 | L154: 136.5084213 | M154: 141.8764303 | N154: 147.0870232 | O154: 152.1578128 | P154: 157.103701 | Q154: 161.9374331 | R154: 166.6700164 | S154: 171.3110407 | T154: 175.8689279 | U154: 180.3511293 | W154: =$W$146 -> -10 | X154: =MATCH(W154,E146:E171) -> 11 | Y154: =INDEX(F146:U171,X154,X153) -> 154.5748017 | AB154: CV6 | AC154: =(0.1083)*$AC$152 -> 0.5435023216
D155: 2574039.66 | E155: -11 | F155: 94.31573666 | G155: 101.9685523 | H155: 109.1207043 | I155: 115.8677295 | J155: 122.2791948 | K155: 128.4076177 | L155: 134.2937964 | M155: 139.9701721 | N155: 145.4630466 | O155: 150.7940964 | P155: 155.9814403 | Q155: 161.0404112 | R155: 165.9841258 | S155: 170.8239152 | T155: 175.569654 | U155: 180.2300179 | X155: mBYP-valve | AB155: CV5 | AC155: =(0.25)*$AC$152 -> 1.254622164
D156: 2648677.255 | E156: -10 | F156: 88.2608421 | G156: 96.75693711 | H156: 104.5970749 | I156: 111.9225681 | J156: 118.8316071 | K156: 125.3956992 | L156: 131.6688322 | M156: 137.692951 | N156: 143.5014129 | O156: 149.121265 | P156: 154.5748017 | Q156: 159.8806612 | R156: 165.0546188 | S156: 170.1101729 | T156: 175.0589873 | U156: 179.9112304 | AB156: CV4 | AC156: =(0.8095)*$AC$152 -> 4.062466568
D157: 2724886.746 | E157: -9 | F157: 80.94286729 | G157: 90.54482515 | H157: 99.24989803 | I157: 107.2808134 | J157: 114.7827813 | K157: 121.8567123 | L157: 128.5761023 | M157: 134.996447 | N157: 141.1608671 | O157: 147.103659 | P157: 152.8526349 | Q157: 158.4307229 | R157: 163.8570944 | S157: 169.1479791 | T157: 174.3172679 | U157: 179.3769668
D158: 2802689.53 | E158: -8 | F158: 71.89226288 | G158: 83.03831377 | H158: 92.87791447 | I158: 101.7959046 | J158: 110.0211095 | K158: 117.7027346 | L158: 124.9444791 | M158: 131.8218784 | N158: 138.391974 | O158: 144.699093 | P158: 150.7784946 | Q158: 156.6587762 | R158: 162.3635164 | S158: 167.912434 | T158: 173.3222257 | U158: 178.6071854
D159: 2882107.289 | E159: -7 | F159: 60.21939236 | G159: 73.7554778 | H159: 85.17954505 | I159: 95.26138924 | J159: 104.3963049 | K159: 112.8193692 | L159: 120.6838842 | M159: 128.0964088 | N159: 135.1345701 | O159: 141.8569954 | P159: 148.3092485 | Q159: 154.5275775 | R159: 160.5413849 | S159: 166.3749171 | T159: 172.0484553 | U159: 177.5791759
D160: 2963162.011 | E160: -6 | G160: 61.78312625 | H160: 75.66017236 | I160: 87.36781828 | J160: 97.69659458 | K160: 107.052515 | L160: 115.6770679 | M160: 123.7277571 | N160: 131.3140749 | O160: 138.515794 | P160: 145.3931683 | Q160: 151.9930313 | R160: 158.3526449 | S160: 164.5022386 | T160: 170.4667445 | U160: 176.2670212
D161: 3045876.007 | E161: -5 | H161: 63.38244104 | I161: 77.60755374 | J161: 89.60445899 | K161: 100.1849466 | L161: 109.7660238 | M161: 118.5957556 | N161: 126.8359565 | O161: 134.5991285 | P161: 141.9672458 | Q161: 149.0022316 | R161: 155.752222 | S161: 162.25552 | T161: 168.5432036 | U161: 174.6409095
D162: 3130271.932 | E162: -4 | I162: 65.01844167 | J162: 79.59889895 | K162: 91.89086666 | L162: 102.7279381 | M162: 112.5383989 | N162: 121.5770627 | O162: 130.0101676 | P162: 137.9533044 | Q162: 145.4907068 | R162: 152.6860114 | S162: 159.5886913 | T162: 166.2381183 | U162: 172.666242
D163: 3216372.814 | E163: -3 | J163: 66.69230161 | K163: 81.6355608 | L163: 94.2285209 | M163: 105.3271447 | N163: 115.371293 | O163: 124.6227063 | P163: 133.2521639 | Q163: 141.3784277 | R163: 149.0880508 | S163: 156.4464287 | T163: 163.5044074 | U163: 170.3024558
D164: 3304202.069 | E164: -2 | K164: 68.40526924 | L164: 83.71897469 | M164: 96.61898827 | N164: 107.9842321 | O164: 118.2664507 | P164: 127.7344974 | Q164: 136.5638149 | R164: 144.8764212 | S164: 152.7612513 | T164: 160.2855067 | U164: 167.5014432
D165: 3393783.541 | E165: -1 | L165: 70.15867488 | M165: 85.85066602 | N165: 99.06392992 | O165: 110.7009632 | P165: 121.2257161 | Q165: 130.9143484 | R165: 139.9470932 | S165: 148.4493131 | T165: 156.5123896 | U165: 164.2053793
D166: 3485141.526 | E166: 0 | M166: 71.95393884 | N166: 88.03225856 | O166: 101.56511 | P166: 113.4792071 | Q166: 124.2510416 | R166: 134.164282 | S166: 143.4040837 | T166: 152.099246 | U166: 160.343664
D167: 3578300.811 | E167: 1 | N167: 73.79258036 | O167: 90.26548377 | P167: 104.124405 | Q167: 116.3209477 | R167: 127.3444969 | S167: 137.4864398 | T167: 146.9369924 | U167: 155.8284862
D168: 3673286.71 | E168: 2 | O168: 75.67622769 | P168: 92.55219113 | Q168: 106.7438142 | R168: 119.2282948 | S168: 130.5082789 | T168: 140.8830931 | U168: 150.5481569
D169: 3770125.112 | E169: 3 | P169: 77.60662943 | Q169: 94.89435967 | R169: 109.4254706 | S169: 122.2034944 | T169: 133.7447234 | U169: 144.3566535
D170: 3868842.523 | E170: 4 | Q170: 79.58566725 | R170: 97.29411083 | S170: 112.1716541 | T170: 125.2489416 | U170: 137.0563167
D171: 3969466.129 | E171: 5 | R171: 81.61537027 | S171: 99.75372264 | T171: 114.9848051 | U171: 128.3671941

Sheet E-HotGas
B1: =INDEX(Language!$B$2:$M$41,2,Language!$A$1) -> Instruction: Select refrigerant and fill yellow fields with operating conditions.
B2: =INDEX(Language!$B$2:$M$41,3,Language!$A$1) -> #N/A error message: operating conditions, refrigerant or product out of range/specification.
E4: =INDEX(Language!$B$2:$M$41,4,Language!$A$1) -> Project:
E5: =INDEX(Language!$B$2:$M$299,87,Language!$A$1) -> Electrical control valves
E6: =INDEX(Language!$B$2:$M$61,56,Language!$A$1) -> Hot gas bypass duty
B7: =INDEX(Language!$B$2:$M$41,5,Language!$A$1) -> Refrigerant | E7: ='E-EX-Fun'!$J$61 -> R448A
B8: =INDEX(Language!$B$2:$M$41,7,Language!$A$1) -> Condensing temperature | E8: 30 | F8: =INDEX('E-EX-Fun'!$N$5:$P$15,2,'E-EX-Fun'!$D$19) -> °C
B10: =INDEX(Language!$B$2:$M$41,30,Language!$A$1) -> Bypass cooling capacity | E10: 35 | F10: =INDEX('E-EX-Fun'!$N$5:$P$15,4,'E-EX-Fun'!$D$19) -> kW
H11: Tc = | I11: =E8 -> 30 | J11: =F8 -> °C
H12: PC= | I12: =('E-EX-Fun'!E71)*INDEX('E-EX-Fun'!$N$5:$P$15,9,'E-EX-Fun'!$D$19) -> 14.52861614 | J12: =INDEX('E-EX-Fun'!$N$5:$P$15,10,'E-EX-Fun'!$D$19) -> bara
H14: =$E$7 -> R448A
J17: Q0 = | K17: =$E$10 -> 35 | L17: =$F$10 -> kW
B25: =INDEX(Language!$B$2:$M$41,17,Language!$A$1) -> High performance stepper motor ECV
M26: =CONCATENATE(INDEX(Language!$B$2:$M$41,23,Language!$A$1),$F$10,")") -> Maximum valve capacity at selected conditions (kW)
D28: =INDEX(Language!$B$2:$M$41,15,Language!$A$1) -> Type | F28: =INDEX(Language!$B$2:$M$41,18,Language!$A$1) -> Part No. | G28: =INDEX(Language!$B$2:$M$41,16,Language!$A$1) -> Ratio | M28: =INDEX(Language!$B$2:$M$41,15,Language!$A$1) -> Type | P28: ='E-EX-Fun'!$J$61 -> R448A
D29: =INDEX('E-EX-Dat'!$D$10:$D$14,'E-EX-Fun'!$D$86) -> EX7-M21 | F29: =INDEX('E-EX-Dat'!$E$10:$E$14,'E-EX-Fun'!$D$86,1) -> 800 625 | G29: =TEXT('E-EX-Fun'!$E86,"0%")&" "&IF('E-EX-Fun'!$E86>10%,"OK",INDEX(Language!$B$2:$M$41,36,Language!$A$1)) -> 32% OK | M29: ='E-EX-Dat'!D10 -> EX8-M21 | P29: ='E-EX-Dat'!$B60*INDEX('E-EX-Fun'!$N$5:$P$15,8,'E-EX-Fun'!$D$19) -> 327.135
M30: ='E-EX-Dat'!D11 -> EX7-M21 | P30: ='E-EX-Dat'!$B61*INDEX('E-EX-Fun'!$N$5:$P$15,8,'E-EX-Fun'!$D$19) -> 107.694
M31: ='E-EX-Dat'!D12 -> EX6-M21 | P31: ='E-EX-Dat'!$B62*INDEX('E-EX-Fun'!$N$5:$P$15,8,'E-EX-Fun'!$D$19) -> 30.301
M32: ='E-EX-Dat'!D13 -> EX5-U21 | P32: ='E-EX-Dat'!$B63*INDEX('E-EX-Fun'!$N$5:$P$15,8,'E-EX-Fun'!$D$19) -> 13.0275
M33: ='E-EX-Dat'!D14 -> EX4-M21 | P33: ='E-EX-Dat'!$B64*INDEX('E-EX-Fun'!$N$5:$P$15,8,'E-EX-Fun'!$D$19) -> 4.0144
B34: =INDEX(Language!$B$2:$M$41,19,Language!$A$1) -> Controller for ECV
D35: ='El Ctr-Dat'!$B$70 -> EXD-U02 | F35: ='El Ctr-Dat'!$C$70 -> 804 752 | G35: ='El Ctr-Dat'!$D$70 -> Universal driver
D36: ='El Ctr-Dat'!$B$71 -> K09-U00 | F36: ='El Ctr-Dat'!$C$71 -> 804 559 | G36: ='El Ctr-Dat'!$D$71 -> Terminal kit for EXD-U02
D37: ='E-EX-Dat'!$D$95 -> ECP-024 | F37: ='E-EX-Dat'!$E$95 -> 804 558 | G37: ='El Ctr-Dat'!$D$72 -> Uninterruptible power supply for up to two EXD-U02
D39: ='E-EX-Dat'!$D$96 -> K09-P00 | F39: ='E-EX-Dat'!$E$96 -> 804 560 | G39: ='El Ctr-Dat'!$D$73 -> Terminal kit for ECP-024
D42: =INDEX(Language!$B$2:$M$400,371,Language!$A$1) -> Temperature controllers
D43: =" "&INDEX(Language!$B$2:$M$400,372,Language!$A$1) -> for EX4-8 Series only
D44: =INDEX(Language!$B$2:$M$400,15,Language!$A$1) -> Type | F44: =INDEX(Language!$B$2:$M$41,18,Language!$A$1) -> Part No. | G44: =INDEX(Language!$B$2:$M$400,285,Language!$A$1) -> Description
D45: ='El Ctr-Dat'!$B$127 -> EXD-SH1 | F45: ='El Ctr-Dat'!$C$127 -> 807 855 | G45: ='El Ctr-Dat'!$E$127 -> Controller for single refrigeration circuit
D47: ='El Ctr-Dat'!$B$128 -> EXD-SH2 | F47: ='El Ctr-Dat'!$C$128 -> 807 856 | G47: ='El Ctr-Dat'!$E$128 -> Controller for two independent refrigeration circuits
D49: ='El Ctr-Dat'!$B$129 -> EXD-M03 | F49: ='El Ctr-Dat'!$D$129 -> 807 865 | G49: ='El Ctr-Dat'!$E$129 -> Molex terminal with 3 meter wires
D50: ='El Ctr-Dat'!$B$103 -> ECN-N60 | F50: ='El Ctr-Dat'!$C$103 -> 804 497 | G50: ='El Ctr-Dat'!$D$103 -> Temperature sensor Cable length 6,0 m
B60: =Home!$D$43 -> Rev.: 01.11.2019
B61: =INDEX(Language!$B$2:$M$251,250,Language!$A$1) -> The Controls Navigator is provided by Emerson Climate Technologies Europe to assist with the selection of mechanical and electronic controls. Emerson Climate Technologies cannot be held liable for issues arising from application of controls using information provided by this software.

Sheet E-Suction
B1: =INDEX(Language!$B$2:$M$41,2,Language!$A$1) -> Instruction: Select refrigerant and fill yellow fields with operating conditions.
B2: =INDEX(Language!$B$2:$M$41,3,Language!$A$1) -> #N/A error message: operating conditions, refrigerant or product out of range/specification.
E4: =INDEX(Language!$B$2:$M$41,4,Language!$A$1) -> Project:
E5: =INDEX(Language!$B$2:$M$299,87,Language!$A$1) -> Electrical control valves
E6: =INDEX(Language!$B$2:$M$61,57,Language!$A$1) -> Suction duty
B7: =INDEX(Language!$B$2:$M$41,5,Language!$A$1) -> Refrigerant | E7: ='E-EX-Fun'!$J$61 -> R448A
B8: =INDEX(Language!$B$2:$M$41,6,Language!$A$1) -> Evaporating temperature | E8: -10 | F8: =INDEX('E-EX-Fun'!$N$5:$P$15,2,'E-EX-Fun'!$D$19) -> °C
B10: =INDEX(Language!$B$2:$M$41,7,Language!$A$1) -> Condensing temperature | E10: 45 | F10: =INDEX('E-EX-Fun'!$N$5:$P$15,2,'E-EX-Fun'!$D$19) -> °C | H10: TC = | I10: =E10 -> 45 | J10: =F10 -> °C
H11: PC= | I11: =('E-EX-Fun'!E101)*INDEX('E-EX-Fun'!$N$5:$P$15,9,'E-EX-Fun'!$D$19) -> 20.9494477 | J11: =INDEX('E-EX-Fun'!$N$5:$P$15,10,'E-EX-Fun'!$D$19) -> bara
B12: =INDEX(Language!$B$2:$M$41,8,Language!$A$1) -> Subcooling | E12: 1 | F12: =INDEX('E-EX-Fun'!$N$5:$P$15,3,'E-EX-Fun'!$D$19) -> K
B13: =INDEX(Language!$B$2:$M$41,11,Language!$A$1) -> System cooling capacity | E13: 5 | F13: =INDEX('E-EX-Fun'!$N$5:$P$15,4,'E-EX-Fun'!$D$19) -> kW | H13: =$E$7 -> R448A
B15: =INDEX(Language!$B$2:$M$41,35,Language!$A$1) -> Required pressure drop across valve | E15: 0.15 | F15: =INDEX('E-EX-Fun'!$N$5:$P$15,5,'E-EX-Fun'!$D$19) -> bar | I15: Q0 = | J15: =E13&" "&F13 -> 5 kW
F22: =INDEX(Language!$B$2:$M$41,9,Language!$A$1) -> Liquid temperature | G22: Tliquid = | H22: =$E$10-$E$12&INDEX('E-EX-Fun'!$N$5:$P$15,2,'E-EX-Fun'!$D$19) -> 44°C | J22: T0 = | K22: =$E$8&INDEX('E-EX-Fun'!$N$5:$P$15,2,'E-EX-Fun'!$D$19) -> -10°C | M22: Dp = | N22: =$E$15&INDEX('E-EX-Fun'!$N$5:$P$15,5,'E-EX-Fun'!$D$19) -> 0,15bar
G23: Dp = | H23: =$I$11-($K23+$E$15) -> 17.2129551 | I23: =INDEX('E-EX-Fun'!$N$5:$P$15,5,'E-EX-Fun'!$D$19) -> bar | J23: P0 = | K23: =('E-EX-Fun'!$G$95)*INDEX('E-EX-Fun'!$N$5:$P$15,9,'E-EX-Fun'!$D$19) -> 3.586492606 | L23: =INDEX('E-EX-Fun'!$N$5:$P$15,10,'E-EX-Fun'!$D$19) -> bara
B25: =INDEX(Language!$B$2:$M$41,17,Language!$A$1) -> High performance stepper motor ECV
M26: =CONCATENATE(INDEX(Language!$B$2:$M$41,23,Language!$A$1),F13,")") -> Maximum valve capacity at selected conditions (kW)
D28: =INDEX(Language!$B$2:$M$41,15,Language!$A$1) -> Type | F28: =INDEX(Language!$B$2:$M$41,18,Language!$A$1) -> Part No. | G28: =INDEX(Language!$B$2:$M$41,16,Language!$A$1) -> Ratio | M28: =INDEX(Language!$B$2:$M$41,15,Language!$A$1) -> Type | P28: ='E-EX-Fun'!$J$61 -> R448A
D29: =INDEX('E-EX-Dat'!D10:D14,'E-EX-Fun'!D116) -> EX7-M21 | F29: =INDEX('E-EX-Dat'!E10:E14,'E-EX-Fun'!D116,1) -> 800 625 | G29: =TEXT('E-EX-Fun'!E116,"0%")&" "&IF('E-EX-Fun'!E116>10%,"OK",INDEX(Language!$B$2:$M$41,36,Language!$A$1)) -> 53% OK | M29: ='E-EX-Dat'!D10 -> EX8-M21 | P29: ='E-EX-Dat'!$B72*INDEX('E-EX-Fun'!$N$5:$P$15,8,'E-EX-Fun'!$D$19) -> 28.8847098
D30: =INDEX('E-EX-Dat'!AD10:AD14,'E-EX-Fun'!D116) -> EX7-U31 | F30: =INDEX('E-EX-Dat'!AE10:AE14,'E-EX-Fun'!D116,1) -> 800 626 | M30: ='E-EX-Dat'!D11 -> EX7-M21 | P30: ='E-EX-Dat'!$B73*INDEX('E-EX-Fun'!$N$5:$P$15,8,'E-EX-Fun'!$D$19) -> 9.508948712
M31: ='E-EX-Dat'!D12 -> EX6-M21 | P31: ='E-EX-Dat'!$B74*INDEX('E-EX-Fun'!$N$5:$P$15,8,'E-EX-Fun'!$D$19) -> 2.675456896
M32: ='E-EX-Dat'!D13 -> EX5-U21 | P32: ='E-EX-Dat'!$B75*INDEX('E-EX-Fun'!$N$5:$P$15,8,'E-EX-Fun'!$D$19) -> 1.150276054
B33: =INDEX(Language!$B$2:$M$41,19,Language!$A$1) -> Controller for ECV
D34: ='El Ctr-Dat'!$B$70 -> EXD-U02 | F34: ='El Ctr-Dat'!$C$70 -> 804 752 | G34: ='El Ctr-Dat'!$D$70 -> Universal driver
D35: ='El Ctr-Dat'!$B$71 -> K09-U00 | F35: ='El Ctr-Dat'!$C$71 -> 804 559 | G35: ='El Ctr-Dat'!$D$71 -> Terminal kit for EXD-U02
D36: ='E-EX-Dat'!$D$95 -> ECP-024 | F36: ='E-EX-Dat'!$E$95 -> 804 558 | G36: ='El Ctr-Dat'!$D$72 -> Uninterruptible power supply for up to two EXD-U02
D38: ='E-EX-Dat'!$D$96 -> K09-P00 | F38: ='E-EX-Dat'!$E$96 -> 804 560 | G38: ='El Ctr-Dat'!$D$73 -> Terminal kit for ECP-024
D42: =INDEX(Language!$B$2:$M$400,371,Language!$A$1) -> Temperature controllers
D43: =" "&INDEX(Language!$B$2:$M$400,372,Language!$A$1) -> for EX4-8 Series only
D44: =INDEX(Language!$B$2:$M$400,15,Language!$A$1) -> Type | F44: =INDEX(Language!$B$2:$M$41,18,Language!$A$1) -> Part No. | G44: =INDEX(Language!$B$2:$M$400,285,Language!$A$1) -> Description
D45: ='El Ctr-Dat'!$B$127 -> EXD-SH1 | F45: ='El Ctr-Dat'!$C$127 -> 807 855 | G45: ='El Ctr-Dat'!$E$127 -> Controller for single refrigeration circuit
D47: ='El Ctr-Dat'!$B$128 -> EXD-SH2 | F47: ='El Ctr-Dat'!$C$128 -> 807 856 | G47: ='El Ctr-Dat'!$E$128 -> Controller for two independent refrigeration circuits
D49: ='El Ctr-Dat'!$B$129 -> EXD-M03 | F49: ='El Ctr-Dat'!$D$129 -> 807 865 | G49: ='El Ctr-Dat'!$E$129 -> Molex terminal with 3 meter wires
D50: ='El Ctr-Dat'!$B$103 -> ECN-N60 | F50: ='El Ctr-Dat'!$C$103 -> 804 497 | G50: ='El Ctr-Dat'!$D$103 -> Temperature sensor Cable length 6,0 m
B60: =Home!$D$43 -> Rev.: 01.11.2019
B61: =INDEX(Language!$B$2:$M$251,250,Language!$A$1) -> The Controls Navigator is provided by Emerson Climate Technologies Europe to assist with the selection of mechanical and electronic controls. Emerson Climate Technologies cannot be held liable for issues arising from application of controls using information provided by this software.

Sheet E-Condens
B1: =INDEX(Language!$B$2:$M$41,2,Language!$A$1) -> Instruction: Select refrigerant and fill yellow fields with operating conditions.
B2: =INDEX(Language!$B$2:$M$41,3,Language!$A$1) -> #N/A error message: operating conditions, refrigerant or product out of range/specification.
E4: =INDEX(Language!$B$2:$M$41,4,Language!$A$1) -> Project:
E5: =INDEX(Language!$B$2:$M$299,87,Language!$A$1) -> Electrical control valves
E6: =INDEX(Language!$B$2:$M$61,58,Language!$A$1) -> Liquid and head pressure duty
B7: =INDEX(Language!$B$2:$M$41,5,Language!$A$1) -> Refrigerant | D7: ='E-EX-Fun'!$J$61 -> R448A
B8: =INDEX(Language!$B$2:$M$400,6,Language!$A$1) -> Evaporating temperature | D8: -35 | E8: =INDEX('E-EX-Fun'!$N$5:$P$15,2,'E-EX-Fun'!$D$19) -> °C
B10: =INDEX(Language!$B$2:$M$400,7,Language!$A$1) -> Condensing temperature | D10: 30 | E10: =INDEX('E-EX-Fun'!$N$5:$P$15,2,'E-EX-Fun'!$D$19) -> °C
H11: TC = | I11: =D10 -> 30 | J11: =E10 -> °C
B12: =INDEX(Language!$B$2:$M$41,8,Language!$A$1) -> Subcooling | D12: 1 | E12: =INDEX('E-EX-Fun'!$N$5:$P$15,3,'E-EX-Fun'!$D$19) -> K | H12: PC= | I12: =('E-EX-Fun'!E131)*INDEX('E-EX-Fun'!$N$5:$P$15,9,'E-EX-Fun'!$D$19) -> 14.52861614 | J12: =INDEX('E-EX-Fun'!$N$5:$P$15,10,'E-EX-Fun'!$D$19) -> bara
B13: =INDEX(Language!$B$2:$M$41,34,Language!$A$1) -> Evaporator cooling capacity | D13: 35.5 | E13: =INDEX('E-EX-Fun'!$N$5:$P$15,4,'E-EX-Fun'!$D$19) -> kW
B15: =INDEX(Language!$B$2:$M$400,35,Language!$A$1) -> Required pressure drop across valve | D15: 0.35 | E15: =INDEX('E-EX-Fun'!$N$5:$P$15,5,'E-EX-Fun'!$D$19) -> bar | G15: =$D$7 -> R448A | J15: Q0 = | K15: =$D$13&" "&$E$13 -> 35,5 kW
E24: =INDEX(Language!$B$2:$M$41,9,Language!$A$1) -> Liquid temperature | G24: Tliquid = | H24: =D10-D12&INDEX('E-EX-Fun'!$N$5:$P$15,2,'E-EX-Fun'!$D$19) -> 29°C | J24: T0 = | K24: =D8 -> -35 | L24: =E8 -> °C
G25: Dp = | H25: =I12-(K25+D15) -> 12.90408113 | I25: =INDEX('E-EX-Fun'!$N$5:$P$15,5,'E-EX-Fun'!$D$19) -> bar | J25: P0 = | K25: =('E-EX-Fun'!E127)*INDEX('E-EX-Fun'!$N$5:$P$15,9,'E-EX-Fun'!$D$19) -> 1.274535011 | L25: =INDEX('E-EX-Fun'!$N$5:$P$15,10,'E-EX-Fun'!$D$19) -> bara
M29: =CONCATENATE(INDEX(Language!$B$2:$M$41,23,Language!$A$1),E13,")") -> Maximum valve capacity at selected conditions (kW)
B30: =INDEX(Language!$B$2:$M$41,17,Language!$A$1) -> High performance stepper motor ECV
D31: =INDEX(Language!$B$2:$M$41,15,Language!$A$1) -> Type | F31: =INDEX(Language!$B$2:$M$41,18,Language!$A$1) -> Part No. | G31: =INDEX(Language!$B$2:$M$41,16,Language!$A$1) -> Ratio | M31: =INDEX(Language!$B$2:$M$41,15,Language!$A$1) -> Type | P31: ='E-EX-Fun'!$J$61 -> R448A
D32: =INDEX('E-EX-Dat'!D10:D14,'E-EX-Fun'!D146) -> EX6-M21 | F32: =INDEX('E-EX-Dat'!E10:E14,'E-EX-Fun'!D146,1) -> 800 621 | G32: =TEXT('E-EX-Fun'!E146,"0%")&" "&IF('E-EX-Fun'!E146>10%,"OK",INDEX(Language!$B$2:$M$41,36,Language!$A$1)) -> 92% OK | M32: ='E-EX-Dat'!D10 -> EX8-M21 | P32: ='E-EX-Dat'!$B48*INDEX('E-EX-Fun'!$N$5:$P$15,8,'E-EX-Fun'!$D$19) -> 417.9568381
M33: ='E-EX-Dat'!D11 -> EX7-M21 | P33: ='E-EX-Dat'!$B49*INDEX('E-EX-Fun'!$N$5:$P$15,8,'E-EX-Fun'!$D$19) -> 137.5928706
M34: ='E-EX-Dat'!D12 -> EX6-M21 | P34: ='E-EX-Dat'!$B50*INDEX('E-EX-Fun'!$N$5:$P$15,8,'E-EX-Fun'!$D$19) -> 38.71340624
M35: ='E-EX-Dat'!D13 -> EX5-U21 | P35: ='E-EX-Dat'!$B51*INDEX('E-EX-Fun'!$N$5:$P$15,8,'E-EX-Fun'!$D$19) -> 16.64429886
M36: ='E-EX-Dat'!D14 -> EX4-M21 | P36: ='E-EX-Dat'!$B52*INDEX('E-EX-Fun'!$N$5:$P$15,8,'E-EX-Fun'!$D$19) -> 5.128909871
B38: =INDEX(Language!$B$2:$M$41,19,Language!$A$1) -> Controller for ECV
D39: ='El Ctr-Dat'!$B$70 -> EXD-U02 | F39: ='El Ctr-Dat'!$C$70 -> 804 752 | G39: ='El Ctr-Dat'!$D$70 -> Universal driver
D40: ='El Ctr-Dat'!$B$71 -> K09-U00 | F40: ='El Ctr-Dat'!$C$71 -> 804 559 | G40: ='El Ctr-Dat'!$D$71 -> Terminal kit for EXD-U02
D41: ='E-EX-Dat'!$D$95 -> ECP-024 | F41: ='E-EX-Dat'!$E$95 -> 804 558 | G41: ='El Ctr-Dat'!$D$72 -> Uninterruptible power supply for up to two EXD-U02
D43: ='E-EX-Dat'!$D$96 -> K09-P00 | F43: ='E-EX-Dat'!$E$96 -> 804 560 | G43: ='El Ctr-Dat'!$D$73 -> Terminal kit for ECP-024
B60: =Home!$D$43 -> Rev.: 01.11.2019
B61: =INDEX(Language!$B$2:$M$251,250,Language!$A$1) -> The Controls Navigator is provided by Emerson Climate Technologies Europe to assist with the selection of mechanical and electronic controls. Emerson Climate Technologies cannot be held liable for issues arising from application of controls using information provided by this software.

Sheet E-HeatRecl
B1: =INDEX(Language!$B$2:$M$41,2,Language!$A$1) -> Instruction: Select refrigerant and fill yellow fields with operating conditions.
B2: =INDEX(Language!$B$2:$M$41,3,Language!$A$1) -> #N/A error message: operating conditions, refrigerant or product out of range/specification.
E4: =INDEX(Language!$B$2:$M$41,4,Language!$A$1) -> Project:
E5: =INDEX(Language!$B$2:$M$299,87,Language!$A$1) -> Electrical control valves
E6: =INDEX(Language!$B$2:$M$400,353,Language!$A$1) -> Heat reclaim
B7: =INDEX(Language!$B$2:$M$299,5,Language!$A$1) -> Refrigerant | D7: =INDEX('E-Heat-Fun'!$G$5:$G$21,'E-Heat-Fun'!$G$4) -> R448A
B8: =INDEX(Language!$B$2:$M$400,6,Language!$A$1) -> Evaporating temperature | D8: -10 | E8: =INDEX('E-EX-Fun'!$N$5:$P$15,2,'E-EX-Fun'!$D$19) -> °C | F8: max | G8: =IF('E-EX-Fun'!$D$19=1,'E-Heat-Fun'!E44,('E-Heat-Fun'!E44*1.8)+32)&INDEX('E-EX-Fun'!$N$5:$P$15,2,'E-EX-Fun'!$D$19) -> 15°C
F9: min | G9: =IF('E-EX-Fun'!$D$19=1,'E-Heat-Fun'!E48,('E-Heat-Fun'!E48*1.8)+32)&INDEX('E-EX-Fun'!$N$5:$P$15,2,'E-EX-Fun'!$D$19) -> -45°C
B10: =INDEX(Language!$B$2:$M$400,7,Language!$A$1) -> Condensing temperature | D10: 40 | E10: =INDEX('E-EX-Fun'!$N$5:$P$15,2,'E-EX-Fun'!$D$19) -> °C | F10: max | G10: =IF('E-EX-Fun'!$D$19=1,'E-Heat-Fun'!E49,('E-Heat-Fun'!E49*1.8)+32)&INDEX('E-EX-Fun'!$N$5:$P$15,2,'E-EX-Fun'!$D$19) -> 60°C
F11: min | G11: =IF('E-EX-Fun'!$D$19=1,'E-Heat-Fun'!E53,('E-Heat-Fun'!E53*1.8)+32)&INDEX('E-EX-Fun'!$N$5:$P$15,2,'E-EX-Fun'!$D$19) -> 30°C
B12: =INDEX(Language!$B$2:$M$400,35,Language!$A$1) -> Required pressure drop across valve | D12: 0.5 | E12: =INDEX('E-EX-Fun'!$N$5:$P$15,5,'E-EX-Fun'!$D$19) -> bar | F12: max | G12: =IF('E-EX-Fun'!$D$19=1,'E-Heat-Fun'!E54,('E-Heat-Fun'!E54*14.5))&INDEX('E-EX-Fun'!$N$5:$P$15,5,'E-EX-Fun'!$D$19) -> 1bar
F13: min | G13: =IF('E-EX-Fun'!$D$19=1,'E-Heat-Fun'!E58,('E-Heat-Fun'!E58*14.5))&INDEX('E-EX-Fun'!$N$5:$P$15,5,'E-EX-Fun'!$D$19) -> 0,1bar
B14: =INDEX(Language!$B$2:$M$400,354,Language!$A$1) -> Capacity heat reclaim | D14: 35.5 | E14: =INDEX('E-EX-Fun'!$N$5:$P$15,4,'E-EX-Fun'!$D$19) -> kW
L16: Dp= | M16: =TEXT($D$12,"0,0")&$E$12 -> 0,5bar
E19: TC= | F19: =D10 -> 40 | G19: =E10 -> °C
J22: =$D$14 -> 35.5 | K22: =$E$14 -> kW
L23: Dp= | M23: =TEXT($D$12,"0,0")&$E$12 -> 0,5bar
L27: T0 = | M27: =TEXT($D$8,"0,0")&$E$8 -> -10,0°C
B32: =INDEX(Language!$B$2:$M$41,14,Language!$A$1) -> Your choice
B34: =INDEX(Language!$B$2:$M$41,17,Language!$A$1) -> High performance stepper motor ECV | M34: =CONCATENATE(INDEX(Language!$B$2:$M$41,23,Language!$A$1),E14,")") -> Maximum valve capacity at selected conditions (kW)
D36: =INDEX(Language!$B$2:$M$41,15,Language!$A$1) -> Type | F36: =INDEX(Language!$B$2:$M$41,18,Language!$A$1) -> Part No. | G36: =INDEX(Language!$B$2:$M$41,16,Language!$A$1) -> Ratio | M36: =INDEX(Language!$B$2:$M$41,15,Language!$A$1) -> Type | P36: ='E-Heat-Fun'!$G$31 -> R448A
D37: =INDEX('E-Heat-Fun'!$B$25:$B$27,'E-Heat-Fun'!$H$25) -> EX7-M21 | F37: =INDEX('E-Heat-Fun'!$C$25:$C$27,'E-Heat-Fun'!$H$25) -> 800 625 | G37: =TEXT('E-Heat-Fun'!I26,"0%")&" "&IF('E-Heat-Fun'!I26>10%,"OK",INDEX(Language!$B$2:$M$41,36,Language!$A$1)) -> 91% OK | M37: ='E-Heat-Fun'!B25 -> EX8-M21 | P37: ='E-Heat-Fun'!E25 -> 118.2
M38: ='E-Heat-Fun'!B26 -> EX7-M21 | P38: ='E-Heat-Fun'!E26 -> 38.9
M39: ='E-Heat-Fun'!B27 -> EX6-M21 | P39: ='E-Heat-Fun'!E27 -> 11
M40: ='E-Heat-Fun'!B28 -> EX5-U21 | P40: ='E-Heat-Fun'!E28 -> 4.76433121
B42: =INDEX(Language!$B$2:$M$41,19,Language!$A$1) -> Controller for ECV
D43: ='El Ctr-Dat'!$B$70 -> EXD-U02 | F43: ='El Ctr-Dat'!$C$70 -> 804 752 | G43: ='El Ctr-Dat'!$D$70 -> Universal driver
D44: ='El Ctr-Dat'!$B$71 -> K09-U00 | F44: ='El Ctr-Dat'!$C$71 -> 804 559 | G44: ='El Ctr-Dat'!$D$71 -> Terminal kit for EXD-U02
D45: ='E-EX-Dat'!$D$95 -> ECP-024 | F45: ='E-EX-Dat'!$E$95 -> 804 558 | G45: ='El Ctr-Dat'!$D$72 -> Uninterruptible power supply for up to two EXD-U02
D47: ='E-EX-Dat'!$D$96 -> K09-P00 | F47: ='E-EX-Dat'!$E$96 -> 804 560 | G47: ='El Ctr-Dat'!$D$73 -> Terminal kit for ECP-024
D49: =INDEX(Language!$B$2:$M$400,371,Language!$A$1) -> Temperature controllers
D50: =" "&INDEX(Language!$B$2:$M$400,372,Language!$A$1) -> for EX4-8 Series only
D51: =INDEX(Language!$B$2:$M$400,15,Language!$A$1) -> Type | F51: =INDEX(Language!$B$2:$M$41,18,Language!$A$1) -> Part No. | G51: =INDEX(Language!$B$2:$M$400,285,Language!$A$1) -> Description
D52: ='El Ctr-Dat'!$B$127 -> EXD-SH1 | F52: ='El Ctr-Dat'!$C$127 -> 807 855 | G52: ='El Ctr-Dat'!$E$127 -> Controller for single refrigeration circuit
D54: ='El Ctr-Dat'!$B$128 -> EXD-SH2 | F54: ='El Ctr-Dat'!$C$128 -> 807 856 | G54: ='El Ctr-Dat'!$E$128 -> Controller for two independent refrigeration circuits
D56: ='El Ctr-Dat'!$B$129 -> EXD-M03 | F56: ='El Ctr-Dat'!$D$129 -> 807 865 | G56: ='El Ctr-Dat'!$E$129 -> Molex terminal with 3 meter wires
D57: ='El Ctr-Dat'!$B$103 -> ECN-N60 | F57: ='El Ctr-Dat'!$C$103 -> 804 497 | G57: ='El Ctr-Dat'!$D$103 -> Temperature sensor Cable length 6,0 m
B59: =Home!$D$43 -> Rev.: 01.11.2019
B60: =INDEX(Language!$B$2:$M$251,250,Language!$A$1) -> The Controls Navigator is provided by Emerson Climate Technologies Europe to assist with the selection of mechanical and electronic controls. Emerson Climate Technologies cannot be held liable for issues arising from application of controls using information provided by this software.

Sheet E-Heat-Fun (hidden)
A1: Functions, Formulas, Codes
B3: Languages | E3: Refrigerant Selection | H3: Startzeile in Daten | M3: Convert to °C-bar-kW
B4: 1 | C4: =Language!B$2 -> English | E4: =INDEX(E5:E21,$G4) -> 24 | F4: =INDEX(F5:F21,$G4) -> 25 | G4: 12 | H4: =INDEX(H5:H21,$G4) -> 348 | I4: =INDEX(I5:I21,$G4) -> 343 | O4: tons | P4: tBTU/h
B5: 2 | C5: =Language!C$2 -> Deutsch | E5: 2 | F5: 2 | G5: R410A | H5: 120 | I5: =H5-H$6 -> 115 | N5: Metric | O5: Imperial | P5: Imperial
B6: 3 | C6: =Language!D$2 -> Français | E6: 3 | F6: 3 | G6: R134a | H6: 5 | I6: =H6-H$6 -> 0 | N6: °C | O6: °F | P6: °F | S6: 1
B7: 4 | C7: =Language!E$2 -> Italiano | E7: 4 | F7: 4 | G7: R22 | H7: 44 | I7: 39 | N7: K | O7: °F | P7: °F | S7: 2
B8: 5 | C8: =Language!F$2 -> Españiol | E8: 5 | F8: 6 | G8: R404A | H8: 82 | I8: 77 | N8: kW | O8: tons | P8: MBH | S8: 3
B9: 6 | C9: =Language!G$2 -> Nederlands | E9: 7 | F9: 7 | G9: R507 | H9: 82 | I9: 77 | N9: bar | O9: Psid | P9: Psid | S9: 4
B10: 7 | C10: =Language!H$2 -> Polish | E10: 8 | F10: 9 | G10: R407C | H10: 44 | I10: 39 | M10: °C | N10: 0 | O10: 32 | P10: 32 | S10: 5
B11: 8 | C11: =Language!I$2 -> Czech | E11: 13 | F11: 14 | G11: R454A | H11: 158 | I11: 153 | M11: K | N11: 1 | O11: 0.5555555556 | P11: 0.5555555556 | S11: 6
B12: 9 | C12: =Language!J$2 -> Russian | E12: 15 | F12: 16 | G12: R454C | H12: 196 | I12: 191 | M12: kW | N12: 1 | O12: 0.284 | P12: =0.94781*3600/1000 -> 3.412116 | S12: 7
B13: 10 | C13: =Language!K$2 -> Chinese | E13: 17 | F13: 17 | G13: R1234yf | H13: 234 | I13: 229 | M13: bar | N13: 1 | O13: 14.5038 | P13: 14.5038 | S13: 8
B14: 11 | C14: =Language!L$2 -> Japanese | E14: 18 | F14: 18 | G14: R1234ze | H14: 272 | I14: 267 | N14: bara | O14: Psia | P14: Psia | S14: 9
B15: 12 | C15: =Language!M$2 -> Română | E15: 22 | F15: 23 | G15: R452A | H15: 310 | I15: 305 | O15: 14.7 | P15: 14.7
E16: 24 | F16: 25 | G16: R448A | H16: 348 | I16: 343
E17: 26 | F17: 27 | G17: R449A | H17: 386 | I17: 381
B18: Units Conversion | E18: 28 | F18: 29 | G18: R450A | H18: 424 | I18: 419
C19: °C-bar-kW | D19: ='E-EX-Fun'!$D$19 -> 1 | E19: 30 | F19: 31 | G19: R513A | H19: 462 | I19: 457
C20: °F-Psi-tons | E20: 34 | F20: 35 | G20: R455A | H20: 500 | I20: 495
C21: °F-Psi-MBH | E21: 36 | F21: 37 | G21: Reserve | H21: 538 | I21: 533
A23: Valve Data | E23: Metric/imperial
B24: Type | C24: PCN | D24: Capacity | E24: Capacity | F24: =INDEX(Language!$B$2:$M$41,11,Language!$A$1)&" Q0:" -> System cooling capacity Q0: | I24: ='E-HeatRecl'!$D$14/INDEX('E-EX-Fun'!$N$5:$P$15,8,'E-EX-Fun'!$D$19) -> 35.5 | J24: kW
B25: EX8-M21 | C25: 800 629 | D25: =$L$88 -> 118.2 | E25: =D25*INDEX('E-Heat-Fun'!$N$5:$P$15,8,'E-Heat-Fun'!$D$19) -> 118.2 | F25: Nächstes Ventil | H25: =MATCH($I$24,$D$25:$D$27,-1) -> 2 | I25: =INDEX(D25:D27,H25) -> 38.9 | J25: kW
B26: EX7-M21 | C26: 800 625 | D26: =$L$72 -> 38.9 | E26: =D26*INDEX('E-Heat-Fun'!$N$5:$P$15,8,'E-Heat-Fun'!$D$19) -> 38.9 | F26: =INDEX(Language!$B$2:$M$41,16,Language!$A$1) -> Ratio | I26: =I24/I25 -> 0.912596401
B27: EX6-M21 | C27: 800 621 | D27: =$L$56 -> 11 | E27: =D27*INDEX('E-Heat-Fun'!$N$5:$P$15,8,'E-Heat-Fun'!$D$19) -> 11
B28: EX5-U21 | C28: 800 618 | D28: =D27*0.68/1.57 -> 4.76433121 | E28: =D28*INDEX('E-Heat-Fun'!$N$5:$P$15,8,'E-Heat-Fun'!$D$19) -> 4.76433121
A31: Heat reclaim Function | F31: Selected Refrigerant | G31: =INDEX($G$5:$G$21,$G$4) -> R448A
K32: Hinweis: | L32: Die Leistungsdaten sind untereinander angeordnet
B33: Kondensationstemp.bereiche | F33: Ventilbereiche | I33: Dp | L33: Horizontal Verdampfungstemperatur -45 ... +15°C
B34: Rel. Startzeile des Bereichs: | F34: Rel. Startsplt des Ber. | L34: Vertikal: alle anderen Daten
B35: 30 | C35: 0 | F35: EX6 | G35: 0 | I35: 0.1 | J35: 0 | K35: Bereich: | L35: 'E-Heat-Dat'!C6:Q580
B36: =B35+10 -> 40 | C36: 1 | F36: EX7 | G36: 12 | I36: 0.5 | J36: 4
B37: =B36+10 -> 50 | C37: 2 | F37: EX8 | G37: 24 | I37: 1 | J37: 8
B38: =B37+10 -> 60 | C38: 3 | I38: 1.1 | J38: n/a
B39: =B38+10 -> 70 | C39: n/a
E41: =IF(#REF!=E43,#REF!,INDEX(#REF!,MATCH($E$115,#REF!,1)+1)) -> 
E42: =CO2Trans!$D$8/INDEX('E-EX-Fun'!$N$5:$P$15,9,'E-EX-Fun'!$D$19) -> 35 | F42: bara | I42: =INDEX('E-Heat-Dat'!C6:P10,2,5) -> 3.6
E43: =INDEX(#REF!,MATCH($E$115,#REF!,1)) -> 
A44: EX6 | D44: max | E44: 15 | F44: °C | I44: Rel Spalte Verdampfungstemperatur
B45: =INDEX(Language!$B$2:$M$400,6,Language!$A$1) -> Evaporating temperature | D45: Roundup | E45: =IF(E46<0,ROUNDDOWN(E46*2,-1)/2,ROUNDUP(E46*2,-1)/2) -> -10 | G45: =MATCH($E45,'E-Heat-Dat'!$C$5:$O$5) -> 8 | K45: =$G$45 -> 8 | O45: =$G$45 -> 8
D46: Value | E46: =IF(P46>E44,"#N/A",IF(P46<E48,"#N/A",P46)) -> -10 | F46: °C | P46: =IF($D$19=1,'E-HeatRecl'!$D$8,('E-HeatRecl'!$D$8-32)/1.8) -> -10
D47: Rounddown | E47: =IF(E46<0,ROUNDUP(E46*2,-1)/2,ROUNDDOWN(E46*2,-1)/2) -> -10 | G47: =MATCH($E47,'E-Heat-Dat'!$C$5:$O$5) -> 8 | I47: =$G$47 -> 8 | M47: =$G$47 -> 8
D48: min | E48: -45 | F48: °C
D49: max | E49: 60 | F49: °C | I49: =$G$47 -> 8 | K49: =$G$45 -> 8 | M49: =$G$47 -> 8 | O49: =$G$45 -> 8
B50: =INDEX(Language!$B$2:$M$400,7,Language!$A$1) -> Condensing temperature | D50: Roundup | E50: =IF(E51<0,ROUNDDOWN(E51,-1),ROUNDUP(E51,-1)) -> 40 | G50: =MATCH($E50,'E-Heat-Dat'!$A$6:$A$9) -> 2 | H50: =$G50+H$55+$G$35+$I$4 -> 349 | I50: =INDEX(INDIRECT($L$35),$H50,I$49) -> 11 | K50: =INDEX(INDIRECT($L$35),$H50,K$49) -> 11 | L50: =$G50+L$57+$G$35+$I$4 -> 353 | M50: =INDEX(INDIRECT($L$35),$L50,M$49) -> 15.2 | O50: =INDEX(INDIRECT($L$35),$L50,O$49) -> 15.2
D51: Value | E51: =IF(P51>E49,"#N/A",IF(P51<E53,"#N/A",P51)) -> 40 | F51: °C | I51: =IF($E52=$E50,I52,I52+((I50-I52)*($E51-$E52)/($E50-$E52))) -> 11 | J51: =IF($E47=$E45,I51,I51+((K51-I51)*($E46-$E47)/($E45-$E47))) -> 11 | K51: =IF($E52=$E50,K52,K52+((K50-K52)*($E51-$E52)/($E50-$E52))) -> 11 | M51: =IF($E52=$E50,M52,M52+((M50-M52)*($E51-$E52)/($E50-$E52))) -> 15.2 | N51: =IF($E47=$E45,M51,M51+((O51-M51)*($E46-$E47)/($E45-$E47))) -> 15.2 | O51: =IF($E52=$E50,O52,O52+((O50-O52)*($E51-$E52)/($E50-$E52))) -> 15.2 | P51: =IF($D$19=1,'E-HeatRecl'!$D$10,('E-HeatRecl'!$D$10-32)/1.8) -> 40
D52: Rounddown | E52: =IF(E51<0,ROUNDUP(E51,-1),ROUNDDOWN(E51,-1)) -> 40 | G52: =MATCH($E52,'E-Heat-Dat'!$A$6:$A$9) -> 2 | H52: =$G52+$H$55+$G$35+$I$4 -> 349 | I52: =INDEX(INDIRECT($L$35),$H52,I$49) -> 11 | K52: =INDEX(INDIRECT($L$35),$H52,K$49) -> 11 | L52: =$G52+L$57+$G$35+$I$4 -> 353 | M52: =INDEX(INDIRECT($L$35),$L52,M$49) -> 15.2 | O52: =INDEX(INDIRECT($L$35),$L52,O$49) -> 15.2
D53: min | E53: 30 | F53: °C
D54: max | E54: 1 | F54: bara
B55: =INDEX(Language!$B$2:$M$400,35,Language!$A$1) -> Required pressure drop across valve | D55: Rounddown | E55: =INDEX($I$35:$I$38,$F55) -> 0.5 | F55: =MATCH($E56,$I$35:$I$38) -> 2 | H55: =INDEX($J$35:$J$38,$F55) -> 4
D56: Value | E56: ='E-HeatRecl'!$D$12/INDEX('E-EX-Fun'!$N$5:$P$15,9,'E-EX-Fun'!$D$19) -> 0.5 | F56: bara | L56: =IF(E57=E55,J51,J51+((N51-J51)*(E56-E55)/(E57-E55))) -> 11 | P56: =IF($D$19=1,'E-HeatRecl'!$D$12,('E-HeatRecl'!$D$12/14.5)) -> 0.5
D57: Roundup | E57: =IF(E56=E54,E56,INDEX($I$35:$I$38,$F57)) -> 1 | F57: =IF($E56=1,3,MATCH($E56,$I$35:$I$38)+1) -> 3 | H57: =INDEX($J$35:$J$38,$F57) -> 8 | L57: =H57 -> 8 | M57: =INDEX($C$105:$C$109,$F57) -> 0
D58: min | E58: 0.1 | F58: bard
A60: EX7 | D60: max | E60: 15 | F60: °C | I60: Rel Spalte Verdampfungstemperatur
B61: =INDEX(Language!$B$2:$M$400,6,Language!$A$1) -> Evaporating temperature | D61: Roundup | E61: =IF(E62<0,ROUNDDOWN(E62*2,-1)/2,ROUNDUP(E62*2,-1)/2) -> -10 | G61: =MATCH($E61,'E-Heat-Dat'!$C$5:$O$5) -> 8 | K61: =$G$45 -> 8 | O61: =$G$45 -> 8
D62: Value | E62: =IF(P62>E60,"#N/A",IF(P62<E64,"#N/A",P62)) -> -10 | F62: °C | P62: =IF($D$19=1,'E-HeatRecl'!$D$8,('E-HeatRecl'!$D$8-32)/1.8) -> -10
D63: Rounddown | E63: =IF(E62<0,ROUNDUP(E62*2,-1)/2,ROUNDDOWN(E62*2,-1)/2) -> -10 | G63: =MATCH($E63,'E-Heat-Dat'!$C$5:$O$5) -> 8 | I63: =$G$47 -> 8 | M63: =$G$47 -> 8
D64: min | E64: -45 | F64: °C
D65: max | E65: 60 | F65: °C | I65: =$G$47 -> 8 | K65: =$G$45 -> 8 | M65: =$G$47 -> 8 | O65: =$G$45 -> 8
B66: =INDEX(Language!$B$2:$M$400,7,Language!$A$1) -> Condensing temperature | D66: Roundup | E66: =IF(E67<0,ROUNDDOWN(E67,-1),ROUNDUP(E67,-1)) -> 40 | G66: =MATCH($E66,'E-Heat-Dat'!$A$6:$A$9) -> 2 | H66: =$G66+H$55+$G$36+$I$4 -> 361 | I66: =INDEX(INDIRECT($L$35),$H66,I$49) -> 38.9 | K66: =INDEX(INDIRECT($L$35),$H66,K$49) -> 38.9 | L66: =$G66+L$57+$G$36+$I$4 -> 365 | M66: =INDEX(INDIRECT($L$35),$L66,M$49) -> 54.1 | O66: =INDEX(INDIRECT($L$35),$L66,O$49) -> 54.1
D67: Value | E67: =IF(P67>E65,"#N/A",IF(P67<E69,"#N/A",P67)) -> 40 | F67: °C | I67: =IF($E68=$E66,I68,I68+((I66-I68)*($E67-$E68)/($E66-$E68))) -> 38.9 | J67: =IF($E63=$E61,I67,I67+((K67-I67)*($E62-$E63)/($E61-$E63))) -> 38.9 | K67: =IF($E68=$E66,K68,K68+((K66-K68)*($E67-$E68)/($E66-$E68))) -> 38.9 | M67: =IF($E68=$E66,M68,M68+((M66-M68)*($E67-$E68)/($E66-$E68))) -> 54.1 | N67: =IF($E63=$E61,M67,M67+((O67-M67)*($E62-$E63)/($E61-$E63))) -> 54.1 | O67: =IF($E68=$E66,O68,O68+((O66-O68)*($E67-$E68)/($E66-$E68))) -> 54.1 | P67: =IF($D$19=1,'E-HeatRecl'!$D$10,('E-HeatRecl'!$D$10-32)/1.8) -> 40
D68: Rounddown | E68: =IF(E67<0,ROUNDUP(E67,-1),ROUNDDOWN(E67,-1)) -> 40 | G68: =MATCH($E68,'E-Heat-Dat'!$A$6:$A$9) -> 2 | H68: =$G68+$H$55+$G$36+$I$4 -> 361 | I68: =INDEX(INDIRECT($L$35),$H68,I$49) -> 38.9 | K68: =INDEX(INDIRECT($L$35),$H68,K$49) -> 38.9 | L68: =$G68+L$57+$G$36+$I$4 -> 365 | M68: =INDEX(INDIRECT($L$35),$L68,M$49) -> 54.1 | O68: =INDEX(INDIRECT($L$35),$L68,O$49) -> 54.1
D69: min | E69: 30 | F69: °C
D70: max | E70: 1 | F70: bara
B71: =INDEX(Language!$B$2:$M$400,35,Language!$A$1) -> Required pressure drop across valve | D71: Rounddown | E71: =INDEX($I$35:$I$38,$F71) -> 0.5 | F71: =MATCH($E72,$I$35:$I$38) -> 2 | H71: =INDEX($J$35:$J$38,$F71) -> 4
D72: Value | E72: ='E-HeatRecl'!$D$12/INDEX('E-EX-Fun'!$N$5:$P$15,9,'E-EX-Fun'!$D$19) -> 0.5 | F72: bara | L72: =IF(E73=E71,J67,J67+((N67-J67)*(E72-E71)/(E73-E71))) -> 38.9
D73: Roundup | E73: =IF(E72=E70,E72,INDEX($I$35:$I$38,$F73)) -> 1 | F73: =IF($E72=1,3,MATCH($E72,$I$35:$I$38)+1) -> 3 | H73: =INDEX($J$35:$J$38,$F73) -> 8 | L73: =H73 -> 8 | M73: =INDEX($C$105:$C$109,$F73) -> 0
D74: min | E74: 0.1 | F74: bara
A76: EX8 | D76: max | E76: 15 | F76: °C | I76: Rel Spalte Verdampfungstemperatur
B77: =INDEX(Language!$B$2:$M$400,6,Language!$A$1) -> Evaporating temperature | D77: Roundup | E77: =IF(E78<0,ROUNDDOWN(E78*2,-1)/2,ROUNDUP(E78*2,-1)/2) -> -10 | G77: =MATCH($E77,'E-Heat-Dat'!$C$5:$O$5) -> 8 | K77: =$G$45 -> 8 | O77: =$G$45 -> 8
D78: Value | E78: =IF(P78>E76,"#N/A",IF(P78<E80,"#N/A",P78)) -> -10 | F78: °C | P78: =IF($D$19=1,'E-HeatRecl'!$D$8,('E-HeatRecl'!$D$8-32)/1.8) -> -10
D79: Rounddown | E79: =IF(E78<0,ROUNDUP(E78*2,-1)/2,ROUNDDOWN(E78*2,-1)/2) -> -10 | G79: =MATCH($E79,'E-Heat-Dat'!$C$5:$O$5) -> 8 | I79: =$G$47 -> 8 | M79: =$G$47 -> 8
D80: min | E80: -45 | F80: °C
D81: max | E81: 60 | F81: °C | I81: =$G$47 -> 8 | K81: =$G$45 -> 8 | M81: =$G$47 -> 8 | O81: =$G$45 -> 8
B82: =INDEX(Language!$B$2:$M$400,7,Language!$A$1) -> Condensing temperature | D82: Roundup | E82: =IF(E83<0,ROUNDDOWN(E83,-1),ROUNDUP(E83,-1)) -> 40 | G82: =MATCH($E82,'E-Heat-Dat'!$A$6:$A$9) -> 2 | H82: =$G82+H$55+$G$37+$I$4 -> 373 | I82: =INDEX(INDIRECT($L$35),$H82,I$49) -> 118.2 | K82: =INDEX(INDIRECT($L$35),$H82,K$49) -> 118.2 | L82: =$G82+L$57+$G$37+$I$4 -> 377 | M82: =INDEX(INDIRECT($L$35),$L82,M$49) -> 164.2 | O82: =INDEX(INDIRECT($L$35),$L82,O$49) -> 164.2
D83: Value | E83: =IF(P83>E81,"#N/A",IF(P83<E85,"#N/A",P83)) -> 40 | F83: °C | I83: =IF($E84=$E82,I84,I84+((I82-I84)*($E83-$E84)/($E82-$E84))) -> 118.2 | J83: =IF($E79=$E77,I83,I83+((K83-I83)*($E78-$E79)/($E77-$E79))) -> 118.2 | K83: =IF($E84=$E82,K84,K84+((K82-K84)*($E83-$E84)/($E82-$E84))) -> 118.2 | M83: =IF($E84=$E82,M84,M84+((M82-M84)*($E83-$E84)/($E82-$E84))) -> 164.2 | N83: =IF($E79=$E77,M83,M83+((O83-M83)*($E78-$E79)/($E77-$E79))) -> 164.2 | O83: =IF($E84=$E82,O84,O84+((O82-O84)*($E83-$E84)/($E82-$E84))) -> 164.2 | P83: =IF($D$19=1,'E-HeatRecl'!$D$10,('E-HeatRecl'!$D$10-32)/1.8) -> 40
D84: Rounddown | E84: =IF(E83<0,ROUNDUP(E83,-1),ROUNDDOWN(E83,-1)) -> 40 | G84: =MATCH($E84,'E-Heat-Dat'!$A$6:$A$9) -> 2 | H84: =$G84+$H$55+$G$37+$I$4 -> 373 | I84: =INDEX(INDIRECT($L$35),$H84,I$49) -> 118.2 | K84: =INDEX(INDIRECT($L$35),$H84,K$49) -> 118.2 | L84: =$G84+L$57+$G$37+$I$4 -> 377 | M84: =INDEX(INDIRECT($L$35),$L84,M$49) -> 164.2 | O84: =INDEX(INDIRECT($L$35),$L84,O$49) -> 164.2
D85: min | E85: 30 | F85: °C
D86: max | E86: 1 | F86: bara
B87: =INDEX(Language!$B$2:$M$400,35,Language!$A$1) -> Required pressure drop across valve | D87: Rounddown | E87: =INDEX($I$35:$I$38,$F87) -> 0.5 | F87: =MATCH($E88,$I$35:$I$38) -> 2 | H87: =INDEX($J$35:$J$38,$F87) -> 4
D88: Value | E88: ='E-HeatRecl'!$D$12/INDEX('E-EX-Fun'!$N$5:$P$15,9,'E-EX-Fun'!$D$19) -> 0.5 | F88: bara | L88: =IF(E89=E87,J83,J83+((N83-J83)*(E88-E87)/(E89-E87))) -> 118.2
D89: Roundup | E89: =IF(E88=E86,E88,INDEX($I$35:$I$38,$F89)) -> 1 | F89: =IF($E88=1,3,MATCH($E88,$I$35:$I$38)+1) -> 3 | H89: =INDEX($J$35:$J$38,$F89) -> 8 | L89: =H89 -> 8 | M89: =INDEX($C$105:$C$109,$F89) -> 0
D90: min | E90: 0.1 | F90: bara

Sheet E-Heat-Dat (hidden)
A1: Hot Gas Flow / Heat Reclaim
A2: R134a | C2: R134a
A3: Condensing | B3: Pressure | C3: Extended Capacity KW | P3: Valve type | R3: * Condensing temperatures R407C:
A4: Temperature | B4: Drop | C4: Evaporating Temperature (°C) | R4: The relation between bubble points and dew points is as
A5: °C | B5: bar | C5: -45 | D5: -40 | E5: -35 | F5: -30 | G5: -25 | H5: -20 | I5: -15 | J5: -10 | K5: -5 | L5: 0 | M5: 5 | N5: 10 | O5: 15 | R5: follows:
A6: 30 | B6: 0.1 | C6: 3.1 | D6: 3.2 | E6: 3.3 | F6: 3.4 | G6: 3.5 | H6: 3.6 | I6: 3.7 | J6: 3.8 | K6: 3.9 | L6: 4 | M6: 4.1 | N6: 4.2 | O6: 4.3 | P6: EX6 | R6: Bubble point °C Dew point °C
A7: 40 | B7: 0.1 | C7: 3.2 | D7: 3.3 | E7: 3.4 | F7: 3.5 | G7: 3.6 | H7: 3.8 | I7: 3.9 | J7: 4 | K7: 4.1 | L7: 4.2 | M7: 4.3 | N7: 4.4 | O7: 4.5 | P7: EX6 | R7: +60 +64
A8: 50 | B8: 0.1 | C8: 3.1 | D8: 3.2 | E8: 3.4 | F8: 3.5 | G8: 3.6 | H8: 3.8 | I8: 3.9 | J8: 4 | K8: 4.1 | L8: 4.3 | M8: 4.4 | N8: 4.5 | O8: 4.6 | P8: EX6 | R8: +50 +54
A9: 60 | B9: 0.1 | C9: 2.9 | D9: 3.1 | E9: 3.2 | F9: 3.4 | G9: 3.5 | H9: 3.7 | I9: 3.8 | J9: 4 | K9: 4.1 | L9: 4.2 | M9: 4.4 | N9: 4.5 | O9: 4.6 | P9: EX6 | R9: +40 +45
A10: 30 | B10: 0.5 | C10: 6.8 | D10: 7 | E10: 7.2 | F10: 7.5 | G10: 7.7 | H10: 7.9 | I10: 8.1 | J10: 8.3 | K10: 8.5 | L10: 8.8 | M10: 9 | N10: 9.2 | O10: 9.4 | P10: EX6 | R10: +30 +35
A11: 40 | B11: 0.5 | C11: 6.9 | D11: 7.2 | E11: 7.4 | F11: 7.7 | G11: 7.9 | H11: 8.2 | I11: 8.4 | J11: 8.7 | K11: 8.9 | L11: 9.2 | M11: 9.4 | N11: 9.6 | O11: 9.8 | P11: EX6
A12: 50 | B12: 0.5 | C12: 7.4 | D12: 7.6 | E12: 7.9 | F12: 8.2 | G12: 8.4 | H12: 8.7 | I12: 8.9 | J12: 9.2 | K12: 9.5 | L12: 9.7 | M12: 10 | N12: 10.2 | O12: 10.1 | P12: EX6
A13: 60 | B13: 0.5 | C13: 6.5 | D13: 6.8 | E13: 7.1 | F13: 7.5 | G13: 7.8 | H13: 8.1 | I13: 8.4 | J13: 8.7 | K13: 9 | L13: 9.3 | M13: 9.6 | N13: 9.9 | O13: 10.2 | P13: EX6
A14: 30 | B14: 1 | C14: 9.2 | D14: 9.5 | E14: 9.8 | F14: 10.1 | G14: 10.4 | H14: 10.7 | I14: 11 | J14: 11.3 | K14: 11.6 | L14: 11.9 | M14: 12.1 | N14: 12.4 | O14: 12.7 | P14: EX6
A15: 40 | B15: 1 | C15: 9.5 | D15: 9.8 | E15: 10.2 | F15: 10.5 | G15: 10.9 | H15: 11.2 | I15: 11.6 | J15: 11.9 | K15: 12.2 | L15: 12.5 | M15: 12.9 | N15: 13.2 | O15: 13.5 | P15: EX6
A16: 50 | B16: 1 | C16: 9.4 | D16: 9.8 | E16: 10.2 | F16: 10.6 | G16: 11 | H16: 11.4 | I16: 11.8 | J16: 12.2 | K16: 12.5 | L16: 12.9 | M16: 13.3 | N16: 13.6 | O16: 14 | P16: EX6
A17: 60 | B17: 1 | C17: 9 | D17: 9.5 | E17: 9.9 | F17: 10.3 | G17: 10.8 | H17: 11.2 | I17: 11.6 | J17: 12.1 | K17: 12.5 | L17: 12.9 | M17: 13.3 | N17: 13.7 | O17: 14.1 | P17: EX6
A18: 30 | B18: 0.1 | C18: 11.1 | D18: 11.5 | E18: 11.9 | F18: 12.2 | G18: 12.6 | H18: 13 | I18: 13.3 | J18: 13.7 | K18: 14 | L18: 14.4 | M18: 14.7 | N18: 15 | O18: 15.4 | P18: EX7
A19: 40 | B19: 0.1 | C19: 11.3 | D19: 11.7 | E19: 12.1 | F19: 12.5 | G19: 12.9 | H19: 13.3 | I19: 13.7 | J19: 14.1 | K19: 14.5 | L19: 14.9 | M19: 15.3 | N19: 15.7 | O19: 16.1 | P19: EX7
A20: 50 | B20: 0.1 | C20: 11.1 | D20: 11.5 | E20: 12 | F20: 12.5 | G20: 12.9 | H20: 13.4 | I20: 13.8 | J20: 14.3 | K20: 14.7 | L20: 15.2 | M20: 15.6 | N20: 16 | O20: 16.5 | P20: EX7
A21: 60 | B21: 0.1 | C21: 10.5 | D21: 11 | E21: 11.5 | F21: 12 | G21: 12.5 | H21: 13.1 | I21: 13.6 | J21: 14.1 | K21: 14.6 | L21: 15.1 | M21: 15.5 | N21: 16 | O21: 16.5 | P21: EX7
A22: 30 | B22: 0.5 | C22: 24.1 | D22: 24.9 | E22: 25.7 | F22: 26.5 | G22: 27.3 | H22: 28.1 | I22: 28.9 | J22: 29.6 | K22: 30.4 | L22: 31.1 | M22: 31.8 | N22: 32.6 | O22: 33.3 | P22: EX7
A23: 40 | B23: 0.5 | C23: 24.6 | D23: 25.5 | E23: 26.4 | F23: 27.3 | G23: 28.2 | H23: 29.1 | I23: 30 | J23: 30.8 | K23: 31.7 | L23: 32.6 | M23: 33.4 | N23: 34.2 | O23: 35 | P23: EX7
A24: 50 | B24: 0.5 | C24: 26.2 | D24: 27.2 | E24: 28.1 | F24: 29 | G24: 29.9 | H24: 30.9 | I24: 31.8 | J24: 32.7 | K24: 33.6 | L24: 34.5 | M24: 35.4 | N24: 36.2 | O24: 36 | P24: EX7
A25: 60 | B25: 0.5 | C25: 23.1 | D25: 24.2 | E25: 25.4 | F25: 26.5 | G25: 27.6 | H25: 28.7 | I25: 29.8 | J25: 31 | K25: 32 | L25: 33.1 | M25: 34.2 | N25: 35.2 | O25: 36.2 | P25: EX7
A26: 30 | B26: 1 | C26: 32.7 | D26: 33.8 | E26: 34.9 | F26: 36 | G26: 37.1 | H26: 38.1 | I26: 39.2 | J26: 40.2 | K26: 41.2 | L26: 42.2 | M26: 43.2 | N26: 44.1 | O26: 45.1 | P26: EX7
A27: 40 | B27: 1 | C27: 33.7 | D27: 34.9 | E27: 36.2 | F27: 37.4 | G27: 38.6 | H27: 39.9 | I27: 41.1 | J27: 42.2 | K27: 43.4 | L27: 44.6 | M27: 45.7 | N27: 46.8 | O27: 47.9 | P27: EX7
A28: 50 | B28: 1 | C28: 33.5 | D28: 34.9 | E28: 36.3 | F28: 37.7 | G28: 39.1 | H28: 40.5 | I28: 41.9 | J28: 43.2 | K28: 44.5 | L28: 45.9 | M28: 47.1 | N28: 48.4 | O28: 49.6 | P28: EX7
A29: 60 | B29: 1 | C29: 32 | D29: 33.6 | E29: 35.2 | F29: 36.7 | G29: 38.3 | H29: 39.8 | I29: 41.3 | J29: 42.9 | K29: 44.4 | L29: 45.9 | M29: 47.3 | N29: 48.7 | O29: 50.1 | P29: EX7
A30: 30 | B30: 0.1 | C30: 33.8 | D30: 34.9 | E30: 36 | F30: 37.2 | G30: 38.3 | H30: 39.4 | I30: 40.5 | J30: 41.6 | K30: 42.6 | L30: 43.7 | M30: 44.7 | N30: 45.7 | O30: 46.7 | P30: EX8
A31: 40 | B31: 0.1 | C31: 34.2 | D31: 35.5 | E31: 36.7 | F31: 38 | G31: 39.3 | H31: 40.5 | I31: 41.7 | J31: 43 | K31: 44.2 | L31: 45.4 | M31: 46.5 | N31: 47.7 | O31: 48.8 | P31: EX8
A32: 50 | B32: 0.1 | C32: 33.6 | D32: 35 | E32: 36.5 | F32: 37.9 | G32: 39.3 | H32: 40.7 | I32: 42.1 | J32: 43.4 | K32: 44.8 | L32: 46.1 | M32: 47.4 | N32: 48.7 | O32: 50 | P32: EX8
A33: 60 | B33: 0.1 | C33: 31.8 | D33: 33.4 | E33: 35 | F33: 36.5 | G33: 38.1 | H33: 39.7 | I33: 41.2 | J33: 42.7 | K33: 44.3 | L33: 45.8 | M33: 47.2 | N33: 48.7 | O33: 50.1 | P33: EX8
A34: 30 | B34: 0.5 | C34: 73.2 | D34: 75.7 | E34: 78.1 | F34: 80.5 | G34: 82.9 | H34: 85.3 | I34: 87.7 | J34: 90 | K34: 92.3 | L34: 94.5 | M34: 96.7 | N34: 98.9 | O34: 101 | P34: EX8
A35: 40 | B35: 0.5 | C35: 74.7 | D35: 77.4 | E35: 80.2 | F35: 82.9 | G35: 85.7 | H35: 88.4 | I35: 91.1 | J35: 93.7 | K35: 96.3 | L35: 98.9 | M35: 101.4 | N35: 103.9 | O35: 106.3 | P35: EX8
A36: 50 | B36: 0.5 | C36: 79.7 | D36: 82.5 | E36: 85.3 | F36: 88.1 | G36: 90.9 | H36: 93.7 | I36: 96.5 | J36: 99.3 | K36: 102.1 | L36: 104.8 | M36: 107.5 | N36: 110 | O36: 109.5 | P36: EX8
A37: 60 | B37: 0.5 | C37: 70.1 | D37: 73.6 | E37: 77 | F37: 80.4 | G37: 83.9 | H37: 87.3 | I37: 90.7 | J37: 94 | K37: 97.3 | L37: 100.6 | M37: 103.8 | N37: 107 | O37: 110.1 | P37: EX8
A38: 30 | B38: 1 | C38: 99.5 | D38: 102.8 | E38: 106 | F38: 109.3 | G38: 112.6 | H38: 115.8 | I38: 118.9 | J38: 122.1 | K38: 125.1 | L38: 128.1 | M38: 131.1 | N38: 134 | O38: 136.9 | P38: EX8
A39: 40 | B39: 1 | C39: 102.4 | D39: 106.2 | E39: 109.9 | F39: 113.7 | G39: 117.4 | H39: 121.1 | I39: 124.7 | J39: 128.3 | K39: 131.9 | L39: 135.4 | M39: 138.8 | N39: 142.1 | O39: 145.4 | P39: EX8
A40: 50 | B40: 1 | C40: 101.9 | D40: 106.1 | E40: 110.4 | F40: 114.6 | G40: 118.8 | H40: 123 | I40: 127.2 | J40: 131.3 | K40: 135.3 | L40: 139.3 | M40: 143.2 | N40: 147 | O40: 150.8 | P40: EX8
A41: 60 | B41: 1 | C41: 97.3 | D41: 102 | E41: 106.8 | F41: 111.5 | G41: 116.2 | H41: 120.9 | I41: 125.6 | J41: 130.2 | K41: 134.8 | L41: 139.3 | M41: 143.7 | N41: 148.1 | O41: 152.3 | P41: EX8
A43: R22/R407C | C43: R22/R407C
A44: °C | B44: bar | C44: -45 | D44: -40 | E44: -35 | F44: -30 | G44: -25 | H44: -20 | I44: -15 | J44: -10 | K44: -5 | L44: 0 | M44: 5 | N44: 10 | O44: 15
A45: 30 | B45: 0.1 | C45: 4 | D45: 4.2 | E45: 4.3 | F45: 4.4 | G45: 4.6 | H45: 4.7 | I45: 4.8 | J45: 4.9 | K45: 5.1 | L45: 5.2 | M45: 5.3 | N45: 5.4 | O45: 5.5 | P45: EX6
A46: 40 | B46: 0.1 | C46: 4 | D46: 4.2 | E46: 4.3 | F46: 4.5 | G46: 4.6 | H46: 4.8 | I46: 4.9 | J46: 5 | K46: 5.2 | L46: 5.3 | M46: 5.4 | N46: 5.6 | O46: 5.7 | P46: EX6
A47: 50 | B47: 0.1 | C47: 3.9 | D47: 4.1 | E47: 4.2 | F47: 4.4 | G47: 4.5 | H47: 4.7 | I47: 4.8 | J47: 5 | K47: 5.1 | L47: 5.3 | M47: 5.4 | N47: 5.6 | O47: 5.7 | P47: EX6
A48: 60 | B48: 0.1 | C48: 3.6 | D48: 3.8 | E48: 4 | F48: 4.1 | G48: 4.3 | H48: 4.5 | I48: 4.6 | J48: 4.8 | K48: 4.9 | L48: 5.1 | M48: 5.3 | N48: 5.4 | O48: 5.6 | P48: EX6
A49: 30 | B49: 0.5 | C49: 8.9 | D49: 9.2 | E49: 9.5 | F49: 9.8 | G49: 10 | H49: 10.3 | I49: 10.6 | J49: 10.9 | K49: 11.1 | L49: 11.4 | M49: 11.6 | N49: 11.9 | O49: 12.1 | P49: EX6
A50: 40 | B50: 0.5 | C50: 8.9 | D50: 9.2 | E50: 9.5 | F50: 9.9 | G50: 10.2 | H50: 10.5 | I50: 10.8 | J50: 11.1 | K50: 11.4 | L50: 11.7 | M50: 11.9 | N50: 12.2 | O50: 12.5 | P50: EX6
A51: 50 | B51: 0.5 | C51: 10 | D51: 10.3 | E51: 10.6 | F51: 10.9 | G51: 11.2 | H51: 11.5 | I51: 11.8 | J51: 12 | K51: 12.3 | L51: 12.6 | M51: 12.8 | N51: 13.1 | O51: 12.6 | P51: EX6
A52: 60 | B52: 0.5 | C52: 8.1 | D52: 8.4 | E52: 8.8 | F52: 9.2 | G52: 9.5 | H52: 9.9 | I52: 10.2 | J52: 10.6 | K52: 10.9 | L52: 11.3 | M52: 11.6 | N52: 12 | O52: 12.3 | P52: EX6
A53: 30 | B53: 1 | C53: 12.3 | D53: 12.7 | E53: 13.1 | F53: 13.5 | G53: 13.9 | H53: 14.3 | I53: 14.6 | J53: 15 | K53: 15.4 | L53: 15.7 | M53: 16.1 | N53: 16.4 | O53: 16.7 | P53: EX6
A54: 40 | B54: 1 | C54: 12.4 | D54: 12.8 | E54: 13.3 | F54: 13.7 | G54: 14.1 | H54: 14.5 | I54: 15 | J54: 15.4 | K54: 15.8 | L54: 16.2 | M54: 16.6 | N54: 17 | O54: 17.3 | P54: EX6
A55: 50 | B55: 1 | C55: 12.1 | D55: 12.6 | E55: 13 | F55: 13.5 | G55: 14 | H55: 14.4 | I55: 14.9 | J55: 15.4 | K55: 15.8 | L55: 16.2 | M55: 16.7 | N55: 17.1 | O55: 17.5 | P55: EX6
A56: 60 | B56: 1 | C56: 11.3 | D56: 11.8 | E56: 12.3 | F56: 12.8 | G56: 13.3 | H56: 13.8 | I56: 14.3 | J56: 14.8 | K56: 15.3 | L56: 15.8 | M56: 16.2 | N56: 16.7 | O56: 17.1 | P56: EX6
A57: 30 | B57: 0.1 | C57: 14.4 | D57: 14.8 | E57: 15.3 | F57: 15.8 | G57: 16.2 | H57: 16.7 | I57: 17.1 | J57: 17.6 | K57: 18 | L57: 18.5 | M57: 18.9 | N57: 19.3 | O57: 19.7 | P57: EX7
A58: 40 | B58: 0.1 | C58: 14.4 | D58: 14.9 | E58: 15.4 | F58: 15.9 | G58: 16.4 | H58: 16.9 | I58: 17.4 | J58: 17.9 | K58: 18.4 | L58: 18.8 | M58: 19.3 | N58: 19.7 | O58: 20.2 | P58: EX7
A59: 50 | B59: 0.1 | C59: 13.9 | D59: 14.5 | E59: 15 | F59: 15.6 | G59: 16.1 | H59: 16.7 | I59: 17.2 | J59: 17.7 | K59: 18.3 | L59: 18.8 | M59: 19.3 | N59: 19.8 | O59: 20.2 | P59: EX7
A60: 60 | B60: 0.1 | C60: 12.9 | D60: 13.5 | E60: 14.1 | F60: 14.7 | G60: 15.3 | H60: 15.9 | I60: 16.4 | J60: 17 | K60: 17.6 | L60: 18.1 | M60: 18.7 | N60: 19.2 | O60: 19.7 | P60: EX7
A61: 30 | B61: 0.5 | C61: 31.6 | D61: 32.6 | E61: 33.6 | F61: 34.7 | G61: 35.7 | H61: 36.7 | I61: 37.6 | J61: 38.6 | K61: 39.6 | L61: 40.5 | M61: 41.4 | N61: 42.3 | O61: 43.2 | P61: EX7
A62: 40 | B62: 0.5 | C62: 31.7 | D62: 32.8 | E62: 33.9 | F62: 35 | G62: 36.1 | H62: 37.2 | I62: 38.3 | J62: 39.4 | K62: 40.4 | L62: 41.5 | M62: 42.5 | N62: 43.5 | O62: 44.4 | P62: EX7
A63: 50 | B63: 0.5 | C63: 35.6 | D63: 36.7 | E63: 37.8 | F63: 38.8 | G63: 39.8 | H63: 40.8 | I63: 41.8 | J63: 42.8 | K63: 43.8 | L63: 44.7 | M63: 45.6 | N63: 46.4 | O63: 44.7 | P63: EX7
A64: 60 | B64: 0.5 | C64: 28.6 | D64: 29.9 | E64: 31.2 | F64: 32.5 | G64: 33.8 | H64: 35.1 | I64: 36.4 | J64: 37.7 | K64: 38.9 | L64: 40.1 | M64: 41.3 | N64: 42.5 | O64: 43.6 | P64: EX7
A65: 30 | B65: 1 | C65: 43.7 | D65: 45.1 | E65: 46.5 | F65: 47.9 | G65: 49.3 | H65: 50.7 | I65: 52 | J65: 53.3 | K65: 54.6 | L65: 55.9 | M65: 57.1 | N65: 58.3 | O65: 59.5 | P65: EX7
A66: 40 | B66: 1 | C66: 44 | D66: 45.6 | E66: 47.1 | F66: 48.7 | G66: 50.2 | H66: 51.7 | I66: 53.2 | J66: 54.7 | K66: 56.1 | L66: 57.5 | M66: 58.9 | N66: 60.3 | O66: 61.6 | P66: EX7
A67: 50 | B67: 1 | C67: 42.9 | D67: 44.6 | E67: 46.3 | F67: 48 | G67: 49.7 | H67: 51.3 | I67: 53 | J67: 54.6 | K67: 56.2 | L67: 57.7 | M67: 59.2 | N67: 60.7 | O67: 62.2 | P67: EX7
A68: 60 | B68: 1 | C68: 40 | D68: 41.9 | E68: 43.7 | F68: 45.5 | G68: 47.3 | H68: 49.1 | I68: 50.9 | J68: 52.6 | K68: 54.3 | L68: 56 | M68: 57.7 | N68: 59.3 | O68: 60.9 | P68: EX7
A69: 30 | B69: 0.1 | C69: 43.7 | D69: 45.1 | E69: 46.5 | F69: 47.9 | G69: 49.3 | H69: 50.7 | I69: 52.1 | J69: 53.4 | K69: 54.8 | L69: 56.1 | M69: 57.3 | N69: 58.6 | O69: 59.8 | P69: EX8
A70: 40 | B70: 0.1 | C70: 43.6 | D70: 45.2 | E70: 46.7 | F70: 48.3 | G70: 49.8 | H70: 51.3 | I70: 52.8 | J70: 54.3 | K70: 55.8 | L70: 57.2 | M70: 58.6 | N70: 60 | O70: 61.3 | P70: EX8
A71: 50 | B71: 0.1 | C71: 42.3 | D71: 44 | E71: 45.6 | F71: 47.3 | G71: 49 | H71: 50.6 | I71: 52.3 | J71: 53.9 | K71: 55.5 | L71: 57 | M71: 58.5 | N71: 60 | O71: 61.5 | P71: EX8
A72: 60 | B72: 0.1 | C72: 39.2 | D72: 41 | E72: 42.8 | F72: 44.6 | G72: 46.4 | H72: 48.2 | I72: 49.9 | J72: 51.7 | K72: 53.4 | L72: 55.1 | M72: 56.7 | N72: 58.4 | O72: 59.9 | P72: EX8
A73: 30 | B73: 0.5 | C73: 96 | D73: 99.1 | E73: 102.2 | F73: 105.3 | G73: 108.4 | H73: 111.4 | I73: 114.4 | J73: 117.3 | K73: 120.2 | L73: 123 | M73: 125.8 | N73: 128.5 | O73: 131.1 | P73: EX8
A74: 40 | B74: 0.5 | C74: 96.2 | D74: 99.6 | E74: 103.1 | F74: 106.4 | G74: 109.8 | H74: 113.1 | I74: 116.4 | J74: 119.6 | K74: 122.8 | L74: 126 | M74: 129 | N74: 132 | O74: 134.9 | P74: EX8
A75: 50 | B75: 0.5 | C75: 108.2 | D75: 111.5 | E75: 114.7 | F75: 117.9 | G75: 121 | H75: 124.1 | I75: 127.1 | J75: 130 | K75: 132.9 | L75: 135.7 | M75: 138.4 | N75: 141 | O75: 135.7 | P75: EX8
A76: 60 | B76: 0.5 | C76: 87 | D76: 90.9 | E76: 94.9 | F76: 98.9 | G76: 102.8 | H76: 106.7 | I76: 110.6 | J76: 114.4 | K76: 118.2 | L76: 121.9 | M76: 125.5 | N76: 129.1 | O76: 132.6 | P76: EX8
A77: 30 | B77: 1 | C77: 132.7 | D77: 137.1 | E77: 141.3 | F77: 145.6 | G77: 149.8 | H77: 153.9 | I77: 158 | J77: 162 | K77: 165.9 | L77: 169.8 | M77: 173.6 | N77: 177.2 | O77: 180.8 | P77: EX8
A78: 40 | B78: 1 | C78: 133.7 | D78: 138.5 | E78: 143.2 | F78: 147.9 | G78: 152.5 | H78: 157.1 | I78: 161.6 | J78: 166.1 | K78: 170.4 | L78: 174.7 | M78: 178.9 | N78: 183 | O78: 187 | P78: EX8
A79: 50 | B79: 1 | C79: 130.4 | D79: 135.6 | E79: 140.7 | F79: 145.8 | G79: 150.9 | H79: 155.9 | I79: 160.9 | J79: 165.8 | K79: 170.6 | L79: 175.3 | M79: 179.9 | N79: 184.4 | O79: 188.8 | P79: EX8
A80: 60 | B80: 1 | C80: 121.6 | D80: 127.1 | E80: 132.7 | F80: 138.2 | G80: 143.7 | H80: 149.1 | I80: 154.5 | J80: 159.8 | K80: 165 | L80: 170.2 | M80: 175.2 | N80: 180.1 | O80: 184.9 | P80: EX8
A81: R404A
A82: °C | B82: bar | C82: -45 | D82: -40 | E82: -35 | F82: -30 | G82: -25 | H82: -20 | I82: -15 | J82: -10 | K82: -5 | L82: 0 | M82: 5 | N82: 10 | O82: 15
A83: 30 | B83: 0.1 | C83: 3.3 | D83: 3.5 | E83: 3.6 | F83: 3.7 | G83: 3.9 | H83: 4 | I83: 4.1 | J83: 4.2 | K83: 4.3 | L83: 4.5 | M83: 4.6 | N83: 4.7 | O83: 4.8 | P83: EX6
A84: 40 | B84: 0.1 | C84: 3.1 | D84: 3.3 | E84: 3.4 | F84: 3.6 | G84: 3.7 | H84: 3.9 | I84: 4 | J84: 4.1 | K84: 4.3 | L84: 4.4 | M84: 4.5 | N84: 4.7 | O84: 4.8 | P84: EX6
A85: 50 | B85: 0.1 | C85: 2.8 | D85: 2.9 | E85: 3.1 | F85: 3.3 | G85: 3.4 | H85: 3.6 | I85: 3.7 | J85: 3.9 | K85: 4 | L85: 4.2 | M85: 4.3 | N85: 4.5 | O85: 4.6 | P85: EX6
A86: 60 | B86: 0.1 | C86: 2.2 | D86: 2.3 | E86: 2.5 | F86: 2.7 | G86: 2.9 | H86: 3 | I86: 3.2 | J86: 3.4 | K86: 3.5 | L86: 3.7 | M86: 3.8 | N86: 4 | O86: 4.1 | P86: EX6
A87: 30 | B87: 0.5 | C87: 7.3 | D87: 7.6 | E87: 7.9 | F87: 8.2 | G87: 8.5 | H87: 8.7 | I87: 9 | J87: 9.3 | K87: 9.5 | L87: 9.8 | M87: 10 | N87: 10.3 | O87: 10.5 | P87: EX6
A88: 40 | B88: 0.5 | C88: 6.9 | D88: 7.3 | E88: 7.6 | F88: 7.9 | G88: 8.2 | H88: 8.5 | I88: 8.8 | J88: 9.1 | K88: 9.4 | L88: 9.7 | M88: 10 | N88: 10.2 | O88: 10.5 | P88: EX6
A89: 50 | B89: 0.5 | C89: 7 | D89: 7.4 | E89: 7.7 | F89: 8 | G89: 8.4 | H89: 8.7 | I89: 9 | J89: 9.3 | K89: 9.6 | L89: 9.9 | M89: 10.1 | N89: 10.4 | O89: 10.1 | P89: EX6
A90: 60 | B90: 0.5 | C90: 4.8 | D90: 5.2 | E90: 5.5 | F90: 5.9 | G90: 6.3 | H90: 6.7 | I90: 7.1 | J90: 7.4 | K90: 7.8 | L90: 8.1 | M90: 8.5 | N90: 8.8 | O90: 9.1 | P90: EX6
A91: 30 | B91: 1 | C91: 10.1 | D91: 10.5 | E91: 10.9 | F91: 11.3 | G91: 11.7 | H91: 12 | I91: 12.4 | J91: 12.8 | K91: 13.1 | L91: 13.5 | M91: 13.8 | N91: 14.1 | O91: 14.5 | P91: EX6
A92: 40 | B92: 1 | C92: 9.6 | D92: 10.1 | E92: 10.5 | F92: 10.9 | G92: 11.4 | H92: 11.8 | I92: 12.2 | J92: 12.6 | K92: 13 | L92: 13.4 | M92: 13.8 | N92: 14.2 | O92: 14.5 | P92: EX6
A93: 50 | B93: 1 | C93: 8.6 | D93: 9.1 | E93: 9.5 | F93: 10 | G93: 10.5 | H93: 11 | I93: 11.5 | J93: 11.9 | K93: 12.4 | L93: 12.8 | M93: 13.2 | N93: 13.7 | O93: 14.1 | P93: EX6
A94: 60 | B94: 1 | C94: 6.7 | D94: 7.2 | E94: 7.7 | F94: 8.3 | G94: 8.8 | H94: 9.3 | I94: 9.8 | J94: 10.3 | K94: 10.8 | L94: 11.3 | M94: 11.8 | N94: 12.3 | O94: 12.7 | P94: EX6
A95: 30 | B95: 0.1 | C95: 11.8 | D95: 12.3 | E95: 12.8 | F95: 13.2 | G95: 13.7 | H95: 14.1 | I95: 14.6 | J95: 15 | K95: 15.4 | L95: 15.9 | M95: 16.3 | N95: 16.6 | O95: 17 | P95: EX7
A96: 40 | B96: 0.1 | C96: 11.2 | D96: 11.7 | E96: 12.2 | F96: 12.7 | G96: 13.2 | H96: 13.8 | I96: 14.2 | J96: 14.7 | K96: 15.2 | L96: 15.7 | M96: 16.1 | N96: 16.6 | O96: 17 | P96: EX7
A97: 50 | B97: 0.1 | C97: 9.9 | D97: 10.5 | E97: 11 | F97: 11.6 | G97: 12.2 | H97: 12.7 | I97: 13.3 | J97: 13.8 | K97: 14.4 | L97: 14.9 | M97: 15.4 | N97: 15.9 | O97: 16.3 | P97: EX7
A98: 60 | B98: 0.1 | C98: 7.7 | D98: 8.3 | E98: 8.9 | F98: 9.5 | G98: 10.1 | H98: 10.8 | I98: 11.4 | J98: 12 | K98: 12.5 | L98: 13.1 | M98: 13.7 | N98: 14.2 | O98: 14.7 | P98: EX7
A99: 30 | B99: 0.5 | C99: 26 | D99: 27 | E99: 28 | F99: 29 | G99: 30 | H99: 31 | I99: 32 | J99: 32.9 | K99: 33.9 | L99: 34.8 | M99: 35.6 | N99: 36.5 | O99: 37.3 | P99: EX7
A100: 40 | B100: 0.5 | C100: 24.6 | D100: 25.8 | E100: 26.9 | F100: 28 | G100: 29.2 | H100: 30.3 | I100: 31.4 | J100: 32.4 | K100: 33.5 | L100: 34.5 | M100: 35.5 | N100: 36.4 | O100: 37.3 | P100: EX7
A101: 50 | B101: 0.5 | C101: 25 | D101: 26.2 | E101: 27.4 | F101: 28.5 | G101: 29.7 | H101: 30.8 | I101: 31.9 | J101: 33 | K101: 34 | L101: 35 | M101: 36 | N101: 36.9 | O101: 36 | P101: EX7
A102: 60 | B102: 0.5 | C102: 17 | D102: 18.3 | E102: 19.7 | F102: 21.1 | G102: 22.4 | H102: 23.8 | I102: 25.1 | J102: 26.4 | K102: 27.7 | L102: 28.9 | M102: 30.2 | N102: 31.3 | O102: 32.5 | P102: EX7
A103: 30 | B103: 1 | C103: 35.9 | D103: 37.3 | E103: 38.7 | F103: 40.1 | G103: 41.5 | H103: 42.8 | I103: 44.1 | J103: 45.4 | K103: 46.7 | L103: 47.9 | M103: 49.1 | N103: 50.3 | O103: 51.4 | P103: EX7
A104: 40 | B104: 1 | C104: 34.2 | D104: 35.8 | E104: 37.3 | F104: 38.9 | G104: 40.4 | H104: 41.9 | I104: 43.4 | J104: 44.9 | K104: 46.3 | L104: 47.7 | M104: 49.1 | N104: 50.4 | O104: 51.6 | P104: EX7
A105: 50 | B105: 1 | C105: 30.4 | D105: 32.2 | E105: 33.9 | F105: 35.7 | G105: 37.4 | H105: 39.1 | I105: 40.7 | J105: 42.4 | K105: 44 | L105: 45.5 | M105: 47.1 | N105: 48.5 | O105: 49.9 | P105: EX7
A106: 60 | B106: 1 | C106: 23.7 | D106: 25.6 | E106: 27.5 | F106: 29.4 | G106: 31.3 | H106: 33.1 | I106: 35 | J106: 36.8 | K106: 38.5 | L106: 40.3 | M106: 42 | N106: 43.6 | O106: 45.2 | P106: EX7
A107: 30 | B107: 0.1 | C107: 35.9 | D107: 37.4 | E107: 38.8 | F107: 40.2 | G107: 41.6 | H107: 43 | I107: 44.3 | J107: 45.6 | K107: 46.9 | L107: 48.2 | M107: 49.4 | N107: 50.6 | O107: 51.7 | P107: EX8
A108: 40 | B108: 0.1 | C108: 34 | D108: 35.5 | E108: 37.1 | F108: 38.7 | G108: 40.2 | H108: 41.8 | I108: 43.3 | J108: 44.8 | K108: 46.2 | L108: 47.6 | M108: 49 | N108: 50.3 | O108: 51.6 | P108: EX8
A109: 50 | B109: 0.1 | C109: 30.1 | D109: 31.8 | E109: 33.6 | F109: 35.3 | G109: 37 | H109: 38.7 | I109: 40.4 | J109: 42 | K109: 43.6 | L109: 45.2 | M109: 46.7 | N109: 48.2 | O109: 49.6 | P109: EX8
A110: 60 | B110: 0.1 | C110: 23.3 | D110: 25.2 | E110: 27.1 | F110: 29 | G110: 30.8 | H110: 32.7 | I110: 34.5 | J110: 36.3 | K110: 38.1 | L110: 39.8 | M110: 41.5 | N110: 43.2 | O110: 44.7 | P110: EX8
A111: 30 | B111: 0.5 | C111: 78.9 | D111: 82 | E111: 85.1 | F111: 88.2 | G111: 91.2 | H111: 94.2 | I111: 97.2 | J111: 100 | K111: 102.8 | L111: 105.6 | M111: 108.2 | N111: 110.8 | O111: 113.3 | P111: EX8
A112: 40 | B112: 0.5 | C112: 74.8 | D112: 78.3 | E112: 81.8 | F112: 85.2 | G112: 88.6 | H112: 91.9 | I112: 95.2 | J112: 98.5 | K112: 101.6 | L112: 104.7 | M112: 107.7 | N112: 110.6 | O112: 113.4 | P112: EX8
A113: 50 | B113: 0.5 | C113: 75.8 | D113: 79.5 | E113: 83.1 | F113: 86.7 | G113: 90.2 | H113: 93.6 | I113: 96.9 | J113: 100.2 | K113: 103.4 | L113: 106.4 | M113: 109.4 | N113: 112.2 | O113: 109.3 | P113: EX8
A114: 60 | B114: 0.5 | C114: 51.6 | D114: 55.7 | E114: 59.9 | F114: 64 | G114: 68.1 | H114: 72.2 | I114: 76.2 | J114: 80.2 | K114: 84.1 | L114: 87.9 | M114: 91.6 | N114: 95.2 | O114: 98.7 | P114: EX8
A115: 30 | B115: 1 | C115: 109 | D115: 113.3 | E115: 117.6 | F115: 121.8 | G115: 126 | H115: 130 | I115: 134.1 | J115: 138 | K115: 141.8 | L115: 145.5 | M115: 149.2 | N115: 152.7 | O115: 156 | P115: EX8
A116: 40 | B116: 1 | C116: 103.8 | D116: 108.6 | E116: 113.4 | F116: 118.1 | G116: 122.8 | H116: 127.4 | I116: 132 | J116: 136.4 | K116: 140.7 | L116: 145 | M116: 149.1 | N116: 153 | O116: 156.9 | P116: EX8
A117: 50 | B117: 1 | C117: 92.5 | D117: 97.8 | E117: 103.1 | F117: 108.3 | G117: 113.5 | H117: 118.7 | I117: 123.8 | J117: 128.7 | K117: 133.6 | L117: 138.3 | M117: 142.9 | N117: 147.4 | O117: 151.7 | P117: EX8
A118: 60 | B118: 1 | C118: 72 | D118: 77.7 | E118: 83.5 | F118: 89.3 | G118: 95 | H118: 100.6 | I118: 106.2 | J118: 111.7 | K118: 117.1 | L118: 122.4 | M118: 127.5 | N118: 132.4 | O118: 137.2 | P118: EX8
A119: R410A
A120: °C | B120: bar | C120: -45 | D120: -40 | E120: -35 | F120: -30 | G120: -25 | H120: -20 | I120: -15 | J120: -10 | K120: -5 | L120: 0 | M120: 5 | N120: 10 | O120: 15
A121: 30 | B121: 0.1 | C121: 4.8 | D121: 5 | E121: 5.1 | F121: 5.3 | G121: 5.4 | H121: 5.5 | I121: 5.7 | J121: 5.8 | K121: 5.9 | L121: 6.1 | M121: 6.2 | N121: 6.3 | O121: 6.4 | P121: EX6
A122: 40 | B122: 0.1 | C122: 4.8 | D122: 4.9 | E122: 5.1 | F122: 5.2 | G122: 5.4 | H122: 5.5 | I122: 5.7 | J122: 5.8 | K122: 6 | L122: 6.1 | M122: 6.2 | N122: 6.4 | O122: 6.5 | P122: EX6
A123: 50 | B123: 0.1 | C123: 4.6 | D123: 4.7 | E123: 4.9 | F123: 5.1 | G123: 5.2 | H123: 5.4 | I123: 5.5 | J123: 5.7 | K123: 5.8 | L123: 6 | M123: 6.1 | N123: 6.3 | O123: 6.4 | P123: EX6
A124: 60 | B124: 0.1 | C124: 4.1 | D124: 4.3 | E124: 4.4 | F124: 4.6 | G124: 4.8 | H124: 4.9 | I124: 5.1 | J124: 5.3 | K124: 5.4 | L124: 5.6 | M124: 5.7 | N124: 5.8 | O124: 6 | P124: EX6
A125: 30 | B125: 0.5 | C125: 10.7 | D125: 11 | E125: 11.3 | F125: 11.6 | G125: 11.9 | H125: 12.2 | I125: 12.5 | J125: 12.8 | K125: 13.1 | L125: 13.4 | M125: 13.7 | N125: 13.9 | O125: 14.2 | P125: EX6
A126: 40 | B126: 0.5 | C126: 10.6 | D126: 10.9 | E126: 11.3 | F126: 11.6 | G126: 11.9 | H126: 12.3 | I126: 12.6 | J126: 12.9 | K126: 13.2 | L126: 13.5 | M126: 13.8 | N126: 14.1 | O126: 14.4 | P126: EX6
A127: 50 | B127: 0.5 | C127: 12.7 | D127: 13 | E127: 13.3 | F127: 13.6 | G127: 13.9 | H127: 14.1 | I127: 14.4 | J127: 14.6 | K127: 14.8 | L127: 15 | M127: 15.2 | N127: 15.3 | O127: 14.1 | P127: EX6
A128: 60 | B128: 0.5 | C128: 9.1 | D128: 9.5 | E128: 9.9 | F128: 10.2 | G128: 10.6 | H128: 11 | I128: 11.3 | J128: 11.7 | K128: 12 | L128: 12.3 | M128: 12.6 | N128: 13 | O128: 13.2 | P128: EX6
A129: 30 | B129: 1 | C129: 14.8 | D129: 15.3 | E129: 15.7 | F129: 16.1 | G129: 16.6 | H129: 17 | I129: 17.4 | J129: 17.8 | K129: 18.2 | L129: 18.6 | M129: 19 | N129: 19.3 | O129: 19.7 | P129: EX6
A130: 40 | B130: 1 | C130: 14.8 | D130: 15.3 | E130: 15.7 | F130: 16.2 | G130: 16.7 | H130: 17.1 | I130: 17.6 | J130: 18 | K130: 18.4 | L130: 18.8 | M130: 19.2 | N130: 19.6 | O130: 20 | P130: EX6
A131: 50 | B131: 1 | C131: 14.2 | D131: 14.7 | E131: 15.2 | F131: 15.7 | G131: 16.2 | H131: 16.7 | I131: 17.2 | J131: 17.6 | K131: 18.1 | L131: 18.5 | M131: 18.9 | N131: 19.4 | O131: 19.7 | P131: EX6
A132: 60 | B132: 1 | C132: 12.8 | D132: 13.3 | E132: 13.9 | F132: 14.4 | G132: 14.9 | H132: 15.4 | I132: 15.9 | J132: 16.3 | K132: 16.8 | L132: 17.3 | M132: 17.7 | N132: 18.1 | O132: 18.5 | P132: EX6
A133: 30 | B133: 0.1 | C133: 17.1 | D133: 17.7 | E133: 18.2 | F133: 18.7 | G133: 19.2 | H133: 19.7 | I133: 20.2 | J133: 20.6 | K133: 21.1 | L133: 21.6 | M133: 22 | N133: 22.5 | O133: 22.9 | P133: EX7
A134: 40 | B134: 0.1 | C134: 17 | D134: 17.6 | E134: 18.1 | F134: 18.6 | G134: 19.2 | H134: 19.7 | I134: 20.2 | J134: 20.7 | K134: 21.2 | L134: 21.7 | M134: 22.2 | N134: 22.7 | O134: 23.1 | P134: EX7
A135: 50 | B135: 0.1 | C135: 16.3 | D135: 16.8 | E135: 17.4 | F135: 18 | G135: 18.6 | H135: 19.1 | I135: 19.7 | J135: 20.2 | K135: 20.7 | L135: 21.3 | M135: 21.8 | N135: 22.2 | O135: 22.7 | P135: EX7
A136: 60 | B136: 0.1 | C136: 14.6 | D136: 15.2 | E136: 15.8 | F136: 16.4 | G136: 17 | H136: 17.6 | I136: 18.1 | J136: 18.7 | K136: 19.2 | L136: 19.7 | M136: 20.3 | N136: 20.8 | O136: 21.2 | P136: EX7
A137: 30 | B137: 0.5 | C137: 37.9 | D137: 39 | E137: 40.1 | F137: 41.2 | G137: 42.3 | H137: 43.4 | I137: 44.5 | J137: 45.5 | K137: 46.6 | L137: 47.6 | M137: 48.5 | N137: 49.5 | O137: 50.4 | P137: EX7
A138: 40 | B138: 0.5 | C138: 37.6 | D138: 38.9 | E138: 40.1 | F138: 41.3 | G138: 42.5 | H138: 43.6 | I138: 44.8 | J138: 45.9 | K138: 47 | L138: 48 | M138: 49.1 | N138: 50.1 | O138: 51.1 | P138: EX7
A139: 50 | B139: 0.5 | C139: 45.2 | D139: 46.2 | E139: 47.3 | F139: 48.3 | G139: 49.3 | H139: 50.2 | I139: 51.1 | J139: 51.9 | K139: 52.7 | L139: 53.4 | M139: 54 | N139: 54.5 | O139: 50.3 | P139: EX7
A140: 60 | B140: 0.5 | C140: 32.4 | D140: 33.8 | E140: 35.1 | F140: 36.4 | G140: 37.7 | H140: 39 | I140: 40.2 | J140: 41.5 | K140: 42.7 | L140: 43.8 | M140: 45 | N140: 46 | O140: 47.1 | P140: EX7
A141: 30 | B141: 1 | C141: 52.7 | D141: 54.3 | E141: 55.8 | F141: 57.4 | G141: 58.9 | H141: 60.4 | I141: 61.9 | J141: 63.3 | K141: 64.7 | L141: 66 | M141: 67.4 | N141: 68.6 | O141: 69.9 | P141: EX7
A142: 40 | B142: 1 | C142: 52.6 | D142: 54.3 | E142: 55.9 | F142: 57.6 | G142: 59.3 | H142: 60.9 | I142: 62.4 | J142: 64 | K142: 65.5 | L142: 67 | M142: 68.4 | N142: 69.8 | O142: 71.1 | P142: EX7
A143: 50 | B143: 1 | C143: 50.5 | D143: 52.3 | E143: 54.1 | F143: 55.9 | G143: 57.6 | H143: 59.3 | I143: 61 | J143: 62.6 | K143: 64.3 | L143: 65.8 | M143: 67.3 | N143: 68.8 | O143: 70.2 | P143: EX7
A144: 60 | B144: 1 | C144: 45.5 | D144: 47.4 | E144: 49.2 | F144: 51.1 | G144: 52.9 | H144: 54.7 | I144: 56.4 | J144: 58.1 | K144: 59.8 | L144: 61.4 | M144: 63 | N144: 64.5 | O144: 65.9 | P144: EX7
A145: 30 | B145: 0.1 | C145: 52.1 | D145: 53.6 | E145: 55.2 | F145: 56.8 | G145: 58.3 | H145: 59.8 | I145: 61.3 | J145: 62.7 | K145: 64.1 | L145: 65.5 | M145: 66.9 | N145: 68.2 | O145: 69.5 | P145: EX8
A146: 40 | B146: 0.1 | C146: 51.6 | D146: 53.3 | E146: 55 | F146: 56.6 | G146: 58.3 | H146: 59.9 | I146: 61.5 | J146: 63 | K146: 64.5 | L146: 66 | M146: 67.5 | N146: 68.9 | O146: 70.2 | P146: EX8
A147: 50 | B147: 0.1 | C147: 49.4 | D147: 51.2 | E147: 52.9 | F147: 54.7 | G147: 56.4 | H147: 58.1 | I147: 59.8 | J147: 61.4 | K147: 63 | L147: 64.6 | M147: 66.1 | N147: 67.5 | O147: 69 | P147: EX8
A148: 60 | B148: 0.1 | C148: 44.3 | D148: 46.2 | E148: 48 | F148: 49.8 | G148: 51.6 | H148: 53.3 | I148: 55.1 | J148: 56.7 | K148: 58.4 | L148: 60 | M148: 61.5 | N148: 63 | O148: 64.5 | P148: EX8
A149: 30 | B149: 0.5 | C149: 115 | D149: 118.5 | E149: 121.9 | F149: 125.3 | G149: 128.6 | H149: 131.9 | I149: 135.2 | J149: 138.3 | K149: 141.4 | L149: 144.5 | M149: 147.4 | N149: 150.2 | O149: 153 | P149: EX8
A150: 40 | B150: 0.5 | C150: 114.3 | D150: 118 | E150: 121.7 | F150: 125.4 | G150: 129 | H150: 132.5 | I150: 136 | J150: 139.4 | K150: 142.7 | L150: 145.9 | M150: 149.1 | N150: 152.2 | O150: 155.1 | P150: EX8
A151: 50 | B151: 0.5 | C151: 137.2 | D151: 140.5 | E151: 143.7 | F151: 146.7 | G151: 149.7 | H151: 152.5 | I151: 155.1 | J151: 157.6 | K151: 159.9 | L151: 162.1 | M151: 164 | N151: 165.6 | O151: 152.6 | P151: EX8
A152: 60 | B152: 0.5 | C152: 98.5 | D152: 102.6 | E152: 106.6 | F152: 110.6 | G152: 114.5 | H152: 118.4 | I152: 122.2 | J152: 126 | K152: 129.6 | L152: 133.1 | M152: 136.6 | N152: 139.8 | O152: 143 | P152: EX8
A153: 30 | B153: 1 | C153: 160.1 | D153: 164.9 | E153: 169.6 | F153: 174.3 | G153: 178.9 | H153: 183.4 | I153: 187.9 | J153: 192.3 | K153: 196.5 | L153: 200.6 | M153: 204.6 | N153: 208.5 | O153: 212.2 | P153: EX8
A154: 40 | B154: 1 | C154: 159.7 | D154: 164.8 | E154: 170 | F154: 175 | G154: 180 | H154: 184.9 | I154: 189.7 | J154: 194.4 | K154: 199 | L154: 203.4 | M154: 207.8 | N154: 212 | O154: 215.9 | P154: EX8
A155: 50 | B155: 1 | C155: 153.4 | D155: 158.9 | E155: 164.3 | F155: 169.7 | G155: 175 | H155: 180.2 | I155: 185.3 | J155: 190.3 | K155: 195.2 | L155: 199.9 | M155: 204.5 | N155: 208.9 | O155: 213.2 | P155: EX8
A156: 60 | B156: 1 | C156: 138.2 | D156: 143.9 | E156: 149.5 | F156: 155.1 | G156: 160.6 | H156: 166 | I156: 171.3 | J156: 176.5 | K156: 181.6 | L156: 186.5 | M156: 191.2 | N156: 195.8 | O156: 200.1 | P156: EX8
A157: R454A
A158: °C | B158: bar | C158: -45 | D158: -40 | E158: -35 | F158: -30 | G158: -25 | H158: -20 | I158: -15 | J158: -10 | K158: -5 | L158: 0 | M158: 5 | N158: 10 | O158: 15
A159: 30 | B159: 0.1 | C159: 4.1 | D159: 4.2 | E159: 4.4 | F159: 4.5 | G159: 4.6 | H159: 4.8 | I159: 4.9 | J159: 5 | K159: 5.2 | L159: 5.3 | M159: 5.4 | N159: 5.5 | O159: 5.6 | P159: EX6
A160: 40 | B160: 0.1 | C160: 4 | D160: 4.2 | E160: 4.3 | F160: 4.5 | G160: 4.6 | H160: 4.8 | I160: 4.9 | J160: 5 | K160: 5.2 | L160: 5.3 | M160: 5.4 | N160: 5.6 | O160: 5.7 | P160: EX6
A161: 50 | B161: 0.1 | C161: 3.8 | D161: 4 | E161: 4.1 | F161: 4.3 | G161: 4.4 | H161: 4.6 | I161: 4.7 | J161: 4.9 | K161: 5 | L161: 5.2 | M161: 5.3 | N161: 5.5 | O161: 5.6 | P161: EX6
A162: 60 | B162: 0.1 | C162: 3.4 | D162: 3.6 | E162: 3.7 | F162: 3.9 | G162: 4.1 | H162: 4.2 | I162: 4.4 | J162: 4.5 | K162: 4.7 | L162: 4.9 | M162: 5 | N162: 5.2 | O162: 5.3 | P162: EX6
A163: 30 | B163: 0.5 | C163: 9 | D163: 9.3 | E163: 9.6 | F163: 9.9 | G163: 10.2 | H163: 10.5 | I163: 10.8 | J163: 11 | K163: 11.3 | L163: 11.6 | M163: 11.8 | N163: 12.1 | O163: 12.4 | P163: EX6
A164: 40 | B164: 0.5 | C164: 8.9 | D164: 9.2 | E164: 9.5 | F164: 9.9 | G164: 10.2 | H164: 10.5 | I164: 10.8 | J164: 11.1 | K164: 11.4 | L164: 11.7 | M164: 12 | N164: 12.3 | O164: 12.5 | P164: EX6
A165: 50 | B165: 0.5 | C165: 9.9 | D165: 10.3 | E165: 10.6 | F165: 10.9 | G165: 11.2 | H165: 11.5 | I165: 11.8 | J165: 12.1 | K165: 12.3 | L165: 12.6 | M165: 12.9 | N165: 13.1 | O165: 12.4 | P165: EX6
A166: 60 | B166: 0.5 | C166: 7.5 | D166: 7.9 | E166: 8.2 | F166: 8.6 | G166: 9 | H166: 9.3 | I166: 9.7 | J166: 10.1 | K166: 10.4 | L166: 10.7 | M166: 11.1 | N166: 11.4 | O166: 11.7 | P166: EX6
A167: 30 | B167: 1 | C167: 12.5 | D167: 12.9 | E167: 13.3 | F167: 13.7 | G167: 14.1 | H167: 14.5 | I167: 14.9 | J167: 15.3 | K167: 15.7 | L167: 16 | M167: 16.4 | N167: 16.7 | O167: 17.1 | P167: EX6
A168: 40 | B168: 1 | C168: 12.4 | D168: 12.8 | E168: 13.3 | F168: 13.7 | G168: 14.2 | H168: 14.6 | I168: 15 | J168: 15.4 | K168: 15.9 | L168: 16.3 | M168: 16.7 | N168: 17 | O168: 17.4 | P168: EX6
A169: 50 | B169: 1 | C169: 11.8 | D169: 12.3 | E169: 12.7 | F169: 13.2 | G169: 13.7 | H169: 14.2 | I169: 14.6 | J169: 15.1 | K169: 15.6 | L169: 16 | M169: 16.4 | N169: 16.8 | O169: 17.3 | P169: EX6
A170: 60 | B170: 1 | C170: 10.5 | D170: 11 | E170: 11.5 | F170: 12 | G170: 12.6 | H170: 13.1 | I170: 13.6 | J170: 14.1 | K170: 14.5 | L170: 15 | M170: 15.5 | N170: 15.9 | O170: 16.4 | P170: EX6
A171: 30 | B171: 0.1 | C171: PED! | D171: PED! | E171: PED! | F171: PED! | G171: PED! | H171: PED! | I171: PED! | J171: PED! | K171: PED! | L171: PED! | M171: PED! | N171: PED! | O171: PED! | P171: EX7 | R171: 14.5 | S171: 15 | T171: 15.5 | U171: 16 | V171: 16.5 | W171: 16.9 | X171: 17.4 | Y171: 17.9 | Z171: 18.3 | AA171: 18.7 | AB171: 19.2 | AC171: 19.6 | AD171: 20
A172: 40 | B172: 0.1 | C172: PED! | D172: PED! | E172: PED! | F172: PED! | G172: PED! | H172: PED! | I172: PED! | J172: PED! | K172: PED! | L172: PED! | M172: PED! | N172: PED! | O172: PED! | P172: EX7 | R172: 14.3 | S172: 14.8 | T172: 15.4 | U172: 15.9 | V172: 16.4 | W172: 16.9 | X172: 17.4 | Y172: 17.9 | Z172: 18.4 | AA172: 18.9 | AB172: 19.3 | AC172: 19.8 | AD172: 20.2
A173: 50 | B173: 0.1 | C173: PED! | D173: PED! | E173: PED! | F173: PED! | G173: PED! | H173: PED! | I173: PED! | J173: PED! | K173: PED! | L173: PED! | M173: PED! | N173: PED! | O173: PED! | P173: EX7 | R173: 13.5 | S173: 14.1 | T173: 14.7 | U173: 15.2 | V173: 15.8 | W173: 16.3 | X173: 16.9 | Y173: 17.4 | Z173: 17.9 | AA173: 18.5 | AB173: 19 | AC173: 19.5 | AD173: 19.9
A174: 60 | B174: 0.1 | C174: PED! | D174: PED! | E174: PED! | F174: PED! | G174: PED! | H174: PED! | I174: PED! | J174: PED! | K174: PED! | L174: PED! | M174: PED! | N174: PED! | O174: PED! | P174: EX7 | R174: 12 | S174: 12.6 | T174: 13.2 | U174: 13.8 | V174: 14.4 | W174: 15 | X174: 15.6 | Y174: 16.1 | Z174: 16.7 | AA174: 17.3 | AB174: 17.8 | AC174: 18.3 | AD174: 18.8
A175: 30 | B175: 0.5 | C175: PED! | D175: PED! | E175: PED! | F175: PED! | G175: PED! | H175: PED! | I175: PED! | J175: PED! | K175: PED! | L175: PED! | M175: PED! | N175: PED! | O175: PED! | P175: EX7 | R175: 32 | S175: 33.1 | T175: 34.1 | U175: 35.2 | V175: 36.2 | W175: 37.3 | X175: 38.3 | Y175: 39.3 | Z175: 40.2 | AA175: 41.2 | AB175: 42.1 | AC175: 43 | AD175: 43.9
A176: 40 | B176: 0.5 | C176: PED! | D176: PED! | E176: PED! | F176: PED! | G176: PED! | H176: PED! | I176: PED! | J176: PED! | K176: PED! | L176: PED! | M176: PED! | N176: PED! | O176: PED! | P176: EX7 | R176: 31.6 | S176: 32.7 | T176: 33.9 | U176: 35 | V176: 36.2 | W176: 37.3 | X176: 38.4 | Y176: 39.5 | Z176: 40.6 | AA176: 41.6 | AB176: 42.6 | AC176: 43.6 | AD176: 44.6
A177: 50 | B177: 0.5 | C177: PED! | D177: PED! | E177: PED! | F177: PED! | G177: PED! | H177: PED! | I177: PED! | J177: PED! | K177: PED! | L177: PED! | M177: PED! | N177: PED! | O177: PED! | P177: EX7 | R177: 35.3 | S177: 36.4 | T177: 37.6 | U177: 38.7 | V177: 39.7 | W177: 40.8 | X177: 41.8 | Y177: 42.9 | Z177: 43.8 | AA177: 44.8 | AB177: 45.7 | AC177: 46.6 | AD177: 44
A178: 60 | B178: 0.5 | C178: PED! | D178: PED! | E178: PED! | F178: PED! | G178: PED! | H178: PED! | I178: PED! | J178: PED! | K178: PED! | L178: PED! | M178: PED! | N178: PED! | O178: PED! | P178: EX7 | R178: 26.7 | S178: 28 | T178: 29.3 | U178: 30.6 | V178: 31.9 | W178: 33.2 | X178: 34.5 | Y178: 35.7 | Z178: 37 | AA178: 38.2 | AB178: 39.4 | AC178: 40.6 | AD178: 41.7
A179: 30 | B179: 1 | C179: PED! | D179: PED! | E179: PED! | F179: PED! | G179: PED! | H179: PED! | I179: PED! | J179: PED! | K179: PED! | L179: PED! | M179: PED! | N179: PED! | O179: PED! | P179: EX7 | R179: 44.4 | S179: 45.9 | T179: 47.3 | U179: 48.8 | V179: 50.2 | W179: 51.6 | X179: 53 | Y179: 54.3 | Z179: 55.7 | AA179: 57 | AB179: 58.2 | AC179: 59.5 | AD179: 60.7
A180: 40 | B180: 1 | C180: PED! | D180: PED! | E180: PED! | F180: PED! | G180: PED! | H180: PED! | I180: PED! | J180: PED! | K180: PED! | L180: PED! | M180: PED! | N180: PED! | O180: PED! | P180: EX7 | R180: 44 | S180: 45.6 | T180: 47.2 | U180: 48.7 | V180: 50.3 | W180: 51.8 | X180: 53.4 | Y180: 54.9 | Z180: 56.3 | AA180: 57.8 | AB180: 59.2 | AC180: 60.6 | AD180: 61.9
A181: 50 | B181: 1 | C181: PED! | D181: PED! | E181: PED! | F181: PED! | G181: PED! | H181: PED! | I181: PED! | J181: PED! | K181: PED! | L181: PED! | M181: PED! | N181: PED! | O181: PED! | P181: EX7 | R181: 41.8 | S181: 43.5 | T181: 45.3 | U181: 47 | V181: 48.7 | W181: 50.4 | X181: 52 | Y181: 53.7 | Z181: 55.3 | AA181: 56.8 | AB181: 58.4 | AC181: 59.9 | AD181: 61.3
A182: 60 | B182: 1 | C182: PED! | D182: PED! | E182: PED! | F182: PED! | G182: PED! | H182: PED! | I182: PED! | J182: PED! | K182: PED! | L182: PED! | M182: PED! | N182: PED! | O182: PED! | P182: EX7 | R182: 37.3 | S182: 39.1 | T182: 41 | U182: 42.8 | V182: 44.6 | W182: 46.4 | X182: 48.2 | Y182: 49.9 | Z182: 51.7 | AA182: 53.4 | AB182: 55 | AC182: 56.6 | AD182: 58.2
A183: 30 | B183: 0.1 | C183: PED! | D183: PED! | E183: PED! | F183: PED! | G183: PED! | H183: PED! | I183: PED! | J183: PED! | K183: PED! | L183: PED! | M183: PED! | N183: PED! | O183: PED! | P183: EX8 | R183: 44.2 | S183: 45.7 | T183: 47.1 | U183: 48.6 | V183: 50 | W183: 51.5 | X183: 52.9 | Y183: 54.2 | Z183: 55.6 | AA183: 56.9 | AB183: 58.2 | AC183: 59.5 | AD183: 60.7
A184: 40 | B184: 0.1 | C184: PED! | D184: PED! | E184: PED! | F184: PED! | G184: PED! | H184: PED! | I184: PED! | J184: PED! | K184: PED! | L184: PED! | M184: PED! | N184: PED! | O184: PED! | P184: EX8 | R184: 43.4 | S184: 45 | T184: 46.6 | U184: 48.2 | V184: 49.8 | W184: 51.3 | X184: 52.9 | Y184: 54.4 | Z184: 55.9 | AA184: 57.3 | AB184: 58.8 | AC184: 60.1 | AD184: 61.5
A185: 50 | B185: 0.1 | C185: PED! | D185: PED! | E185: PED! | F185: PED! | G185: PED! | H185: PED! | I185: PED! | J185: PED! | K185: PED! | L185: PED! | M185: PED! | N185: PED! | O185: PED! | P185: EX8 | R185: 41.1 | S185: 42.8 | T185: 44.5 | U185: 46.2 | V185: 47.9 | W185: 49.6 | X185: 51.3 | Y185: 52.9 | Z185: 54.5 | AA185: 56.1 | AB185: 57.6 | AC185: 59.1 | AD185: 60.6
A186: 60 | B186: 0.1 | C186: PED! | D186: PED! | E186: PED! | F186: PED! | G186: PED! | H186: PED! | I186: PED! | J186: PED! | K186: PED! | L186: PED! | M186: PED! | N186: PED! | O186: PED! | P186: EX8 | R186: 36.5 | S186: 38.3 | T186: 40.1 | U186: 41.9 | V186: 43.7 | W186: 45.5 | X186: 47.3 | Y186: 49 | Z186: 50.7 | AA186: 52.4 | AB186: 54.1 | AC186: 55.7 | AD186: 57.2
A187: 30 | B187: 0.5 | C187: PED! | D187: PED! | E187: PED! | F187: PED! | G187: PED! | H187: PED! | I187: PED! | J187: PED! | K187: PED! | L187: PED! | M187: PED! | N187: PED! | O187: PED! | P187: EX8 | R187: 97.3 | S187: 100.5 | T187: 103.7 | U187: 106.9 | V187: 110.1 | W187: 113.2 | X187: 116.2 | Y187: 119.3 | Z187: 122.2 | AA187: 125.1 | AB187: 127.9 | AC187: 130.7 | AD187: 133.4
A188: 40 | B188: 0.5 | C188: PED! | D188: PED! | E188: PED! | F188: PED! | G188: PED! | H188: PED! | I188: PED! | J188: PED! | K188: PED! | L188: PED! | M188: PED! | N188: PED! | O188: PED! | P188: EX8 | R188: 95.9 | S188: 99.4 | T188: 102.9 | U188: 106.4 | V188: 109.9 | W188: 113.3 | X188: 116.6 | Y188: 119.9 | Z188: 123.2 | AA188: 126.4 | AB188: 129.5 | AC188: 132.5 | AD188: 135.5
A189: 50 | B189: 0.5 | C189: PED! | D189: PED! | E189: PED! | F189: PED! | G189: PED! | H189: PED! | I189: PED! | J189: PED! | K189: PED! | L189: PED! | M189: PED! | N189: PED! | O189: PED! | P189: EX8 | R189: 107.2 | S189: 110.7 | T189: 114.1 | U189: 117.4 | V189: 120.7 | W189: 124 | X189: 127.1 | Y189: 130.2 | Z189: 133.2 | AA189: 136.1 | AB189: 138.8 | AC189: 141.4 | AD189: 133.8
A190: 60 | B190: 0.5 | C190: PED! | D190: PED! | E190: PED! | F190: PED! | G190: PED! | H190: PED! | I190: PED! | J190: PED! | K190: PED! | L190: PED! | M190: PED! | N190: PED! | O190: PED! | P190: EX8 | R190: 81 | S190: 85 | T190: 89 | U190: 93 | V190: 96.9 | W190: 100.9 | X190: 104.7 | Y190: 108.6 | Z190: 112.4 | AA190: 116.1 | AB190: 119.7 | AC190: 123.2 | AD190: 126.6
A191: 30 | B191: 1 | C191: PED! | D191: PED! | E191: PED! | F191: PED! | G191: PED! | H191: PED! | I191: PED! | J191: PED! | K191: PED! | L191: PED! | M191: PED! | N191: PED! | O191: PED! | P191: EX8 | R191: 134.8 | S191: 139.3 | T191: 143.7 | U191: 148.1 | V191: 152.4 | W191: 156.7 | X191: 160.9 | Y191: 165 | Z191: 169.1 | AA191: 173 | AB191: 176.9 | AC191: 180.7 | AD191: 184.3
A192: 40 | B192: 1 | C192: PED! | D192: PED! | E192: PED! | F192: PED! | G192: PED! | H192: PED! | I192: PED! | J192: PED! | K192: PED! | L192: PED! | M192: PED! | N192: PED! | O192: PED! | P192: EX8 | R192: 133.5 | S192: 138.4 | T192: 143.2 | U192: 148 | V192: 152.8 | W192: 157.5 | X192: 162.1 | Y192: 166.7 | Z192: 171.2 | AA192: 175.5 | AB192: 179.8 | AC192: 184 | AD192: 188
A193: 50 | B193: 1 | C193: PED! | D193: PED! | E193: PED! | F193: PED! | G193: PED! | H193: PED! | I193: PED! | J193: PED! | K193: PED! | L193: PED! | M193: PED! | N193: PED! | O193: PED! | P193: EX8 | R193: 127 | S193: 132.3 | T193: 137.5 | U193: 142.7 | V193: 147.9 | W193: 153 | X193: 158 | Y193: 163 | Z193: 167.9 | AA193: 172.7 | AB193: 177.3 | AC193: 181.9 | AD193: 186.3
A194: 60 | B194: 1 | C194: PED! | D194: PED! | E194: PED! | F194: PED! | G194: PED! | H194: PED! | I194: PED! | J194: PED! | K194: PED! | L194: PED! | M194: PED! | N194: PED! | O194: PED! | P194: EX8 | R194: 113.3 | S194: 118.9 | T194: 124.5 | U194: 130 | V194: 135.5 | W194: 141 | X194: 146.4 | Y194: 151.7 | Z194: 157 | AA194: 162.1 | AB194: 167.1 | AC194: 172 | AD194: 176.7
A195: R454C
A196: °C | B196: bar | C196: -45 | D196: -40 | E196: -35 | F196: -30 | G196: -25 | H196: -20 | I196: -15 | J196: -10 | K196: -5 | L196: 0 | M196: 5 | N196: 10 | O196: 15
A197: 30 | B197: 0.1 | C197: 3.5 | D197: 3.7 | E197: 3.8 | F197: 3.9 | G197: 4 | H197: 4.2 | I197: 4.3 | J197: 4.4 | K197: 4.5 | L197: 4.6 | M197: 4.8 | N197: 4.9 | O197: 5 | P197: EX6
A198: 40 | B198: 0.1 | C198: 3.4 | D198: 3.6 | E198: 3.7 | F198: 3.8 | G198: 4 | H198: 4.1 | I198: 4.3 | J198: 4.4 | K198: 4.5 | L198: 4.7 | M198: 4.8 | N198: 4.9 | O198: 5 | P198: EX6
A199: 50 | B199: 0.1 | C199: 3.2 | D199: 3.3 | E199: 3.5 | F199: 3.7 | G199: 3.8 | H199: 4 | I199: 4.1 | J199: 4.3 | K199: 4.4 | L199: 4.6 | M199: 4.7 | N199: 4.8 | O199: 5 | P199: EX6
A200: 60 | B200: 0.1 | C200: 2.8 | D200: 3 | E200: 3.1 | F200: 3.3 | G200: 3.5 | H200: 3.6 | I200: 3.8 | J200: 3.9 | K200: 4.1 | L200: 4.3 | M200: 4.4 | N200: 4.6 | O200: 4.7 | P200: EX6
A201: 30 | B201: 0.5 | C201: 7.7 | D201: 8 | E201: 8.3 | F201: 8.6 | G201: 8.9 | H201: 9.1 | I201: 9.4 | J201: 9.7 | K201: 9.9 | L201: 10.2 | M201: 10.4 | N201: 10.7 | O201: 10.9 | P201: EX6
... 373 more rows

Sheet E-HeatRecl-CO2
B1: =INDEX(Language!$B$2:$M$41,2,Language!$A$1) -> Instruction: Select refrigerant and fill yellow fields with operating conditions.
B2: =INDEX(Language!$B$2:$M$41,3,Language!$A$1) -> #N/A error message: operating conditions, refrigerant or product out of range/specification.
E4: =INDEX(Language!$B$2:$M$41,4,Language!$A$1) -> Project:
E5: =INDEX(Language!$B$2:$M$299,87,Language!$A$1) -> Electrical control valves
E6: =INDEX(Language!$B$2:$M$400,353,Language!$A$1) -> Heat reclaim
B7: =INDEX(Language!$B$2:$M$299,5,Language!$A$1) -> Refrigerant | D7: =INDEX('E-Heat-co2-Fun'!$G$5:$G$12,'E-Heat-co2-Fun'!$G$4) -> R744
B8: =INDEX(Language!$B$2:$M$400,260,Language!$A$1) -> Gas cooler pressure | D8: 90 | E8: =INDEX('E-EX-Fun'!$N$5:$P$15,10,'E-EX-Fun'!$D$19) -> bara | F8: max | G8: 120 bar | H8: 1755 psia
F9: min | G9: 80 bar | H9: 1175 psia
B10: =INDEX(Language!$B$2:$M$400,259,Language!$A$1) -> Gas cooler outlet temperature | D10: 35 | E10: =INDEX('E-EX-Fun'!$N$5:$P$15,2,'E-EX-Fun'!$D$19) -> °C | F10: max | G10: 43°C | H10: 109 F
F11: min | G11: 31°C | H11: 88 F
B12: =INDEX(Language!$B$2:$M$400,35,Language!$A$1) -> Required pressure drop across valve | D12: 1.5 | E12: =INDEX('E-EX-Fun'!$N$5:$P$15,5,'E-EX-Fun'!$D$19) -> bar | F12: max | G12: 1 bar | H12: 14.5 psid
F13: min | G13: 0.1 bar | H13: 1.5 psid | J13: Dp= | K13: =TEXT($D$12,"0,0")&$E$12 -> 1,5bar
B14: =INDEX(Language!$B$2:$M$400,354,Language!$A$1) -> Capacity heat reclaim | D14: 25 | E14: =INDEX('E-EX-Fun'!$N$5:$P$15,4,'E-EX-Fun'!$D$19) -> kW | M14: =TEXT($D$8,"0,0")&$E$8 -> 90,0bara
K16: HR
J17: Dp= | K17: =TEXT($D$12,"0,0")&$E$12 -> 1,5bar
H22: =TEXT($D$10,"0,0")&$E$10 -> 35,0°C
K23: GC
B32: =INDEX(Language!$B$2:$M$41,14,Language!$A$1) -> Your choice
B34: =INDEX(Language!$B$2:$M$41,17,Language!$A$1) -> High performance stepper motor ECV | M34: =CONCATENATE(INDEX(Language!$B$2:$M$41,23,Language!$A$1),E14,")") -> Maximum valve capacity at selected conditions (kW)
D36: =INDEX(Language!$B$2:$M$41,15,Language!$A$1) -> Type | F36: =INDEX(Language!$B$2:$M$41,18,Language!$A$1) -> Part No. | H36: =INDEX(Language!$B$2:$M$41,16,Language!$A$1) -> Ratio | M36: =INDEX(Language!$B$2:$M$41,15,Language!$A$1) -> Type | P36: ='E-Heat-co2-Fun'!$G$31 -> R744
C37: HR | D37: =INDEX('E-Heat-co2-Fun'!$B$25:$B$27,'E-Heat-co2-Fun'!$H$25) ->  | F37: =INDEX('E-Heat-co2-Fun'!$C$25:$C$27,'E-Heat-co2-Fun'!$H$25) ->  | H37: =TEXT('E-Heat-co2-Fun'!I26,"0%")&" "&IF('E-Heat-co2-Fun'!I26>10%,"OK",INDEX(Language!$B$2:$M$41,36,Language!$A$1)) ->  | M37: ='E-Heat-co2-Fun'!B25 -> CV7-HPV | P37: ='E-Heat-co2-Fun'!E25 -> 
C38: GC | D38: =D37 ->  | H38: =H37 ->  | M38: ='E-Heat-co2-Fun'!B26 -> CV6-HPV | P38: ='E-Heat-co2-Fun'!E26 -> 
M39: ='E-Heat-co2-Fun'!B27 -> CV5-HPV | P39: ='E-Heat-co2-Fun'!E27 -> 
B42: =INDEX(Language!$B$2:$M$41,19,Language!$A$1) -> Controller for ECV
D43: ='El Ctr-Dat'!$B$70 -> EXD-U02 | F43: ='El Ctr-Dat'!$C$70 -> 804 752 | G43: ='El Ctr-Dat'!$D$70 -> Universal driver
D44: ='El Ctr-Dat'!$B$71 -> K09-U00 | F44: ='El Ctr-Dat'!$C$71 -> 804 559 | G44: ='El Ctr-Dat'!$D$71 -> Terminal kit for EXD-U02
D45: ='E-EX-Dat'!$D$95 -> ECP-024 | F45: ='E-EX-Dat'!$E$95 -> 804 558 | G45: ='El Ctr-Dat'!$D$72 -> Uninterruptible power supply for up to two EXD-U02
D47: ='E-EX-Dat'!$D$96 -> K09-P00 | F47: ='E-EX-Dat'!$E$96 -> 804 560 | G47: ='El Ctr-Dat'!$D$73 -> Terminal kit for ECP-024
D49: =INDEX(Language!$B$2:$M$400,371,Language!$A$1) -> Temperature controllers
D50: =" "&INDEX(Language!$B$2:$M$400,372,Language!$A$1) -> for EX4-8 Series only
D51: =INDEX(Language!$B$2:$M$400,15,Language!$A$1) -> Type | F51: =INDEX(Language!$B$2:$M$41,18,Language!$A$1) -> Part No. | G51: =INDEX(Language!$B$2:$M$400,285,Language!$A$1) -> Description
D52: ='El Ctr-Dat'!$B$127 -> EXD-SH1 | F52: ='El Ctr-Dat'!$C$127 -> 807 855 | G52: ='El Ctr-Dat'!$E$127 -> Controller for single refrigeration circuit
D54: ='El Ctr-Dat'!$B$128 -> EXD-SH2 | F54: ='El Ctr-Dat'!$C$128 -> 807 856 | G54: ='El Ctr-Dat'!$E$128 -> Controller for two independent refrigeration circuits
D56: ='El Ctr-Dat'!$B$129 -> EXD-M03 | F56: ='El Ctr-Dat'!$D$129 -> 807 865 | G56: ='El Ctr-Dat'!$E$129 -> Molex terminal with 3 meter wires
D57: ='El Ctr-Dat'!$B$103 -> ECN-N60 | F57: ='El Ctr-Dat'!$C$103 -> 804 497 | G57: ='El Ctr-Dat'!$D$103 -> Temperature sensor Cable length 6,0 m
B59: =Home!$D$43 -> Rev.: 01.11.2019
B60: =INDEX(Language!$B$2:$M$251,250,Language!$A$1) -> The Controls Navigator is provided by Emerson Climate Technologies Europe to assist with the selection of mechanical and electronic controls. Emerson Climate Technologies cannot be held liable for issues arising from application of controls using information provided by this software.

Sheet E-Heat-co2-Fun (hidden)
A1: Functions, Formulas, Codes
B3: Languages | E3: Refrigerant Selection | H3: Startzeile in Daten | M3: Convert to °C-bar-kW
B4: 1 | C4: =Language!B$2 -> English | E4: =INDEX(E5:E17,$G4) -> 12 | F4: =INDEX(F5:F17,$G4) -> 12 | G4: 1 | H4: =INDEX(H5:H17,$G4) -> 0 | I4: =INDEX(I5:I17,$G4) -> 0 | O4: tons | P4: tBTU/h
B5: 2 | C5: =Language!C$2 -> Deutsch | E5: 12 | F5: 12 | G5: R744 | H5: 0 | I5: =H5-H$6 -> 0 | N5: Metric | O5: Imperial | P5: Imperial
B6: 3 | C6: =Language!D$2 -> Français | E6: 12 | F6: 12 | G6: R744 | N6: °C | O6: °F | P6: °F
B7: 4 | C7: =Language!E$2 -> Italiano | N7: K | O7: °F | P7: °F
B8: 5 | C8: =Language!F$2 -> Españiol | N8: kW | O8: tons | P8: MBH
B9: 6 | C9: =Language!G$2 -> Nederlands | N9: bar | O9: Psid | P9: Psid
B10: 7 | C10: =Language!H$2 -> Polish | M10: °C | N10: 0 | O10: 32 | P10: 32
B11: 8 | C11: =Language!I$2 -> Czech | M11: K | N11: 1 | O11: 0.5555555556 | P11: 0.5555555556
B12: 9 | C12: =Language!J$2 -> Russian | M12: kW | N12: 1 | O12: 0.284 | P12: =0.94781*3600/1000 -> 3.412116
B13: 10 | C13: =Language!K$2 -> Chinese | M13: bar | N13: 1 | O13: 14.5038 | P13: 14.5038
B14: 11 | C14: =Language!L$2 -> Japanese | N14: bara | O14: Psia | P14: Psia
B15: 12 | C15: =Language!M$2 -> Română | O15: 14.7 | P15: 14.7
B18: Units Conversion
C19: °C-bar-kW | D19: ='E-EX-Fun'!$D$19 -> 1
C20: °F-Psi-tons
C21: °F-Psi-MBH
A23: Valve Data | E23: Metric/imperial
B24: Type | C24: PCN | D24: Capacity | E24: Capacity | F24: =INDEX(Language!$B$2:$M$41,11,Language!$A$1)&" Q0:" -> System cooling capacity Q0: | I24: ='E-HeatRecl-CO2'!$D$14/(INDEX($N$5:$P$15,8,$D$19)) -> 25 | J24: kW
B25: CV7-HPV | C25: - | D25: =$L$88 ->  | E25: =D25*INDEX('E-Heat-co2-Fun'!$N$5:$P$15,8,'E-Heat-co2-Fun'!$D$19) ->  | F25: Nächstes Ventil | H25: =MATCH($I$24,$D$25:$D$27,-1) ->  | I25: =INDEX(D25:D27,H25) ->  | J25: kW
B26: CV6-HPV | C26: 802058 | D26: =$L$72 ->  | E26: =D26*INDEX('E-Heat-co2-Fun'!$N$5:$P$15,8,'E-Heat-co2-Fun'!$D$19) ->  | F26: =INDEX(Language!$B$2:$M$41,16,Language!$A$1) -> Ratio | I26: =I24/I25 -> 
B27: CV5-HPV | C27: 802057 | D27: =$L$56 ->  | E27: =D27*INDEX('E-Heat-co2-Fun'!$N$5:$P$15,8,'E-Heat-co2-Fun'!$D$19) -> 
B28: CV4-HPV | C28: 802056 | D28: -
A31: Expansion Valve Function | F31: Selected Refrigerant | G31: =INDEX($G$5:$G$17,$G$4) -> R744
K32: Hinweis: | L32: Die Leistungsdaten sind untereinander angeordnet
B33: Kondensationstemp.bereiche | F33: Ventilbereiche | I33: Dp | L33: Horizontal Gas cooler temperature 31 ... +43°C
B34: Rel. Startzeile des Bereichs: | F34: Rel. Startsplt des Ber. | L34: Vertikal: alle anderen Daten
B35: 80 | C35: 0 | F35: CV5 | G35: 0 | I35: 0.1 | J35: 0 | K35: Bereich: | L35: 'E-Heat-CO2-Dat'!C6:P51
B36: =B35+10 -> 90 | C36: 1 | F36: CV6 | G36: 15 | I36: 0.5 | J36: 5
B37: =B36+10 -> 100 | C37: 2 | F37: CV7 | G37: 30 | I37: 1 | J37: 10
B38: =B37+10 -> 110 | C38: 3 | I38: 1.1 | J38: n/a
B39: =B38+10 -> 120 | C39: n/a
A44: CV5 | D44: max | E44: 43 | F44: °C | I44: Rel Spalte Gaskühler Temperatur
B45: =INDEX(Language!$B$2:$M$299,259,Language!$A$1) -> Gas cooler outlet temperature | D45: Roundup | E45: =IF(E46<0,ROUNDDOWN(E46,0)/2,ROUNDUP(E46,0)) -> 35 | G45: =MATCH(E45,'E-Heat-CO2-Dat'!C5:O5) -> 5 | K45: =$G$45 -> 5 | O45: =$G$45 -> 5
D46: Value | E46: =IF(P46>E44,"#N/A",IF(P46<E48,"#N/A",P46)) -> 35 | F46: °C | G46: ='E-HeatRecl-CO2'!$D$10 -> 35 | P46: =IF($D$19=1,'E-HeatRecl-CO2'!$D$10,('E-HeatRecl-CO2'!$D$10-32)/1.8) -> 35
D47: Rounddown | E47: =IF(E46<0,ROUNDUP(E46,0),ROUNDDOWN(E46,0)) -> 35 | G47: =MATCH(E47,'E-Heat-CO2-Dat'!C5:O5) -> 5 | I47: =$G$47 -> 5 | M47: =$G$47 -> 5
D48: min | E48: 31 | F48: °C
D49: max | E49: 120 | F49: bar | I49: =$G$47 -> 5 | K49: =$G$45 -> 5 | M49: =$G$47 -> 5 | O49: =$G$45 -> 5
B50: =INDEX(Language!$B$2:$M$299,260,Language!$A$1) -> Gas cooler pressure | D50: Roundup | E50: =IF(E51<0,ROUNDDOWN(E51,-1),ROUNDUP(E51,-1)) -> 90 | G50: =MATCH(E50,'E-Heat-CO2-Dat'!A6:A10) -> 2 | H50: =$G50+H$55+$G$35+$I$4 ->  | I50: =INDEX(INDIRECT($L$35),$H50,I$49) ->  | K50: =INDEX(INDIRECT($L$35),$H50,K$49) ->  | L50: =$G50+L$57+$G$35+$I$4 ->  | M50: =INDEX(INDIRECT($L$35),$L50,M$49) ->  | O50: =INDEX(INDIRECT($L$35),$L50,O$49) -> 
D51: Value | E51: =IF(P51>E49,"#N/A",IF(P51<E53,"#N/A",P51)) -> 90 | F51: bar | G51: ='E-HeatRecl-CO2'!$D$8 -> 90 | I51: =IF($E52=$E50,I52,I52+((I50-I52)*($E51-$E52)/($E50-$E52))) ->  | J51: =IF($E47=$E45,I51,I51+((K51-I51)*($E46-$E47)/($E45-$E47))) ->  | K51: =IF($E52=$E50,K52,K52+((K50-K52)*($E51-$E52)/($E50-$E52))) ->  | M51: =IF($E52=$E50,M52,M52+((M50-M52)*($E51-$E52)/($E50-$E52))) ->  | N51: =IF($E47=$E45,M51,M51+((O51-M51)*($E46-$E47)/($E45-$E47))) ->  | O51: =IF($E52=$E50,O52,O52+((O50-O52)*($E51-$E52)/($E50-$E52))) ->  | P51: =IF($D$19=1,'E-HeatRecl-CO2'!$D$8,('E-HeatRecl-CO2'!$D$8/14.5)) -> 90
D52: Rounddown | E52: =IF(E51<0,ROUNDUP(E51,-1),ROUNDDOWN(E51,-1)) -> 90 | G52: =MATCH(E52,'E-Heat-CO2-Dat'!A6:A10) -> 2 | H52: =$G52+$H$55+$G$35+$I$4 ->  | I52: =INDEX(INDIRECT($L$35),$H52,I$49) ->  | K52: =INDEX(INDIRECT($L$35),$H52,K$49) ->  | L52: =$G52+L$57+$G$35+$I$4 ->  | M52: =INDEX(INDIRECT($L$35),$L52,M$49) ->  | O52: =INDEX(INDIRECT($L$35),$L52,O$49) -> 
D53: min | E53: 80 | F53: bar
D54: max | E54: 1 | F54: bard
B55: =INDEX(Language!$B$2:$M$400,35,Language!$A$1) -> Required pressure drop across valve | D55: Rounddown | E55: =INDEX($I$35:$I$38,$F55) ->  | F55: =MATCH($E56,$I$35:$I$38) ->  | H55: =INDEX($J$35:$J$38,$F55) -> 
D56: Value | E56: =IF(P56>E54,"#N/A",IF(P56<E58,"#N/A",P56)) -> #N/A | F56: bar | L56: =IF(E57=E55,J51,J51+((N51-J51)*(E56-E55)/(E57-E55))) ->  | P56: =IF($D$19=1,'E-HeatRecl-CO2'!$D$12,('E-HeatRecl-CO2'!$D$12/14.5)) -> 1.5
D57: Roundup | E57: =IF(E56=E54,E56,INDEX($I$35:$I$38,$F57)) ->  | F57: =IF($E56=1,3,MATCH($E56,$I$35:$I$38)+1) ->  | H57: =INDEX($J$35:$J$38,$F57) ->  | L57: =H57 ->  | M57: =INDEX($C$105:$C$109,$F57) -> 
D58: min | E58: 0.1 | F58: bard
A60: CV6 | D60: max | E60: 43 | F60: °C | I60: Rel Spalte Verdampfungstemperatur
B61: =INDEX(Language!$B$2:$M$299,259,Language!$A$1) -> Gas cooler outlet temperature | D61: Roundup | E61: =IF(E62<0,ROUNDDOWN(E62,0)/2,ROUNDUP(E62,0)) -> 35 | G61: =MATCH(E61,'E-Heat-CO2-Dat'!C5:O5) -> 5 | K61: =$G$45 -> 5 | O61: =$G$45 -> 5
D62: Value | E62: =IF(P62>E60,"#N/A",IF(P62<E64,"#N/A",P62)) -> 35 | F62: °C | G62: ='E-HeatRecl-CO2'!$D$10 -> 35 | P62: =IF($D$19=1,'E-HeatRecl-CO2'!$D$10,('E-HeatRecl-CO2'!$D$10-32)/1.8) -> 35
D63: Rounddown | E63: =IF(E62<0,ROUNDUP(E62,0),ROUNDDOWN(E62,0)) -> 35 | G63: =MATCH(E63,'E-Heat-CO2-Dat'!C5:O5) -> 5 | I63: =$G$47 -> 5 | M63: =$G$47 -> 5
D64: min | E64: 31 | F64: °C
D65: max | E65: 120 | F65: bar | I65: =$G$47 -> 5 | K65: =$G$45 -> 5 | M65: =$G$47 -> 5 | O65: =$G$45 -> 5
B66: =INDEX(Language!$B$2:$M$299,260,Language!$A$1) -> Gas cooler pressure | D66: Roundup | E66: =IF(E67<0,ROUNDDOWN(E67,-1),ROUNDUP(E67,-1)) -> 90 | G66: =MATCH(E66,'E-Heat-CO2-Dat'!A6:A10) -> 2 | H66: =$G66+H$55+$G$36+$I$4 ->  | I66: =INDEX(INDIRECT($L$35),$H66,I$49) ->  | K66: =INDEX(INDIRECT($L$35),$H66,K$49) ->  | L66: =$G66+L$57+$G$36+$I$4 ->  | M66: =INDEX(INDIRECT($L$35),$L66,M$49) ->  | O66: =INDEX(INDIRECT($L$35),$L66,O$49) -> 
D67: Value | E67: =IF(P67>E65,"#N/A",IF(P67<E69,"#N/A",P67)) -> 90 | F67: bar | G67: ='E-HeatRecl-CO2'!$D$8 -> 90 | I67: =IF($E68=$E66,I68,I68+((I66-I68)*($E67-$E68)/($E66-$E68))) ->  | J67: =IF($E63=$E61,I67,I67+((K67-I67)*($E62-$E63)/($E61-$E63))) ->  | K67: =IF($E68=$E66,K68,K68+((K66-K68)*($E67-$E68)/($E66-$E68))) ->  | M67: =IF($E68=$E66,M68,M68+((M66-M68)*($E67-$E68)/($E66-$E68))) ->  | N67: =IF($E63=$E61,M67,M67+((O67-M67)*($E62-$E63)/($E61-$E63))) ->  | O67: =IF($E68=$E66,O68,O68+((O66-O68)*($E67-$E68)/($E66-$E68))) ->  | P67: =IF($D$19=1,'E-HeatRecl-CO2'!$D$8,('E-HeatRecl-CO2'!$D$8/14.5)) -> 90
D68: Rounddown | E68: =IF(E67<0,ROUNDUP(E67,-1),ROUNDDOWN(E67,-1)) -> 90 | G68: =MATCH(E68,'E-Heat-CO2-Dat'!A6:A10) -> 2 | H68: =$G68+$H$55+$G$36+$I$4 ->  | I68: =INDEX(INDIRECT($L$35),$H68,I$49) ->  | K68: =INDEX(INDIRECT($L$35),$H68,K$49) ->  | L68: =$G68+L$57+$G$36+$I$4 ->  | M68: =INDEX(INDIRECT($L$35),$L68,M$49) ->  | O68: =INDEX(INDIRECT($L$35),$L68,O$49) -> 
D69: min | E69: 80 | F69: bar
D70: max | E70: 1 | F70: bard
B71: =INDEX(Language!$B$2:$M$400,35,Language!$A$1) -> Required pressure drop across valve | D71: Rounddown | E71: =INDEX($I$35:$I$38,$F71) ->  | F71: =MATCH($E72,$I$35:$I$38) ->  | H71: =INDEX($J$35:$J$38,$F71) -> 
D72: Value | E72: =IF(P72>E70,"#N/A",IF(P72<E74,"#N/A",P72)) -> #N/A | F72: bar | L72: =IF(E73=E71,J67,J67+((N67-J67)*(E72-E71)/(E73-E71))) ->  | P72: =IF($D$19=1,'E-HeatRecl-CO2'!$D$12,('E-HeatRecl-CO2'!$D$12/14.5)) -> 1.5
D73: Roundup | E73: =IF(E72=E70,E72,INDEX($I$35:$I$38,$F73)) ->  | F73: =IF($E72=1,3,MATCH($E72,$I$35:$I$38)+1) ->  | H73: =INDEX($J$35:$J$38,$F73) ->  | L73: =H73 ->  | M73: =INDEX($C$105:$C$109,$F73) -> 
D74: min | E74: 0.1 | F74: bard
A76: CV7 | D76: max | E76: 43 | F76: °C | I76: Rel Spalte Verdampfungstemperatur
B77: =INDEX(Language!$B$2:$M$299,259,Language!$A$1) -> Gas cooler outlet temperature | D77: Roundup | E77: =IF(E78<0,ROUNDDOWN(E78,0)/2,ROUNDUP(E78,0)) -> 35 | G77: =MATCH(E77,'E-Heat-CO2-Dat'!C5:O5) -> 5 | K77: =$G$45 -> 5 | O77: =$G$45 -> 5
D78: Value | E78: =IF(P78>E76,"#N/A",IF(P78<E80,"#N/A",P78)) -> 35 | F78: °C | G78: ='E-HeatRecl-CO2'!$D$10 -> 35 | P78: =IF($D$19=1,'E-HeatRecl-CO2'!$D$10,('E-HeatRecl-CO2'!$D$10-32)/1.8) -> 35
D79: Rounddown | E79: =IF(E78<0,ROUNDUP(E78,0),ROUNDDOWN(E78,0)) -> 35 | G79: =MATCH(E79,'E-Heat-CO2-Dat'!C5:O5) -> 5 | I79: =$G$47 -> 5 | M79: =$G$47 -> 5
D80: min | E80: 31 | F80: °C
D81: max | E81: 120 | F81: bar | I81: =$G$47 -> 5 | K81: =$G$45 -> 5 | M81: =$G$47 -> 5 | O81: =$G$45 -> 5
B82: =INDEX(Language!$B$2:$M$299,260,Language!$A$1) -> Gas cooler pressure | D82: Roundup | E82: =IF(E83<0,ROUNDDOWN(E83,-1),ROUNDUP(E83,-1)) -> 90 | G82: =MATCH(E82,'E-Heat-CO2-Dat'!A6:A10) -> 2 | H82: =$G82+H$55+$G$37+$I$4 ->  | I82: =INDEX(INDIRECT($L$35),$H82,I$49) ->  | K82: =INDEX(INDIRECT($L$35),$H82,K$49) ->  | L82: =$G82+L$57+$G$37+$I$4 ->  | M82: =INDEX(INDIRECT($L$35),$L82,M$49) ->  | O82: =INDEX(INDIRECT($L$35),$L82,O$49) -> 
D83: Value | E83: =IF(P83>E81,"#N/A",IF(P83<E85,"#N/A",P83)) -> 90 | F83: bar | G83: ='E-HeatRecl-CO2'!$D$8 -> 90 | I83: =IF($E84=$E82,I84,I84+((I82-I84)*($E83-$E84)/($E82-$E84))) ->  | J83: =IF($E79=$E77,I83,I83+((K83-I83)*($E78-$E79)/($E77-$E79))) ->  | K83: =IF($E84=$E82,K84,K84+((K82-K84)*($E83-$E84)/($E82-$E84))) ->  | M83: =IF($E84=$E82,M84,M84+((M82-M84)*($E83-$E84)/($E82-$E84))) ->  | N83: =IF($E79=$E77,M83,M83+((O83-M83)*($E78-$E79)/($E77-$E79))) ->  | O83: =IF($E84=$E82,O84,O84+((O82-O84)*($E83-$E84)/($E82-$E84))) ->  | P83: =IF($D$19=1,'E-HeatRecl-CO2'!$D$8,('E-HeatRecl-CO2'!$D$8/14.5)) -> 90
D84: Rounddown | E84: =IF(E83<0,ROUNDUP(E83,-1),ROUNDDOWN(E83,-1)) -> 90 | G84: =MATCH(E84,'E-Heat-CO2-Dat'!A6:A10) -> 2 | H84: =$G84+$H$55+$G$37+$I$4 ->  | I84: =INDEX(INDIRECT($L$35),$H84,I$49) ->  | K84: =INDEX(INDIRECT($L$35),$H84,K$49) ->  | L84: =$G84+L$57+$G$37+$I$4 ->  | M84: =INDEX(INDIRECT($L$35),$L84,M$49) ->  | O84: =INDEX(INDIRECT($L$35),$L84,O$49) -> 
D85: min | E85: 80 | F85: bar
D86: max | E86: 1 | F86: bard
B87: =INDEX(Language!$B$2:$M$400,35,Language!$A$1) -> Required pressure drop across valve | D87: Rounddown | E87: =INDEX($I$35:$I$38,$F87) ->  | F87: =MATCH($E88,$I$35:$I$38) ->  | H87: =INDEX($J$35:$J$38,$F87) -> 
D88: Value | E88: =IF(P88>E86,"#N/A",IF(P88<E90,"#N/A",P88)) -> #N/A | F88: bar | L88: =IF(E89=E87,J83,J83+((N83-J83)*(E88-E87)/(E89-E87))) ->  | P88: =IF($D$19=1,'E-HeatRecl-CO2'!$D$12,('E-HeatRecl-CO2'!$D$12/14.5)) -> 1.5
D89: Roundup | E89: =IF(E88=E86,E88,INDEX($I$35:$I$38,$F89)) ->  | F89: =IF($E88=1,3,MATCH($E88,$I$35:$I$38)+1) ->  | H89: =INDEX($J$35:$J$38,$F89) ->  | L89: =H89 ->  | M89: =INDEX($C$105:$C$109,$F89) -> 
D90: min | E90: 0.1 | F90: bard

Sheet E-Heat-CO2-Dat (hidden)
A1: Hot Gas Flow / Heat Reclaim
A2: R744 | C2: R744
A3: Gas cooler | B3: press. | C3: Extended Capacity KW | P3: Valve type
A4: Pressure | B4: Drop | C4: Gas cooler temperature, °C
A5: bar | B5: bar | C5: 31 | D5: =C5+1 -> 32 | E5: =D5+1 -> 33 | F5: 34 | G5: 35 | H5: 36 | I5: 37 | J5: 38 | K5: 39 | L5: 40 | M5: =L5+1 -> 41 | N5: 42 | O5: 43
A6: 80 | B6: 0.1 | C6: 3.9 | D6: 3.9 | E6: 3.9 | F6: 3.9 | G6: 3.9 | H6: 3.9 | I6: 3.9 | J6: 3.9 | K6: 3.9 | L6: 3.8 | M6: 3.8 | N6: 3.8 | O6: 3.8 | P6: CV5
A7: 90 | B7: 0.1 | C7: 4.2 | D7: 4.2 | E7: 4.2 | F7: 4.1 | G7: 4.1 | H7: 4.1 | I7: 4.1 | J7: 4.1 | K7: 4.1 | L7: 4.1 | M7: 4.1 | N7: 4.1 | O7: 4 | P7: CV5
A8: 100 | B8: 0.1 | C8: 4.4 | D8: 4.4 | E8: 4.4 | F8: 4.4 | G8: 4.4 | H8: 4.4 | I8: 4.4 | J8: 4.4 | K8: 4.4 | L8: 4.3 | M8: 4.3 | N8: 4.3 | O8: 4.3 | P8: CV5
A9: 110 | B9: 0.1 | C9: 4.6 | D9: 4.6 | E9: 4.6 | F9: 4.6 | G9: 4.6 | H9: 4.6 | I9: 4.6 | J9: 4.6 | K9: 4.6 | L9: 4.6 | M9: 4.6 | N9: 4.6 | O9: 4.6 | P9: CV5
A10: 120 | B10: 0.1 | C10: 5 | D10: 5 | E10: 5 | F10: 5 | G10: 5 | H10: 4.9 | I10: 4.9 | J10: 4.9 | K10: 4.9 | L10: 4.9 | M10: 4.9 | N10: 4.9 | O10: 4.9 | P10: CV5
A11: 80 | B11: 0.5 | C11: 8.8 | D11: 8.7 | E11: 8.7 | F11: 8.7 | G11: 8.7 | H11: 8.7 | I11: 8.7 | J11: 8.6 | K11: 8.6 | L11: 8.6 | M11: 8.5 | N11: 8.5 | O11: 8.5 | P11: CV5
A12: 90 | B12: 0.5 | C12: 9.3 | D12: 9.3 | E12: 9.3 | F12: 9.2 | G12: 9.2 | H12: 9.2 | I12: 9.2 | J12: 9.2 | K12: 9.1 | L12: 9.1 | M12: 9.1 | N12: 9 | O12: 9 | P12: CV5
A13: 100 | B13: 0.5 | C13: 9.8 | D13: 9.8 | E13: 9.8 | F13: 9.8 | G13: 9.8 | H13: 9.7 | I13: 9.7 | J13: 9.7 | K13: 9.7 | L13: 9.7 | M13: 9.7 | N13: 9.7 | O13: 9.6 | P13: CV5
A14: 110 | B14: 0.5 | C14: 10.3 | D14: 10.3 | E14: 10.3 | F14: 10.3 | G14: 10.3 | H14: 10.2 | I14: 10.2 | J14: 10.2 | K14: 10.2 | L14: 10.2 | M14: 10.2 | N14: 10.2 | O14: 10.2 | P14: CV5
A15: 120 | B15: 0.5 | C15: 10.8 | D15: 10.8 | E15: 10.7 | F15: 10.7 | G15: 10.7 | H15: 10.7 | I15: 10.7 | J15: 10.7 | K15: 10.7 | L15: 10.7 | M15: 10.7 | N15: 10.7 | O15: 10.6 | P15: CV5
A16: 80 | B16: 1 | C16: 12.3 | D16: 12.3 | E16: 12.3 | F16: 12.3 | G16: 12.3 | H16: 12.2 | I16: 12.2 | J16: 12.2 | K16: 12.1 | L16: 12.1 | M16: 12 | N16: 12 | O16: 12 | P16: CV5
A17: 90 | B17: 1 | C17: 13.1 | D17: 13.1 | E17: 13.1 | F17: 13 | G17: 13 | H17: 13 | I17: 13 | J17: 12.9 | K17: 12.9 | L17: 12.8 | M17: 12.8 | N17: 12.7 | O17: 12.7 | P17: CV5
A18: 100 | B18: 1 | C18: 13.8 | D18: 13.8 | E18: 13.8 | F18: 13.8 | G18: 13.8 | H18: 13.8 | I18: 13.7 | J18: 13.7 | K18: 13.7 | L18: 13.7 | M18: 13.6 | N18: 13.6 | O18: 13.6 | P18: CV5
A19: 110 | B19: 1 | C19: 14.5 | D19: 14.5 | E19: 14.5 | F19: 14.5 | G19: 14.5 | H19: 14.5 | I19: 14.4 | J19: 14.4 | K19: 14.4 | L19: 14.4 | M19: 14.4 | N19: 14.4 | O19: 14.3 | P19: CV5
A20: 120 | B20: 1 | C20: 15.2 | D20: 15.2 | E20: 15.2 | F20: 15.2 | G20: 15.1 | H20: 15.1 | I20: 15.1 | J20: 15.1 | K20: 15.1 | L20: 15.1 | M20: 15.1 | N20: 15 | O20: 15 | P20: CV5
A21: 80 | B21: 0.1 | C21: 9.1 | D21: 9 | E21: 9 | F21: 9 | G21: 9 | H21: 9 | I21: 9 | J21: 8.9 | K21: 8.9 | L21: 8.9 | M21: 8.8 | N21: 8.8 | O21: 8.8 | P21: CV6
A22: 90 | B22: 0.1 | C22: 9.6 | D22: 9.6 | E22: 9.6 | F22: 9.6 | G22: 9.6 | H22: 9.5 | I22: 9.5 | J22: 9.5 | K22: 9.5 | L22: 9.4 | M22: 9.4 | N22: 9.4 | O22: 9.3 | P22: CV6
A23: 100 | B23: 0.1 | C23: 10.1 | D23: 10.1 | E23: 10.1 | F23: 10.1 | G23: 10.1 | H23: 10.1 | I23: 10.1 | J23: 10.1 | K23: 10 | L23: 10 | M23: 10 | N23: 10 | O23: 10 | P23: CV6
A24: 110 | B24: 0.1 | C24: 10.7 | D24: 10.6 | E24: 10.6 | F24: 10.6 | G24: 10.6 | H24: 10.6 | I24: 10.6 | J24: 10.6 | K24: 10.6 | L24: 10.6 | M24: 10.5 | N24: 10.5 | O24: 10.5 | P24: CV6
A25: 120 | B25: 0.1 | C25: 11.5 | D25: 11.5 | E25: 11.5 | F25: 11.5 | G25: 11.4 | H25: 11.4 | I25: 11.4 | J25: 11.4 | K25: 11.4 | L25: 11.3 | M25: 11.3 | N25: 11.3 | O25: 11.3 | P25: CV6
A26: 80 | B26: 0.5 | C26: 20.2 | D26: 20.2 | E26: 20.2 | F26: 20.1 | G26: 20.1 | H26: 20 | I26: 20 | J26: 19.9 | K26: 19.9 | L26: 19.8 | M26: 19.7 | N26: 19.7 | O26: 19.6 | P26: CV6
A27: 90 | B27: 0.5 | C27: 21.4 | D27: 21.4 | E27: 21.4 | F27: 21.3 | G27: 21.3 | H27: 21.3 | I27: 21.2 | J27: 21.2 | K27: 21.1 | L27: 21 | M27: 20.9 | N27: 20.9 | O27: 20.8 | P27: CV6
A28: 100 | B28: 0.5 | C28: 22.6 | D28: 22.6 | E28: 22.6 | F28: 22.6 | G28: 22.5 | H28: 22.5 | I28: 22.5 | J28: 22.4 | K28: 22.4 | L28: 22.4 | M28: 22.3 | N28: 22.3 | O28: 22.2 | P28: CV6
A29: 110 | B29: 0.5 | C29: 23.8 | D29: 23.8 | E29: 23.7 | F29: 23.7 | G29: 23.7 | H29: 23.7 | I29: 23.6 | J29: 23.6 | K29: 23.6 | L29: 23.6 | M29: 23.5 | N29: 23.5 | O29: 23.5 | P29: CV6
A30: 120 | B30: 0.5 | C30: 24.9 | D30: 24.8 | E30: 24.8 | F30: 24.8 | G30: 24.8 | H30: 24.7 | I30: 24.7 | J30: 24.7 | K30: 24.7 | L30: 24.7 | M30: 24.6 | N30: 24.6 | O30: 24.6 | P30: CV6
A31: 80 | B31: 1 | C31: 28.5 | D31: 28.4 | E31: 28.4 | F31: 28.4 | G31: 28.3 | H31: 28.3 | I31: 28.2 | J31: 28.1 | K31: 28 | L31: 27.9 | M31: 27.8 | N31: 27.7 | O31: 27.6 | P31: CV6
A32: 90 | B32: 1 | C32: 30.2 | D32: 30.2 | E32: 30.1 | F32: 30.1 | G32: 30 | H32: 30 | I32: 29.9 | J32: 29.8 | K32: 29.7 | L32: 29.6 | M32: 29.5 | N32: 29.4 | O32: 29.3 | P32: CV6
A33: 100 | B33: 1 | C33: 31.9 | D33: 31.9 | E33: 31.9 | F33: 31.8 | G33: 31.8 | H33: 31.8 | I33: 31.7 | J33: 31.7 | K33: 31.6 | L33: 31.6 | M33: 31.5 | N33: 31.4 | O33: 31.4 | P33: CV6
A34: 110 | B34: 1 | C34: 33.5 | D34: 33.5 | E34: 33.5 | F34: 33.5 | G34: 33.4 | H34: 33.4 | I34: 33.3 | J34: 33.3 | K34: 33.3 | L34: 33.2 | M34: 33.2 | N34: 33.1 | O34: 33.1 | P34: CV6
A35: 120 | B35: 1 | C35: 35.1 | D35: 35.1 | E35: 35 | F35: 35 | G35: 35 | H35: 34.9 | I35: 34.9 | J35: 34.9 | K35: 34.8 | L35: 34.8 | M35: 34.8 | N35: 34.7 | O35: 34.7 | P35: CV6
A36: 80 | B36: 0.1 | C36: 32.2 | D36: 32.2 | E36: 32.1 | F36: 32.1 | G36: 32 | H36: 32 | I36: 31.9 | J36: 31.8 | K36: 31.7 | L36: 31.6 | M36: 31.5 | N36: 31.3 | O36: 31.3 | P36: CV7
A37: 90 | B37: 0.1 | C37: 34.2 | D37: 34.1 | E37: 34.1 | F37: 34 | G37: 34 | H37: 33.9 | I37: 33.8 | J37: 33.7 | K37: 33.6 | L37: 33.5 | M37: 33.4 | N37: 33.2 | O37: 33.2 | P37: CV7
A38: 100 | B38: 0.1 | C38: 36.1 | D38: 36 | E38: 36 | F38: 35.9 | G38: 35.9 | H38: 35.9 | I38: 35.8 | J38: 35.8 | K38: 35.7 | L38: 35.6 | M38: 35.6 | N38: 35.5 | O38: 35.4 | P38: CV7
A39: 110 | B39: 0.1 | C39: 37.9 | D39: 37.8 | E39: 37.8 | F39: 37.8 | G39: 37.7 | H39: 37.7 | I39: 37.6 | J39: 37.6 | K39: 37.6 | L39: 37.5 | M39: 37.5 | N39: 37.4 | O39: 37.4 | P39: CV7
A40: 120 | B40: 0.1 | C40: 40.9 | D40: 40.8 | E40: 40.8 | F40: 40.7 | G40: 40.6 | H40: 40.6 | I40: 40.5 | J40: 40.4 | K40: 40.4 | L40: 40.3 | M40: 40.2 | N40: 40.2 | O40: 40.1 | P40: CV7
A41: 80 | B41: 0.5 | C41: 71.8 | D41: 71.7 | E41: 71.6 | F41: 71.5 | G41: 71.4 | H41: 71.3 | I41: 71.1 | J41: 70.9 | K41: 70.6 | L41: 70.4 | M41: 70.1 | N41: 69.9 | O41: 69.7 | P41: CV7
A42: 90 | B42: 0.5 | C42: 76.2 | D42: 76.1 | E42: 76 | F42: 75.9 | G42: 75.7 | H42: 75.6 | I42: 75.4 | J42: 75.2 | K42: 75 | L42: 74.7 | M42: 74.4 | N42: 74.1 | O42: 73.9 | P42: CV7
A43: 100 | B43: 0.5 | C43: 80.5 | D43: 80.4 | E43: 80.3 | F43: 80.2 | G43: 80.1 | H43: 80 | I43: 79.9 | J43: 79.8 | K43: 79.7 | L43: 79.5 | M43: 79.4 | N43: 79.2 | O43: 79 | P43: CV7
A44: 110 | B44: 0.5 | C44: 84.5 | D44: 84.4 | E44: 84.3 | F44: 84.3 | G44: 84.2 | H44: 84.1 | I44: 84 | J44: 83.9 | K44: 83.8 | L44: 83.7 | M44: 83.6 | N44: 83.5 | O44: 83.4 | P44: CV7
A45: 120 | B45: 0.5 | C45: 88.4 | D45: 88.3 | E45: 88.2 | F45: 88.1 | G45: 88 | H45: 88 | I45: 87.9 | J45: 87.8 | K45: 87.7 | L45: 87.6 | M45: 87.5 | N45: 87.4 | O45: 87.3 | P45: CV7
A46: 80 | B46: 1 | C46: 101.2 | D46: 101.1 | E46: 100.9 | F46: 100.8 | G46: 100.6 | H46: 100.4 | I46: 100.2 | J46: 99.9 | K46: 99.5 | L46: 99.1 | M46: 98.7 | N46: 98.4 | O46: 98.1 | P46: CV7
A47: 90 | B47: 1 | C47: 107.4 | D47: 107.3 | E47: 107.1 | F47: 107 | G47: 106.8 | H47: 106.6 | I47: 106.3 | J47: 106 | K47: 105.6 | L47: 105.2 | M47: 104.8 | N47: 104.4 | O47: 104.2 | P47: CV7
A48: 100 | B48: 1 | C48: 113.5 | D48: 113.4 | E48: 113.3 | F48: 113.1 | G48: 113 | H48: 112.8 | I48: 112.7 | J48: 112.5 | K48: 112.3 | L48: 112.2 | M48: 111.9 | N48: 111.7 | O48: 111.4 | P48: CV7
A49: 110 | B49: 1 | C49: 119.2 | D49: 119.1 | E49: 119 | F49: 118.9 | G49: 118.8 | H49: 118.6 | I49: 118.5 | J49: 118.4 | K49: 118.2 | L49: 118.1 | M49: 117.9 | N49: 117.8 | O49: 117.6 | P49: CV7
A50: 120 | B50: 1 | C50: 124.7 | D50: 124.6 | E50: 124.5 | F50: 124.4 | G50: 124.2 | H50: 124.1 | I50: 124 | J50: 123.9 | K50: 123.8 | L50: 123.6 | M50: 123.5 | N50: 123.4 | O50: 123.2 | P50: CV7

Sheet El Ctrlr1
E4: =INDEX(Language!$B$2:$M$41,4,Language!$A$1) -> Project:
E5: =INDEX(Language!$B$2:$M$400,315,Language!$A$1) -> Superheat controller
B7: =INDEX(Language!$B$2:$M$400,306,Language!$A$1) -> Superheat/Economizer Controller
B8: =" "&INDEX(Language!$B$2:$M$400,304,Language!$A$1) -> for EXM/L Series
B9: =INDEX(Language!$B$2:$M$400,15,Language!$A$1) -> Type | C9: =INDEX(Language!$B$2:$M$41,18,Language!$A$1) -> Part No. | D9: =INDEX(Language!$B$2:$M$400,285,Language!$A$1) -> Description
B10: ='El Ctr-Dat'!B78 -> EXD-HP1 | C10: ='El Ctr-Dat'!C78 -> 807 836M | D10: ='El Ctr-Dat'!D78 -> Controller for one EXV; 20 pieces
B11: ='El Ctr-Dat'!B79 -> EXD-HP2 | C11: ='El Ctr-Dat'!C79 -> 807 837M | D11: ='El Ctr-Dat'!D79 -> Controller for two EXV; 20 pieces
B12: ='El Ctr-Dat'!B80 -> ECP-P30 | C12: ='El Ctr-Dat'!C80 -> 804 495 | D12: ='El Ctr-Dat'!D80 -> Temperature sensor, 3 meter cable
B15: =INDEX(Language!$B$2:$M$400,315,Language!$A$1) -> Superheat controller
B16: =" "&INDEX(Language!$B$2:$M$400,303,Language!$A$1) -> for EX and FX Series
B17: =INDEX(Language!$B$2:$M$400,15,Language!$A$1) -> Type | C17: =INDEX(Language!$B$2:$M$41,18,Language!$A$1) -> Part No. | D17: =INDEX(Language!$B$2:$M$400,285,Language!$A$1) -> Description
B18: ='El Ctr-Dat'!B94 -> EC3-X32 | C18: ='El Ctr-Dat'!C94 -> 807 782 | D18: ='El Ctr-Dat'!D94 -> Superheat controller TCP/IP interface
B19: ='El Ctr-Dat'!B95 -> K03-X32 | C19: ='El Ctr-Dat'!C95 -> 807 644 | D19: ='El Ctr-Dat'!D95 -> Terminal kit
B20: ='El Ctr-Dat'!B96 -> EC3-X33 | C20: ='El Ctr-Dat'!C96 -> 807 783 | D20: ='El Ctr-Dat'!D96 -> Superheat controller, stand alone
B21: ='El Ctr-Dat'!B97 -> K03-X33 | C21: ='El Ctr-Dat'!C97 -> 807 645 | D21: ='El Ctr-Dat'!D97 -> Terminal kit
B22: ='El Ctr-Dat'!B103 -> ECN-N60 | C22: ='El Ctr-Dat'!C103 -> 804 497 | D22: ='El Ctr-Dat'!D103 -> Temperature sensor Cable length 6,0 m
B25: =INDEX(Language!$B$2:$M$400,318,Language!$A$1) -> Digital superheat controller
B26: =" "&INDEX(Language!$B$2:$M$400,314,Language!$A$1) -> for EX4-6 Series
B27: =INDEX(Language!$B$2:$M$400,15,Language!$A$1) -> Type | C27: =INDEX(Language!$B$2:$M$41,18,Language!$A$1) -> Part No. | D27: =INDEX(Language!$B$2:$M$400,285,Language!$A$1) -> Description
B28: ='El Ctr-Dat'!B98 -> EC3-D72 | C28: ='El Ctr-Dat'!C98 -> 807 805 | D28: ='El Ctr-Dat'!D98 -> Digital superheat controller TCP/IP interface
B29: ='El Ctr-Dat'!B99 -> K03-331 | C29: ='El Ctr-Dat'!C99 -> 807 648 | D29: ='El Ctr-Dat'!D99 -> Terminal kit
B30: ='El Ctr-Dat'!B100 -> EC3-D73 | C30: ='El Ctr-Dat'!C100 -> 807 804 | D30: ='El Ctr-Dat'!D100 -> Digital superheat controller, stand alone
B31: ='El Ctr-Dat'!B101 -> K03-331 | C31: ='El Ctr-Dat'!C101 -> 807 648 | D31: ='El Ctr-Dat'!D101 -> Terminal kit
B32: ='El Ctr-Dat'!B103 -> ECN-N60 | C32: ='El Ctr-Dat'!C103 -> 804 497 | D32: ='El Ctr-Dat'!D103 -> Temperature sensor Cable length 6,0 m
B34: =INDEX(Language!$B$2:$M$400,296,Language!$A$1) -> Display and keyboard
B35: ='El Ctr-Dat'!B108 -> ECD-002 | C35: ='El Ctr-Dat'!C108 -> 807 657 | D35: ='El Ctr-Dat'!D108 -> Display and keyboard
B36: ='El Ctr-Dat'!B110 -> ECC-N10 | C36: ='El Ctr-Dat'!C110 -> 807 860 | D36: ='El Ctr-Dat'!D110 -> Connection cable EC3 - ECD. Length: 1,0 m
B39: =INDEX(Language!$B$2:$M$400,321,Language!$A$1) -> Superheat / Temperature controllers | J39: UPS / Supercap
B40: =" "&INDEX(Language!$B$2:$M$400,313,Language!$A$1) -> for EX, FX and CX Series | J40: for EXD-SH1/SH2 Controllers
B41: =INDEX(Language!$B$2:$M$400,15,Language!$A$1) -> Type | C41: =INDEX(Language!$B$2:$M$41,18,Language!$A$1) -> Part No. | D41: =INDEX(Language!$B$2:$M$400,285,Language!$A$1) -> Description | J41: =INDEX(Language!$B$2:$M$400,15,Language!$A$1) -> Type | K41: =INDEX(Language!$B$2:$M$41,18,Language!$A$1) -> Part No. | L41: =INDEX(Language!$B$2:$M$400,285,Language!$A$1) -> Description
B42: ='El Ctr-Dat'!$B$127 -> EXD-SH1 | C42: ='El Ctr-Dat'!$C$127 -> 807 855 | D42: ='El Ctr-Dat'!$E$127 -> Controller for single refrigeration circuit | J42: ='El Ctr-Dat'!$B$134 -> ECP-024 | K42: ='El Ctr-Dat'!$D$134 -> 804 558 | L42: ='El Ctr-Dat'!$E$134 -> Backup battery with two outputs for two controllers
B44: ='El Ctr-Dat'!$B$128 -> EXD-SH2 | C44: ='El Ctr-Dat'!$C$128 -> 807 856 | D44: ='El Ctr-Dat'!$E$128 -> Controller for two independent refrigeration circuits | J44: ='El Ctr-Dat'!$B135 -> K09-P00 | K44: ='El Ctr-Dat'!$D135 -> 804 560 | L44: ='El Ctr-Dat'!$E135 -> Terminal kit for ECP-024
B46: ='El Ctr-Dat'!$B$129 -> EXD-M03 | C46: ='El Ctr-Dat'!$D$129 -> 807 865 | D46: ='El Ctr-Dat'!$E$129 -> Molex terminal with 3 meter wires | J46: ='El Ctr-Dat'!$B136 -> EXD-PM | K46: ='El Ctr-Dat'!$D136 -> 807 854 | L46: ='El Ctr-Dat'!$E136 -> Super cap for one EXD-SH1
B47: ='El Ctr-Dat'!$B$103 -> ECN-N60 | C47: ='El Ctr-Dat'!$C$103 -> 804 497 | D47: ='El Ctr-Dat'!$D$103 -> Temperature sensor Cable length 6,0 m
L48: ='El Ctr-Dat'!$E137 -> (two pieces of EXD-PM required for one EXD-SH2)
B50: =INDEX(Language!$B$2:$M$400,310,Language!$A$1) -> Pressure Transmitter
B51: =INDEX(Language!$B$2:$M$400,5,Language!$A$1) -> Refrigerant
B52: =INDEX(Language!$B$2:$M$400,15,Language!$A$1) -> Type | C52: =INDEX(Language!$B$2:$M$41,18,Language!$A$1) -> Part No. | D52: =INDEX(Language!$B$2:$M$400,285,Language!$A$1) -> Description | J52: ='El Ctr-Dat'!B116 -> Transformer 230 / 24 VAC
B53: ='El Ctr-Dat'!B82 -> PT5N-07M | C53: ='El Ctr-Dat'!D82 -> 805 350 | D53: ='El Ctr-Dat'!E82 -> Pressure transmitter -0.8 …7 bar for suction pressure (R22, R134a, R407C) | J53: =INDEX(Language!$B$2:$M$400,300,Language!$A$1) -> for DIN rail mounting
J54: =INDEX(Language!$B$2:$M$400,15,Language!$A$1) -> Type | K54: =INDEX(Language!$B$2:$M$41,18,Language!$A$1) -> Part No. | L54: =INDEX(Language!$B$2:$M$400,285,Language!$A$1) -> Description
B55: ='El Ctr-Dat'!B85 -> PT5N-30M | C55: ='El Ctr-Dat'!D85 -> 805 352 | D55: ='El Ctr-Dat'!E85 -> Pressure transmitter 0 ...30 bar for economizer pressure | J55: ='El Ctr-Dat'!$B$117 -> ECT-323 | K55: ='El Ctr-Dat'!C117 -> 804 424 | L55: ='El Ctr-Dat'!D117 -> 25VA
J56: ='El Ctr-Dat'!$B$118 -> ECT-623 | K56: ='El Ctr-Dat'!C118 -> 804 421 | L56: ='El Ctr-Dat'!D118 -> 60VA
B57: ='El Ctr-Dat'!B87 -> PT4-M15 | C57: ='El Ctr-Dat'!C87 -> 804 803 | D57: ='El Ctr-Dat'!D87 -> Cable assemblies 1,5 m
B59: =Home!$D$43 -> Rev.: 01.11.2019
B60: =INDEX(Language!$B$2:$M$251,250,Language!$A$1) -> The Controls Navigator is provided by Emerson Climate Technologies Europe to assist with the selection of mechanical and electronic controls. Emerson Climate Technologies cannot be held liable for issues arising from application of controls using information provided by this software.

Sheet El Ctrlr2
E4: =INDEX(Language!$B$2:$M$41,4,Language!$A$1) -> Project:
E5: =INDEX(Language!$B$2:$M$299,268,Language!$A$1) -> Electronic controllers
B8: =INDEX(Language!$B$2:$M$400,269,Language!$A$1) -> Fan speed controllers
B9: =INDEX(Language!$B$2:$M$400,270,Language!$A$1) -> Fan motor type | D9: =INDEX('El Ctr-Dat'!F5:F6,'El Ctr-Dat'!F4) -> Electronically commutated EC
B10: =INDEX(Language!$B$2:$M$299,5,Language!$A$1) -> Refrigerant | C10: =INDEX('E-EX-Fun'!$G$5:$G$15,'E-EX-Fun'!$G$4) -> R744
B11: =INDEX(Language!$B$2:$M$400,15,Language!$A$1) -> Type | C11: =INDEX(Language!$B$2:$M$41,18,Language!$A$1) -> Part No. | D11: =INDEX(Language!$B$2:$M$400,273,Language!$A$1) -> Setting range | F11: =INDEX(Language!$B$2:$M$400,120,Language!$A$1) -> Pressure connection
B12: =INDEX('El Ctr-Dat'!$F$11:$F$20,'El Ctr-Dat'!$D$4+'El Ctr-Dat'!$H$4) -> FSE-02S | C12: =INDEX('El Ctr-Dat'!$G$11:$G$20,'El Ctr-Dat'!$D$4+'El Ctr-Dat'!$H$4) -> 804 706 | D12: =INDEX('El Ctr-Dat'!$H$11:$H$20,'El Ctr-Dat'!$D$4+'El Ctr-Dat'!$H$4)&" bar" -> 10 … 21 bar | F12: =INDEX('El Ctr-Dat'!$O$11:$O$20,'El Ctr-Dat'!$D$4+'El Ctr-Dat'!$H$4) -> 7/16"-20 UNF female
B15: ='El Ctr-Dat'!I4 -> Connector cable assembly
B16: =INDEX(Language!$B$2:$M$400,15,Language!$A$1) -> Type | C16: =INDEX(Language!$B$2:$M$41,18,Language!$A$1) -> Part No. | D16: =INDEX(Language!$B$2:$M$400,98,Language!$A$1) -> Cable length
B17: =INDEX('El Ctr-Dat'!R$11:R$20,'El Ctr-Dat'!$R$4+'El Ctr-Dat'!$H$4) -> PS3-N30 | C17: =INDEX('El Ctr-Dat'!S$11:S$20,'El Ctr-Dat'!$R$4+'El Ctr-Dat'!$H$4) -> 804 581 | D17: =INDEX('El Ctr-Dat'!T$11:T$20,'El Ctr-Dat'!$R$4+'El Ctr-Dat'!$H$4) -> 3 m
B21: =INDEX(Language!$B$2:$M$400,276,Language!$A$1) -> Soft starters for 1-ph compressors
B22: =INDEX(Language!$B$2:$M$400,15,Language!$A$1) -> Type | C22: =INDEX(Language!$B$2:$M$41,18,Language!$A$1) -> Part No. | D22: =INDEX(Language!$B$2:$M$41,18,Language!$A$1) -> Part No. | E22: =INDEX(Language!$B$2:$M$400,282,Language!$A$1) -> Starting current | F22: =INDEX(Language!$B$2:$M$400,281,Language!$A$1) -> Nominal current | H22: =INDEX(Language!$B$2:$M$400,283,Language!$A$1) -> Wire Ø
D23: ="20 "&INDEX(Language!$B$2:$M$400,284,Language!$A$1) -> 20 Pieces
B24: =INDEX('El Ctr-Dat'!B$45:B$50,'El Ctr-Dat'!$C$40) -> CSS-32U | C24: =INDEX('El Ctr-Dat'!C$45:C$50,'El Ctr-Dat'!$C$40) -> 805 204 | D24: =INDEX('El Ctr-Dat'!E$45:E$50,'El Ctr-Dat'!$C$40) -> 805 204M | E24: =INDEX('El Ctr-Dat'!P$45:P$50,'El Ctr-Dat'!$C$40) -> 45 A | F24: =INDEX('El Ctr-Dat'!Q$45:Q$50,'El Ctr-Dat'!$C$40) -> 32A max | H24: =INDEX('El Ctr-Dat'!N$45:N$50,'El Ctr-Dat'!$C$40) -> 4 mm
B25: =INDEX('El Ctr-Dat'!B$45:B$50,'El Ctr-Dat'!$C$40+1) -> CSS-32W | C25: =INDEX('El Ctr-Dat'!C$45:C$50,'El Ctr-Dat'!$C$40+1) -> 805 211 | D25: =INDEX('El Ctr-Dat'!E$45:E$50,'El Ctr-Dat'!$C$40+1) -> 805 211M | E25: =INDEX('El Ctr-Dat'!P$45:P$50,'El Ctr-Dat'!$C$40+1) -> 45 A | F25: =INDEX('El Ctr-Dat'!Q$45:Q$50,'El Ctr-Dat'!$C$40+1) -> 32A max | H25: =INDEX('El Ctr-Dat'!N$45:N$50,'El Ctr-Dat'!$C$40+1) -> 6 mm
B26: =INDEX(Language!$B$2:$M$400,279,Language!$A$1) -> Accessories
B27: ='El Ctr-Dat'!B51 -> K00-003 | C27: ='El Ctr-Dat'!C51 -> 807 663 | D27: =INDEX(Language!$B$2:$M$400,280,Language!$A$1) -> Terminal: alarm output
B32: =INDEX(Language!$B$2:$M$400,302,Language!$A$1) -> Universal driver
B33: =INDEX(Language!$B$2:$M$400,377,Language!$A$1) -> for EX4-8/CX4-7
B34: =INDEX(Language!$B$2:$M$400,15,Language!$A$1) -> Type | C34: =INDEX(Language!$B$2:$M$41,18,Language!$A$1) -> Part No. | D34: =INDEX(Language!$B$2:$M$400,285,Language!$A$1) -> Description
B35: ='El Ctr-Dat'!B70 -> EXD-U02 | C35: ='El Ctr-Dat'!$C$70 -> 804 752 | D35: ='El Ctr-Dat'!D70 -> Universal driver
B36: ='El Ctr-Dat'!B71 -> K09-U00 | C36: ='El Ctr-Dat'!C71 -> 804 559 | D36: ='El Ctr-Dat'!D71 -> Terminal kit for EXD-U02
B37: =INDEX(Language!$B$2:$M$400,279,Language!$A$1) -> Accessories
B38: ='El Ctr-Dat'!B72 -> ECP-024 | C38: ='El Ctr-Dat'!C72 -> 804 558 | D38: ='El Ctr-Dat'!D72 -> Uninterruptible power supply for up to two EXD-U02
B40: ='El Ctr-Dat'!B73 -> K09-P00 | C40: ='El Ctr-Dat'!C73 -> 804 560 | D40: ='El Ctr-Dat'!D73 -> Terminal kit for ECP-024
B45: =INDEX(Language!$B$2:$M$400,279,Language!$A$1) -> Accessories
B46: ='El Ctr-Dat'!B116 -> Transformer 230 / 24 VAC
B47: =INDEX(Language!$B$2:$M$400,300,Language!$A$1) -> for DIN rail mounting
B48: =INDEX(Language!$B$2:$M$400,15,Language!$A$1) -> Type | C48: =INDEX(Language!$B$2:$M$41,18,Language!$A$1) -> Part No. | D48: =INDEX(Language!$B$2:$M$400,285,Language!$A$1) -> Description
B49: ='El Ctr-Dat'!$B$117 -> ECT-323 | C49: ='El Ctr-Dat'!C117 -> 804 424 | D49: ='El Ctr-Dat'!D117 -> 25VA
B50: ='El Ctr-Dat'!$B$118 -> ECT-623 | C50: ='El Ctr-Dat'!C118 -> 804 421 | D50: ='El Ctr-Dat'!D118 -> 60VA
B60: =Home!$D$43 -> Rev.: 01.11.2019
B61: =INDEX(Language!$B$2:$M$251,250,Language!$A$1) -> The Controls Navigator is provided by Emerson Climate Technologies Europe to assist with the selection of mechanical and electronic controls. Emerson Climate Technologies cannot be held liable for issues arising from application of controls using information provided by this software.

Sheet El Ctr-Dat (hidden)
A1: =INDEX(Language!$B$2:$M$400,268,Language!$A$1)&" Product Data" -> Electronic controllers Product Data
B2: =INDEX(Language!$B$2:$M$400,269,Language!$A$1) -> Fan speed controllers
B3: Refrigerant Selection | D3: =INDEX(B$5:B$20,$B$4) -> R1234ze | F3: =INDEX(Language!$B$2:$M$400,270,Language!$A$1) -> Fan motor type | R3: Kabellänge
B4: 8 | D4: =INDEX(D$5:D$20,$B$4) -> 2 | E4: =INDEX(E$5:E$20,$B$4) -> 1 | F4: 2 | H4: =INDEX(H5:H6,F4) -> 7 | I4: =INDEX(I5:I6,F4) -> Connector cable assembly | R4: 2
B5: R410A | D5: 3 | E5: 2 | F5: =INDEX(Language!$B$2:$M$400,271,Language!$A$1) -> Induction motor | H5: 0 | I5: =INDEX(Language!$B$2:$M$400,274,Language!$A$1) -> Connector cable assembly with EMC filter | R5: 1,5 m
B6: R134a | D6: 1 | E6: 1 | F6: =INDEX(Language!$B$2:$M$400,272,Language!$A$1) -> Electronically commutated EC | H6: 7 | I6: =INDEX(Language!$B$2:$M$400,275,Language!$A$1) -> Connector cable assembly | R6: 3 m
B7: R22 | D7: 2 | E7: 1 | R7: 6 m
B8: R404A | D8: 2 | E8: 1 | F8: Type | G8: Part No. | H8: Pressure range * | J8: Factory | K8: PS | L8: PT | O8: Pressure connection
B9: R507 | D9: 2 | E9: 1 | J9: setting *
B10: R407C | D10: 2 | E10: 1 | H10: bar | J10: bar | K10: bar | L10: bar | R10: Type | S10: Part Nr. | T10: Length
B11: R452A | D11: 2 | E11: 1 | F11: FSY-41S | G11: 0 715 533 | H11: 4.0 ... 12.5 | J11: 8 | K11: 27 | L11: 30 | O11: ="7/16""-20 UNF "&INDEX(Language!$B$2:$M$400,328,Language!$A$1) -> 7/16"-20 UNF female | R11: FSF-N15 | S11: 804 640 | T11: 1,5 m
B12: R1234ze | D12: 2 | E12: 1 | F12: FSY-42S | G12: 0 715 534 | H12: 4.0 ... 12.5 | J12: 15 | K12: 27 | L12: 30 | O12: ="7/16""-20 UNF "&INDEX(Language!$B$2:$M$400,328,Language!$A$1) -> 7/16"-20 UNF female | R12: FSF-N30 | S12: 804 641 | T12: 3 m
B13: R448A | D13: 2 | E13: 1 | F13: FSY-43S | G13: 0 715 537 | H13: 9.2 ... 21.2 | J13: 21.8 | K13: 32 | L13: 36 | O13: ="7/16""-20 UNF "&INDEX(Language!$B$2:$M$400,328,Language!$A$1) -> 7/16"-20 UNF female | R13: FSF-N60 | S13: 804 642 | T13: 6 m
B14: R449A | D14: 2 | E14: 1
B15: R450A | D15: 1 | E15: 1
B16: R513A | D16: 1 | E16: 1 | F16: Type | G16: Part No. | H16: Adjustment Range Z | J16: Factory set point Z | K16: P-Band | L16: Hysteresis | M16: Test | N16: Weight | O16: Pressure connection
H17: (bar)* | J17: (bar) | K17: (bar) | L17: (bar) | M17: Pressure (bar) | N17: (g) | R17: Type | S17: Part No. | T17: Cable length
F18: FSE-01S | G18: 804 701 | H18: 4 … 12.5 | J18: ~ 7.0 | K18: ~ 2.3 | L18: ~ 1.3 | M18: 30 bar | N18: 125 | O18: ="7/16""-20 UNF "&INDEX(Language!$B$2:$M$400,328,Language!$A$1) -> 7/16"-20 UNF female | R18: PS3-N15 | S18: 804 580 | T18: 1,5 m
F19: FSE-02S | G19: 804 706 | H19: 10 … 21 | J19: ~ 14.5 | K19: ~ 3,6 | L19: ~ 1.3 | M19: 36 bar | N19: 125 | O19: ="7/16""-20 UNF "&INDEX(Language!$B$2:$M$400,328,Language!$A$1) -> 7/16"-20 UNF female | R19: PS3-N30 | S19: 804 581 | T19: 3 m
F20: FSE-03S | G20: 804 711 | H20: 12 … 28 | J20: ~ 19.0 | K20: ~ 7.2 | L20: ~ 1.3 | M20: 50 bar | N20: 150 | O20: ="7/16""-20 UNF "&INDEX(Language!$B$2:$M$400,328,Language!$A$1) -> 7/16"-20 UNF female | R20: PS3-N60 | S20: 804 582 | T20: 6 m
F23: Type | G23: Part No. | H23: Pressure range * | J23: Factory | K23: PS | L23: PT | N23: Pressure connection
J24: setting *
H25: bar | J25: bar | K25: bar | L25: bar
F26: FSY-41S | G26: 0 715 533 | H26: 4.0 ... 12.5 | J26: 8.0 | K26: 27 | L26: 30 | N26: 7/16"-20 UNF female
F27: FSY-42A | G27: 0 715 540 | H27: 9.2 ... 21.2 | J27: 15.0 | K27: 32 | L27: 36 | N27: 7/16"-20 UNF male
F28: FSY-42U | G28: 0 715 535 | H28: 9.2 ... 21.2 | J28: 15.0 | K28: 32 | L28: 36 | N28: 6mm - ODF
F29: FSY-42X | G29: 0 715 536 | H29: 9.2 ... 21.2 | J29: 15.0 | K29: 32 | L29: 36 | N29: ¼" - ODF
F30: FSY-43S | G30: 0 715 537 | H30: 9.2 ... 21.2 | J30: 15.0 | K30: 32 | L30: 36 | N30: 7/16"-20 UNF female
F31: FSY-43U | G31: 0 715 538 | H31: 12.4…28.4 | J31: 21.8 | K31: 43 | L31: 48 | N31: 6mm - ODF
F32: FSY-43X | G32: 0 715 539 | H32: 12.4…28.4 | J32: 21.8 | K32: 43 | L32: 48 | N32: ¼" - ODF
F33: Selection Chart Fan Speed Controllers With Min. Speed Mode
F34: FSM-41S | G34: 0 715 520 | H34: 4.0 ... 12.5 | J34: 8.0 | K34: 27 | L34: 30 | N34: 7/16"-20 UNF female
F35: FSM-42S | G35: 0 715 521 | H35: 9.2 ... 21.2 | J35: 15.0 | K35: 32 | L35: 36 | N35: 7/16"-20 UNF female
F36: FSM-43S | G36: 0 715 522 | H36: 12.4…28.4 | J36: 21.8 | K36: 43 | L36: 48 | N36: 7/16"-20 UNF female
B38: =INDEX(Language!$B$2:$M$400,276,Language!$A$1) -> Soft starters for 1-ph compressors
B39: =INDEX(Language!$B$2:$M$400,281,Language!$A$1) -> Nominal current
B40: 1 | C40: =INDEX(C41:C42,B40) -> 1
B41: 32 A | C41: 1
B42: 25 A | C42: 3
B44: Type | C44: Part No. | E44: Part No. 20 pieces | G44: Description | N44: =INDEX(Language!$B$2:$M$400,283,Language!$A$1) -> Wire Ø | P44: Max. Start Current | Q44: Nom. Compr. Current
B45: CSS-32U | C45: 805 204 | D45: CSS-32U | E45: 805 204M | G45: Compressor Soft Starter incl. mounting clip and operating manual | N45: 4 mm | P45: 45 A | Q45: 32A max
B46: CSS-32W | C46: 805 211 | D46: CSS-32W | E46: 805 211M | G46: Compressor Soft Starter incl. mounting clip and operating manual | N46: 6 mm | P46: 45 A | Q46: 32A max
B47: CSS-25U | C47: 805 205 | D47: CSS-25U | E47: 805 205M | G47: Compressor Soft Starter incl. mounting clip and operating manual | N47: 4 mm | P47: 45 A | Q47: 25A max
B48: CSS-25U | C48: 805 209 | D48: CSS-25U | E48: 805 209M | G48: Compressor Soft Starter Im30 incl. mounting clip and operating manual | N48: 4 mm | P48: 30 A | Q48: 25A max
B50: Accessory
B51: K00-003 | C51: 807 663 | G51: 3-pol screw connector to alarm output for wires up to 2.5mm2; bag with 50 pieces
B53: =INDEX(Language!$B$2:$M$400,289,Language!$A$1) -> Drivers for digital Copeland compressors
B54: =INDEX(Language!$B$2:$M$400,292,Language!$A$1) -> Compressor type
B55: 1 | C55: =INDEX(C56:C57,B55) -> 2
B56: =INDEX(Language!$B$2:$M$400,290,Language!$A$1) -> Scroll compressor | C56: 2
B57: =INDEX(Language!$B$2:$M$400,291,Language!$A$1) -> Semi hermetic compressor | C57: 4
B58: Type | C58: Part No. | D58: Description | J58: Type Copeland Part Number
B59: EC3-D13 | C59: 8 404 935 | D59: Driver for digital scroll compressors
B60: EC3-D13 & K03-331 | C60: 3 187 306 | D60: =INDEX(Language!$B$2:$M$400,294,Language!$A$1) -> Driver for digital scroll with terminal kit
B61: EC3-D23 | C61: 3 187 282 | D61: Driver for 4 and 6 cylinder Stream digital semi-hermetic compressors
B62: EC3-D23 & K03-331 | C62: 3 187 317 | D62: =INDEX(Language!$B$2:$M$400,295,Language!$A$1) -> Driver for 4/6 cylinder digital compressors with terminal kit
B63: ECD-002 | C63: 8 403 318 | D63: =INDEX(Language!$B$2:$M$400,296,Language!$A$1) -> Display and keyboard
B64: K03-331 | C64: 8 405 165 | D64: =INDEX(Language!$B$2:$M$400,297,Language!$A$1)&"EC3-D13/-D23" -> Terminal kit for EC3-D13/-D23
B65: ECC-N10 | C65: 8 557 782 | D65: =INDEX(Language!$B$2:$M$400,298,Language!$A$1)&" EC3-D13/23 - ECD-002, 1m" -> Connection cable EC3-D13/23 - ECD-002, 1m
B66: ECT-323 | C66: 8 405 176 | D66: =INDEX(Language!$B$2:$M$400,299,Language!$A$1)&" 25VA, 230V / 24 VAC,"&INDEX(Language!$B$2:$M$400,300,Language!$A$1) -> Transformer 25VA, 230V / 24 VAC,for DIN rail mounting
B68: =INDEX(Language!$B$2:$M$400,302,Language!$A$1) -> Universal driver
B69: Type | C69: Part No. | D69: Description
B70: EXD-U02 | C70: 804 752 | D70: =INDEX(Language!$B$2:$M$400,302,Language!$A$1) -> Universal driver
B71: K09-U00 | C71: 804 559 | D71: =INDEX(Language!$B$2:$M$400,297,Language!$A$1)&B70 -> Terminal kit for EXD-U02
B72: ECP-024 | C72: 804 558 | D72: =INDEX(Language!$B$2:$M$400,305,Language!$A$1)&" "&B70 -> Uninterruptible power supply for up to two EXD-U02
B73: K09-P00 | C73: 804 560 | D73: =INDEX(Language!$B$2:$M$400,297,Language!$A$1)&B72 -> Terminal kit for ECP-024
B77: =INDEX(Language!$B$2:$M$400,306,Language!$A$1) -> Superheat/Economizer Controller
B78: EXD-HP1 | C78: 807 836M | D78: =INDEX(Language!$B$2:$M$400,307,Language!$A$1) -> Controller for one EXV; 20 pieces
B79: EXD-HP2 | C79: 807 837M | D79: =INDEX(Language!$B$2:$M$400,308,Language!$A$1) -> Controller for two EXV; 20 pieces
B80: ECP-P30 | C80: 804 495 | D80: =INDEX(Language!$B$2:$M$400,309,Language!$A$1) -> Temperature sensor, 3 meter cable
B81: =E4 -> 1 | C81: Kältemittel | E81: see chapter Pressure Transmitters
B82: =INDEX(B83:B84,$B$81) -> PT5N-07M | C82: =INDEX(C83:C84,$B$81) -> 805 350M | D82: =INDEX(D83:D84,$B$81) -> 805 350 | E82: =INDEX(E83:E84,$B$81) -> Pressure transmitter -0.8 …7 bar for suction pressure (R22, R134a, R407C)
B83: PT5N-07M | C83: 805 350M | D83: 805 350 | E83: =INDEX(Language!$B$2:$M$400,330,Language!$A$1)&" -0.8 …7 bar "&INDEX(Language!$B$2:$M$400,311,Language!$A$1)&" "&J83 -> Pressure transmitter -0.8 …7 bar for suction pressure (R22, R134a, R407C) | J83: (R22, R134a, R407C)
B84: PT5N-18M | C84: 805 351M | D84: 805 351 | E84: =INDEX(Language!$B$2:$M$400,330,Language!$A$1)&" 0 ...18 bar "&INDEX(Language!$B$2:$M$400,311,Language!$A$1)&" "&J84 -> Pressure transmitter 0 ...18 bar for suction pressure (R410A, R32) | J84: (R410A, R32)
B85: PT5N-30M | C85: 805 352M | D85: 805 352 | E85: =INDEX(Language!$B$2:$M$400,330,Language!$A$1)&" 0 ...30 bar "&INDEX(Language!$B$2:$M$400,312,Language!$A$1) -> Pressure transmitter 0 ...30 bar for economizer pressure
B86: 1 | C86: Kabellänge PT
B87: =INDEX(B$88:B$90,$B$86) -> PT4-M15 | C87: =INDEX(C$88:C$90,$B$86) -> 804 803 | D87: =INDEX(D$88:D$90,$B$86) -> Cable assemblies 1,5 m | I87: =INDEX(I$88:I$90,$B$86) -> 1,5 m
B88: PT4-M15 | C88: 804 803 | D88: =INDEX(Language!$B$2:$M$400,242,Language!$A$1)&" "&I88 -> Cable assemblies 1,5 m | I88: 1,5 m
B89: PT4-M30 | C89: 804 804 | D89: =INDEX(Language!$B$2:$M$400,242,Language!$A$1)&" "&I89 -> Cable assemblies 3,0 m | I89: 3,0 m
B90: PT4-M60 | C90: 804 805 | D90: =INDEX(Language!$B$2:$M$400,242,Language!$A$1)&" "&I90 -> Cable assemblies 6,0 m | I90: 6,0 m
I91: 12,0 m
B92: =INDEX(Language!$B$2:$M$400,315,Language!$A$1) -> Superheat controller
B94: EC3-X32 | C94: 807 782 | D94: =INDEX(Language!$B$2:$M$400,316,Language!$A$1) -> Superheat controller TCP/IP interface | K94: 807 782 807 783
B95: K03-X32 | C95: 807 644 | D95: =INDEX(Language!$B$2:$M$400,243,Language!$A$1) -> Terminal kit
B96: EC3-X33 | C96: 807 783 | D96: =INDEX(Language!$B$2:$M$400,317,Language!$A$1) -> Superheat controller, stand alone | K96: Terminal Kit for EC3-X32/-X33 K03-X32 807 644 K03-X33 807 645
B97: K03-X33 | C97: 807 645 | D97: =INDEX(Language!$B$2:$M$400,243,Language!$A$1) -> Terminal kit
B98: EC3-D72 | C98: 807 805 | D98: =INDEX(Language!$B$2:$M$400,319,Language!$A$1) -> Digital superheat controller TCP/IP interface | K98: 807 805 807 804
B99: K03-331 | C99: 807 648 | D99: =INDEX(Language!$B$2:$M$400,243,Language!$A$1) -> Terminal kit
B100: EC3-D73 | C100: 807 804 | D100: =INDEX(Language!$B$2:$M$400,320,Language!$A$1) -> Digital superheat controller, stand alone | K100: Terminal Kit for EC3-D72/-D73 K03-331 807 648 K03-331 807 648
B101: K03-331 | C101: 807 648 | D101: =INDEX(Language!$B$2:$M$400,243,Language!$A$1) -> Terminal kit
B102: 2 | C102: Kabellänge Temp Sensor
B103: =INDEX(B$104:B$106,$B$102) -> ECN-N60 | C103: =INDEX(C$104:C$106,$B$102) -> 804 497 | D103: =INDEX(D$104:D$106,$B$102) -> Temperature sensor Cable length 6,0 m
B104: ECN-N30 | C104: 804 496 | D104: =INDEX(Language!$B$2:$M$400,182,Language!$A$1)&" "&INDEX(Language!$B$2:$M$400,98,Language!$A$1)&" 3,0 m" -> Temperature sensor Cable length 3,0 m
B105: ECN-N60 | C105: 804 497 | D105: =INDEX(Language!$B$2:$M$400,182,Language!$A$1)&" "&INDEX(Language!$B$2:$M$400,98,Language!$A$1)&" 6,0 m" -> Temperature sensor Cable length 6,0 m
B106: ECN-N99 | C106: 804 499 | D106: =INDEX(Language!$B$2:$M$400,182,Language!$A$1)&" "&INDEX(Language!$B$2:$M$400,98,Language!$A$1)&" 12,0 m" -> Temperature sensor Cable length 12,0 m
B108: ECD-002 | C108: 807 657 | D108: =INDEX(Language!$B$2:$M$400,296,Language!$A$1) -> Display and keyboard
B109: 1 | C109: Kabellänge Connection Cable
B110: =INDEX(B$111:B$113,$B$109) -> ECC-N10 | C110: =INDEX(C$111:C$113,$B$109) -> 807 860 | D110: =INDEX(D$111:D$113,$B$109) -> Connection cable EC3 - ECD. Length: 1,0 m
B111: ECC-N10 | C111: 807 860 | D111: =INDEX(Language!$B$2:$M$400,322,Language!$A$1)&" "&I111 -> Connection cable EC3 - ECD. Length: 1,0 m | I111: 1,0 m
B112: ECC-N30 | C112: 807 861 | D112: =INDEX(Language!$B$2:$M$400,322,Language!$A$1)&" "&I112 -> Connection cable EC3 - ECD. Length: 3,0 m | I112: 3,0 m
B113: ECC-N50 | C113: 807 862 | D113: =INDEX(Language!$B$2:$M$400,322,Language!$A$1)&" "&I113 -> Connection cable EC3 - ECD. Length: 5,0 m | I113: 5,0 m
B115: =INDEX(Language!$B$2:$M$400,279,Language!$A$1) -> Accessories
B116: =INDEX(Language!$B$2:$M$400,299,Language!$A$1)&" 230 / 24 VAC" -> Transformer 230 / 24 VAC
B117: ECT-323 | C117: 804 424 | D117: 25VA
B118: ECT-623 | C118: 804 421 | D118: 60VA
B120: =INDEX(Language!$B$2:$M$400,331,Language!$A$1) -> Economizer control for tandem compressors
B121: EXD-TEVI | C121: 807 838 | D121: 807 838M | E121: =INDEX(Language!$B$2:$M$400,332,Language!$A$1) -> Controller with connectors
B122: ECN-N30 | C122: 804 496 | E122: =INDEX(Language!$B$2:$M$400,333,Language!$A$1)&" 3.0m" -> Injection line temperature sensor 3.0m
B123: ECN-N60 | C123: 804 497 | E123: =INDEX(Language!$B$2:$M$400,333,Language!$A$1)&" 6.0m" -> Injection line temperature sensor 6.0m
B126: =INDEX(Language!$B$2:$M$400,331,Language!$A$1) -> Economizer control for tandem compressors
B127: EXD-SH1 | C127: 807 855 | D127: - | E127: =INDEX(Language!$B$2:$M$400,363,Language!$A$1) -> Controller for single refrigeration circuit
B128: EXD-SH2 | C128: 807 856 | D128: - | E128: =INDEX(Language!$B$2:$M$400,364,Language!$A$1) -> Controller for two independent refrigeration circuits
B129: EXD-M03 | C129: - | D129: 807 865 | E129: =INDEX(Language!$B$2:$M$400,365,Language!$A$1) -> Molex terminal with 3 meter wires
B130: ECN-N30 | C130: - | D130: 804 496 | E130: =INDEX(Language!$B$2:$M$400,182,Language!$A$1)&", "&INDEX(Language!$B$2:$M$400,98,Language!$A$1)&" 3,0 m" -> Temperature sensor, Cable length 3,0 m
B131: ECN-N60 | C131: - | D131: 804 497 | E131: =INDEX(Language!$B$2:$M$400,182,Language!$A$1)&", "&INDEX(Language!$B$2:$M$400,98,Language!$A$1)&" 6,0 m" -> Temperature sensor, Cable length 6,0 m
B132: ECN-Z60 | C132: - | D132: ? | E132: =INDEX(Language!$B$2:$M$400,366,Language!$A$1) -> Ultralow temperature sensor, 6 meter cable
B134: ECP-024 | C134: - | D134: 804 558 | E134: =INDEX(Language!$B$2:$M$400,368,Language!$A$1) -> Backup battery with two outputs for two controllers
B135: K09-P00 | C135: - | D135: 804 560 | E135: =INDEX(Language!$B$2:$M$400,297,Language!$A$1)&" "&B134 -> Terminal kit for ECP-024
B136: EXD-PM | D136: 807 854 | E136: =INDEX(Language!$B$2:$M$400,369,Language!$A$1) -> Super cap for one EXD-SH1
E137: =INDEX(Language!$B$2:$M$400,370,Language!$A$1) -> (two pieces of EXD-PM required for one EXD-SH2)

Sheet TXMod
B1: =INDEX(Language!$B$2:$M$41,2,Language!$A$1) -> Instruction: Select refrigerant and fill yellow fields with operating conditions.
B2: =INDEX(Language!$B$2:$M$41,3,Language!$A$1) -> #N/A error message: operating conditions, refrigerant or product out of range/specification.
E4: =INDEX(Language!$B$2:$M$41,4,Language!$A$1) -> Project:
E5: =INDEX(Language!$B$2:$M$62,55,Language!$A$1)&", "&INDEX(Language!$B$2:$M$250,83,Language!$A$1) -> Expansion valve , Modular design
B7: =INDEX(Language!$B$2:$M$41,5,Language!$A$1) -> Refrigerant | D7: ='TXV-Fun'!$G$29 -> R448A
B8: =INDEX(Language!$B$2:$M$41,6,Language!$A$1) -> Evaporating temperature | D8: -35 | E8: =INDEX('TXV-Fun'!$U$4:$W$14,2,'TXV-Fun'!$D$19) -> °C | H8: TC = | I8: =D10 -> 40 | J8: =E10 -> °C
H9: PC= | I9: =('TXV-Fun'!E41)*INDEX('TXV-Fun'!$U$4:$W$14,9,'TXV-Fun'!$D$19) -> 18.61553442 | J9: =INDEX('TXV-Fun'!$U$4:$W$14,10,'TXV-Fun'!$D$19) -> bara
B10: =INDEX(Language!$B$2:$M$41,7,Language!$A$1) -> Condensing temperature | D10: 40 | E10: =INDEX('TXV-Fun'!$U$4:$W$14,2,'TXV-Fun'!$D$19) -> °C
H11: =$D$7 -> R448A
B12: =INDEX(Language!$B$2:$M$41,8,Language!$A$1) -> Subcooling | D12: 1 | E12: =INDEX('TXV-Fun'!$U$4:$W$14,3,'TXV-Fun'!$D$19) -> K
B13: =INDEX(Language!$B$2:$M$41,11,Language!$A$1) -> System cooling capacity | D13: 10 | E13: =INDEX('TXV-Fun'!$U$4:$W$14,4,'TXV-Fun'!$D$19) -> kW | J13: Q0 = | K13: =D13&" "&E13 -> 10 kW
B15: =INDEX(Language!$B$2:$M$41,12,Language!$A$1) -> Pressure drop * | D15: 0 | E15: =INDEX('TXV-Fun'!$U$4:$W$14,5,'TXV-Fun'!$D$19) -> bar
B16: =INDEX(Language!$B$2:$M$41,13,Language!$A$1) -> *) Liquid line, filter drier, solenoid valve, sight glass, liquid distributor and evaporator
G18: Tliquid = | H18: =D10-D12&INDEX('TXV-Fun'!$U$4:$W$14,2,'TXV-Fun'!$D$19) -> 39°C
G19: Dp = | H19: =I9-(N19+D15) -> 17.3409994 | I19: =INDEX('TXV-Fun'!$U$4:$W$14,5,'TXV-Fun'!$D$19) -> bar | J19: T0 = | K19: =D8 -> -35 | L19: =E8 -> °C | M19: P0 = | N19: =('TXV-Fun'!E37)*INDEX('TXV-Fun'!$U$4:$W$14,9,'TXV-Fun'!$D$19) -> 1.274535011 | O19: =INDEX('TXV-Fun'!$U$4:$W$14,10,'TXV-Fun'!$D$19) -> bara
B20: =INDEX(Language!$B$2:$M$65,46,Language!$A$1) -> High performance T-Series | E20: (+30°C >T0 ≥ -45°C)
M21: =CONCATENATE(INDEX(Language!$B$2:$M$41,23,Language!$A$1),E13,")") -> Maximum valve capacity at selected conditions (kW)
D22: =INDEX(Language!$B$2:$M$41,15,Language!$A$1) -> Type | G22: =INDEX(Language!$B$2:$M$41,18,Language!$A$1) -> Part No. | H22: =INDEX(Language!$B$2:$M$41,16,Language!$A$1) -> Ratio
D23: =INDEX('TXV-Dat'!D44:D61,'TXV-Fun'!$D$55)&INDEX('TXV-Dat'!B44:B61,'TXV-Fun'!$D$55) -> TCLE 850BW | M23: =INDEX(Language!$B$2:$M$41,37,Language!$A$1) -> Orifice | P23: ='TXV-Fun'!$G$29 -> R448A
C24: =INDEX(Language!$B$2:$M$41,37,Language!$A$1) -> Orifice | M24: ='TXV-Dat'!D9 -> X9144-B13B | P24: =IF('TXV-Dat'!B9="-","-",'TXV-Dat'!B9*INDEX('TXV-Fun'!$U$4:$W$14,8,'TXV-Fun'!$D$19)) -> 135.9367839
D25: =INDEX('TXV-Dat'!D9:D26,'TXV-Fun'!$D$55) -> X22440-B6B | G25: =INDEX('TXV-Dat'!E9:E26,'TXV-Fun'!$D$55,1) -> 803 215 | H25: =TEXT('TXV-Fun'!$E$50/INDEX('TXV-Dat'!B9:B26,'TXV-Fun'!D55),"0%")&" "&IF('TXV-Fun'!E55>30%,"OK",INDEX(Language!$B$2:$M$41,36,Language!$A$1)) -> 73% OK | M25: ='TXV-Dat'!D10 -> X9144-B11B | P25: =IF('TXV-Dat'!B10="-","-",'TXV-Dat'!B10*INDEX('TXV-Fun'!$U$4:$W$14,8,'TXV-Fun'!$D$19)) -> 113.9051829
M26: ='TXV-Dat'!D11 -> X9166-B10B | P26: =IF('TXV-Dat'!B11="-","-",'TXV-Dat'!B11*INDEX('TXV-Fun'!$U$4:$W$14,8,'TXV-Fun'!$D$19)) -> 100.4063126
C27: =INDEX(Language!$B$2:$M$41,38,Language!$A$1) -> Power assembly | M27: ='TXV-Dat'!D12 -> X9117-B9B | P27: =IF('TXV-Dat'!B12="-","-",'TXV-Dat'!B12*INDEX('TXV-Fun'!$U$4:$W$14,8,'TXV-Fun'!$D$19)) -> 78.32956493
A28: ='TXV-Fun'!$V$27 -> - | D28: =IF('TXV-Dat'!$B83="-","-",IF('TXV-Fun'!$D$55<8,'TXV-Dat'!B$79&'TXV-Dat'!$B83&'TXV-Dat'!C$79,'TXV-Dat'!B$80&'TXV-Dat'!$B83&'TXV-Dat'!C$80)) -> XB1019 BW 1B | G28: =TEXT(IF('TXV-Dat'!$B90="-","-",IF('TXV-Fun'!$D$55<8,'TXV-Dat'!$B96,'TXV-Dat'!$B90)),0) -> 802 792 | H28: =INDEX(Language!$B$2:$M$69,54,Language!$A$1) -> less | I28: MOP | M28: ='TXV-Dat'!D13 -> X9117-B8B | P28: =IF('TXV-Dat'!B13="-","-",'TXV-Dat'!B13*INDEX('TXV-Fun'!$U$4:$W$14,8,'TXV-Fun'!$D$19)) -> 64.37922743
D29: =IF('TXV-Dat'!$B84="-","-",IF('TXV-Fun'!$D$55<8,'TXV-Dat'!B$79&'TXV-Dat'!$B84&'TXV-Dat'!C$79,'TXV-Dat'!B$80&'TXV-Dat'!$B84&'TXV-Dat'!C$80)) -> XB1019 BW 30 1B | G29: =TEXT(IF('TXV-Dat'!$B91="-","-",IF('TXV-Fun'!$D$55<8,'TXV-Dat'!$B97,'TXV-Dat'!$B91)),0) -> 802 791 | H29: =INDEX(Language!$B$2:$M$69,53,Language!$A$1) -> with | I29: =INDEX(Language!$B$2:$M$41,39,Language!$A$1)&1 -> MOP1 | J29: ='TXV-Dat'!B104 -> -18°C | M29: ='TXV-Dat'!D14 -> X9117-B7B | P29: =IF('TXV-Dat'!B14="-","-",'TXV-Dat'!B14*INDEX('TXV-Fun'!$U$4:$W$14,8,'TXV-Fun'!$D$19)) -> 46.81715207
D30: =IF('TXV-Dat'!$B85="-","-",IF('TXV-Fun'!$D$55<8,'TXV-Dat'!B$79&'TXV-Dat'!$B85&'TXV-Dat'!C$79,'TXV-Dat'!B$80&'TXV-Dat'!$B85&'TXV-Dat'!C$80)) -> XB1019 BW 100 1B | G30: =TEXT(IF('TXV-Dat'!$B92="-","-",IF('TXV-Fun'!$D$55<8,'TXV-Dat'!$B98,'TXV-Dat'!$B92)),0) -> 802 790 | H30: =INDEX(Language!$B$2:$M$69,53,Language!$A$1) -> with | I30: =INDEX(Language!$B$2:$M$41,39,Language!$A$1)&2 -> MOP2 | J30: ='TXV-Dat'!B105 -> +12°C | M30: ='TXV-Dat'!D15 -> X9117-B6B | P30: =IF('TXV-Dat'!B15="-","-",'TXV-Dat'!B15*INDEX('TXV-Fun'!$U$4:$W$14,8,'TXV-Fun'!$D$19)) -> 40.94807804
D31: =IF('TXV-Dat'!$B86="-","-",IF('TXV-Fun'!$D$55<8,'TXV-Dat'!B$79&'TXV-Dat'!$B86&'TXV-Dat'!C$79,'TXV-Dat'!B$80&'TXV-Dat'!$B86&'TXV-Dat'!C$80)) -> - | G31: =TEXT(IF('TXV-Dat'!$B93="-","-",IF('TXV-Fun'!$D$55<8,'TXV-Dat'!$B99,'TXV-Dat'!$B93)),0) -> - | H31: =INDEX(Language!$B$2:$M$69,53,Language!$A$1) -> with | I31: =INDEX(Language!$B$2:$M$41,39,Language!$A$1)&3 -> MOP3 | J31: ='TXV-Dat'!B106 -> - | M31: ='TXV-Dat'!D16 -> X11873-B5B | P31: =IF('TXV-Dat'!B16="-","-",'TXV-Dat'!B16*INDEX('TXV-Fun'!$U$4:$W$14,8,'TXV-Fun'!$D$19)) -> 33.3182818
D32: =IF('TXV-Dat'!$B87="-","-",IF('TXV-Fun'!$D$55<8,'TXV-Dat'!B$79&'TXV-Dat'!$B87&'TXV-Dat'!C$79,'TXV-Dat'!B$80&'TXV-Dat'!$B87&'TXV-Dat'!C$80)) -> - | G32: =TEXT(IF('TXV-Dat'!$B94="-","-",IF('TXV-Fun'!$D$55<8,'TXV-Dat'!$B100,'TXV-Dat'!$B94)),0) -> - | H32: =INDEX(Language!$B$2:$M$69,53,Language!$A$1) -> with | I32: =INDEX(Language!$B$2:$M$41,39,Language!$A$1)&4 -> MOP4 | J32: ='TXV-Dat'!B107 -> - | M32: ='TXV-Dat'!D17 -> X11873-B4B | P32: =IF('TXV-Dat'!B17="-","-",'TXV-Dat'!B17*INDEX('TXV-Fun'!$U$4:$W$14,8,'TXV-Fun'!$D$19)) -> 26.09480607
C33: =INDEX(Language!$B$2:$M$71,64,Language!$A$1) -> Angle flange | M33: ='TXV-Dat'!D18 -> X22440-B8B | P33: =IF('TXV-Dat'!B18="-","-",'TXV-Dat'!B18*INDEX('TXV-Fun'!$U$4:$W$14,8,'TXV-Fun'!$D$19)) -> 21.53498702
D34: =INDEX('TXV-Dat'!D$130:D$147,'TXV-Fun'!$D$55) -> C501-7mm 12x16 | G34: =INDEX('TXV-Dat'!E$130:E$147,'TXV-Fun'!$D$55) -> 803 235 | M34: ='TXV-Dat'!D19 -> X22440-B7B | P34: =IF('TXV-Dat'!B19="-","-",'TXV-Dat'!B19*INDEX('TXV-Fun'!$U$4:$W$14,8,'TXV-Fun'!$D$19)) -> 18.51015655
D35: =INDEX('TXV-Dat'!F$130:F$147,'TXV-Fun'!$D$55) -> C501-7 1/2x5/8" | G35: =INDEX('TXV-Dat'!H$130:H$147,'TXV-Fun'!$D$55) -> 803 234 | M35: ='TXV-Dat'!D20 -> X22440-B6B | P35: =IF('TXV-Dat'!B20="-","-",'TXV-Dat'!B20*INDEX('TXV-Fun'!$U$4:$W$14,8,'TXV-Fun'!$D$19)) -> 13.67945716
C36: =INDEX(Language!$B$2:$M$71,65,Language!$A$1) -> Straight through flange | M36: ='TXV-Dat'!D21 -> X22440-B5B | P36: =IF('TXV-Dat'!B21="-","-",'TXV-Dat'!B21*INDEX('TXV-Fun'!$U$4:$W$14,8,'TXV-Fun'!$D$19)) -> 9.97742585
D37: =INDEX('TXV-Dat'!J130:J147,'TXV-Fun'!$D$55) -> 9761-4mm 12x16 | G37: =INDEX('TXV-Dat'!L130:L147,'TXV-Fun'!$D$55) -> 803 243 | M37: ='TXV-Dat'!D22 -> X22440-B4B | P37: =IF('TXV-Dat'!B22="-","-",'TXV-Dat'!B22*INDEX('TXV-Fun'!$U$4:$W$14,8,'TXV-Fun'!$D$19)) -> 7.810383132
D38: =INDEX('TXV-Dat'!N$130:N$147,'TXV-Fun'!$D$55) -> 9761-4 1/2x5/8" | G38: =INDEX('TXV-Dat'!P130:P147,'TXV-Fun'!$D$55) -> 803 350 | M38: ='TXV-Dat'!D23 -> X22440-B3,5B | P38: =IF('TXV-Dat'!B23="-","-",'TXV-Dat'!B23*INDEX('TXV-Fun'!$U$4:$W$14,8,'TXV-Fun'!$D$19)) -> 5.372460073
M39: ='TXV-Dat'!D24 -> X22440-B3B | P39: =IF('TXV-Dat'!B24="-","-",'TXV-Dat'!B24*INDEX('TXV-Fun'!$U$4:$W$14,8,'TXV-Fun'!$D$19)) -> 3.566591141
B40: =INDEX(Language!$B$2:$M$71,66,Language!$A$1) -> ZZ-Series for ultra low temperatures | G40: (-40°C >T0 ≥ -75°C /-100°C) | M40: ='TXV-Dat'!D25 -> X22440-B2B | P40: =IF('TXV-Dat'!B25="-","-",'TXV-Dat'!B25*INDEX('TXV-Fun'!$U$4:$W$14,8,'TXV-Fun'!$D$19)) -> 1.670428762
D41: =INDEX(Language!$B$2:$M$41,15,Language!$A$1) -> Type | E41: =INDEX('TXV-Dat'!D62:D68,'TXV-Fun'!$D$56)&INDEX('TXV-Dat'!B62:B68,'TXV-Fun'!$D$56) ->  | G41: =INDEX(Language!$B$2:$M$41,18,Language!$A$1) -> Part No. | H41: =INDEX(Language!$B$2:$M$41,16,Language!$A$1) -> Ratio | M41: ='TXV-Dat'!D26 -> X22440-B1B | P41: =IF('TXV-Dat'!B26="-","-",'TXV-Dat'!B26*INDEX('TXV-Fun'!$U$4:$W$14,8,'TXV-Fun'!$D$19)) -> 0.8577877428
C42: =INDEX(Language!$B$2:$M$41,37,Language!$A$1) -> Orifice | D42: =INDEX('TXV-Dat'!D27:D33,'TXV-Fun'!$D$56) ->  | G42: =INDEX('TXV-Dat'!E27:E33,'TXV-Fun'!$D$56) ->  | H42: =TEXT('TXV-Fun'!$E$50/INDEX('TXV-Dat'!B27:B33,'TXV-Fun'!D56),"0%")&" "&IF('TXV-Fun'!E56>30%,"OK",INDEX(Language!$B$2:$M$41,36,Language!$A$1)) -> 
C43: =INDEX(Language!$B$2:$M$41,38,Language!$A$1)&" " -> Power assembly | M43: =INDEX(Language!$B$2:$M$41,37,Language!$A$1) -> Orifice | P43: ='TXV-Fun'!$G$29 -> R448A
A44: ='TXV-Fun'!$V$28 -> - | D44: =IF('TXV-Dat'!$B112="-","-",'TXV-Dat'!B$116&'TXV-Dat'!$B112&'TXV-Dat'!C$116) -> XC726 BW 30 2B | G44: =TEXT(IF('TXV-Dat'!$B112="-","-",'TXV-Dat'!$B118),0) -> 802 793 | H44: =INDEX(Language!$B$2:$M$69,53,Language!$A$1) -> with | I44: =INDEX(Language!$B$2:$M$41,39,Language!$A$1)&1 -> MOP1 | J44: ='TXV-Dat'!B124 -> -18°C | M44: ='TXV-Dat'!D27 -> X 10-B07 | P44: =IF('TXV-Dat'!B27="-","-",'TXV-Dat'!B27*INDEX('TXV-Fun'!$U$4:$W$14,8,'TXV-Fun'!$D$19)) -> 
D45: =IF('TXV-Dat'!$B113="-","-",'TXV-Dat'!B$116&'TXV-Dat'!$B113&'TXV-Dat'!C$116) -> - | G45: =TEXT(IF('TXV-Dat'!$B113="-","-",'TXV-Dat'!$B119),0) -> - | H45: =INDEX(Language!$B$2:$M$69,53,Language!$A$1) -> with | I45: =INDEX(Language!$B$2:$M$41,39,Language!$A$1)&2 -> MOP2 | J45: ='TXV-Dat'!B125 -> - | M45: ='TXV-Dat'!D28 -> X 10-B06 | P45: =IF('TXV-Dat'!B28="-","-",'TXV-Dat'!B28*INDEX('TXV-Fun'!$U$4:$W$14,8,'TXV-Fun'!$D$19)) -> 
D46: =IF('TXV-Dat'!$B114="-","-",'TXV-Dat'!B$116&'TXV-Dat'!$B114&'TXV-Dat'!C$116) -> - | G46: =TEXT(IF('TXV-Dat'!$B114="-","-",'TXV-Dat'!$B120),0) -> - | H46: =INDEX(Language!$B$2:$M$69,53,Language!$A$1) -> with | I46: =INDEX(Language!$B$2:$M$41,39,Language!$A$1)&3 -> MOP3 | J46: ='TXV-Dat'!B126 -> - | M46: ='TXV-Dat'!D29 -> X 10-B05 | P46: =IF('TXV-Dat'!B29="-","-",'TXV-Dat'!B29*INDEX('TXV-Fun'!$U$4:$W$14,8,'TXV-Fun'!$D$19)) -> 
C47: =INDEX(Language!$B$2:$M$71,64,Language!$A$1) -> Angle flange | M47: ='TXV-Dat'!D30 -> X 10-B04 | P47: =IF('TXV-Dat'!B30="-","-",'TXV-Dat'!B30*INDEX('TXV-Fun'!$U$4:$W$14,8,'TXV-Fun'!$D$19)) -> 
D48: =INDEX('TXV-Dat'!D$139:D$147,'TXV-Fun'!$D$56) ->  | G48: =INDEX('TXV-Dat'!E$139:E$147,'TXV-Fun'!$D$56) ->  | M48: ='TXV-Dat'!D31 -> X 10-B03 | P48: =IF('TXV-Dat'!B31="-","-",'TXV-Dat'!B31*INDEX('TXV-Fun'!$U$4:$W$14,8,'TXV-Fun'!$D$19)) -> 
M49: ='TXV-Dat'!D32 -> X 10-B02 | P49: =IF('TXV-Dat'!B32="-","-",'TXV-Dat'!B32*INDEX('TXV-Fun'!$U$4:$W$14,8,'TXV-Fun'!$D$19)) -> 
B50: =INDEX(Language!$B$2:$M$251,48,Language!$A$1) -> TI-series with interchangeable orifices | G50: (+30°C >T0 ≥ -45°C) | M50: ='TXV-Dat'!D33 -> X 10-B01 | P50: =IF('TXV-Dat'!B33="-","-",'TXV-Dat'!B33*INDEX('TXV-Fun'!$U$4:$W$14,8,'TXV-Fun'!$D$19)) -> 
D51: =INDEX(Language!$B$2:$M$41,15,Language!$A$1) -> Type | G51: =INDEX(Language!$B$2:$M$41,18,Language!$A$1) -> Part No. | H51: =INDEX(Language!$B$2:$M$41,16,Language!$A$1) -> Ratio | M51: =INDEX(Language!$B$2:$M$41,37,Language!$A$1) -> Orifice | P51: ='TXV-Fun'!$G$29 -> R448A
C52: =INDEX(Language!$B$2:$M$41,37,Language!$A$1) -> Orifice | D52: =INDEX('TXV-Dat'!D$34:D$41,'TXV-Fun'!$D$57) ->  | G52: =TEXT(INDEX('TXV-Dat'!E$34:E$41,'TXV-Fun'!$D$57),"# ##0") ->  | H52: =TEXT('TXV-Fun'!$E$50/INDEX('TXV-Dat'!B34:B41,'TXV-Fun'!D57),"0%")&" "&IF('TXV-Fun'!E57>30%,"OK",INDEX(Language!$B$2:$M$41,36,Language!$A$1)) ->  | M52: ='TXV-Dat'!D34 -> TIO-006 | P52: =IF('TXV-Dat'!B34="-","-",'TXV-Dat'!B34*INDEX('TXV-Fun'!$U$4:$W$14,8,'TXV-Fun'!$D$19)) -> 8.758464321
C53: =INDEX(Language!$B$2:$M$41,38,Language!$A$1) -> Power assembly | M53: ='TXV-Dat'!D35 -> TIO-005 | P53: =IF('TXV-Dat'!B35="-","-",'TXV-Dat'!B35*INDEX('TXV-Fun'!$U$4:$W$14,8,'TXV-Fun'!$D$19)) -> 7.629796239
A54: ='TXV-Fun'!$V$27 -> - | D54: ='TXV-Dat'!B151 -> TISE-BW (12mm) | G54: ='TXV-Dat'!B157 -> 802 416 | H54: =INDEX(Language!$B$2:$M$69,54,Language!$A$1) -> less | I54: =INDEX(Language!$B$2:$M$41,39,Language!$A$1) -> MOP | M54: ='TXV-Dat'!D36 -> TIO-004 | P54: =IF('TXV-Dat'!B36="-","-",'TXV-Dat'!B36*INDEX('TXV-Fun'!$U$4:$W$14,8,'TXV-Fun'!$D$19)) -> 6.275394539
D55: ='TXV-Dat'!B152 -> TISE-BW (1/2") | G55: ='TXV-Dat'!B158 -> 802 417 | H55: =INDEX(Language!$B$2:$M$69,54,Language!$A$1) -> less | I55: =INDEX(Language!$B$2:$M$41,39,Language!$A$1) -> MOP | M55: ='TXV-Dat'!D37 -> TIO-003 | P55: =IF('TXV-Dat'!B37="-","-",'TXV-Dat'!B37*INDEX('TXV-Fun'!$U$4:$W$14,8,'TXV-Fun'!$D$19)) -> 3.837471481
D56: ='TXV-Dat'!B153 -> TISE-BW30 (12mm) | G56: ='TXV-Dat'!B159 -> 802 494 | H56: =INDEX(Language!$B$2:$M$69,53,Language!$A$1) -> with | I56: =INDEX(Language!$B$2:$M$41,39,Language!$A$1)&1 -> MOP1 | J56: ='TXV-Dat'!B165 -> -14°C | M56: ='TXV-Dat'!D38 -> TIO-002 | P56: =IF('TXV-Dat'!B38="-","-",'TXV-Dat'!B38*INDEX('TXV-Fun'!$U$4:$W$14,8,'TXV-Fun'!$D$19)) -> 2.392776335
D57: ='TXV-Dat'!B154 -> TISE-BW30 (1/2") | G57: ='TXV-Dat'!B160 -> 802 495 | H57: =INDEX(Language!$B$2:$M$69,53,Language!$A$1) -> with | I57: =INDEX(Language!$B$2:$M$41,39,Language!$A$1)&2 -> MOP2 | J57: ='TXV-Dat'!B166 -> -14°C | M57: ='TXV-Dat'!D39 -> TIO-001 | P57: =IF('TXV-Dat'!B39="-","-",'TXV-Dat'!B39*INDEX('TXV-Fun'!$U$4:$W$14,8,'TXV-Fun'!$D$19)) -> 1.444695146
D58: ='TXV-Dat'!B155 -> - | G58: ='TXV-Dat'!B161 -> - | H58: =INDEX(Language!$B$2:$M$69,53,Language!$A$1) -> with | I58: =INDEX(Language!$B$2:$M$41,39,Language!$A$1)&3 -> MOP3 | J58: ='TXV-Dat'!B167 -> - | M58: ='TXV-Dat'!D40 -> TIO-000 | P58: =IF('TXV-Dat'!B40="-","-",'TXV-Dat'!B40*INDEX('TXV-Fun'!$U$4:$W$14,8,'TXV-Fun'!$D$19)) -> 0.586907403
D59: TIA-M10 | G59: 802 501 | H59: =INDEX(Language!$B$2:$M$69,67,Language!$A$1) -> Brazing adapter | M59: ='TXV-Dat'!D41 -> TIO-00X | P59: =IF('TXV-Dat'!B41="-","-",'TXV-Dat'!B41*INDEX('TXV-Fun'!$U$4:$W$14,8,'TXV-Fun'!$D$19)) -> 0.2257336165
B60: =Home!$D$43 -> Rev.: 01.11.2019
B61: =INDEX(Language!$B$2:$M$251,250,Language!$A$1) -> The Controls Navigator is provided by Emerson Climate Technologies Europe to assist with the selection of mechanical and electronic controls. Emerson Climate Technologies cannot be held liable for issues arising from application of controls using information provided by this software.

Sheet TXV-Fun (hidden)
A1: Functions, Formulas, Codes
T2: Convert to °C-bar-kW
B3: Languages | E3: Refrigerant Selection | K3: Press. regulators | N3: ZZ | V3: tons | W3: tBTU/h | X3: selected
B4: 1 | C4: =Language!B$2 -> English | E4: =INDEX(E5:E25,$G4) -> 24 | F4: =INDEX(F5:F25,$G4) -> 25 | G4: 14 | K4: 1 | L4: =INDEX(L5:L18,$K4) -> 3 | M4: =INDEX(M5:M18,$K4) -> 3 | N4: =INDEX(N5:N24,$G4) -> 7 | O4: =INDEX(O5:O22,$G4) -> 0 | U4: Metric | V4: Imperial | W4: Imperial | X4: =D19 -> 1
B5: 2 | C5: =Language!C$2 -> Deutsch | E5: 2 | F5: 2 | G5: R410A | I5: 1 | K5: R134a | L5: 3 | M5: 3 | N5: n/a | U5: °C | V5: °F | W5: °F | X5: =INDEX($U5:$W5,$X$4) -> °C
B6: 3 | C6: =Language!D$2 -> Français | E6: 3 | F6: 3 | G6: R134a | I6: =I5+1 -> 2 | K6: R22 | L6: 4 | M6: 4 | N6: n/a | U6: K | V6: °F | W6: °F | X6: K
B7: 4 | C7: =Language!E$2 -> Italiano | E7: 4 | F7: 4 | G7: R22 | I7: =I6+1 -> 3 | K7: R404A | L7: 5 | M7: 6 | N7: 1 | U7: kW | V7: tons | W7: MBH | X7: kW
B8: 5 | C8: =Language!F$2 -> Españiol | E8: 5 | F8: 6 | G8: R404A | I8: 4 | K8: R507 | L8: 7 | M8: 7 | N8: 2 | U8: bar | V8: Psid | W8: Psid | X8: bar
B9: 6 | C9: =Language!G$2 -> Nederlands | E9: 7 | F9: 7 | G9: R507 | I9: 5 | K9: R407C | L9: 8 | M9: 9 | N9: 3 | T9: °C | U9: 0 | V9: 32 | W9: 32 | X9: 0
B10: 7 | C10: =Language!H$2 -> Polish | E10: 8 | F10: 9 | G10: R407C | H10: R450A | I10: 6 | N10: n/a | T10: K | U10: 1 | V10: 0.5555555556 | W10: 0.5555555556 | X10: 1
B11: 8 | C11: =Language!I$2 -> Czech | E11: 10 | F11: 10 | G11: R23 | H11: R513A | I11: 7 | N11: 4 | T11: kW | U11: 1 | V11: 0.284 | W11: =0.94781*3600/1000 -> 3.412116 | X11: 1
B12: 9 | C12: =Language!J$2 -> Russian | E12: 13 | F12: 14 | G12: R454A | H12: R32 | I12: 8 | N12: 5 | T12: bar | U12: 1 | V12: 14.5038 | W12: 14.5038 | X12: 1
B13: 10 | C13: =Language!K$2 -> Chinese | E13: 15 | F13: 16 | G13: R454C | I13: 9 | N13: n/a | U13: bara | V13: Psia | W13: Psia | X13: bara
B14: 11 | C14: =Language!L$2 -> Japanese | E14: 17 | F14: 17 | G14: R1234yf | I14: 10 | N14: n/a | V14: 14.7 | W14: 14.7 | X14: 0
B15: 12 | C15: =Language!M$2 -> Română | E15: 18 | F15: 18 | G15: R1234ze | I15: 11 | N15: n/a
E16: 21 | F16: 21 | G16: R32 | I16: 12 | N16: n/a
E17: 22 | F17: 23 | G17: R452A | I17: 13 | N17: 6
B18: Units Conversion | E18: 24 | F18: 25 | G18: R448A | I18: 14 | N18: 7 | Q18: Correction for Subcooling of More Than 20K
C19: °C-bar-kW | D19: 1 | E19: 26 | F19: 27 | G19: R449A | I19: 15 | N19: 8 | P19: 7 | Q19: 15 | R19: 20 | S19: 25 | T19: 30 | U19: 35 | V19: 40 | W19: 45 | X19: 50 | Y19: 55 | Z19: 60
C20: °F-Psi-tons | E20: 28 | F20: 29 | G20: R450A | I20: 16 | N20: n/a | P20: 8 | Q20: 0.85 | R20: 0.8 | S20: =(R20+T20)/2 -> 0.75 | T20: 0.7 | U20: =(T20+V20)/2 -> 0.65 | V20: 0.6 | W20: =(V20+X20)/2 -> 0.55 | X20: 0.5 | Y20: =(X20+Z20)/2 -> 0.45 | Z20: 0.4
C21: °F-Psi-MBH | E21: 30 | F21: 31 | G21: R513A | I21: 17 | N21: n/a
E22: 34 | F22: 35 | G22: R455A | I22: 18 | N22: 9
N23: n/a
N24: n/a
V25: =INDEX(Language!$B$2:$M$382,380,Language!$A$1) -> See Operating instruction !
U27: T-series | V27: =IF($G$4=1,"-",IF($G$4=2,"-",IF($G$4=3,"-",IF($G$4=4,"-",IF($G$4=5,"-",IF($G$4=6,"-",IF($G$4=7,"-",IF($G$4=14,"-",IF($G$4=15,"-",$V$25))))))))) -> -
G28: TXV & ZZ | K28: Press. Regulator | U28: ZZ-series | V28: =IF($G$4=1,"-",IF($G$4=2,"-",IF($G$4=3,"-",IF($G$4=4,"-",IF($G$4=5,"-",IF($G$4=6,"-",IF($G$4=7,"-",IF($G$4=9,"-",IF($G$4=10,"-",IF($G$4=11,"-",IF($G$4=12,"-",IF($G$4=14,"-",IF($G$4=15,"-",IF($G$4=16,"-",IF($G$4=17,"-",$V$25))))))))))))))) -> -
G29: =INDEX($G$5:$G$25,$G$4) -> R448A | K29: =INDEX($K$5:$K$18,$K$4) -> R134a
A31: Expansion Valves Take Apart (T-, ZZ-, TI-)
J32: Kt | O32: Kt ZZ
D33: max | E33: =INDEX(SatPress!A$2:U$2,E$4) ->  | F33: °C | G33: bara | I33: TCmin | K33: TCmax | N33: TCmin | P33: TCmax
B34: =INDEX(Language!$B$2:$M$41,6,Language!$A$1) -> Evaporating temperature | D34: Roundup | E34: =IF(E35<0,ROUNDDOWN(E35,0),ROUNDUP(E35,0)) -> -35 | G34: =(VLOOKUP(E34,SatPress!$A$7:$AI$213,$F$4,))/100000 -> 1.274535011 | H34: TEmax | I34: =HLOOKUP($E34,INDIRECT(I56),$I40) -> 2.6737 | K34: =HLOOKUP($E34,INDIRECT(I56),$K38) -> 2.6737 | M34: =IF(E35<0,ROUNDDOWN(E35*2,-1)/2,ROUNDUP(E35*2,-1)/2) -> -35 | N34: =HLOOKUP($M34,INDIRECT($O$51),$N40) -> n/a | P34: =HLOOKUP($M34,INDIRECT($O$51),$P38) -> n/a
D35: Value | E35: =IF($D$19=1,TXMod!D8,(TXMod!D8-32)/1.8) -> -35 | F35: °C | G35: =IF($E34=$E36,G36,G36+((G34-G36)*($E35-$E36)/($E34-$E36))) -> 1.274535011 | I35: =IF($E34=$E36,I36,I36+((I34-I36)*($E35-$E36)/($E34-$E36))) -> 2.6737 | J35: =IF($E43=$E45,I35,I35+((K35-I35)*($E44-$E45)/($E43-$E45))) -> 2.6737 | K35: =IF($E34=$E36,K36,K36+((K34-K36)*($E35-$E36)/($E34-$E36))) -> 2.6737 | M35: =E35 -> -35 | N35: =IF($M34=$M36,N36,N36+((N34-N36)*($M35-$M36)/($M34-$M36))) -> n/a | O35: =IF($M38=$M40,N35,N35+((P35-N35)*($M39-$M40)/($M38-$M40))) ->  | P35: =IF($M34=$M36,P36,P36+((P34-P36)*($M35-$M36)/($M34-$M36))) -> n/a
D36: Rounddown | E36: =IF(E35<0,ROUNDUP(E35,0),ROUNDDOWN(E35,0)) -> -35 | G36: =(VLOOKUP(E36,SatPress!$A$7:$AI$213,$F$4,))/100000 -> 1.274535011 | H36: TEmin | I36: =HLOOKUP($E36,INDIRECT(I56),$I40) -> 2.6737 | K36: =HLOOKUP($E36,INDIRECT(I56),$K38) -> 2.6737 | M36: =IF(E35<0,ROUNDUP(E35*2,-1)/2,ROUNDDOWN(E35*2,-1)/2) -> -35 | N36: =HLOOKUP($M36,INDIRECT($O$51),$N40) -> n/a | P36: =HLOOKUP($M36,INDIRECT($O$51),$P38) -> n/a
B37: Po= | E37: =IF(E34=E36,G35,G36+((G34-G36)*(E35-E36)/(E34-E36))) -> 1.274535011 | F37: bara | I37: index from Temp to line nr. | N37: index from Temp to line nr.
B38: =INDEX(Language!$B$2:$M$41,7,Language!$A$1) -> Condensing temperature | D38: Roundup | E38: =IF(E39<0,ROUNDDOWN(E39,0),ROUNDUP(E39,0)) -> 40 | G38: =(VLOOKUP(E38,SatPress!$A$7:$AI$213,E$4,))/100000 -> 18.61553442 | K38: =MATCH($E43,INDIRECT($I$57)) -> 61 | M38: =IF(M39<0,ROUNDDOWN(M39*2,-1)/2,ROUNDUP(M39*2,-1)/2) -> 40 | P38: =MATCH($M38,INDIRECT($R$51)) -> 20
D39: Value | E39: =IF($D$19=1,TXMod!D10,(TXMod!D10-32)/1.8) -> 40 | F39: °C | G39: =IF(E38=E40,G40,G40+((G38-G40)*(E39-E40)/(E38-E40))) -> 18.61553442 | M39: =E44 -> 39
D40: Rounddown | E40: =IF(E39<0,ROUNDUP(E39,0),ROUNDDOWN(E39,0)) -> 40 | G40: =(VLOOKUP(E40,SatPress!$A$7:$AI$213,E$4,))/100000 -> 18.61553442 | I40: =MATCH($E45,INDIRECT($I$57)) -> 61 | M40: =IF(M39<0,ROUNDUP(M39*2,-1)/2,ROUNDDOWN(M39*2,-1)/2) -> 35 | N40: =MATCH($M40,INDIRECT($R$51)) -> 19
B41: Pc= | E41: =IF(E38=E40,G39,G40+((G38-G40)*(E39-E40)/(E38-E40))) -> 18.61553442 | F41: bara | J41: KDp | O41: KDp
B42: =INDEX(Language!$B$2:$M$41,8,Language!$A$1) -> Subcooling | D42: DTsub: | E42: =IF($D$19=1,TXMod!D12,(TXMod!D12)/1.8) -> 1 | F42: K | I42: Dp | N42: Dp
B43: =INDEX(Language!$B$2:$M$41,9,Language!$A$1) -> Liquid temperature | D43: Roundup | E43: =ROUNDUP(E44,0) -> 39 | G43: =(VLOOKUP(E43,SatPress!$A$7:$AI$213,E$4,))/100000 -> 18.17279043 | I43: =ROUNDUP(I44*2,0)/2 -> 17.5 | J43: =HLOOKUP(I43,Delta_P!$E$3:$CG$24,$G$4+2) -> 0.8246117135 | N43: =ROUNDUP(N44*2,0)/2 -> 17.5 | O43: =HLOOKUP(N43,Delta_P!$E$34:$EE$43,$N$4+1) -> 0.82
D44: Value | E44: =E39-E42 -> 39 | F44: °C | G44: =IF(E43=E45,G45,G45+((G43-G45)*(E44-E45)/(E43-E45))) -> 18.17279043 | I44: =$G39-($G35+$E52) -> 17.3409994 | J44: =IF($I43=$I45,J45,J45+((J43-J45)*($I44-$I45)/($I43-$I45))) -> 0.8284400548 | K44: =INDEX($G$5:$G$25,$G$4) -> R448A | L44: =MATCH(K44,Delta_P!$E$3:$E$24,0) -> 16 | N44: =$G39-($G35+$E52) -> 17.3409994 | O44: =IF($I43=$I45,O45,O45+((O43-O45)*($I44-$I45)/($I43-$I45))) -> 0.8263600238
D45: Rounddown | E45: =ROUNDDOWN(E44,0) -> 39 | G45: =(VLOOKUP(E45,SatPress!$A$7:$AI$213,E$4,))/100000 -> 18.17279043 | I45: =ROUNDDOWN(I44*2,0)/2 -> 17 | J45: =HLOOKUP(I45,Delta_P!$E$3:$CG$24,$G$4+2) -> 0.8366504775 | N45: =ROUNDDOWN(N44*2,0)/2 -> 17 | O45: =HLOOKUP(N45,Delta_P!$E$34:$EE$43,$N$4+1) -> 0.84
D46: min | E46: =INDEX(SatPress!A$1:U$1,E$4) ->  | F46: °C
B48: =INDEX(Language!$B$2:$M$41,10,Language!$A$1) -> Diff. pressure across valve | E48: =TXMod!H19/INDEX('TXV-Fun'!$U$4:$W$14,9,'TXV-Fun'!$D$19) -> 17.3409994 | F48: bar | I48: Kt * KDp * Kls = | J48: =J35*J44*J52 -> 2.215000175 | N48: Kt * KDp * Kls = | O48: =O35*O44*J52 -> 
N49: Low temperature range (ZZ)
B50: =INDEX(Language!$B$2:$M$41,11,Language!$A$1) -> System cooling capacity | D50: Q0: | E50: =TXMod!D13/INDEX('TXV-Fun'!$U$4:$W$14,8,'TXV-Fun'!$D$19) -> 10 | F50: kW | J50: Large Subcooling Kls | N50: Indirect range reference
I51: =ROUNDUP(I52*2,-1)/2 -> 5 | J51: =IF(I52>=15,HLOOKUP(I51,$Q$19:$Z$20,2),1) -> 1 | M51: Gewählt: | N51: =INDEX(N52:N60,$N$4) -> R448A | O51: =INDEX(O52:O60,$N$4) -> Kt_ZZ!$A$223:$J$243 | R51: =INDEX(R52:R60,$N$4) -> Kt_ZZ!$A$223:$A$243
B52: =INDEX(Language!$B$2:$M$41,12,Language!$A$1) -> Pressure drop * | E52: =TXMod!D15/INDEX('TXV-Fun'!$U$4:$W$14,9,'TXV-Fun'!$D$19) -> 0 | F52: bar | I52: =E42 -> 1 | J52: =IF(I51=I53,J53,J53+(J51-J53)*(I52-I53)/(I51-I53)) -> 1 | N52: R22 | O52: Kt_ZZ!$A$171:$H$185 | R52: Kt_ZZ!$A$171:$A$185
I53: =ROUNDDOWN(I52*2,-1)/2 -> 0 | J53: =IF(I52>=15,HLOOKUP(I53,$Q$19:$Z$20,2),1) -> 1 | N53: R404A | O53: Kt_ZZ!$A$81:$J$101 | R53: Kt_ZZ!$A$81:$A$101
B54: Find valves which fit best for selected capacity | I54: Normal temperature range | N54: R507 | O54: Kt_ZZ!$A$61:$J$79 | R54: Kt_ZZ!$A$61:$A$79
B55: T-Series | D55: =MATCH($E50,'TXV-Dat'!$B$9:$B$26,-1) -> 12 | E55: ='TXV-Fun'!$E$50/INDEX('TXV-Dat'!B9:B26,'TXV-Fun'!D55) -> 0.7310231599 | I55: Indirect range reference | N55: R23 | O55: Kt_ZZ!$A$121:$N$137 | R55: Kt_ZZ!$A$121:$A$137
B56: ZZ-Series | D56: =MATCH($E50,'TXV-Dat'!$B$27:$B$33,-1) ->  | E56: ='TXV-Fun'!$E$50/INDEX('TXV-Dat'!$B$27:$B$33,D56) ->  | I56: =CONCATENATE("'",$G$29,"'","!$A$322:$EB$440") -> 'R448A'!$A$322:$EB$440 | N56: R454A | O56: Kt_ZZ!$A$2:$J$22 | R56: Kt_ZZ!$A$2:$A$22
B57: TI | D57: =MATCH($E50,'TXV-Dat'!$B$34:$B$41,-1) ->  | E57: ='TXV-Fun'!$E$50/INDEX('TXV-Dat'!$B$34:$B$41,D57) ->  | I57: =CONCATENATE("'",$G$29,"'","!$A$322:$A$440") -> 'R448A'!$A$322:$A$440 | N57: R452A | O57: Kt_ZZ!$A$195:$J$215 | R57: Kt_ZZ!$A$195:$A$215
N58: R448A | O58: Kt_ZZ!$A$223:$J$243 | R58: Kt_ZZ!$A$223:$A$243
N59: R449A | O59: Kt_ZZ!$A$247:$J$267 | R59: Kt_ZZ!$A$247:$A$267
N60: R455A | O60: Kt_ZZ!$A$31:$J$51 | R60: Kt_ZZ!$A$31:$A$51
A61: Expansion Valves Hermetic, Monobloc (TX6, TX3)
A91: Liquid Injection Valves L-Series | E91: =INDEX(E$5:E$22,$G$91) -> 8 | F91: =INDEX(F$5:F$22,$G$91) -> 9 | G91: 6 | H91: =INDEX(G$5:G$22,$G$91) -> R407C
J92: Kt normal, wie TXV | O92: Kti mit Heißgasbypass
D93: max | E93: =INDEX(SatPress!A$2:AI$2,E$4) -> 65 | F93: °C | G93: bara | I93: TCmin | K93: TCmax | N93: TCmin | P93: TCmax
B94: =INDEX(Language!$B$2:$M$41,6,Language!$A$1) -> Evaporating temperature | D94: Roundup | E94: =IF(E95<0,ROUNDDOWN(E95,0),ROUNDUP(E95,0)) -> 5 | G94: =(VLOOKUP(E94,SatPress!$A$7:$AI$213,$F$91,))/100000 -> 5.471125218 | H94: TEmax | I94: =HLOOKUP($E94,INDIRECT($I$115),$I100) -> 1.172 | K94: =HLOOKUP($E94,INDIRECT($I$115),$I98) -> 1.172 | M94: =IF(E95<0,ROUNDDOWN(E95*2,-1)/2,ROUNDUP(E95*2,-1)/2) -> 5 | N94: =HLOOKUP($M94,INDIRECT($N$111),$N100) -> 0.45 | P94: =HLOOKUP($M94,INDIRECT($N$111),$P98) -> 0.45
D95: Value | E95: =IF($D$19=1,LIV!D8,(LIV!D8-32)/1.8) -> 5 | F95: °C | G95: =IF($E94=$E96,G96,G96+((G94-G96)*($E95-$E96)/($E94-$E96))) -> 5.471125218 | I95: =IF($E94=$E96,I96,I96+((I94-I96)*($E95-$E96)/($E94-$E96))) -> 1.172 | J95: =IF($E98=$E100,I95,I95+((K95-I95)*($E99-$E100)/($E98-$E100))) -> 1.172 | K95: =IF($E94=$E96,K96,K96+((K94-K96)*($E95-$E96)/($E94-$E96))) -> 1.172 | M95: =E95 -> 5 | N95: =IF($M94=$M96,N96,N96+((N94-N96)*($M95-$M96)/($M94-$M96))) -> 0.45 | O95: =IF($M98=$M100,N95,N95+((P95-N95)*($M99-$M100)/($M98-$M100))) -> 0.45 | P95: =IF($M94=$M96,P96,P96+((P94-P96)*($M95-$M96)/($M94-$M96))) -> 0.45
D96: Rounddown | E96: =IF(E95<0,ROUNDUP(E95,0),ROUNDDOWN(E95,0)) -> 5 | G96: =(VLOOKUP(E96,SatPress!$A$7:$AI$213,$F$91,))/100000 -> 5.471125218 | H96: TEmin | I96: =HLOOKUP($E96,INDIRECT($I$115),$I100) -> 1.172 | K96: =HLOOKUP($E96,INDIRECT($I$115),$I98) -> 1.172 | M96: =IF(E95<0,ROUNDUP(E95*2,-1)/2,ROUNDDOWN(E95*2,-1)/2) -> 5 | N96: =HLOOKUP($M96,INDIRECT($N$111),$N100) -> 0.45 | P96: =HLOOKUP($M96,INDIRECT($N$111),$P98) -> 0.45
B97: Po= | E97: =IF(E94=E96,G95,G96+((G94-G96)*(E95-E96)/(E94-E96))) -> 5.471125218 | F97: bara | I97: index from Temp to line nr. | N97: index from Temp to line nr.
B98: =INDEX(Language!$B$2:$M$41,7,Language!$A$1) -> Condensing temperature | D98: Roundup | E98: =IF(E99<0,ROUNDDOWN(E99,0),ROUNDUP(E99,0)) -> 50 | G98: =(VLOOKUP(E98,SatPress!$A$7:$AI$213,E$91,))/100000 -> 22.10679306 | I98: =MATCH($E103,INDIRECT($I$116)) -> 61 | M98: =IF(E99<0,ROUNDDOWN(E99*2,-1)/2,ROUNDUP(E99*2,-1)/2) -> 50 | P98: =MATCH($M98,INDIRECT($Q$111)) -> 8
D99: Value | E99: =IF($D$19=1,LIV!D10,(LIV!D10-32)/1.8) -> 50 | F99: °C | G99: =IF(E98=E100,G100,G100+((G98-G100)*(E99-E100)/(E98-E100))) -> 22.10679306 | M99: =E104 -> 49
D100: Rounddown | E100: =IF(E99<0,ROUNDUP(E99,0),ROUNDDOWN(E99,0)) -> 50 | G100: =(VLOOKUP(E100,SatPress!$A$7:$AI$213,E$91,))/100000 -> 22.10679306 | I100: =MATCH($E105,INDIRECT($I$116)) -> 61 | M100: =IF(E99<0,ROUNDUP(E99*2,-1)/2,ROUNDDOWN(E99*2,-1)/2) -> 50 | N100: =MATCH($M100,INDIRECT($Q$111)) -> 8
B101: Pc= | E101: =IF(E98=E100,G99,G100+((G98-G100)*(E99-E100)/(E98-E100))) -> 22.10679306 | F101: bara | J101: KDp
B102: =INDEX(Language!$B$2:$M$41,8,Language!$A$1) -> Subcooling | D102: DTsub: | E102: =IF($D$19=1,LIV!D12,(LIV!D12)/1.8) -> 1 | F102: K | I102: Dp
B103: =INDEX(Language!$B$2:$M$41,9,Language!$A$1) -> Liquid temperature | D103: Roundup | E103: =ROUNDUP(E104,0) -> 49 | I103: =ROUNDUP(I104*2,0)/2 -> 16 | J103: =HLOOKUP(I103,Delta_P!$E$3:$CG$24,$G$91+2) -> 0.8411572087
D104: Value | E104: =E99-E102 -> 49 | F104: °C | I104: =$G99-($G95+$E112) -> 15.63566784 | J104: =IF($I103=$I105,J105,J105+((J103-J105)*($I104-$I105)/($I103-$I105))) -> 0.8509645713
D105: Rounddown | E105: =ROUNDDOWN(E104,0) -> 49 | I105: =ROUNDDOWN(I104*2,0)/2 -> 15.5 | J105: =HLOOKUP(I105,Delta_P!$E$3:$CG$24,$G$91+2) -> 0.8546165787
D106: min | E106: =INDEX(SatPress!A$1:U$1,E$4) ->  | F106: °C
B108: =INDEX(Language!$B$2:$M$41,10,Language!$A$1) -> Diff. pressure across valve | E108: =LIV!H22/INDEX('TXV-Fun'!$U$4:$W$14,9,'TXV-Fun'!$D$19) -> 15.63566784 | F108: bar | I108: Kt ' KDp = | J108: =J95*J104 -> 0.9973304775
B110: =INDEX(Language!$B$2:$M$41,11,Language!$A$1) -> System cooling capacity | D110: Q0: | E110: =LIV!D13/INDEX('TXV-Fun'!$U$4:$W$14,8,'TXV-Fun'!$D$19) -> 20 | F110: kW | M110: L-Series Kti Indirect Range Reference
N111: =INDEX(N112:N129,$G$91) -> 'LIV-Dat'!E94:R101 | Q111: =INDEX(Q112:Q129,$G$91) -> 'LIV-Dat'!E94:E101
B112: =INDEX(Language!$B$2:$M$41,12,Language!$A$1) -> Pressure drop * | E112: =LIV!D15/INDEX('TXV-Fun'!$U$4:$W$14,9,'TXV-Fun'!$D$19) -> 1 | F112: bar | M112: R410A | N112: 'LIV-Dat'!E207:R214 | Q112: 'LIV-Dat'!E207:E214
M113: R134a | N113: 'LIV-Dat'!E86:R93 | Q113: 'LIV-Dat'!E86:E93
B114: Find valves which fit best for selected capacity | I114: Indirect range reference | M114: R22 | N114: 'LIV-Dat'!E110:R117 | Q114: 'LIV-Dat'!E110:E117
A115: B | B115: L-Series | D115: =MATCH($E$110,'LIV-Dat'!$B$9:$B$24,-1) -> 11 | E115: =$E$110/INDEX('LIV-Dat'!$B$9:$B$24,D115) -> 0.8311087313 | I115: =CONCATENATE("'",$H$91,"'","!$A$322:$EB$440") -> 'R407C'!$A$322:$EB$440 | M115: R404A | N115: 'LIV-Dat'!E102:R109 | Q115: 'LIV-Dat'!E102:E109
A116: A | B116: L-Series | D116: =MATCH($E$110,'LIV-Dat'!$B$27:$B$42,-1) -> 8 | E116: =$E$110/INDEX('LIV-Dat'!$B$27:$B$42,D116) -> 0.8596604341 | I116: =CONCATENATE("'",$H$91,"'","!$A$322:$A$440") -> 'R407C'!$A$322:$A$440 | M116: R507 | N116: 'LIV-Dat'!E102:R109 | Q116: 'LIV-Dat'!E102:E109
M117: R407C | N117: 'LIV-Dat'!E94:R101 | Q117: 'LIV-Dat'!E94:E101
M118: R23 | N118: n/a | Q118: n/a
M119: R454A | N119: 'LIV-Dat'!E119:R126 | Q119: 'LIV-Dat'!E119:E126
M120: R454C | N120: 'LIV-Dat'!E127:R134 | Q120: 'LIV-Dat'!E127:E134
A121: Liquid Injection Valves 935-Series | E121: =E91 -> 8 | F121: =F91 -> 9 | G121: =G91 -> 6 | H121: =H91 -> R407C | M121: R1234yf | N121: 'LIV-Dat'!E183:R190 | Q121: 'LIV-Dat'!E183:E190
J122: Kt normal, wie TXV | M122: R1234ze | N122: 'LIV-Dat'!E135:R142 | Q122: 'LIV-Dat'!E135:E142
D123: max | E123: =INDEX(SatPress!A$2:U$2,E$4) ->  | F123: °C | G123: bara | I123: TCmin | K123: TCmax | M123: R32 | N123: 'LIV-Dat'!E199:R206 | Q123: 'LIV-Dat'!E199:E206
B124: =INDEX(Language!$B$2:$M$41,6,Language!$A$1) -> Evaporating temperature | D124: Roundup | E124: =IF(E125<0,ROUNDDOWN(E125*2,-1)/2,ROUNDUP(E125*2,-1)/2) -> 5 | G124: =(VLOOKUP(E124,SatPress!$A$7:$AI$213,$F$91,))/100000 -> 5.471125218 | H124: TEmax | I124: =HLOOKUP($E124,INDIRECT($N$135),$I130) -> 1.1 | K124: =HLOOKUP($E124,INDIRECT($N$135),$I128) -> 1.19 | M124: R452A | N124: 'LIV-Dat'!E175:R182 | Q124: 'LIV-Dat'!E175:E182
D125: Value | E125: =IF($D$19=1,LIV!D8,(LIV!D8-32)/1.8) -> 5 | F125: °C | G125: =IF($E124=$E126,G126,G126+((G124-G126)*($E125-$E126)/($E124-$E126))) -> 5.471125218 | I125: =IF($E124=$E126,I126,I126+((I124-I126)*($E125-$E126)/($E124-$E126))) -> 1.1 | J125: =IF($H128=$H130,I125,I125+((K125-I125)*($H129-$H130)/($H128-$H130))) -> 1.172 | K125: =IF($E124=$E126,K126,K126+((K124-K126)*($E125-$E126)/($E124-$E126))) -> 1.19 | M125: R448A | N125: 'LIV-Dat'!E143:R150 | Q125: 'LIV-Dat'!E143:E150
D126: Rounddown | E126: =IF(E125<0,ROUNDUP(E125*2,-1)/2,ROUNDDOWN(E125*2,-1)/2) -> 5 | G126: =(VLOOKUP(E126,SatPress!$A$7:$AI$213,$F$91,))/100000 -> 5.471125218 | H126: TEmin | I126: =HLOOKUP($E126,INDIRECT($N$135),$I130) -> 1.1 | K126: =HLOOKUP($E126,INDIRECT($N$135),$I128) -> 1.19 | M126: R449A | N126: 'LIV-Dat'!E151:R158 | Q126: 'LIV-Dat'!E151:E158
B127: Po= | E127: =IF(E124=E126,G125,G126+((G124-G126)*(E125-E126)/(E124-E126))) -> 5.471125218 | F127: bara | I127: index from Temp to line nr. | M127: R450A | N127: 'LIV-Dat'!E159:R166 | Q127: 'LIV-Dat'!E159:E166
B128: =INDEX(Language!$B$2:$M$41,7,Language!$A$1) -> Condensing temperature | D128: Roundup | E128: =IF(E129<0,ROUNDDOWN(E129,0),ROUNDUP(E129,0)) -> 50 | G128: =(VLOOKUP(E128,SatPress!$A$7:$AI$213,E$91,))/100000 -> 22.10679306 | H128: =IF(H129<0,ROUNDDOWN(H129*2,-1)/2,ROUNDUP(H129*2,-1)/2) -> 50 | I128: =MATCH($H128,INDIRECT($P$135)) -> 14 | M128: R513A | N128: 'LIV-Dat'!E167:R174 | Q128: 'LIV-Dat'!E167:E174
D129: Value | E129: =IF($D$19=1,LIV!D10,(LIV!D10-32)/1.8) -> 50 | F129: °C | G129: =IF(E128=E130,G130,G130+((G128-G130)*(E129-E130)/(E128-E130))) -> 22.10679306 | H129: =E134 -> 49 | M129: R455A | N129: 'LIV-Dat'!E191:R198 | Q129: 'LIV-Dat'!E191:E198
D130: Rounddown | E130: =IF(E129<0,ROUNDUP(E129,0),ROUNDDOWN(E129,0)) -> 50 | G130: =(VLOOKUP(E130,SatPress!$A$7:$AI$213,E$91,))/100000 -> 22.10679306 | H130: =IF(H129<0,ROUNDUP(H129*2,-1)/2,ROUNDDOWN(H129*2,-1)/2) -> 45 | I130: =MATCH($H130,INDIRECT($P$135)) -> 13
B131: Pc= | E131: =IF(E128=E130,G129,G130+((G128-G130)*(E129-E130)/(E128-E130))) -> 22.10679306 | F131: bara | J131: KDp
B132: =INDEX(Language!$B$2:$M$41,8,Language!$A$1) -> Subcooling | D132: DTsub: | E132: =IF($D$19=1,LIV!D12,(LIV!D12)/1.8) -> 1 | F132: K | I132: Dp
B133: =INDEX(Language!$B$2:$M$41,9,Language!$A$1) -> Liquid temperature | D133: Roundup | E133: =IF(E134<0,ROUNDDOWN(E134,0),ROUNDUP(E134,0)) -> 49 | I133: =ROUNDUP(I134*2,0)/2 -> 16 | J133: =HLOOKUP(I133,Delta_P!$E$3:$CG$24,$G$91+2) -> 0.8411572087 | M133: 935-Series Indirect Range Reference
D134: Value | E134: =E129-E132 -> 49 | F134: °C | I134: =$G129-($G125+$E142) -> 15.63566784 | J134: =IF($I133=$I135,J135,J135+((J133-J135)*($I134-$I135)/($I133-$I135))) -> 0.8509645713 | N134: Kt | P134: Kt | S134: KDp
D135: Rounddown | E135: =IF(E134<0,ROUNDUP(E134,0),ROUNDDOWN(E134,0)) -> 49 | I135: =ROUNDDOWN(I134*2,0)/2 -> 15.5 | J135: =HLOOKUP(I135,Delta_P!$E$3:$CG$24,$G$91+2) -> 0.8546165787 | N135: ="'"&INDEX(N136:N153,$G$91) -> 'R407C'!A3:T20 | P135: ="'"&INDEX(P136:P153,$G$91) -> 'R407C'!A3:A20
D136: min | E136: =INDEX(SatPress!A$1:U$1,E$4) ->  | F136: °C | M136: R410A | N136: R410A'!A3:T20 | P136: R410A'!A3:A20
M137: R134a | N137: R134a'!A3:Q20 | P137: R134a'!A3:A22
B138: =INDEX(Language!$B$2:$M$41,10,Language!$A$1) -> Diff. pressure across valve | E138: =LIV!H22/INDEX('TXV-Fun'!$U$4:$W$14,9,'TXV-Fun'!$D$19) -> 15.63566784 | F138: bar | J138: =J125*J134 -> 0.9973304775 | M138: R22 | N138: R22'!A3:T20 | P138: R22'!A3:A20
M139: R404A | N139: R404A'!A3:T20 | P139: R404A'!A3:A20
B140: =INDEX(Language!$B$2:$M$41,11,Language!$A$1) -> System cooling capacity | D140: Q0: | E140: =LIV!D13/INDEX('TXV-Fun'!$U$4:$W$14,8,'TXV-Fun'!$D$19) -> 20 | F140: kW | M140: R507 | N140: R507'!A3:T20 | P140: R507'!A3:A20
M141: R407C | N141: R407C'!A3:T20 | P141: R407C'!A3:A20
B142: =INDEX(Language!$B$2:$M$41,12,Language!$A$1) -> Pressure drop * | E142: =LIV!D15/INDEX('TXV-Fun'!$U$4:$W$14,9,'TXV-Fun'!$D$19) -> 1 | F142: bar | M142: R23 | N142: n/a | P142: n/a
M143: R454A | N143: R454A'!A3:T20 | P143: R454A'!A3:A20
B144: Find valves which fit best for selected capacity | M144: R454C | N144: R454C'!A3:T20 | P144: R454C'!A3:A20
B145: 935-Series | D145: =MATCH($E$140,'LIV-Dat'!$B$226:$B$232,-1) -> 4 | E145: =$E$140/INDEX('LIV-Dat'!$B$226:$B$232,D145) -> 0.8748512961 | M145: R1234yf | N145: R1234yf'!A3:Q20 | P145: R1234yf'!A3:A22
M146: R1234ze | N146: R1234ze'!A3:Q20 | P146: R1234ze'!A3:A22
M147: R32 | N147: R32'!A3:T20 | P147: R32'!A3:A20
M148: R452A | N148: R452A'!A3:T20 | P148: R452A'!A3:A20
M149: R448A | N149: R448A'!A3:T20 | P149: R448A'!A3:A20
M150: R449A | N150: R449A'!A3:T20 | P150: R449A'!A3:A20
A151: Hot Gas Bypass Regulators | H151: =INDEX(SatPress!$A$5:$U$5,L4) -> R134a | M151: R450A | N151: R450A'!A3:Q20 | P151: R450A'!A3:A22
M152: R513A | N152: R513A'!A3:Q20 | P152: R513A'!A3:A22
D153: max | E153: =INDEX(SatPress!A$2:U$2,L$4) -> 90 | F153: °C | G153: bara | I153: TCmin | K153: TCmax | M153: R455A | N153: R455A'!A3:Q20 | P153: R455A'!A3:A22
B154: =INDEX(Language!$B$2:$M$41,6,Language!$A$1) -> Evaporating temperature | D154: Roundup | E154: =IF(E155<0,ROUNDDOWN(E155,0),ROUNDUP(E155,0)) -> 4 | G154: =(VLOOKUP(E154,SatPress!$A$7:$AI$213,$L$4,))/100000 -> 3.377517158 | H154: =IF(E155<0,ROUNDDOWN(E155,-1),ROUNDUP(E155,-1)) -> 10 | I154: =HLOOKUP($H154,INDIRECT($N$159),$I160) -> 1.11384 | K154: =HLOOKUP($H154,INDIRECT($N$159),$K158) -> 1.11384 | M154: TEmax
D155: Value | E155: =IF($D$19=1,HotGas!D8,(HotGas!D8-32)/1.8) -> 4 | F155: °C | G155: =IF($E154=$E156,G156,G156+((G154-G156)*($E155-$E156)/($E154-$E156))) -> 3.377517158 | H155: =E155 -> 4 | I155: =IF($H154=$H156,I156,I156+((I154-I156)*($H155-$H156)/($H154-$H156))) -> 1.059576 | J155: =IF($H158=$H160,I155,I155+((K155-I155)*($H159-$H160)/($H158-$H160))) -> 1.059576 | K155: =IF($H154=$H156,K156,K156+((K154-K156)*($H155-$H156)/($H154-$H156))) -> 1.059576
D156: Rounddown | E156: =IF(E155<0,ROUNDUP(E155,0),ROUNDDOWN(E155,0)) -> 4 | G156: =(VLOOKUP(E156,SatPress!$A$7:$AI$213,$L$4,))/100000 -> 3.377517158 | H156: =IF(E155<0,ROUNDUP(E155,-1),ROUNDDOWN(E155,-1)) -> 0 | I156: =HLOOKUP($H156,INDIRECT($N$159),$I160) -> 1.0234 | K156: =HLOOKUP($H156,INDIRECT($N$159),$K158) -> 1.0234 | M156: TEmin
B157: Po= | E157: =IF(E154=E156,G155,G156+((G154-G156)*(E155-E156)/(E154-E156))) -> 3.377517158 | F157: bara | I157: index from Temp to line nr.
B158: =INDEX(Language!$B$2:$M$41,7,Language!$A$1) -> Condensing temperature | D158: Roundup | E158: =IF(E159<0,ROUNDDOWN(E159,0),ROUNDUP(E159,0)) -> 35 | G158: =(VLOOKUP(E158,SatPress!$A$7:$AI$213,L$4,))/100000 -> 8.868462085 | H158: =IF(H159<0,ROUNDDOWN(2*H159,-1)/2,ROUNDUP(2*H159,-1)/2) -> 35 | K158: =MATCH($H158,'Reg-Dat'!F26:F31) -> 3 | M158: Indirect Range Reference
D159: Value | E159: =IF($D$19=1,HotGas!D10,(HotGas!D10-32)/1.8) -> 35 | F159: °C | G159: =IF(E158=E160,G160,G160+((G158-G160)*(E159-E160)/(E158-E160))) -> 8.868462085 | H159: =E164 -> 35 | M159: =INDEX(M161:M165,$K$4) -> R134a | N159: =INDEX(N161:N165,$K$4) -> 'Reg-Dat'!F26:L31
D160: Rounddown | E160: =IF(E159<0,ROUNDUP(E159,0),ROUNDDOWN(E159,0)) -> 35 | G160: =(VLOOKUP(E160,SatPress!$A$7:$AI$213,L$4,))/100000 -> 8.868462085 | H160: =IF(H159<0,ROUNDUP(2*H159,-1)/2,ROUNDDOWN(2*H159,-1)/2) -> 35 | I160: =MATCH($H160,'Reg-Dat'!F26:F31) -> 3 | M160: R410A | N160: n/a
B161: Pc= | E161: =IF(E158=E160,G159,G160+((G158-G160)*(E159-E160)/(E158-E160))) -> 8.868462085 | F161: bara | M161: R134a | N161: 'Reg-Dat'!F26:L31
B162: =INDEX(Language!$B$2:$M$41,8,Language!$A$1) -> Subcooling | D162: DTsub: | E162: =IF($D$19=1,HotGas!D47,(HotGas!D47)/1.8) -> 0 | F162: K | M162: R22 | N162: 'Reg-Dat'!F32:L37
B163: =INDEX(Language!$B$2:$M$41,9,Language!$A$1) -> Liquid temperature | D163: Roundup | E163: =ROUNDUP(E164,0) -> 35 | M163: R404A | N163: 'Reg-Dat'!F44:L49
D164: Value | E164: =E159-E162 -> 35 | F164: °C | M164: R507 | N164: 'Reg-Dat'!F44:L49
D165: Rounddown | E165: =ROUNDDOWN(E164,0) -> 35 | M165: R407C | N165: 'Reg-Dat'!F38:L43
D166: min | E166: =INDEX(SatPress!A$1:U$1,L$4) -> -50 | F166: °C
B168: =INDEX(Language!$B$2:$M$41,10,Language!$A$1) -> Diff. pressure across valve | E168: =HotGas!H26/INDEX('TXV-Fun'!$U$4:$W$14,9,'TXV-Fun'!$D$19) -> 0 | F168: bar
A169: Edit List
B170: =INDEX(Language!$B$2:$M$41,11,Language!$A$1) -> System cooling capacity | D170: Q0: | E170: =HotGas!D12/INDEX('TXV-Fun'!$U$4:$W$14,8,'TXV-Fun'!$D$19) -> 3.5 | F170: kW
B172: =INDEX(Language!$B$2:$M$41,12,Language!$A$1) -> Pressure drop * | E172: =HotGas!D18/INDEX('TXV-Fun'!$U$4:$W$14,9,'TXV-Fun'!$D$19) -> 0 | F172: bar
B174: Find valves which fit best for selected capacity
B175: CPHE / ACP | D175: =MATCH($E$170,'Reg-Dat'!B10:B20,-1) -> 6
A177: Suction: Evaporator Pressure Regulators
D179: max | E179: =INDEX(SatPress!A$2:U$2,L$4) -> 90 | F179: °C | G179: bara | I179: TCmin | K179: TCmax
B180: =INDEX(Language!$B$2:$M$41,6,Language!$A$1) -> Evaporating temperature | D180: Roundup | E180: =IF(E181<0,ROUNDDOWN(E181,0),ROUNDUP(E181,0)) -> 4 | G180: =(VLOOKUP(E180,SatPress!$A$7:$AI$213,$M$4,))/100000 -> 3.377517158 | H180: =IF(E181<0,ROUNDDOWN(E181,-1),ROUNDUP(E181,-1)) -> 10 | I180: =HLOOKUP($H180,INDIRECT($N$185),$I186) -> 0.7269683142 | K180: =HLOOKUP($H180,INDIRECT($N$185),$K184) -> 0.7269683142 | M180: TEmax
D181: Value | E181: =IF($D$19=1,Suction!D8,(Suction!D8-32)/1.8) -> 4 | F181: °C | G181: =IF($E180=$E182,G182,G182+((G180-G182)*($E181-$E182)/($E180-$E182))) -> 3.377517158 | H181: =E181 -> 4 | I181: =IF($H180=$H182,I182,I182+((I180-I182)*($H181-$H182)/($H180-$H182))) -> 0.9322996854 | J181: =IF($H184=$H186,I181,I181+((K181-I181)*($H185-$H186)/($H184-$H186))) -> 0.9322996854 | K181: =IF($H180=$H182,K182,K182+((K180-K182)*($H181-$H182)/($H180-$H182))) -> 0.9322996854
D182: Rounddown | E182: =IF(E181<0,ROUNDUP(E181,0),ROUNDDOWN(E181,0)) -> 4 | G182: =(VLOOKUP(E182,SatPress!$A$7:$AI$213,$M$4,))/100000 -> 3.377517158 | H182: =IF(E181<0,ROUNDUP(E181,-1),ROUNDDOWN(E181,-1)) -> 0 | I182: =HLOOKUP($H182,INDIRECT($N$185),$I186) -> 1.069187266 | K182: =HLOOKUP($H182,INDIRECT($N$185),$K184) -> 1.069187266 | M182: TEmin
B183: Po= | E183: =IF(E180=E182,G181,G182+((G180-G182)*(E181-E182)/(E180-E182))) -> 3.377517158 | F183: bara | I183: index from Temp to line nr.
B184: =INDEX(Language!$B$2:$M$41,7,Language!$A$1) -> Condensing temperature | D184: Roundup | E184: =IF(E185<0,ROUNDDOWN(E185,0),ROUNDUP(E185,0)) -> 35 | G184: =(VLOOKUP(E184,SatPress!$A$7:$AI$213,$L$4,))/100000 -> 8.868462085 | H184: =IF(H185<0,ROUNDDOWN(2*H185,-1)/2,ROUNDUP(2*H185,-1)/2) -> 35 | K184: =MATCH($H184,'Reg-Dat'!F63:F70) -> 3 | M184: Indirect Range Reference
D185: Value | E185: =IF($D$19=1,Suction!D10,(Suction!D10-32)/1.8) -> 35 | F185: °C | G185: =IF(E184=E186,G186,G186+((G184-G186)*(E185-E186)/(E184-E186))) -> 8.868462085 | H185: =E190 -> 35 | M185: =INDEX(M187:M191,$K$4) -> R134a | N185: =INDEX(N187:N191,$K$4) -> PRE_Kt_R134a
D186: Rounddown | E186: =IF(E185<0,ROUNDUP(E185,0),ROUNDDOWN(E185,0)) -> 35 | G186: =(VLOOKUP(E186,SatPress!$A$7:$AI$213,$L$4,))/100000 -> 8.868462085 | H186: =IF(H185<0,ROUNDUP(2*H185,-1)/2,ROUNDDOWN(2*H185,-1)/2) -> 35 | I186: =MATCH($H186,'Reg-Dat'!F63:F70) -> 3 | M186: R410A | N186: n/a
B187: Pc= | E187: =IF(E184=E186,G185,G186+((G184-G186)*(E185-E186)/(E184-E186))) -> 8.868462085 | F187: bara | J187: KDp | M187: R134a | N187: PRE_Kt_R134a
B188: =INDEX(Language!$B$2:$M$41,8,Language!$A$1) -> Subcooling | D188: DTsub: | E188: 0 | F188: K | I188: Dp | M188: R22 | N188: PRE_Kt_R22
B189: =INDEX(Language!$B$2:$M$41,9,Language!$A$1) -> Liquid temperature | D189: Roundup | E189: =ROUNDUP(E190,0) -> 35 | H189: =IF(E190<0,ROUNDDOWN(E190,-1),ROUNDUP(E190,-1)) -> 40 | I189: =ROUNDUP(I190*2,0)/2 -> 4.5 | J189: =HLOOKUP(I189,Delta_P!$E$3:$EE$18,$G$4+2) -> 1.626156229 | M189: R404A | N189: PRE_Kt_R404A
D190: Value | E190: =E185-E188 -> 35 | F190: °C | I190: =$G185-($G181+$E198) -> 4.490944926 | J190: =IF($I189=$I191,J191,J191+((J189-J191)*($I190-$I191)/($I189-$I191))) -> 1.627942667 | M190: R507 | N190: PRE_Kt_R404A
D191: Rounddown | E191: =ROUNDDOWN(E190,0) -> 35 | H191: =IF(E190<0,ROUNDUP(E190,-1),ROUNDDOWN(E190,-1)) -> 30 | I191: =ROUNDDOWN(I190*2,0)/2 -> 4 | J191: =HLOOKUP(I191,Delta_P!$E$3:$EE$18,$G$4+2) -> 1.724799145 | M191: R407C | N191: PRE_Kt_R407C
D192: min | E192: =INDEX(SatPress!A$1:U$1,E$4) ->  | F192: °C
B194: =INDEX(Language!$B$2:$M$41,10,Language!$A$1) -> Diff. pressure across valve | E194: =Suction!H21/INDEX('TXV-Fun'!$U$4:$W$14,9,'TXV-Fun'!$D$19) -> 0 | F194: bar
A195: Edit List
B196: =INDEX(Language!$B$2:$M$41,11,Language!$A$1) -> System cooling capacity | D196: Q0: | E196: =Suction!D13/INDEX('TXV-Fun'!$U$4:$W$14,8,'TXV-Fun'!$D$19) -> 3.5 | F196: kW
B198: =INDEX(Language!$B$2:$M$41,12,Language!$A$1) -> Pressure drop * | E198: =Suction!D15/INDEX('TXV-Fun'!$U$4:$W$14,9,'TXV-Fun'!$D$19) -> 1 | F198: bar
B200: Find valves which fit best for selected capacity
B201: PRE | D201: =MATCH($E$196,'Reg-Dat'!B59:B60,-1) -> 1 | E201: =E196/INDEX('Reg-Dat'!B59:B60,'TXV-Fun'!D201) -> 0.4409525539
A207: Suction: Crankcase Pressure Regulators

Sheet TXV-Dat (hidden)
A1: TXV Valve Data
B2: Capacity at selected conditions | F2: Nominal Valve Capacities
E3: Tcond | F3: 38 | G3: 38 | H3: 38 | I3: 38 | J3: 38 | K3: 38 | L3: -25 | N3: -10 | O3: 25 | P3: 25
E4: Tevap | F4: 4 | G4: 4 | H4: 4 | I4: 4 | J4: 4 | K4: 4 | L4: -60 | N4: -40 | O4: -40 | P4: -40
E5: Tsubcool | F5: 1 | G5: 1 | H5: 1 | I5: 1 | J5: 1 | K5: 1 | L5: 1 | N5: 1 | O5: 1 | P5: 1
B6: ='TXV-Fun'!G29 -> R448A | F6: R410A | G6: R134a | H6: R22 | I6: R404A | J6: R507 | K6: R407C | L6: R23 | M6: R454A | N6: R454C | O6: R1234yf | P6: R1234ze | Q6: R32 | R6: R452a | S6: R448A | T6: R449A | U6: R450A | V6: R513A | W6: R455A | Y6: R454A | Z6: R454C | AA6: R1234yf | AB6: R1234ze | AC6: R32 | AD6: R452a | AE6: R448A | AF6: R449A | AG6: R450A | AH6: R513A | AI6: R455A
B7: ='TXV-Fun'!E4 -> 24 | F7: 2 | G7: 3 | H7: 4 | I7: 5 | J7: 7 | K7: 8 | L7: 10 | M7: 13 | N7: 15 | O7: 17 | P7: 18 | Q7: 21 | R7: 22 | S7: 24 | T7: 26 | U7: 28 | V7: 30 | W7: 34
A8: Row Nr. | B8: Sel. Capacity | D8: Orifice | E8: PCN | F8: Nominal Capacity per Datasheet
A9: 3 | B9: =IF(HLOOKUP($B$7,$F$7:$W$41,$A9)="-","-",IF('TXV-Fun'!$E$44>80,"-",HLOOKUP($B$7,$F$7:$W$41,$A9)/'TXV-Fun'!$J$48)) -> 135.9367839 | C9: Qmax oder Qn | D9: X9144-B13B | E9: 803 346 | F9: - | G9: 236 | H9: 302 | I9: 209 | J9: 209 | K9: 327 | L9: - | M9: 296.9637618 | N9: 247.0493004 | O9: 168.3975788 | P9: 182.5 | Q9: - | R9: 228.642484 | S9: 301.1 | T9: 294.2 | U9: 205.9 | V9: 210.8 | W9: 286.0326077
A10: =A9+1 -> 4 | B10: =IF(HLOOKUP($B$7,$F$7:$W$41,$A10)="-","-",IF('TXV-Fun'!$E$44>80,"-",HLOOKUP($B$7,$F$7:$W$41,$A10)/'TXV-Fun'!$J$48)) -> 113.9051829 | D10: X9144-B11B | E10: 803 345 | F10: - | G10: 197 | H10: 253 | I10: 174 | J10: 174 | K10: 273 | L10: - | M10: 248.7808998 | N10: 206.9651424 | O10: 141.0747929 | P10: 152.9 | Q10: - | R10: 191.5448624 | S10: 252.3 | T10: 246.5 | U10: 172.5 | V10: 176.6 | W10: 239.6233436
A11: =A10+1 -> 5 | B11: =IF(HLOOKUP($B$7,$F$7:$W$41,$A11)="-","-",IF('TXV-Fun'!$E$44>80,"-",HLOOKUP($B$7,$F$7:$W$41,$A11)/'TXV-Fun'!$J$48)) -> 100.4063126 | D11: X9166-B10B | E11: 803 347 | F11: - | G11: 174 | H11: 223 | I11: 154 | J11: 154 | K11: 241 | L11: - | M11: 219.2811883 | N11: 182.4238212 | O11: 124.3465566 | P11: 134.8 | Q11: - | R11: 168.8320329 | S11: 222.4 | T11: 217.2 | U11: 152.1 | V11: 155.7 | W11: 211.2095084
A12: 6 | B12: =IF(HLOOKUP($B$7,$F$7:$W$41,$A12)="-","-",IF('TXV-Fun'!$E$44>80,"-",HLOOKUP($B$7,$F$7:$W$41,$A12)/'TXV-Fun'!$J$48)) -> 78.32956493 | D12: X9117-B9B | E12: 803 344 | F12: - | G12: 135 | H12: 174 | I12: 120 | J12: 120 | K12: 188 | L12: - | M12: 171.0983263 | N12: 142.3396631 | O12: 97.02377059 | P12: 105.2 | Q12: - | R12: 131.7344113 | S12: 173.5 | T12: 169.5 | U12: 118.7 | V12: 121.5 | W12: 164.8002442
A13: 7 | B13: =IF(HLOOKUP($B$7,$F$7:$W$41,$A13)="-","-",IF('TXV-Fun'!$E$44>80,"-",HLOOKUP($B$7,$F$7:$W$41,$A13)/'TXV-Fun'!$J$48)) -> 64.37922743 | D13: X9117-B8B | E13: 803 343 | F13: - | G13: 112 | H13: 143 | I13: 99 | J13: 99 | K13: 155 | L13: - | M13: 140.6152912 | N13: 116.9802979 | O13: 79.7379264 | P13: 86.4 | Q13: - | R13: 108.2644875 | S13: 142.6 | T13: 139.3 | U13: 97.5 | V13: 99.8 | W13: 135.4392812
A14: 8 | B14: =IF(HLOOKUP($B$7,$F$7:$W$41,$A14)="-","-",IF('TXV-Fun'!$E$44>80,"-",HLOOKUP($B$7,$F$7:$W$41,$A14)/'TXV-Fun'!$J$48)) -> 46.81715207 | D14: X9117-B7B | E14: 803 342 | F14: - | G14: 81 | H14: 104 | I14: 72 | J14: 72 | K14: 112 | L14: - | M14: 102.2656663 | N14: 85.07658027 | O14: 57.9912192 | P14: 62.9 | Q14: - | R14: 78.73780906 | S14: 103.7 | T14: 101.3 | U14: 70.9 | V14: 72.6 | W14: 98.50129538
A15: 9 | B15: =IF(HLOOKUP($B$7,$F$7:$W$41,$A15)="-","-",IF('TXV-Fun'!$E$44>80,"-",HLOOKUP($B$7,$F$7:$W$41,$A15)/'TXV-Fun'!$J$48)) -> 40.94807804 | D15: X9117-B6B | E15: 803 341 | F15: - | G15: 71 | H15: 91 | I15: 63 | J15: 63 | K15: 99 | L15: - | M15: 89.48245802 | N15: 74.44200774 | O15: 50.7423168 | P15: 55 | Q15: - | R15: 68.89558293 | S15: 90.7 | T15: 88.6 | U15: 62.1 | V15: 63.5 | W15: 86.18863346
A16: 10 | B16: =IF(HLOOKUP($B$7,$F$7:$W$41,$A16)="-","-",IF('TXV-Fun'!$E$44>80,"-",HLOOKUP($B$7,$F$7:$W$41,$A16)/'TXV-Fun'!$J$48)) -> 33.3182818 | D16: X11873-B5B | E16: 803 349 | F16: 86.4 | G16: 57 | H16: 74 | I16: 51 | J16: 51 | K16: 80 | L16: - | M16: 72.76595487 | N16: 60.53525904 | O16: 41.26298289 | P16: 44.7 | Q16: 128.467417 | R16: 56.02497952 | S16: 73.8 | T16: 72.1 | U16: 50.5 | V16: 51.7 | W16: 70.08746018
A17: 11 | B17: =IF(HLOOKUP($B$7,$F$7:$W$41,$A17)="-","-",IF('TXV-Fun'!$E$44>80,"-",HLOOKUP($B$7,$F$7:$W$41,$A17)/'TXV-Fun'!$J$48)) -> 26.09480607 | D17: X11873-B4B | E17: 803 348 | F17: 67.7 | G17: 45 | H17: 58 | I17: 40 | J17: 40 | K17: 62 | L17: - | M17: 57.03277544 | N17: 47.44655438 | O17: 32.34125686 | P17: 35.1 | Q17: 100.6906782 | R17: 43.91147044 | S17: 57.8 | T17: 56.5 | U17: 39.6 | V17: 40.5 | W17: 54.93341473
A18: 12 | B18: =IF(HLOOKUP($B$7,$F$7:$W$41,$A18)="-","-",IF('TXV-Fun'!$E$44>80,"-",HLOOKUP($B$7,$F$7:$W$41,$A18)/'TXV-Fun'!$J$48)) -> 21.53498702 | D18: X22440-B8B | E18: 803 217 | F18: 55.8 | G18: 37.2 | H18: 47.8 | I18: 33.8 | J18: 33.8 | K18: 51.7 | L18: - | M18: 47.00287355 | N18: 39.10250516 | O18: 26.65365652 | P18: 28.9 | Q18: 82.98300721 | R18: 36.1891084 | S18: 47.7 | T18: 46.6 | U18: 32.6 | V18: 33.4 | W18: 45.27271076
A19: 13 | B19: =IF(HLOOKUP($B$7,$F$7:$W$41,$A19)="-","-",IF('TXV-Fun'!$E$44>80,"-",HLOOKUP($B$7,$F$7:$W$41,$A19)/'TXV-Fun'!$J$48)) -> 18.51015655 | D19: X22440-B7B | E19: 803 216 | F19: 48 | G19: 32 | H19: 41.1 | I19: 29 | J19: 29 | K19: 44.4 | L19: - | M19: 40.41460466 | N19: 33.62161009 | O19: 22.91768374 | P19: 24.8 | Q19: 71.35149783 | R19: 31.11657647 | S19: 41 | T19: 40 | U19: 28 | V19: 28.7 | W19: 38.92695423
A20: 14 | B20: =IF(HLOOKUP($B$7,$F$7:$W$41,$A20)="-","-",IF('TXV-Fun'!$E$44>80,"-",HLOOKUP($B$7,$F$7:$W$41,$A20)/'TXV-Fun'!$J$48)) -> 13.67945716 | D20: X22440-B6B | E20: 803 215 | F20: 35.5 | G20: 23.6 | H20: 30.4 | I20: 21.5 | J20: 21.5 | K20: 32.9 | L20: - | M20: 29.89304092 | N20: 24.86853885 | O20: 16.95127946 | P20: 18.4 | Q20: 52.77580375 | R20: 23.01566726 | S20: 30.3 | T20: 29.6 | U20: 20.7 | V20: 21.2 | W20: 28.79268634
A21: 15 | B21: =IF(HLOOKUP($B$7,$F$7:$W$41,$A21)="-","-",IF('TXV-Fun'!$E$44>80,"-",HLOOKUP($B$7,$F$7:$W$41,$A21)/'TXV-Fun'!$J$48)) -> 9.97742585 | D21: X22440-B5B | E21: 803 214 | F21: 25.9 | G21: 17.3 | H21: 22.2 | I21: 15.7 | J21: 15.7 | K21: 24 | L21: - | M21: 21.82978646 | N21: 18.16057771 | O21: 12.37889487 | P21: 13.4 | Q21: 38.54022511 | R21: 16.80749386 | S21: 22.1 | T21: 21.6 | U21: 15.1 | V21: 15.5 | W21: 21.02623805
A22: 16 | B22: =IF(HLOOKUP($B$7,$F$7:$W$41,$A22)="-","-",IF('TXV-Fun'!$E$44>80,"-",HLOOKUP($B$7,$F$7:$W$41,$A22)/'TXV-Fun'!$J$48)) -> 7.810383132 | D22: X22440-B4B | E22: 803 213 | F22: 20.2 | G22: 13.5 | H22: 17.3 | I22: 12.2 | J22: 12.2 | K22: 18.7 | L22: - | M22: 17.01150026 | N22: 14.15216191 | O22: 9.646616271 | P22: 10.5 | Q22: 30.03359885 | R22: 13.0977317 | S22: 17.3 | T22: 16.9 | U22: 11.8 | V22: 12.1 | W22: 16.38531164
A23: 17 | B23: =IF(HLOOKUP($B$7,$F$7:$W$41,$A23)="-","-",IF('TXV-Fun'!$E$44>80,"-",HLOOKUP($B$7,$F$7:$W$41,$A23)/'TXV-Fun'!$J$48)) -> 5.372460073 | D23: X22440-B3,5B | E23: 803 462 | F23: 13.9 | G23: 9.3 | H23: 11.9 | I23: 8.4 | J23: 8.4 | K23: 12.9 | L23: - | M23: 11.7015522 | N23: 9.734724089 | O23: 6.635533736 | P23: 7.2 | Q23: 20.65894949 | R23: 9.009422383 | S23: 11.9 | T23: 11.6 | U23: 8.1 | V23: 8.3 | W23: 11.2708213
A24: 18 | B24: =IF(HLOOKUP($B$7,$F$7:$W$41,$A24)="-","-",IF('TXV-Fun'!$E$44>80,"-",HLOOKUP($B$7,$F$7:$W$41,$A24)/'TXV-Fun'!$J$48)) -> 3.566591141 | D24: X22440-B3B | E24: 803 212 | F24: 9.2 | G24: 6.1 | H24: 7.9 | I24: 5.6 | J24: 5.6 | K24: 8.5 | L24: - | M24: 7.768257344 | N24: 6.462547924 | O24: 4.405102228 | P24: 4.8 | Q24: 13.71476479 | R24: 5.981045111 | S24: 7.9 | T24: 7.7 | U24: 5.4 | V24: 5.5 | W24: 7.482309938
A25: 19 | B25: =IF(HLOOKUP($B$7,$F$7:$W$41,$A25)="-","-",IF('TXV-Fun'!$E$44>80,"-",HLOOKUP($B$7,$F$7:$W$41,$A25)/'TXV-Fun'!$J$48)) -> 1.670428762 | D25: X22440-B2B | E25: 803 211 | F25: 4.3 | G25: 2.9 | H25: 3.7 | I25: 2.6 | J25: 2.6 | K25: 4 | L25: - | M25: 3.638297743 | N25: 3.026762952 | O25: 2.063149145 | P25: 2.2 | Q25: 6.423370851 | R25: 2.801248976 | S25: 3.7 | T25: 3.6 | U25: 2.5 | V25: 2.6 | W25: 3.504373009
A26: 20 | B26: =IF(HLOOKUP($B$7,$F$7:$W$41,$A26)="-","-",IF('TXV-Fun'!$E$44>80,"-",HLOOKUP($B$7,$F$7:$W$41,$A26)/'TXV-Fun'!$J$48)) -> 0.8577877428 | D26: X22440-B1B | E26: 803 210 | F26: 2.2 | G26: 1.5 | H26: 1.9 | I26: 1.3 | J26: 1.3 | K26: 2.1 | L26: - | M26: 1.868315057 | N26: 1.554283678 | O26: 1.059454966 | P26: 1.1 | Q26: 3.298487734 | R26: 1.438479204 | S26: 1.9 | T26: 1.9 | U26: 1.3 | V26: 1.3 | W26: 1.799542896
A27: 21 | B27: =IF(HLOOKUP($B$7,$F$7:$W$41,$A27)="-","-",IF('TXV-Fun'!$E$44>80,"-",HLOOKUP($B$7,$F$7:$W$41,$A27)/'TXV-Fun'!$O$48)) ->  | D27: X 10-B07 | E27: 803 627 | F27: - | G27: - | H27: 25.6 | I27: 17.6 | J27: 17.6 | K27: - | L27: 27.1 | M27: 24.67586343 | N27: - | O27: - | P27: - | Q27: - | R27: 18.5308131 | S27: 24.7 | T27: 24.1 | U27: - | V27: - | W27: 22.78272485
A28: 22 | B28: =IF(HLOOKUP($B$7,$F$7:$W$41,$A28)="-","-",IF('TXV-Fun'!$E$44>80,"-",HLOOKUP($B$7,$F$7:$W$41,$A28)/'TXV-Fun'!$O$48)) ->  | D28: X 10-B06 | E28: 803 626 | F28: - | G28: - | H28: 20.5 | I28: 14.1 | J28: 14.1 | K28: - | L28: 21.7 | M28: 19.75996876 | N28: - | O28: - | P28: - | Q28: - | R28: 14.83912768 | S28: 19.8 | T28: 19.3 | U28: - | V28: - | W28: 18.24397889
A29: 23 | B29: =IF(HLOOKUP($B$7,$F$7:$W$41,$A29)="-","-",IF('TXV-Fun'!$E$44>80,"-",HLOOKUP($B$7,$F$7:$W$41,$A29)/'TXV-Fun'!$O$48)) ->  | D29: X 10-B05 | E29: 803 625 | F29: - | G29: - | H29: 15.4 | I29: 10.6 | J29: 10.6 | K29: - | L29: 16.3 | M29: 14.84407409 | N29: - | O29: - | P29: - | Q29: - | R29: 11.14744226 | S29: 14.8 | T29: 14.5 | U29: - | V29: - | W29: 13.70523292
A30: 24 | B30: =IF(HLOOKUP($B$7,$F$7:$W$41,$A30)="-","-",IF('TXV-Fun'!$E$44>80,"-",HLOOKUP($B$7,$F$7:$W$41,$A30)/'TXV-Fun'!$O$48)) ->  | D30: X 10-B04 | E30: 803 624 | F30: - | G30: - | H30: 10.2 | I30: 7 | J30: 7 | K30: - | L30: 10.8 | M30: 9.831789335 | N30: - | O30: - | P30: - | Q30: - | R30: 7.383370845 | S30: 9.8 | T30: 9.6 | U30: - | V30: - | W30: 9.077491934
A31: 25 | B31: =IF(HLOOKUP($B$7,$F$7:$W$41,$A31)="-","-",IF('TXV-Fun'!$E$44>80,"-",HLOOKUP($B$7,$F$7:$W$41,$A31)/'TXV-Fun'!$O$48)) ->  | D31: X 10-B03 | E31: 803 623 | F31: - | G31: - | H31: 6.4 | I31: 4.4 | J31: 4.4 | K31: - | L31: 6.8 | M31: 6.168965857 | N31: - | O31: - | P31: - | Q31: - | R31: 4.632703275 | S31: 6.2 | T31: 6 | U31: - | V31: - | W31: 5.695681213
A32: 26 | B32: =IF(HLOOKUP($B$7,$F$7:$W$41,$A32)="-","-",IF('TXV-Fun'!$E$44>80,"-",HLOOKUP($B$7,$F$7:$W$41,$A32)/'TXV-Fun'!$O$48)) ->  | D32: X 10-B02 | E32: 803 622 | F32: - | G32: - | H32: 3.8 | I32: 2.6 | J32: 2.6 | K32: - | L32: 4 | M32: 3.662823478 | N32: - | O32: - | P32: - | Q32: - | R32: 2.75066757 | S32: 3.7 | T32: 3.6 | U32: - | V32: - | W32: 3.38181072
A33: 27 | B33: =IF(HLOOKUP($B$7,$F$7:$W$41,$A33)="-","-",IF('TXV-Fun'!$E$44>80,"-",HLOOKUP($B$7,$F$7:$W$41,$A33)/'TXV-Fun'!$O$48)) ->  | D33: X 10-B01 | E33: 803 621 | F33: - | G33: - | H33: 1.8 | I33: 1.2 | J33: 1.2 | K33: - | L33: 1.9 | M33: 1.735021647 | N33: - | O33: - | P33: - | Q33: - | R33: 1.302947796 | S33: 1.7 | T33: 1.7 | U33: - | V33: - | W33: 1.601910341
A34: 28 | B34: =IF(HLOOKUP($B$7,$F$7:$W$41,$A34)="-","-",IF('TXV-Fun'!$E$44>80,"-",HLOOKUP($B$7,$F$7:$W$41,$A34)/'TXV-Fun'!$J$48)) -> 8.758464321 | D34: TIO-006 | E34: 800539 | F34: 22.8 | G34: 11.7 | H34: 19.5 | I34: 14.2 | J34: 14.2 | K34: 21.1 | L34: - | M34: 19.17481243 | N34: 15.9518588 | O34: 8.437190181 | P34: 9.1 | Q34: 33.85290043 | R34: 14.7633392 | S34: 19.4 | T34: 19 | U34: 10.31879627 | V34: 10.56358452 | W34: 18.46899288
A35: 29 | B35: =IF(HLOOKUP($B$7,$F$7:$W$41,$A35)="-","-",IF('TXV-Fun'!$E$44>80,"-",HLOOKUP($B$7,$F$7:$W$41,$A35)/'TXV-Fun'!$J$48)) -> 7.629796239 | D35: TIO-005 | E35: 800538 | F35: 19.7 | G35: 10.1 | H35: 16.9 | I35: 12.3 | J35: 12.3 | K35: 18.3 | L35: - | M35: 16.61817077 | N35: 13.82494429 | O35: 7.283386396 | P35: 7.9 | Q35: 29.33918037 | R35: 12.79489397 | S35: 16.9 | T35: 16.5 | U35: 8.907678832 | V35: 9.118991763 | W35: 16.0064605
A36: 30 | B36: =IF(HLOOKUP($B$7,$F$7:$W$41,$A36)="-","-",IF('TXV-Fun'!$E$44>80,"-",HLOOKUP($B$7,$F$7:$W$41,$A36)/'TXV-Fun'!$J$48)) -> 6.275394539 | D36: TIO-004 | E36: 800537 | F36: 16.2 | G36: 8.3 | H36: 13.9 | I36: 10.1 | J36: 10.1 | K36: 15 | L36: - | M36: 13.66819963 | N36: 11.37081217 | O36: 5.985357137 | P36: 6.5 | Q36: 24.13104185 | R36: 10.52361102 | S36: 13.9 | T36: 13.5 | U36: 7.320171713 | V36: 7.493824914 | W36: 13.16507698
A37: 31 | B37: =IF(HLOOKUP($B$7,$F$7:$W$41,$A37)="-","-",IF('TXV-Fun'!$E$44>80,"-",HLOOKUP($B$7,$F$7:$W$41,$A37)/'TXV-Fun'!$J$48)) -> 3.837471481 | D37: TIO-003 | E37: 800536 | F37: 9.9 | G37: 5 | H37: 8.5 | I37: 6.2 | J37: 6.2 | K37: 9.2 | L37: - | M37: 8.358251573 | N37: 6.953374349 | O37: 3.60563683 | P37: 3.9 | Q37: 14.7563925 | R37: 6.435301702 | S37: 8.5 | T37: 8.3 | U37: 4.409741996 | V37: 4.514352358 | W37: 8.050586642
A38: 32 | B38: =IF(HLOOKUP($B$7,$F$7:$W$41,$A38)="-","-",IF('TXV-Fun'!$E$44>80,"-",HLOOKUP($B$7,$F$7:$W$41,$A38)/'TXV-Fun'!$J$48)) -> 2.392776335 | D38: TIO-002 | E38: 800535 | F38: 6.2 | G38: 3.1 | H38: 5.3 | I38: 3.9 | J38: 3.9 | K38: 5.7 | L38: - | M38: 5.211615687 | N38: 4.335633418 | O38: 2.235494834 | P38: 2.4 | Q38: 9.201044733 | R38: 4.012599885 | S38: 5.3 | T38: 5.2 | U38: 2.734040037 | V38: 2.798898462 | W38: 5.019777553
A39: 33 | B39: =IF(HLOOKUP($B$7,$F$7:$W$41,$A39)="-","-",IF('TXV-Fun'!$E$44>80,"-",HLOOKUP($B$7,$F$7:$W$41,$A39)/'TXV-Fun'!$J$48)) -> 1.444695146 | D39: TIO-001 | E39: 800534 | F39: 3.7 | G39: 1.9 | H39: 3.2 | I39: 2.3 | J39: 2.3 | K39: 3.5 | L39: - | M39: 3.146635886 | N39: 2.617740931 | O39: 1.370141995 | P39: 1.5 | Q39: 5.555347763 | R39: 2.422701817 | S39: 3.2 | T39: 3.1 | U39: 1.675701958 | V39: 1.715453896 | W39: 3.030809089
A40: 34 | B40: =IF(HLOOKUP($B$7,$F$7:$W$41,$A40)="-","-",IF('TXV-Fun'!$E$44>80,"-",HLOOKUP($B$7,$F$7:$W$41,$A40)/'TXV-Fun'!$J$48)) -> 0.586907403 | D40: TIO-000 | E40: 800533 | F40: 1.5 | G40: 0.8 | H40: 1.3 | I40: 1 | J40: 1 | K40: 1.4 | L40: - | M40: 1.278320829 | N40: 1.063457253 | O40: 0.5769018927 | P40: 0.6 | Q40: 2.256860029 | R40: 0.9842226133 | S40: 1.3 | T40: 1.3 | U40: 0.7055587193 | V40: 0.7222963773 | W40: 1.231266192
A41: 35 | B41: =IF(HLOOKUP($B$7,$F$7:$W$41,$A41)="-","-",IF('TXV-Fun'!$E$44>80,"-",HLOOKUP($B$7,$F$7:$W$41,$A41)/'TXV-Fun'!$J$48)) -> 0.2257336165 | D41: TIO-00X | E41: 800532 | F41: 0.6 | G41: 0.3 | H41: 0.5 | I41: 0.4 | J41: 0.4 | K41: 0.5 | L41: - | M41: 0.4916618572 | N41: 0.4090220205 | O41: 0.2163382098 | P41: 0.2 | Q41: 0.868023088 | R41: 0.378547159 | S41: 0.5 | T41: 0.5 | U41: 0.2645845197 | V41: 0.2708611415 | W41: 0.4735639201
F42: =F7 -> 2 | G42: 3 | H42: 4 | I42: 5 | J42: 7 | K42: 8 | L42: 10 | M42: 13 | N42: 15 | O42: 17 | P42: 18 | Q42: 21 | R42: 22 | S42: 24 | T42: 26 | U42: 28 | V42: 30 | W42: 34
A43: Row Nr. | B43: Refr-Cap-Code | D43: Valve Series | F43: Refrigerant Capacity Code | Y43: Wenn Füllungen wntwickelt dann übertragen
A44: 3 | B44: =IF(HLOOKUP($B$7,$F$42:$W$76,$A44)="-","-",HLOOKUP($B$7,$F$42:$W$76,$A44)) -> 86BW | C44: Qmax oder Qn | D44: THRE | F44: - | G44: 68 MW | H44: 100 HW | I44: 77 SW | J44: 77 SW | K44: 94 NW | L44: - | M44: - N/A | N44: - N/A | O44: - N/A | P44: - N/A | Q44: - | R44: 77 SW | S44: 86BW | T44: 86BW | U44: - N/A | V44: - N/A | W44: - N/A | Y44: 86JW | Z44: 73LW | AA44: 53FW | AB44: 53EW | AC44: - | AD44: 77 SW | AE44: 86BW | AF44: 86BW | AG44: 60DW | AH44: 60CW | AI44: 86KW
A45: =A44+1 -> 4 | B45: =IF(HLOOKUP($B$7,$F$42:$W$76,$A45)="-","-",HLOOKUP($B$7,$F$42:$W$76,$A45)) -> 72BW | D45: THRE | F45: - | G45: 55 MW | H45: 75 HW | I45: 61 SW | J45: 61 SW | K45: 71 NW | L45: - | M45: - N/A | N45: - N/A | O45: - N/A | P45: - N/A | Q45: - | R45: 61 SW | S45: 72BW | T45: 72BW | U45: - N/A | V45: - N/A | W45: - N/A | Y45: 72JW | Z45: 55LW | AA45: 43FW | AB45: 43EW | AC45: - | AD45: 61 SW | AE45: 72BW | AF45: 72BW | AG45: 49DW | AH45: 49CW | AI45: 72KW
A46: =A45+1 -> 5 | B46: 64BW | D46: TIRE | F46: - | G46: 45 MW | H46: 55 HW | I46: 47 SW | J46: 47 SW | K46: 52 NW | L46: - | M46: - N/A | N46: - N/A | O46: - N/A | P46: - N/A | Q46: - | R46: 47 SW | S46: 64BW | T46: 64BW | U46: - N/A | V46: - N/A | W46: - N/A | Y46: 64JW | Z46: 40LW | AA46: 35FW | AB46: 35EW | AC46: - | AD46: 47 SW | AE46: 64BW | AF46: 64BW | AG46: 40DW | AH46: 40CW | AI46: 64KW
A47: 6 | B47: 50BW | D47: TERE | F47: - | G47: 31 MW | H47: 45 HW | I47: 34 SW | J47: 34 SW | K47: 42 NW | L47: - | M47: - N/A | N47: - N/A | O47: - N/A | P47: - N/A | Q47: - | R47: 34 SW | S47: 50BW | T47: 50BW | U47: - N/A | V47: - N/A | W47: - N/A | Y47: 50JW | Z47: 33LW | AA47: 24FW | AB47: 24EW | AC47: - | AD47: 34 SW | AE47: 50BW | AF47: 50BW | AG47: 27DW | AH47: 27CW | AI47: 50KW
A48: 7 | B48: 41BW | D48: TERE | F48: - | G48: 25 MW | H48: 35 HW | I48: 27 SW | J48: 27 SW | K48: 33 NW | L48: - | M48: - N/A | N48: - N/A | O48: - N/A | P48: - N/A | Q48: - | R48: 27 SW | S48: 41BW | T48: 41BW | U48: - N/A | V48: - N/A | W48: - N/A | Y48: 41JW | Z48: 26LW | AA48: 20FW | AB48: 20EW | AC48: - | AD48: 27 SW | AE48: 41BW | AF48: 41BW | AG48: 22DW | AH48: 22CW | AI48: 41KW
A49: 8 | B49: 30BW | D49: TERE | F49: - | G49: 19 MW | H49: 26 HW | I49: 20 SW | J49: 20 SW | K49: 25 NW | L49: - | M49: - N/A | N49: - N/A | O49: - N/A | P49: - N/A | Q49: - | R49: 20 SW | S49: 30BW | T49: 30BW | U49: - N/A | V49: - N/A | W49: - N/A | Y49: 30JW | Z49: 19LW | AA49: 15FW | AB49: 15EW | AC49: - | AD49: 20 SW | AE49: 30BW | AF49: 30BW | AG49: 17DW | AH49: 17CW | AI49: 30KW
A50: 9 | B50: 26BW | D50: TERE | F50: - | G50: 16 MW | H50: 22 HW | I50: 18 SW | J50: 18 SW | K50: 21 NW | L50: - | M50: - N/A | N50: - N/A | O50: - N/A | P50: - N/A | Q50: - | R50: 18 SW | S50: 26BW | T50: 26BW | U50: - N/A | V50: - N/A | W50: - N/A | Y50: 26JW | Z50: 16LW | AA50: 13FW | AB50: 13EW | AC50: - | AD50: 18 SW | AE50: 26BW | AF50: 26BW | AG50: 14DW | AH50: 14CW | AI50: 26KW
A51: 10 | B51: 21BW | D51: TJRE | F51: 25 ZW | G51: 13 MW | H51: 18 HW | I51: 14 SW | J51: 14 SW | K51: 17 NW | L51: - | M51: - N/A | N51: - N/A | O51: - N/A | P51: - N/A | Q51: - N/A | R51: 14 SW | S51: 21BW | T51: 21BW | U51: - N/A | V51: - N/A | W51: - N/A | Y51: 21JW | Z51: 13LW | AA51: 10FW | AB51: 10EW | AC51: 37YW | AD51: 14 SW | AE51: 21BW | AF51: 21BW | AG51: 11DW | AH51: 11CW | AI51: 21KW
A52: 11 | B52: 17BW | D52: TJRE | F52: 19 ZW | G52: 11 MW | H52: 14 HW | I52: 12 SW | J52: 12 SW | K52: 14 NW | L52: - | M52: - N/A | N52: - N/A | O52: - N/A | P52: - N/A | Q52: - N/A | R52: 12 SW | S52: 17BW | T52: 17BW | U52: - N/A | V52: - N/A | W52: - N/A | Y52: 17JW | Z52: 11LW | AA52: 9FW | AB52: 9EW | AC52: 28YW | AD52: 12 SW | AE52: 17BW | AF52: 17BW | AG52: 10DW | AH52: 10CW | AI52: 17KW
A53: 12 | B53: 1350BW | D53: TCLE | F53: 1600 ZW | G53: 900 MW | H53: 1200 HW | I53: 1000 SW | J53: 1000 SW | K53: 1150 NW | L53: - | M53: - N/A | N53: - N/A | O53: - N/A | P53: - N/A | Q53: - N/A | R53: 1000 SW | S53: 1350BW | T53: 1350BW | U53: - N/A | V53: - N/A | W53: - N/A | Y53: 1350JW | Z53: 900LW | AA53: 700FW | AB53: 700EW | AC53: 2400YW | AD53: 1000 SW | AE53: 1350BW | AF53: 1350BW | AG53: 800DW | AH53: 800CW | AI53: 1350KW
A54: 13 | B54: 1150BW | D54: TCLE | F54: 1400 ZW | G54: 750 MW | H54: 1000 HW | I54: 850 SW | J54: 850 SW | K54: 1000 NW | L54: - | M54: - N/A | N54: - N/A | O54: - N/A | P54: - N/A | Q54: - N/A | R54: 850 SW | S54: 1150BW | T54: 1150BW | U54: - N/A | V54: - N/A | W54: - N/A | Y54: 1150JW | Z54: 750LW | AA54: 600FW | AB54: 600EW | AC54: 2100YW | AD54: 850 SW | AE54: 1150BW | AF54: 1150BW | AG54: 650DW | AH54: 650CW | AI54: 1150KW
A55: 14 | B55: 850BW | D55: TCLE | F55: 1000 ZW | G55: 550 MW | H55: 750 HW | I55: 600 SW | J55: 600 SW | K55: 750 NW | L55: - | M55: - N/A | N55: - N/A | O55: - N/A | P55: - N/A | Q55: - N/A | R55: 600 SW | S55: 850BW | T55: 850BW | U55: - N/A | V55: - N/A | W55: - N/A | Y55: 850JW | Z55: 600LW | AA55: 450FW | AB55: 450EW | AC55: 1500YW | AD55: 600 SW | AE55: 850BW | AF55: 850BW | AG55: 500DW | AH55: 500CW | AI55: 850KW
A56: 15 | B56: 650BW | D56: TCLE | F56: 750 ZW | G56: 350 MW | H56: 500 HW | I56: 400 SW | J56: 400 SW | K56: 550 NW | L56: - | M56: - N/A | N56: - N/A | O56: - N/A | P56: - N/A | Q56: - N/A | R56: 400 SW | S56: 650BW | T56: 650BW | U56: - N/A | V56: - N/A | W56: - N/A | Y56: 650JW | Z56: 400LW | AA56: 300FW | AB56: 300EW | AC56: 1100YW | AD56: 400 SW | AE56: 650BW | AF56: 650BW | AG56: 300DW | AH56: 300CW | AI56: 650KW
A57: 16 | B57: 500BW | D57: TCLE | F57: 600 ZW | G57: 250 MW | H57: 300 HW | I57: 250 SW | J57: 250 SW | K57: 400 NW | L57: - | M57: - N/A | N57: - N/A | O57: - N/A | P57: - N/A | Q57: - N/A | R57: 250 SW | S57: 500BW | T57: 500BW | U57: - N/A | V57: - N/A | W57: - N/A | Y57: 500JW | Z57: 300LW | AA57: 200FW | AB57: 200EW | AC57: 900YW | AD57: 250 SW | AE57: 500BW | AF57: 500BW | AG57: 250DW | AH57: 250CW | AI57: 500KW
A58: 17 | B58: 350BW | D58: TCLE | F58: 400 ZW | G58: 200 MW | H58: 250 HW | I58: 200 SW | J58: 200 SW | K58: 300 NW | L58: - | M58: - N/A | N58: - N/A | O58: - N/A | P58: - N/A | Q58: - N/A | R58: 200 SW | S58: 350BW | T58: 350BW | U58: - N/A | V58: - N/A | W58: - N/A | Y58: 350JW | Z58: 250LW | AA58: 150FW | AB58: 150EW | AC58: 600YW | AD58: 200 SW | AE58: 350BW | AF58: 350BW | AG58: 200DW | AH58: 200CW | AI58: 350KW
A59: 18 | B59: 250BW | D59: TCLE | F59: 250 ZW | G59: 150 MW | H59: 200 HW | I59: 150 SW | J59: 150 SW | K59: 200 NW | L59: - | M59: - N/A | N59: - N/A | O59: - N/A | P59: - N/A | Q59: - N/A | R59: 150 SW | S59: 250BW | T59: 250BW | U59: - N/A | V59: - N/A | W59: - N/A | Y59: 250JW | Z59: 150LW | AA59: 100FW | AB59: 100EW | AC59: 375YW | AD59: 150 SW | AE59: 250BW | AF59: 250BW | AG59: 150DW | AH59: 150CW | AI59: 250KW
A60: 19 | B60: 100BW | D60: TCLE | F60: 100 ZW | G60: 75 MW | H60: 100 HW | I60: 75 SW | J60: 75 SW | K60: 100 NW | L60: - | M60: - N/A | N60: - N/A | O60: - N/A | P60: - N/A | Q60: - N/A | R60: 75 SW | S60: 100BW | T60: 100BW | U60: - N/A | V60: - N/A | W60: - N/A | Y60: 100JW | Z60: 75LW | AA60: 50FW | AB60: 50EW | AC60: 150YW | AD60: 75 SW | AE60: 100BW | AF60: 100BW | AG60: 75DW | AH60: 75CW | AI60: 100KW
A61: 20 | B61: 55BW | D61: TCLE | F61: 50 ZW | G61: 25 MW | H61: 50 HW | I61: 25 SW | J61: 25 SW | K61: 50 NW | L61: - | M61: - N/A | N61: - N/A | O61: - N/A | P61: - N/A | Q61: - N/A | R61: 25 SW | S61: 55BW | T61: 55BW | U61: - N/A | V61: - N/A | W61: - N/A | Y61: 50JW | Z61: 25LW | AA61: 25FW | AB61: 25EW | AC61: 75YW | AD61: 25 SW | AE61: 55BW | AF61: 55BW | AG61: 25DW | AH61: 25CW | AI61: 50KW
A62: 21 | B62: 12BW | D62: ZZCE | F62: - | G62: - | H62: 10 HW | I62: 9 SW | J62: 9 SW | K62: - | L62: 31 BG | M62: 12BW | N62: - | O62: - | P62: - | Q62: - | R62: 9 SW | S62: 12BW | T62: 12BW | U62: - | V62: - | W62: 12BW
A63: 22 | B63: 10BW | D63: ZZCE | F63: - | G63: - | H63: 8 HW | I63: 8 SW | J63: 8 SW | K63: - | L63: 25 BG | M63: 10BW | N63: - | O63: - | P63: - | Q63: - | R63: 8 SW | S63: 10BW | T63: 10BW | U63: - | V63: - | W63: 10BW
A64: 23 | B64: 6BW | D64: ZZCE | F64: - | G64: - | H64: 6 HW | I64: 5 SW | J64: 5 SW | K64: - | L64: 17 BG | M64: 6BW | N64: - | O64: - | P64: - | Q64: - | R64: 5 SW | S64: 6BW | T64: 6BW | U64: - | V64: - | W64: 6BW
A65: 24 | B65: 5BW | D65: ZZCE | F65: - | G65: - | H65: 4 HW | I65: 3 1/2 SW | J65: 3 1/2 SW | K65: - | L65: 12 BG | M65: 5BW | N65: - | O65: - | P65: - | Q65: - | R65: 3 1/2 SW | S65: 5BW | T65: 5BW | U65: - | V65: - | W65: 5BW
A66: 25 | B66: 3BW | D66: ZZCE | F66: - | G66: - | H66: 2 1/2 HW | I66: 2 1/2 SW | J66: 2 1/2 SW | K66: - | L66: 8 BG | M66: 3BW | N66: - | O66: - | P66: - | Q66: - | R66: 2 1/2 SW | S66: 3BW | T66: 3BW | U66: - | V66: - | W66: 3BW
A67: 26 | B67: 2BW | D67: ZZCE | F67: - | G67: - | H67: 1 1/2 HW | I67: 1 1/2 SW | J67: 1 1/2 SW | K67: - | L67: 6 BG | M67: 2BW | N67: - | O67: - | P67: - | Q67: - | R67: 1 1/2 SW | S67: 2BW | T67: 2BW | U67: - | V67: - | W67: 2BW
A68: 27 | B68: 1BW | D68: ZZCE | F68: - | G68: - | H68: 3/4 HW | I68: 3/4 SW | J68: 3/4 SW | K68: - | L68: 2 BG | M68: 1BW | N68: - | O68: - | P68: - | Q68: - | R68: 3/4 SW | S68: 1BW | T68: 1BW | U68: - | V68: - | W68: 1BW
A69: 28 | B69: 19.4 | D69: TILE | F69: 22.8 | G69: 11.7 | H69: 19.5 | I69: 14.2 | J69: 14.2 | K69: 21.1 | L69: - | M69: 19.2 | N69: 21.8 | P69: 9.1 | R69: 14.7633392 | S69: 19.4 | T69: 19 | U69: 8 | V69: 8.2
A70: 29 | B70: 16.9 | D70: TILE | F70: 19.7 | G70: 10.1 | H70: 16.9 | I70: 12.3 | J70: 12.3 | K70: 18.3 | L70: - | M70: 16.6 | N70: 18.9 | P70: 7.9 | R70: 12.79489397 | S70: 16.9 | T70: 16.5 | U70: 6.9 | V70: 7.1
A71: 30 | B71: 13.9 | D71: TILE | F71: 16.2 | G71: 8.3 | H71: 13.9 | I71: 10.1 | J71: 10.1 | K71: 15 | L71: - | M71: 13.7 | N71: 15.5 | P71: 6.5 | R71: 10.52361102 | S71: 13.9 | T71: 13.5 | U71: 5.7 | V71: 5.8
A72: 31 | B72: 8.5 | D72: TILE | F72: 9.9 | G72: 5 | H72: 8.5 | I72: 6.2 | J72: 6.2 | K72: 9.2 | L72: - | M72: 8.4 | N72: 9.5 | P72: 3.9 | R72: 6.435301702 | S72: 8.5 | T72: 8.3 | U72: 3.4 | V72: 3.5
A73: 32 | B73: 5.3 | D73: TILE | F73: 6.2 | G73: 3.1 | H73: 5.3 | I73: 3.9 | J73: 3.9 | K73: 5.7 | L73: - | M73: 5.2 | N73: 5.9 | P73: 2.4 | R73: 4.012599885 | S73: 5.3 | T73: 5.2 | U73: 2.1 | V73: 2.2
A74: 33 | B74: 3.2 | D74: TILE | F74: 3.7 | G74: 1.9 | H74: 3.2 | I74: 2.3 | J74: 2.3 | K74: 3.5 | L74: - | M74: 3.2 | N74: 3.6 | P74: 1.5 | R74: 2.422701817 | S74: 3.2 | T74: 3.1 | U74: 1.3 | V74: 1.3
A75: 34 | B75: 1.3 | D75: TILE | F75: 1.5 | G75: 0.8 | H75: 1.3 | I75: 1 | J75: 1 | K75: 1.4 | L75: - | M75: 1.3 | N75: 1.5 | P75: 0.6 | R75: 0.9842226133 | S75: 1.3 | T75: 1.3 | U75: 0.5 | V75: 0.6
A76: 35 | B76: 0.5 | D76: TILE | F76: 0.6 | G76: 0.3 | H76: 0.5 | I76: 0.4 | J76: 0.4 | K76: 0.5 | L76: - | M76: 0.5 | N76: 0.6 | P76: 0.2 | R76: 0.378547159 | S76: 0.5 | T76: 0.5 | U76: 0.2 | V76: 0.2
A78: Power Element Selection
B79: XC726 | C79: 2B | E79: PCN XC
B80: XB1019 | C80: 1B | E80: PCN XB | F80: =F6 -> R410A | G80: R134a | H80: R22 | I80: R404A | J80: R507 | K80: R407C | L80: R23 | M80: R454A | N80: R454C | O80: R1234yf | P80: R1234ze | Q80: =Q6 -> R32 | R80: R452a | S80: R448A | T80: R449A | U80: R450A | V80: R513A | W80: R455A
F81: =F7 -> 2 | G81: 3 | H81: 4 | I81: 5 | J81: 7 | K81: 8 | L81: 10 | M81: 13 | N81: 15 | O81: 17 | P81: 18 | Q81: =Q7 -> 21 | R81: 22 | S81: 24 | T81: 26 | U81: 28 | V81: 30 | W81: 34
A82: Type Codes T-Series
A83: 3 | B83: =HLOOKUP($B$7,$F$81:$W$87,$A83) -> BW | D83: no MOP | F83: - | G83: MW | H83: HW | I83: SW | J83: SW | K83: NW | L83: - | M83: BW | N83: NW | O83: MW | P83: MW | Q83: - | R83: SW | S83: BW | T83: BW | U83: MW | V83: MW | W83: BW
A84: 4 | B84: =HLOOKUP($B$7,$F$81:$W$87,$A84) -> BW 30 | D84: MOP1 | F84: ZW 175 | G84: MW 35 | H84: HW 35 | I84: SW 40 | J84: SW 40 | K84: NW 100 | L84: - | M84: BW 30 | N84: NW 100 | O84: MW35 | P84: MW 35 | Q84: ZW175 | R84: SW 40 | S84: BW 30 | T84: BW 30 | U84: MW 35 | V84: MW 35 | W84: BW30
A85: 5 | B85: BW 100 | D85: MOP2 | F85: - | G85: MW 55 | H85: HW 65 | I85: SW 55 | J85: SW 55 | K85: - | L85: - | M85: BW 100 | N85: - | O85: MW55 | P85: MW 55 | Q85: - | R85: SW 55 | S85: BW 100 | T85: BW 100 | U85: MW 55 | V85: MW 55 | W85: BW100
A86: 6 | B86: - | D86: MOP3 | F86: - | G86: - | H86: HW 100 | I86: SW 75 | J86: SW 75 | K86: - | L86: - | M86: - | N86: - | O86: - | P86: - | Q86: - | R86: SW 75 | S86: - | T86: - | U86: - | V86: - | W86: -
A87: 7 | B87: - | D87: MOP4 | F87: - | G87: - | H87: - | I87: SW 80 | J87: SW 80 | K87: - | L87: - | M87: - | N87: - | O87: - | P87: - | Q87: - | R87: SW 80 | S87: - | T87: - | U87: - | V87: - | W87: -
A88: 8
A89: PCNs | B89: XB1019 | C89: 1B
A90: 10 | B90: =HLOOKUP($B$7,$F$81:$W$101,$A90) -> 802 792 | D90: no MOP | F90: - | G90: 802 947 | H90: 802 931 | I90: 803 443 | J90: 803 443 | K90: 803 480 | L90: - | M90: 802 792 | N90: 803 480 | O90: 802 947 | P90: 802 947 | Q90: - | R90: 803 443 | S90: 802 792 | T90: 802 792 | U90: 802 947 | V90: 802 947 | W90: 802 792
A91: 11 | B91: =HLOOKUP($B$7,$F$81:$W$101,$A91) -> 802 791 | D91: MOP1 | F91: 804 824 | G91: 803 381 | H91: 803 035 | I91: 803 452 | J91: 803 452 | K91: 803 482 | L91: - | M91: 802 791 | N91: 803 482 | O91: 803 381 | P91: 803 381 | Q91: 804 824 | R91: 803 452 | S91: 802 791 | T91: 802 791 | U91: 803 381 | V91: 803 381 | W91: 802 791
A92: 12 | B92: 802 790 | D92: MOP2 | F92: - | G92: 803 379 | H92: 803 039 | I92: 803 474 | J92: 803 474 | K92: - | L92: - | M92: 802 790 | N92: - | O92: 803 379 | P92: 803 379 | Q92: - | R92: 803 474 | S92: 802 790 | T92: 802 790 | U92: 803 379 | V92: 803 379 | W92: 802 790
A93: 13 | B93: - | D93: MOP3 | F93: - | G93: - | H93: 803 043 | I93: 803 498 | J93: 803 498 | K93: - | L93: - | M93: - | N93: - | O93: - | P93: - | Q93: - | R93: 803 498 | S93: - | T93: - | U93: - | V93: - | W93: -
A94: 14 | B94: - | D94: MOP4 | F94: - | G94: - | H94: - | I94: 803 454 | J94: 803 454 | K94: - | L94: - | M94: - | N94: - | O94: - | P94: - | Q94: - | R94: 803 454 | S94: - | T94: - | U94: - | V94: - | W94: -
A95: 15 | B95: XC726 | C95: 2B
A96: 16 | B96: =HLOOKUP($B$7,$F$81:$W$101,$A96) -> 802 794 | D96: no MOP | F96: - | G96: 803 384 | H96: 802 933 | I96: 803 451 | J96: 803 451 | K96: 803 484 | L96: - | M96: 802 794 | N96: 803 484 | O96: 803 384 | P96: 803 384 | Q96: - | R96: 803 451 | S96: 802 794 | T96: 802 794 | U96: 803 384 | V96: 803 384 | W96: 802 794
A97: 17 | B97: 802 793 | D97: MOP1 | F97: - | G97: 803 436 | H97: 803 065 | I97: 803 456 | J97: 803 456 | K97: 803 485 | L97: - | M97: 802 793 | N97: 803 485 | O97: 803 436 | P97: 803 436 | Q97: - | R97: 803 456 | S97: 802 793 | T97: 802 793 | U97: 803 436 | V97: 803 436 | W97: 802 793
A98: 18 | B98: - | D98: MOP2 | F98: - | G98: 803 391 | H98: 803 067 | I98: 803 476 | J98: 803 476 | K98: - | L98: - | M98: - | N98: - | O98: 803 391 | P98: 803 391 | Q98: - | R98: 803 476 | S98: - | T98: - | U98: 803 391 | V98: 803 391 | W98: -
A99: 19 | B99: - | D99: MOP3 | F99: - | G99: - | H99: 803 070 | I99: 803 171 | J99: 803 171 | K99: - | L99: - | M99: - | N99: - | P99: - | Q99: - | R99: 803 171 | S99: - | T99: - | U99: - | V99: - | W99: -
A100: 20 | B100: - | D100: MOP4 | F100: - | G100: - | H100: - | I100: 803 457 | J100: 803 457 | K100: - | L100: - | M100: - | N100: - | P100: - | Q100: - | R100: 803 457 | S100: - | T100: - | U100: - | V100: - | W100: -
A101: 21 | F101: =F6 -> R410A | G101: R134a | H101: R22 | I101: R404A | J101: R507 | K101: R407C | L101: R23 | M101: R454A | N101: R454C | O101: R1234yf | P101: R1234ze | Q101: =Q6 -> R32 | R101: R452a | S101: R448A | T101: R449A | U101: R450A | V101: R513A | W101: R455A
A102: MOP | B102: Temperatures | F102: =F7 -> 2 | G102: 3 | H102: 4 | I102: 5 | J102: 7 | K102: 8 | L102: 10 | M102: 13 | N102: 15 | O102: 17 | P102: 18 | Q102: =Q7 -> 21 | R102: 22 | S102: 24 | T102: 26 | U102: 28 | V102: 30 | W102: 34 | Z102: R134a | AA102: R450A | AB102: R513A | AC102: R1234zep | AD102: R1234yf
A103: 2 | B103: =HLOOKUP($B$7,$F$102:$W$107,$A103) -> - | D103: no MOP | F103: - | G103: - | H103: - | I103: - | J103: - | K103: - | L103: - | M103: - | N103: - | O103: - | P103: - | Q103: - | R103: - | S103: - | T103: - | U103: - | V103: - | W103: - | Y103: 35 | Z103: 0.0214506718 | AA103: 4.062457965 | AB103: -2.554771156 | AC103: 8.33522728 | AD103: -2.22350209
A104: 3 | B104: =HLOOKUP($B$7,$F$102:$W$107,$A104) -> -18°C | D104: MOP1 | F104: 16°C | G104: 0°C | H104: -15°C | I104: -18°C | J104: -18°C | K104: 14°C | L104: - | M104: -21°C | N104: 16°C | O104: -2°C | P104: 8°C | Q104: 15°C | R104: -16°C | S104: -18°C | T104: -18°C | U104: +4°C | V104: -3°C | W104: -17°C | Y104: 55 | Z104: 11.16135102 | AA104: 15.52183891 | AB104: 8.754328176 | AC104: 20.14157158 | AD104: 9.492057717
A105: 4 | B105: +12°C | D105: MOP2 | F105: - | G105: 11°C | H105: 0°C | I105: -10°C | J105: -10°C | K105: - | L105: - | M105: +10°C | N105: - | O105: 10°C | P105: 20°C | Q105: - | R105: -8°C | S105: +12°C | T105: +12°C | U105: 16°C | V105: 9°C | W105: 14°C
A106: 5 | B106: - | D106: MOP3 | F106: - | G106: - | H106: 13°C | I106: -2°C | J106: -2°C | K106: - | L106: - | M106: - | N106: - | O106: - | P106: - | Q106: - | R106: 0°C | S106: - | T106: - | U106: - | V106: - | Z106: R22
A107: 6 | B107: - | D107: MOP4 | F107: - | G107: - | H107: - | I107: 0°C | J107: 0°C | K107: - | L107: - | M107: - | N107: - | O107: - | P107: - | Q107: - | R107: 2°C | S107: - | T107: - | U107: - | V107: - | Y107: 35 | Z107: -15.22763679
F108: =F6 -> R410A | G108: R134a | H108: R22 | I108: R404A | J108: R507 | K108: R407C | L108: R23 | M108: R454A | N108: R454C | O108: R1234yf | P108: R1234ze | R108: R452a | S108: R448A | T108: R449A | U108: R450A | V108: R513A | W108: R455A | Y108: 65 | Z108: 0.1592332298
F109: =F7 -> 2 | G109: 3 | H109: 4 | I109: 5 | J109: 7 | K109: 8 | L109: 10 | M109: 13 | N109: 15 | O109: 17 | P109: 18 | R109: 22 | S109: 24 | T109: 26 | U109: 28 | V109: 30 | W109: 34 | Y109: 100 | Z109: 12.8757914
A110: Type Codes ZZ-Series
A111: 3 | B111: =HLOOKUP($B$7,$F$109:$W$120,$A111) -> - | D111: no MOP | F111: - | G111: - | H111: - | I111: - | J111: - | K111: - | L111: - | M111: - | N111: - | O111: - | P111: - | Q111: - | R111: - | S111: - | T111: - | U111: - | V111: - | W111: - | Z111: R407C | AA111: R454C
A112: 4 | B112: =HLOOKUP($B$7,$F$109:$W$120,$A112) -> BW 30 | D112: MOP1 | F112: - | G112: - | H112: HW 35 | I112: SW 40 | J112: SW 40 | K112: - | L112: BG 20 | M112: BW 30 | N112: - | O112: - | P112: - | Q112: - | R112: SW 40 | S112: BW 30 | T112: BW 30 | U112: - | V112: - | W112: BW 30 | Y112: 100 | Z112: 14.40093935 | AA112: 15.99948758
A113: 5 | B113: - | D113: MOP2 | F113: - | G113: - | H113: - | I113: SW 55 | J113: SW 55 | K113: - | L113: BG 60 | M113: - | N113: - | O113: - | P113: - | Q113: - | R113: SW 55 | S113: - | T113: - | U113: - | V113: - | W113: -
A114: 6 | B114: - | D114: MOP3 | F114: - | G114: - | H114: - | I114: - | J114: - | K114: - | L114: BG 125 | M114: - | N114: - | O114: - | P114: - | Q114: - | R114: - | S114: - | T114: - | U114: - | V114: - | W114: - | Z114: R448A | AA114: R449A | AB114: R454A | AC114: R455A
A115: 7 | Y115: 30 | Z115: -18.5412172 | AA115: -18.54347801 | AB115: -20.87618715 | AC115: -17.16999036
A116: PCNs | B116: XC726 | C116: 2B | Y116: 100 | Z116: 11.4778802 | AA116: 11.54208252 | AB116: 9.688383034 | AC116: 13.72220968
A117: 9 | B117: =HLOOKUP($B$7,$F$109:$W$120,$A117) -> 802 794 | D117: no MOP | F117: - | G117: - | H117: 802 933 | I117: 803 451 | J117: 803 451 | K117: - | L117: - | M117: 802 794 | N117: - | O117: - | P117: - | Q117: - | R117: 803 451 | S117: 802 794 | T117: 802 794 | U117: - | V117: - | W117: 802 794
A118: 10 | B118: =HLOOKUP($B$7,$F$109:$W$120,$A118) -> 802 793 | D118: MOP1 | F118: - | G118: - | H118: 803 065 | I118: 803 456 | J118: 803 456 | K118: - | L118: 803 376 | M118: 802 793 | N118: - | O118: - | P118: - | Q118: - | R118: 803 456 | S118: 802 793 | T118: 802 793 | U118: - | V118: - | W118: 802 793 | Z118: R404A | AA118: R507 | AB118: R452A
